Workbook

Sheet Instructions
A1: Fill out the top area first
A2: Step 1 - In the first gray box select either High or Low power
A5: Step 2 - Select a pattern, rotation and the number of layers you desire
A7: Step 3 - Select a channel from 14 to 36
A9: Step 4 - Select Offset if you need reduced backside
A10: None - will not give you any rear reduction
A11: Full - will give you maximum reduction at the channel offset selected
A12: Partial - will produce a limited reduction at the channel and phase selected
A13: Auto select will give you the center channel of those channels entered
A16: Step 5 - Select a channel to view by selecting a channel 1 - 4 in the Select Channel box
A18: Step 6 - Enter the ERP desired in the "Power" box.
A19: TPO may be entered by first clicking on the "ERP/TPO" button
A22: Step 7 - Transmission line can be added by selecting the type on the pulldown button
A23: Enter the length
A25: Step 8 - By completing the Mechanical Specifications section the antenna loading
A26: will be calculated on the "Mechanicals" page

Sheet Input
G3: Date: | H3: 2019-12-01
D5: Reference Number: | J5: Prepared by:
C6: Customer Information
C8: Customer | I8: City, State
C11: Antenna Model: | E11: =IF(I13,"TFU-"&IF($I$13=8.2,8,IF($I$13=16.2,16,$I$13))&IF(C13="Low","WB-LP","WB")&IF(P77=TRUE,"/VP","")&"-R "&E13,"") & IF(OR($K$13="Full",$K$13="Partial")," OS","") -> TFU-4WB-LP/VP-R C160
C12: Power | E12: Pattern | G12: Rotation Degs | I12: Layers | K12: Offset
C13: Low | E13: C160 | G13: 0 | I13: 4 | K13: None
J16: Offset Channel | L16: 17 | M16: (14-36)
I18: Partial Offset Phase | L18: 1 | M18: (1-90)
E28: View Ch:
C29: Hpol | E29: 1 | F29: =IF(C13="Horizontal","","Vpol") -> Vpol | H29: =IF(K13="None","","Elevation pattern (main beam)") -> 
C30: View Ch | D30: Call Letters | F30: =IF(L67,"MHz","Channel") -> Channel | G30: Freq | I30: Power | L30: Combiner Losses
C31: 1 | F31: 26 | G31: =IF($F31="","",IF($F31<5,57+6*($F31-2),IF($F31<7,79+6*($F31-5),IF($F31<14,177+6*($F31-7),IF($F31<70,473+6*($F31-14),IF(AND($F31>200,$F31<301),($F31-201)*0.2+88.1,"")))))) -> 545 | I31: 50 | J31: =IF(P66,"ERP","TPO") -> ERP | M31: dB
C33: 2 | G33: =IF($F33="","",IF($F33<5,57+6*($F33-2),IF($F33<7,79+6*($F33-5),IF($F33<14,177+6*($F33-7),IF($F33<70,473+6*($F33-14),IF(AND($F33>200,$F33<301),($F33-201)*0.2+88.1,"")))))) ->  | J33: =IF(P67,"ERP","TPO") -> ERP | M33: dB
C35: 3 | G35: =IF($F35="","",IF($F35<5,57+6*($F35-2),IF($F35<7,79+6*($F35-5),IF($F35<14,177+6*($F35-7),IF($F35<70,473+6*($F35-14),IF(AND($F35>200,$F35<301),($F35-201)*0.2+88.1,"")))))) ->  | J35: =IF(P68,"ERP","TPO") -> ERP | M35: dB
C37: 4 | G37: =IF($F37="","",IF($F37<5,57+6*($F37-2),IF($F37<7,79+6*($F37-5),IF($F37<14,177+6*($F37-7),IF($F37<70,473+6*($F37-14),IF(AND($F37>200,$F37<301),($F37-201)*0.2+88.1,"")))))) ->  | J37: =IF(P69,"ERP","TPO") -> ERP | M37: dB
C39: Antenna input power budget | G39: =IF(AND(R89>0,H39>0),ROUND((R89/H39),3),"") -> 3.552 | H39: =VLOOKUP(I13,V67:X73,IF(C13="Low",2,3)) -> 2.5 | I39: Maximum antenna input
F40: TPO = | G40: =ROUND(IF(P71,S89,R89),2)&" kW" -> 11.75 kW | H40: =IF(P71,"includes transmission line losses","without transmission line losses") -> includes transmission line losses
C41: Transmission Line
C42: 3-1/8" | E42: =IF($C$42="","",VLOOKUP($F$66,$F$69:$J$102,3,FALSE)) -> 3-1/8" | F42: =IF($C$42="","",VLOOKUP($F$66,$F$69:$J$102,5,FALSE)) -> 50 Ohm | I42: Vertical | J42: 500 | K42: =IF(J42=" "," ",J42*0.3048) -> 152.4
E43: =IF($C$42="","",VLOOKUP($F$66,$F$69:$J$102,4,FALSE)) -> Rigid | F43: =IF($C$42="","",VLOOKUP($F$66,$F$69:$J$102,3,FALSE)) -> 3-1/8" | I43: Horizontal | K43: =IF(J43=" "," ",J43*0.3048) -> 0
C45: Transmission line power budget: | G45: =IF(ISNUMBER(T89),T89,"") -> 0.5805005321 | I45: Total: | J45: =J42+J43 -> 500 | K45: =K42+K43 -> 152.4
C47: Mechanical Specifications
P63: TRUE
P64: TRUE
P65: TRUE
C66: High | F66: =MATCH($C42,$G69:$G98) -> 3 | H66: Size | I66: Type | O66: 66 | P66: TRUE | Q66: CH 1 use ERP | R66: =IF(ISNUMBER(L31),TRUE,FALSE) -> FALSE | S66: CH1 Use Combiner | V66: Layers | W66: Low | X66: High
C67: Low | G67: 22.74 | K67: Freq input | L67: FALSE | M67: =IF(#REF!,VLOOKUP(#REF!,$L$71:$M$109,2),"") ->  | O67: 67 | P67: TRUE | Q67: CH 2 use ERP | R67: =IF(ISNUMBER(L33),TRUE,FALSE) -> FALSE | S67: CH2 Use Combiner | V67: 4 | W67: 2.5 | X67: 15
G68: 1 | M68: 5 | O68: 68 | P68: TRUE | Q68: CH 3 use ERP | R68: =IF(ISNUMBER(L35),TRUE,FALSE) -> FALSE | S68: CH3 Use Combiner | V68: 8 | W68: 5 | X68: 30
C69: Pattern | F69: 1 | G69: 0-7/8" | H69: 7/8" | I69: Rigid | J69: 50 Ohm | M69: =IF(F35,VLOOKUP($F$35,$L$71:$M$109,2)," ") ->  | O69: 69 | P69: TRUE | Q69: CH4 use ERP | R69: =IF(ISNUMBER(L37),TRUE,FALSE) -> FALSE | S69: CH4 Use Combiner | V69: 8.2 | W69: 5 | X69: 30
C70: C160 | D70: 1 | F70: 2 | G70: 1-5/8" | H70: 1-5/8" | I70: Rigid | J70: 50 Ohm | M70: =IF(F37,VLOOKUP($F$37,$L$71:$M$109,2)," ") ->  | O70: 70 | P70: =E29 -> 1 | Q70: Last channel entered | R70: 26 | V70: 16 | W70: 7.5 | X70: 60
C71: S230 | D71: 2 | F71: 3 | G71: 3-1/8" | H71: 3-1/8" | I71: Rigid | J71: 50 Ohm | K71: 14 | L71: 470 | M71: 14 | O71: 71 | P71: =IF(J45>1,TRUE,FALSE) -> TRUE | Q71: Transmission Line | V71: 16.2 | W71: 7.5 | X71: 60
F72: 4 | G72: 3-1/8" EHT | H72: 3-1/8" | I72: Rigid EHT | J72: 50 Ohm | K72: 15 | L72: =L71+6 -> 476 | M72: 15 | O72: 72 | P72: FALSE | Q72: Add other | V72: 24 | X72: 90
F73: 5 | G73: 4-1/16" | H73: 4-1/16" | I73: Rigid | J73: 50 Ohm | K73: 16 | L73: =L72+6 -> 482 | M73: 16 | O73: 73 | P73: =IF(E50="G",TRUE,FALSE) -> FALSE | Q73: G Code | V73: 24.2 | X73: 90
C74: 4 | F74: 6 | G74: 4-1/16" EHT | H74: 4-1/16" | I74: Rigid EHT | J74: 50 Ohm | K74: 17 | L74: 488 | M74: 17 | O74: 74 | P74: =IF(E50="F",TRUE,FALSE) -> FALSE | Q74: F Code
C75: 8 | F75: 7 | G75: 6-1/8" 50 | H75: 6-1/8" | I75: Rigid | J75: 50 Ohm | K75: 18 | L75: 494 | M75: 18 | O75: 75 | P75: =IF(J51>0,TRUE,FALSE) -> FALSE | Q75: Ice | R75: =IF(P75=TRUE,"Y","N") -> N | S75: =IF(AND(P75,P73),TRUE,FALSE) -> FALSE
C76: 16 | F76: 8 | G76: 6-1/8" 50 EHT | H76: 6-1/8" | I76: Rigid EHT | J76: 50 Ohm | K76: 19 | L76: 500 | M76: 19 | O76: 76 | P76: =IF(E52>=70,TRUE,FALSE) -> FALSE | Q76: Mechanicals
F77: 9 | G77: 6-1/8" 75 | H77: 6-1/8" | I77: Rigid | J77: 75 Ohm | K77: 20 | L77: 506 | M77: 20 | O77: 77 | P77: TRUE | Q77: AZ Vpol
C78: Offset | F78: 10 | G78: 6-1/8" 75 EHT | H78: 6-1/8" | I78: Rigid EHT | J78: 75 Ohm | K78: 21 | L78: 512 | M78: 21 | O78: 78 | P78: TRUE | Q78: AZ Hpol
C79: None | F79: 11 | G79: 7-3/16" 75 | H79: 7-3/16" | I79: Rigid | J79: 75 Ohm | K79: 22 | L79: 518 | M79: 22 | O79: 79 | P79: =IF(AND($I$13>=4,F31>=14),TRUE,FALSE) -> TRUE | Q79: EL
C80: Partial | F80: 12 | G80: 7-3/16" 75 EHT | H80: 7-3/16" | I80: Rigid EHT | J80: 75 Ohm | K80: 23 | L80: 524 | M80: 23 | O80: 80 | P80: =IF(AND(E13,I13>=8,F31>=14),TRUE,FALSE) -> FALSE | Q80: AZ and EL
C81: Full | F81: 13 | G81: 8-3/16" 75 | H81: 8-3/16" | I81: Rigid | J81: 75 Ohm | K81: 24 | L81: 530 | M81: 24 | O81: 81 | P81: =IF(31>=14,IF(F31<36,IF(P77,TRUE,FALSE))) -> TRUE | Q81: Sheet 1 active w/Vpol | R81: =IF(P81,1,0) -> 1 | S81: =SUM(R81:R84) -> 1
F82: 14 | G82: 8-3/16" 75 EHT | H82: 8-3/16" | I82: Rigid EHT | J82: 75 Ohm | K82: 25 | L82: 536 | M82: 25 | O82: 82 | P82: =IF(F33>=14,IF(F33<=51,IF(P77,TRUE,FALSE))) -> FALSE | Q82: Sheet 2 active w/Vpol | R82: =IF(P82,1,0) -> 0
F83: 15 | G83: 9-3/16" 75 | H83: 9-3/16" | I83: Rigid | J83: 75 Ohm | K83: 26 | L83: 542 | M83: 26 | O83: 83 | P83: =IF(F35>=14,IF(F35<=51,IF(P77,TRUE,FALSE))) -> FALSE | Q83: Sheet 3 active w/Vpol | R83: =IF(P83,1,0) -> 0
C84: F | F84: 16 | G84: 9-3/16" 75 EHT | H84: 9-3/16" | I84: Rigid EHT | J84: 75 Ohm | K84: 27 | L84: 548 | M84: 27 | O84: 84 | P84: =IF(F37>=14,IF(F37<=51,IF(P77,TRUE,FALSE))) -> FALSE | Q84: Sheet 4 active w/Vpol | R84: =IF(P84,1,0) -> 0
C85: G | F85: 17 | G85: FlexLine Air 0-7/8" | H85: 7/8" | I85: Flexline Air | J85: 50 Ohm | K85: 28 | L85: 554 | M85: 28 | O85: 85 | P85: =IF(ISNUMBER(I31),TRUE,FALSE) -> TRUE | Q85: Summary 1 active | R85: =IF(ISNUMBER($F$31),Summary!I21,0) -> 8.879269231 | S85: =Summary!$I$40 -> 11.74976645 | T85: =IF(ISNUMBER(I31),Summary!X23,0) -> 0.5805005321
F86: 18 | G86: FlexLine Air 1-5/8" | H86: 1-5/8" | I86: Flexline Air | J86: 50 Ohm | K86: 29 | L86: 560 | M86: 29 | O86: 86 | P86: =IF(ISNUMBER(I33),TRUE,FALSE) -> FALSE | Q86: Summary 2 active | R86: =IF(ISNUMBER($F$33),'Summary (2)'!$I$21,0) -> 0 | S86: =IF(ISNUMBER($F$33),'Summary (2)'!$I$40,0) -> 0 | T86: =IF(ISNUMBER(I33),'Summary (2)'!$X$23,0) -> 0
C87: I | F87: 19 | G87: FlexLine Air 2-1/4" | H87: 2-1/4" | I87: Flexline Air | J87: 50 Ohm | K87: 30 | L87: 566 | M87: 30 | O87: 87 | P87: =IF(ISNUMBER(I35),TRUE,FALSE) -> FALSE | Q87: Summary 3 active | R87: =IF(ISNUMBER($F$35),'Summary (3)'!$I$21,0) -> 0 | S87: =IF(ISNUMBER($F$35),'Summary (3)'!$I$40,0) -> 0 | T87: =IF(ISNUMBER(I35),'Summary (3)'!$X$23,0) -> 0
C88: II | F88: 20 | G88: FlexLine Air 3" | H88: 3" | I88: Flexline Air | J88: 50 Ohm | K88: 31 | L88: 572 | M88: 31 | O88: 88 | P88: =IF(ISNUMBER(I37),TRUE,FALSE) -> FALSE | Q88: Summary 4 active | R88: =IF(ISNUMBER($F$37),'Summary (4)'!$I$21,0) -> 0 | S88: =IF(ISNUMBER($F$37),'Summary (4)'!$I$40,0) -> 0 | T88: =IF(ISNUMBER(I37),'Summary (4)'!$X$23,0) -> 0
C89: III | F89: 21 | G89: FlexLine Air 4" 50 | H89: 4" | I89: Flexline Air | J89: 50 Ohm | K89: 32 | L89: 578 | M89: 32 | O89: 89 | R89: =SUM(R85:R88) -> 8.879269231 | S89: =SUM(S85:S88) -> 11.74976645 | T89: =SUM(T85:T88) -> 0.5805005321
F90: 22 | G90: FlexLine Air 5" 50 | H90: 5" | I90: Flexline Air | J90: 50 Ohm | K90: 33 | L90: 584 | M90: 33 | O90: 90 | P90: =IF(F31>=14,IF(F31<=36,IF(P78,TRUE,FALSE))) -> TRUE | Q90: Sheet 1 active Hpol Only | R90: =IF(P90,1,0) -> 1 | S90: =SUM(R90:R93) -> 1
C91: B | F91: 23 | G91: FlexLine Foam 0-1/2" | H91: 1/2" | I91: Flexline Foam | J91: 50 Ohm | K91: 34 | L91: 590 | M91: 34 | O91: 91 | P91: =IF(F33>=14,IF(F33<=51,IF(P78,TRUE,FALSE))) -> FALSE | Q91: Sheet 2 active Hpol Only | R91: =IF(P91,1,0) -> 0
C92: C | F92: 24 | G92: FlexLine Foam 0-7/8" | H92: 7/8" | I92: Flexline Foam | J92: 50 Ohm | K92: 35 | L92: 596 | M92: 35 | O92: 92 | P92: =IF(F35>=14,IF(F35<=51,IF(P78,TRUE,FALSE))) -> FALSE | Q92: Sheet 3 active Hpol Only | R92: =IF(P92,1,0) -> 0
C93: D | F93: 25 | G93: FlexLine Foam 1-1/4" | H93: 1-1/4" | I93: Flexline Foam | J93: 50 Ohm | K93: 36 | L93: 602 | M93: 36 | O93: 93 | P93: =IF(F37>=14,IF(F37<=51,IF(P78,TRUE,FALSE))) -> FALSE | Q93: Sheet 4 active Hpol Only | R93: =IF(P93,1,0) -> 0
F94: 26 | G94: FlexLine Foam 1-5/8" | H94: 1-5/8" | I94: Flexline Foam | J94: 50 Ohm | K94: 37 | L94: 608 | M94: 37 | O94: 94 | P94: =ROUNDUP((MAX(F31:F37)-MIN(F31:F37))/2,0)+MIN(F31:F37) -> 26 | Q94: Auto Offset Design Channel
C95: 1 | F95: 27 | G95: FlexLine foam 2-1/4" | H95: 2-1/4" | I95: Flexline Foam | J95: 50 Ohm | K95: 38 | L95: 614 | M95: 38 | O95: 95 | P95: =IF(F31>=14,IF(F31<=51,IF(OR(E13="C160",E13="C170",E13="C180",E13="C190",E13="C380",E13="S230",E13="S380"),TRUE,FALSE))) -> TRUE | Q95: 1- H Pattern Selected
C96: 2 | F96: 28 | G96: None | K96: 39 | L96: 620 | M96: 39 | O96: 96 | P96: =IF(F33>=14,IF(F33<=51,IF(OR(E13="C160",E13="C170",E13="C180",E13="S230",E13="S380"),TRUE,FALSE))) -> FALSE | Q96: 2- H Pattern Selected
C97: 3 | F97: 29 | G97: Other | K97: 40 | L97: 626 | M97: 40 | O97: 97 | P97: =IF(F35>=14,IF(F35<=51,IF(OR(E13="C160",E13="C170",E13="C180",E13="S230",E13="S380"),TRUE,FALSE))) -> FALSE | Q97: 3- H Pattern Selected
C98: 4 | F98: 30 | G98: Select | K98: 41 | L98: 632 | M98: 41 | O98: 98 | P98: =IF(F37>=14,IF(F37<=51,IF(OR(E13="C160",E13="C170",E13="C180",E13="S230",E13="S380"),TRUE,FALSE))) -> FALSE | Q98: 4- H Pattern Selected
K99: 42 | L99: 638 | M99: 42 | O99: 99 | P99: =IF(F31>=14,IF(F31<=51,IF(OR(E13="C160",E13="C170",E13="C180",E13="C190",E13="C380",E13="S230",E13="S380"),TRUE,FALSE))) -> TRUE | Q99: 1- V Pattern Selected
C100: AZ Patterns | K100: 43 | L100: 644 | M100: 43 | O100: 100 | P100: =IF(F33>=14,IF(F33<=51,IF(OR(E13="C160",E13="C170",E13="C180",E13="S230",E13="S380"),TRUE,FALSE))) -> FALSE | Q100: 2- V Pattern Selected
C101: C160 | K101: 44 | L101: 650 | M101: 44 | O101: 101 | P101: =IF(F35>=14,IF(F35<=51,IF(OR(E13="C160",E13="C170",E13="C190",E13="S230",E13="S380"),TRUE,FALSE))) -> FALSE | Q101: 3- V Pattern Selected
C102: C170 | K102: 45 | L102: 656 | M102: 45 | O102: 102 | P102: =IF(F37>=14,IF(F37<=51,IF(OR(E13="C160",E13="C170",E13="C190",E13="S230",E13="S380"),TRUE,FALSE))) -> FALSE | Q102: 4- V Pattern Selected
C103: C190 | K103: 46 | L103: 662 | M103: 46 | O103: 103 | P103: 3 | Q103: Export Channel
K104: 47 | L104: 668 | M104: 47 | O104: 104
C105: S230 | K105: 48 | L105: 674 | M105: 48 | O105: 105 | P105: ="CH " &F31& " TFU-"&I13&"-"&E13&IF(P77=TRUE,"-VP","")&"-R" -> CH 26 TFU-4-C160-VP-R
C106: S380 | K106: 49 | L106: 680 | M106: 49 | O106: 106 | P106: =IF(K13="None",FALSE,TRUE) -> FALSE | Q106: Offset Required
K107: 50 | L107: 686 | M107: 50 | O107: 107 | P107: =IF(L18<1,1,L18) -> 1 | Q107: Offset phase minimum
K108: 51 | L108: 692 | M108: 51 | O108: 108
L109: 699 | M109: N/A | O109: 109
O110: 110 | P110: =IF(AND($C$13="Low",$K$13="None"),TRUE,FALSE) -> TRUE | Q110: Low power standard
O111: 111 | P111: =IF(AND($C$13="Low",OR($K$13="Full",$K$13="Partial")),TRUE,FALSE) -> FALSE | Q111: Low power with offset
O112: 112 | P112: =IF(AND($C$13="High",$K$13="None"),TRUE,FALSE) -> FALSE | Q112: Hi power standard
O113: 113 | P113: =IF(AND($C$13="High",OR($K$13="Full",$K$13="Partial")),TRUE,FALSE) -> FALSE | Q113: Hi power with offset
O114: 114 | P114: =IF(C13>1,IF(E13>1,IF(I13>3,IF(K13>1,TRUE,FALSE)))) -> TRUE | Q114: Perameters selected

Sheet Cover
D11: Antenna Model: | E11: =IF(Input!E11>1,Input!E11,"") -> TFU-4WB-LP/VP-R C160
B13: Reference Number: | E13: =IF(Input!E5="","",IF(Input!F5="",Input!E5:F5,Input!E3&"-"&Input!F5)) -> 
B14: Date: | E14: =IF(Input!H5,Input!H5,"") -> 
B15: Customer: | E15: =IF(Input!D8>1,Input!D8,"") -> 
B16: Location: | E16: =IF(Input!J8>1,Input!J8,"") -> 
B18: Electrical Specifications
B19: Polarization: | E19: Elliptical
B20: Azimuth Pattern: | E20: =IF(Input!E13>1,Input!E13,"") -> C160
B21: Antenna Input: | E21: =IF(Input!$C$13="Low","1-5/8 in 50 Ohm",IF(Input!$C$13="High",IF(Input!$I$13=4,"3-1/8 in 50 Ohm",IF(Input!$I$13=8,"4-1/16 in 50 Ohm",IF(Input!$I$13=16.2,"6-1/8 in 50 Ohm",IF(Input!$I$13=16,"6-1/8 in 50 Ohm",IF(Input!$I$13=24,"8-3/16 in 75 Ohm"))))))) -> 1-5/8 in 50 Ohm
B22: VSWR: | E22: Channel | F22: 1.15:1 | G22: Band | H22: 1.15:1
B23: Bandwidth: | E23: 470-698 MHz
B24: Rated Input Power: | E24: =Input!H39 -> 2.5 | F24: =IF(Input!I13>1,10*LOG(E24),"") -> 3.979400087 | G24: =IF(Input!F31="","",IF(Input!F33>13,"Maximun Combined Average Power",IF(Input!F31>13,"Maximum Average Power",""))) -> Maximum Average Power
B26: Mechanical Specifications
B27: Mounting: | E27: Side Mounted
B28: Environmental Protection: | E28: Full Radome
B29: Height: | E29: =Mechanicals!L32 -> 0
B30: Weight: | E30: =Mechanicals!L36 -> 0 | F30: mounts excluded
B31: Effective Projected Area: | E31: =CONCATENATE(Mechanicals!L34," ",Mechanicals!K34) -> EPA (ft^2) | G31: =IF(Input!E52<10,"","Basic Wind Speed:") ->  | I31: =CONCATENATE(Mechanicals!N16," ",Mechanicals!M16) -> 
B33: Channel Specifications
H35: Peak Gain | I35: Peak Gain | J35: Peak Gain | K35: Peak Gain
H36: Main Lobe | I36: Main Lobe | J36: at Horizontal | K36: at Horizontal
B37: Call | C37: =IF(Input!$L$67,"Freq","Ch") -> Ch | D37: =IF(Input!$L$67,"CH","Freq") -> Freq | E37: Hpol ERP | F37: =IF(Input!P77=TRUE,"Vpol ERP","") -> Vpol ERP | G37: =IF(Summary!AT10,"TPO","Input") -> TPO | H37: Hpol | I37: Vpol | J37: Hpol | K37: Vpol
B39: =IF(Input!F31,Input!D31,"") -> 0 | C39: =IF(Input!F31,Input!F31,"") -> 26 | D39: =IF(Input!F31,Input!G31,"") -> 545 | E39: =IF(Input!F31,Summary!I16,"") -> 50 | F39: =IF(Input!F31,IF(F37="Vpol ERP",Summary!O16,""),"") -> 22.72439574 | G39: =IF(Input!F31,IF(G37="Input",Summary!I21,Summary!I40),"") -> 11.74976645 | H39: =IF(Input!F31,(Summary!$I$17),"") -> 5.631094035 | I39: =IF(Input!F31,IF(ISNUMBER(Summary!O17),Summary!O17,""),"") -> 2.559264186 | J39: =IF(ISNUMBER(H39),H39*Elpat!X118^2,"") -> 5.563723823 | K39: =IF(ISNUMBER(I39),I39*Elpat!X118^2,"") -> 2.528645239
E40: =IF(ISNUMBER(E39),10*LOG(E39)," ") -> 16.98970004 | F40: 13.56492344 | G40: 10.70029234 | H40: 7.505927798 | I40: 4.081151192 | J40: 7.45365564 | K40: 4.028879035
B42: =IF(Input!F33,Input!D33,"") ->  | C42: =IF(Input!F33,Input!F33,"") ->  | D42: =IF(Input!F33,Input!G33,"") ->  | E42: =IF(Input!F33,'Summary (2)'!I16,"") ->  | F42: =IF(Input!F33,IF(F37="Vpol ERP",'Summary (2)'!O16,""),"") ->  | G42: =IF(Input!F33,IF(G37="Input",'Summary (2)'!I21,'Summary (2)'!I40),"") ->  | H42: =IF(Input!F33,('Summary (2)'!$I$17),"") ->  | I42: =IF(Input!F33,IF(ISNUMBER('Summary (2)'!O17),'Summary (2)'!O17,""),"") ->  | J42: =IF(ISNUMBER(H42),H42*'Elpat (2)'!X118^2,"") ->  | K42: =IF(ISNUMBER(I42),I42*'Elpat (2)'!X118^2,"") -> 
E43: =IF(ISNUMBER(E42),10*LOG(E42)," ") -> 
B45: =IF(Input!F35,Input!D35,"") ->  | C45: =IF(Input!F35,Input!F35,"") ->  | D45: =IF(Input!F35,Input!G35,"") ->  | E45: =IF(Input!F35,'Summary (3)'!$I$16,"") ->  | F45: =IF(Input!F35,IF(F37="Vpol ERP",'Summary (3)'!O16,""),"") ->  | G45: =IF(Input!F35,IF($G$37="Input",'Summary (3)'!$I$21,'Summary (3)'!$I$40),"") ->  | H45: =IF(Input!F35,('Summary (3)'!$I$17),"") ->  | I45: =IF(Input!F35,IF(ISNUMBER('Summary (3)'!O17),'Summary (3)'!O17,""),"") ->  | J45: =IF(ISNUMBER(H45),H45*'Elpat (3)'!X118^2,"") ->  | K45: =IF(ISNUMBER(I45),I45*'Elpat (3)'!X118^2,"") -> 
E46: =IF(ISNUMBER(E45),10*LOG(E45)," ") -> 
B48: =IF(Input!F37,Input!D37,"") ->  | C48: =IF(Input!F37,Input!F37,"") ->  | D48: =IF(Input!F37,Input!G37,"") ->  | E48: =IF(Input!F37,'Summary (4)'!$I$16,"") ->  | F48: =IF(Input!F37,IF(F37="Vpol ERP",Summary!O16,""),"") ->  | G48: =IF(Input!F37,IF($G$37="Input",'Summary (3)'!$I$21,'Summary (3)'!$I$40),"") ->  | H48: =IF(Input!F37,('Summary (4)'!$I$17),"") ->  | I48: =IF(Input!F37,IF(ISNUMBER('Summary (4)'!O17),'Summary (4)'!O17,""),"") ->  | J48: =IF(ISNUMBER(H48),H48*'Elpat (4)'!X118^2,"") ->  | K48: =IF(ISNUMBER(I48),I48*'Elpat (4)'!X118^2,"") -> 
E49: =IF(ISNUMBER(E48),10*LOG(E48)," ") -> 
B66: This document contains proprietary and confidential information of Dielectric. It is to be used solely for the purpose for which it is provided.
B67: No disclosure, reproduction, or use of this document or any part of it may be made without the written permission of Dielectric. Rev3.8

Sheet AZ Hpol
AB2: =(ROUND(((($R$13-389)/6)-13),0)*2)+1 -> 27
O6: AZIMUTH PATTERN
O7: Horizontal Polarization
O9: Proposal No. | R9: =Cover!$E$13 ->  | Y9: Normalized Directivity | Z9: =IF(AC15=0,0,360/SUMSQ($W$15:$W$374)) -> 1.601781918 | AA9: Offset Ch | AB9: =Input!L16 -> 17 | AC9: =IF($AB9<37,473+6*($AB9-14),"") -> 491 | AD9: Offset Phase | AE9: =-IF(Input!K13="Partial",(11802.854*Input!L18/AC9/360)*(AC10*360/11802.824),(11802.854*90/AC9/360)*(AC10*360/11802.824)) -> -99.89842092 | AF9: degrees | AG9: =RADIANS(AE9) -> -1.743556363 | AH9: radians
O10: Date | R10: =Cover!$E$14 ->  | Y10: Input Peak Value | Z10: =MAX($AC$15:$AC$374) -> 1 | AA10: Display Ch | AB10: =Input!F31 -> 26 | AC10: =R13 -> 545 | AD10: Distence | AE10: =11802.854*IF(Input!K13="Full",90,Input!L18)/AC9/360 -> 0.06677333107 | AF10: inches
O11: Call Letters | R11: =IF(Input!$D$31>1,Input!$D$31,"") ->  | Y11: Normalize Value | Z11: =MAX($Z$15:$Z$374) -> 1.295418771 | AA11: Wave Length | AB11: =11802.76/AC10 -> 21.65644037 | AC11: =MAX($AD$15:$AD$374) -> 1
O12: Channel | R12: =IF(Input!F31>1,Input!F31,"") -> 26 | X12: Dwg No | Y12: C160 | AA12: K | AB12: =2*(PI()/AB11) -> 0.2901301045
O13: Frequency | R13: =IF(Input!$G$31>1,Input!$G$31,"") -> 545 | W13: Normalized | X13: Rotation | Y13: =Input!G13 -> 0 | AC13: Normalized
O14: Antenna Type | R14: =Cover!$E$11 -> TFU-4WB-LP/VP-R C160 | W14: Pattern | X14: Degs | Y14: Normalized | Z14: F | AA14: AF | AB14: KdCOS… | AC14: Input P | AD14: Input P | AG14: dB | AH14: Radians | AI14: dB -30
O15: Gain | R15: =IF(Input!$F$31<14,"",IF(ISNUMBER($Z$9),ROUND($Z$9,2)&" ("&ROUND(10*LOG($Z$9),2)&"dB)","")) -> 1.6 (2.05dB) | W15: =IF(Input!$F$31<14,"",INDEX($X$15:$AD$374,MATCH(MOD($X15-$Y$13,360),$X$15:$X$374,1),IF(OR(Input!$K$13="Full",Input!$K$13="Partial"),2,6))) -> 0.7833166583 | X15: 0 | Y15: =(1/$Z$11)*$Z15 -> 0.7871158449 | Z15: =AD15*AA15 -> 1.01964464 | AA15: =SQRT(((1+COS(AB15))^2)+(SIN(AB15)^2)) -> 1.301701719 | AB15: =($AB$12*$AE$10*COS($AH15))+RADIANS($AE$9) -> -1.724183409 | AC15: =(1/$AC$11)*$AD15 -> 0.7833166583 | AD15: 0.7833166583 | AE15: 1 | AF15: =IF(Input!$P$70=1,'AZ Hpol'!$W15,IF(Input!$P$70=2,'AZ Hpol (2)'!$W15,IF(Input!$P$70=3,'AZ Hpol (3)'!$W15,IF(Input!$P$70=4,'AZ Hpol (4)'!$W15,"")))) -> 0.7833166583 | AG15: =ROUND(20*LOG(W15),4) -> -2.1213 | AH15: =RADIANS(X15) -> 0 | AI15: =IF(AF15<=0.031622776602,-30,20*LOG(AF15)) -> -2.12125275
R16: Calculated | W16: =IF(Input!$F$31<14,"",INDEX($X$15:$AD$374,MATCH(MOD($X16-$Y$13,360),$X$15:$X$374,1),IF(OR(Input!$K$13="Full",Input!$K$13="Partial"),2,6))) -> 0.7834919559 | X16: 1 | Y16: =(1/$Z$11)*$Z16 -> 0.7872906379 | Z16: 1.01987107 | AA16: =SQRT(((1+COS(AB16))^2)+(SIN(AB16)^2)) -> 1.301699478 | AB16: =($AB$12*$AE$10*COS($AH16))+RADIANS($AE$9) -> -1.72418636 | AC16: =(1/$AC$11)*$AD16 -> 0.7834919559 | AD16: 0.7834919559 | AE16: 0 | AF16: =IF(Input!$P$70=1,'AZ Hpol'!$W16,IF(Input!$P$70=2,'AZ Hpol (2)'!$W16,IF(Input!$P$70=3,'AZ Hpol (3)'!$W16,IF(Input!$P$70=4,'AZ Hpol (4)'!$W16,"")))) -> 0.7834919559 | AG16: -2.1193 | AH16: =RADIANS(X16) -> 0.01745329252 | AI16: =IF(AF16<=0.031622776602,-30,20*LOG(AF16)) -> -2.119309161
W17: =IF(Input!$F$31<14,"",INDEX($X$15:$AD$374,MATCH(MOD($X17-$Y$13,360),$X$15:$X$374,1),IF(OR(Input!$K$13="Full",Input!$K$13="Partial"),2,6))) -> 0.7840139314 | X17: 2 | Y17: 0.7878110773 | Z17: 1.020545257 | AA17: 1.301692759 | AB17: -1.724195211 | AC17: 0.7840139314 | AD17: 0.7840139314 | AE17: 0 | AF17: =IF(Input!$P$70=1,'AZ Hpol'!$W17,IF(Input!$P$70=2,'AZ Hpol (2)'!$W17,IF(Input!$P$70=3,'AZ Hpol (3)'!$W17,IF(Input!$P$70=4,'AZ Hpol (4)'!$W17,"")))) -> 0.7840139314 | AG17: -2.1135 | AH17: 0.03490658504 | AI17: =IF(AF17<=0.031622776602,-30,20*LOG(AF17)) -> -2.113524403
O18: Pattern Number | R18: =IF(Input!F31<14,"",$Y$12&"-"&$R$12&" Hpol") -> C160-26 Hpol | W18: =IF(Input!$F$31<14,"",INDEX($X$15:$AD$374,MATCH(MOD($X18-$Y$13,360),$X$15:$X$374,1),IF(OR(Input!$K$13="Full",Input!$K$13="Partial"),2,6))) -> 0.7848811826 | X18: 3 | Y18: 0.7886757445 | Z18: 1.021665363 | AA18: 1.301681562 | AB18: -1.724209959 | AC18: 0.7848811826 | AD18: 0.7848811826 | AE18: 0 | AF18: =IF(Input!$P$70=1,'AZ Hpol'!$W18,IF(Input!$P$70=2,'AZ Hpol (2)'!$W18,IF(Input!$P$70=3,'AZ Hpol (3)'!$W18,IF(Input!$P$70=4,'AZ Hpol (4)'!$W18,"")))) -> 0.7848811826 | AG18: -2.1039 | AH18: 0.05235987756 | AI18: =IF(AF18<=0.031622776602,-30,20*LOG(AF18)) -> -2.103921658
W19: =IF(Input!$F$31<14,"",INDEX($X$15:$AD$374,MATCH(MOD($X19-$Y$13,360),$X$15:$X$374,1),IF(OR(Input!$K$13="Full",Input!$K$13="Partial"),2,6))) -> 0.7860913528 | X19: 4 | Y19: 0.7898822555 | Z19: 1.0232283 | AA19: 1.30166589 | AB19: -1.724230601 | AC19: 0.7860913528 | AD19: 0.7860913528 | AE19: 0 | AF19: =IF(Input!$P$70=1,'AZ Hpol'!$W19,IF(Input!$P$70=2,'AZ Hpol (2)'!$W19,IF(Input!$P$70=3,'AZ Hpol (3)'!$W19,IF(Input!$P$70=4,'AZ Hpol (4)'!$W19,"")))) -> 0.7860913528 | AG19: -2.0905 | AH19: 0.06981317008 | AI19: -2.090539621
W20: =IF(Input!$F$31<14,"",INDEX($X$15:$AD$374,MATCH(MOD($X20-$Y$13,360),$X$15:$X$374,1),IF(OR(Input!$K$13="Full",Input!$K$13="Partial"),2,6))) -> 0.7876411252 | X20: 5 | Y20: 0.7914272555 | Z20: 1.025229722 | AA20: 1.301645749 | AB20: -1.724257129 | AC20: 0.7876411252 | AD20: 0.7876411252 | AE20: 0 | AF20: =IF(Input!$P$70=1,'AZ Hpol'!$W20,IF(Input!$P$70=2,'AZ Hpol (2)'!$W20,IF(Input!$P$70=3,'AZ Hpol (3)'!$W20,IF(Input!$P$70=4,'AZ Hpol (4)'!$W20,"")))) -> 0.7876411252 | AG20: -2.0734 | AH20: 0.0872664626 | AI20: -2.073432321
W21: =IF(Input!$F$31<14,"",INDEX($X$15:$AD$374,MATCH(MOD($X21-$Y$13,360),$X$15:$X$374,1),IF(OR(Input!$K$13="Full",Input!$K$13="Partial"),2,6))) -> 0.7895262161 | X21: 6 | Y21: 0.7933064119 | Z21: 1.027664017 | AA21: 1.301621144 | AB21: -1.724289536 | AC21: 0.7895262161 | AD21: 0.7895262161 | AE21: 0 | AF21: =IF(Input!$P$70=1,'AZ Hpol'!$W21,IF(Input!$P$70=2,'AZ Hpol (2)'!$W21,IF(Input!$P$70=3,'AZ Hpol (3)'!$W21,IF(Input!$P$70=4,'AZ Hpol (4)'!$W21,"")))) -> 0.7895262161 | AG21: -2.0527 | AH21: 0.1047197551 | AI21: -2.052668894
W22: =IF(Input!$F$31<14,"",INDEX($X$15:$AD$374,MATCH(MOD($X22-$Y$13,360),$X$15:$X$374,1),IF(OR(Input!$K$13="Full",Input!$K$13="Partial"),2,6))) -> 0.7917413665 | X22: 7 | Y22: 0.7955144067 | Z22: 1.030524295 | AA22: 1.301592084 | AB22: -1.724327812 | AC22: 0.7917413665 | AD22: 0.7917413665 | AE22: 0 | AF22: =IF(Input!$P$70=1,'AZ Hpol'!$W22,IF(Input!$P$70=2,'AZ Hpol (2)'!$W22,IF(Input!$P$70=3,'AZ Hpol (3)'!$W22,IF(Input!$P$70=4,'AZ Hpol (4)'!$W22,"")))) -> 0.7917413665 | AG22: -2.0283 | AH22: 0.1221730476 | AI22: -2.028333273
W23: =IF(Input!$F$31<14,"",INDEX($X$15:$AD$374,MATCH(MOD($X23-$Y$13,360),$X$15:$X$374,1),IF(OR(Input!$K$13="Full",Input!$K$13="Partial"),2,6))) -> 0.7942803337 | X23: 8 | Y23: 0.7980449278 | Z23: 1.033802379 | AA23: 1.301558575 | AB23: -1.724371945 | AC23: 0.7942803337 | AD23: 0.7942803337 | AE23: 0 | AF23: =IF(Input!$P$70=1,'AZ Hpol'!$W23,IF(Input!$P$70=2,'AZ Hpol (2)'!$W23,IF(Input!$P$70=3,'AZ Hpol (3)'!$W23,IF(Input!$P$70=4,'AZ Hpol (4)'!$W23,"")))) -> 0.7942803337 | AG23: -2.0005 | AH23: 0.1396263402 | AI23: -2.000523808
W24: =IF(Input!$F$31<14,"",INDEX($X$15:$AD$374,MATCH(MOD($X24-$Y$13,360),$X$15:$X$374,1),IF(OR(Input!$K$13="Full",Input!$K$13="Partial"),2,6))) -> 0.7971358833 | X24: 9 | Y24: 0.8008906613 | Z24: 1.037488796 | AA24: 1.301520629 | AB24: -1.724421922 | AC24: 0.7971358833 | AD24: 0.7971358833 | AE24: 0 | AF24: =IF(Input!$P$70=1,'AZ Hpol'!$W24,IF(Input!$P$70=2,'AZ Hpol (2)'!$W24,IF(Input!$P$70=3,'AZ Hpol (3)'!$W24,IF(Input!$P$70=4,'AZ Hpol (4)'!$W24,"")))) -> 0.7971358833 | AG24: -1.9694 | AH24: 0.1570796327 | AI24: -1.969352811
W25: =IF(Input!$F$31<14,"",INDEX($X$15:$AD$374,MATCH(MOD($X25-$Y$13,360),$X$15:$X$374,1),IF(OR(Input!$K$13="Full",Input!$K$13="Partial"),2,6))) -> 0.8002997823 | X25: 10 | Y25: 0.8040432859 | Z25: 1.041572765 | AA25: 1.301478256 | AB25: -1.724477728 | AC25: 0.8002997823 | AD25: 0.8002997823 | AE25: 0 | AF25: =IF(Input!$P$70=1,'AZ Hpol'!$W25,IF(Input!$P$70=2,'AZ Hpol (2)'!$W25,IF(Input!$P$70=3,'AZ Hpol (3)'!$W25,IF(Input!$P$70=4,'AZ Hpol (4)'!$W25,"")))) -> 0.8002997823 | AG25: -1.9349 | AH25: 0.1745329252 | AI25: -1.934946025
B26: Deg | C26: Value | D26: Deg | E26: Value | F26: Deg | G26: Value | H26: Deg | I26: Value | J26: Deg | K26: Value | L26: Deg | M26: Value | N26: Deg | O26: Value | P26: Deg | Q26: Value | R26: Deg | S26: Value | T26: Deg | U26: Value | W26: =IF(Input!$F$31<14,"",INDEX($X$15:$AD$374,MATCH(MOD($X26-$Y$13,360),$X$15:$X$374,1),IF(OR(Input!$K$13="Full",Input!$K$13="Partial"),2,6))) -> 0.8037627954 | X26: 11 | Y26: 0.8074934682 | Z26: 1.046042196 | AA26: 1.30143147 | AB26: -1.724539345 | AC26: 0.8037627954 | AD26: 0.8037627954 | AE26: 0 | AF26: =IF(Input!$P$70=1,'AZ Hpol'!$W26,IF(Input!$P$70=2,'AZ Hpol (2)'!$W26,IF(Input!$P$70=3,'AZ Hpol (3)'!$W26,IF(Input!$P$70=4,'AZ Hpol (4)'!$W26,"")))) -> 0.8037627954 | AG26: -1.8974 | AH26: 0.1919862177 | AI26: -1.897442006
B27: 0 | C27: =W15 -> 0.7833166583 | D27: 36 | E27: =W51 -> 0.942658574 | F27: 72 | G27: =W87 -> 0.9646115064 | H27: 108 | I27: =W123 -> 0.7911787942 | J27: 144 | K27: =W159 -> 0.3828913852 | L27: 180 | M27: =W195 -> 0.6630380621 | N27: 216 | O27: =W231 -> 0.3861759509 | P27: 252 | Q27: =W267 -> 0.7928252038 | R27: 288 | S27: =W303 -> 0.9658479011 | T27: 324 | U27: =W339 -> 0.9420625898 | W27: =IF(Input!$F$31<14,"",INDEX($X$15:$AD$374,MATCH(MOD($X27-$Y$13,360),$X$15:$X$374,1),IF(OR(Input!$K$13="Full",Input!$K$13="Partial"),2,6))) -> 0.8075146836 | X27: 12 | Y27: 0.8112308632 | Z27: 1.050883688 | AA27: 1.301380283 | AB27: -1.724606755 | AC27: 0.8075146836 | AD27: 0.8075146836 | AE27: 0 | AF27: =IF(Input!$P$70=1,'AZ Hpol'!$W27,IF(Input!$P$70=2,'AZ Hpol (2)'!$W27,IF(Input!$P$70=3,'AZ Hpol (3)'!$W27,IF(Input!$P$70=4,'AZ Hpol (4)'!$W27,"")))) -> 0.8075146836 | AG27: -1.857 | AH27: 0.2094395102 | AI27: -1.856991437
B28: 1 | C28: 0.7834919559 | D28: 37 | E28: 0.9480501293 | F28: 73 | G28: 0.9609130813 | H28: 109 | I28: 0.7830991592 | J28: 145 | K28: 0.381356234 | L28: 181 | M28: 0.6626784157 | N28: 217 | O28: 0.3890692763 | P28: 253 | Q28: 0.8006518387 | R28: 289 | S28: 0.9693027474 | T28: 325 | U28: 0.9365306166 | W28: =IF(Input!$F$31<14,"",INDEX($X$15:$AD$374,MATCH(MOD($X28-$Y$13,360),$X$15:$X$374,1),IF(OR(Input!$K$13="Full",Input!$K$13="Partial"),2,6))) -> 0.8115442075 | X28: 13 | Y28: 0.8152441171 | Z28: 1.056082532 | AA28: 1.301324712 | AB28: -1.724679937 | AC28: 0.8115442075 | AD28: 0.8115442075 | AE28: 0 | AF28: =IF(Input!$P$70=1,'AZ Hpol'!$W28,IF(Input!$P$70=2,'AZ Hpol (2)'!$W28,IF(Input!$P$70=3,'AZ Hpol (3)'!$W28,IF(Input!$P$70=4,'AZ Hpol (4)'!$W28,"")))) -> 0.8115442075 | AG28: -1.8138 | AH28: 0.2268928028 | AI28: -1.813756355
B29: 2 | C29: 0.7840139314 | D29: 38 | E29: 0.9532487873 | F29: 74 | G29: 0.9571255943 | H29: 110 | I29: 0.7746398305 | J29: 146 | K29: 0.3814351197 | L29: 182 | M29: 0.6614117817 | N29: 218 | O29: 0.3934946814 | P29: 254 | Q29: 0.8081257622 | R29: 290 | S29: 0.9726404641 | T29: 326 | U29: 0.930842459 | W29: =IF(Input!$F$31<14,"",INDEX($X$15:$AD$374,MATCH(MOD($X29-$Y$13,360),$X$15:$X$374,1),IF(OR(Input!$K$13="Full",Input!$K$13="Partial"),2,6))) -> 0.8158391356 | X29: 14 | Y29: 0.8195208771 | Z29: 1.061622727 | AA29: 1.301264773 | AB29: -1.724758869 | AC29: 0.8158391356 | AD29: 0.8158391356 | AE29: 0 | AF29: =IF(Input!$P$70=1,'AZ Hpol'!$W29,IF(Input!$P$70=2,'AZ Hpol (2)'!$W29,IF(Input!$P$70=3,'AZ Hpol (3)'!$W29,IF(Input!$P$70=4,'AZ Hpol (4)'!$W29,"")))) -> 0.8158391356 | AG29: -1.7679 | AH29: 0.2443460953 | AI29: -1.76790931
B30: 3 | C30: 0.7848811826 | D30: 39 | E30: 0.9582375236 | F30: 75 | G30: 0.9532621606 | H30: 111 | I30: 0.7657889665 | J30: 147 | K30: 0.3831167195 | L30: 183 | M30: 0.6592438085 | N30: 219 | O30: 0.3993816846 | P30: 255 | Q30: 0.8152627137 | R30: 291 | S30: 0.9758472139 | T30: 327 | U30: 0.9250171776 | W30: =IF(Input!$F$31<14,"",INDEX($X$15:$AD$374,MATCH(MOD($X30-$Y$13,360),$X$15:$X$374,1),IF(OR(Input!$K$13="Full",Input!$K$13="Partial"),2,6))) -> 0.8203862585 | X30: 15 | Y30: 0.8240478058 | Z30: 1.067486996 | AA30: 1.301200483 | AB30: -1.724843527 | AC30: 0.8203862585 | AD30: 0.8203862585 | AE30: 0 | AF30: =IF(Input!$P$70=1,'AZ Hpol'!$W30,IF(Input!$P$70=2,'AZ Hpol (2)'!$W30,IF(Input!$P$70=3,'AZ Hpol (3)'!$W30,IF(Input!$P$70=4,'AZ Hpol (4)'!$W30,"")))) -> 0.8203862585 | AG30: -1.7196 | AH30: 0.2617993878 | AI30: -1.719632454
B31: 4 | C31: 0.7860913528 | D31: 40 | E31: 0.9630002664 | F31: 76 | G31: 0.9493350789 | H31: 112 | I31: 0.7565366903 | J31: 148 | K31: 0.3863586243 | L31: 184 | M31: 0.6561839549 | N31: 220 | O31: 0.4066379933 | P31: 256 | Q31: 0.8220796038 | R31: 292 | S31: 0.9789088822 | T31: 328 | U31: 0.9190744769 | W31: =IF(Input!$F$31<14,"",INDEX($X$15:$AD$374,MATCH(MOD($X31-$Y$13,360),$X$15:$X$374,1),IF(OR(Input!$K$13="Full",Input!$K$13="Partial"),2,6))) -> 0.8251714089 | X31: 16 | Y31: 0.8288106023 | Z31: 1.073656812 | AA31: 1.301131862 | AB31: -1.724933885 | AC31: 0.8251714089 | AD31: 0.8251714089 | AE31: 0 | AF31: =IF(Input!$P$70=1,'AZ Hpol'!$W31,IF(Input!$P$70=2,'AZ Hpol (2)'!$W31,IF(Input!$P$70=3,'AZ Hpol (3)'!$W31,IF(Input!$P$70=4,'AZ Hpol (4)'!$W31,"")))) -> 0.8251714089 | AG31: -1.6691 | AH31: 0.2792526803 | AI31: -1.669116563
B32: 5 | C32: 0.7876411252 | D32: 41 | E32: 0.9675219702 | F32: 77 | G32: 0.9453556956 | H32: 113 | I32: 0.7468752937 | J32: 149 | K32: 0.391089676 | L32: 185 | M32: 0.6522455234 | N32: 221 | O32: 0.4151546118 | P32: 257 | Q32: 0.8285943125 | R32: 293 | S32: 0.9818112089 | T32: 329 | U32: 0.9130346121 | W32: =IF(Input!$F$31<14,"",INDEX($X$15:$AD$374,MATCH(MOD($X32-$Y$13,360),$X$15:$X$374,1),IF(OR(Input!$K$13="Full",Input!$K$13="Partial"),2,6))) -> 0.8301794894 | X32: 17 | Y32: 0.8337940305 | Z32: 1.080112438 | AA32: 1.30105893 | AB32: -1.725029915 | AC32: 0.8301794894 | AD32: 0.8301794894 | AE32: 0 | AF32: =IF(Input!$P$70=1,'AZ Hpol'!$W32,IF(Input!$P$70=2,'AZ Hpol (2)'!$W32,IF(Input!$P$70=3,'AZ Hpol (3)'!$W32,IF(Input!$P$70=4,'AZ Hpol (4)'!$W32,"")))) -> 0.8301794894 | AG32: -1.6166 | AH32: 0.2967059728 | AI32: -1.616560012
B33: 6 | C33: 0.7895262161 | D33: 42 | E33: 0.9717886844 | F33: 78 | G33: 0.9413342758 | H33: 114 | I33: 0.7367994441 | J33: 150 | K33: 0.3972139173 | L33: 186 | M33: 0.6474457098 | N33: 222 | O33: 0.4248111181 | P33: 258 | Q33: 0.8348254862 | R33: 294 | S33: 0.9845399173 | T33: 330 | U33: 0.9069182912 | W33: =IF(Input!$F$31<14,"",INDEX($X$15:$AD$374,MATCH(MOD($X33-$Y$13,360),$X$15:$X$374,1),IF(OR(Input!$K$13="Full",Input!$K$13="Partial"),2,6))) -> 0.8353945065 | X33: 18 | Y33: 0.8389819548 | Z33: 1.086832973 | AA33: 1.300981709 | AB33: -1.725131589 | AC33: 0.8353945065 | AD33: 0.8353945065 | AE33: 0 | AF33: =IF(Input!$P$70=1,'AZ Hpol'!$W33,IF(Input!$P$70=2,'AZ Hpol (2)'!$W33,IF(Input!$P$70=3,'AZ Hpol (3)'!$W33,IF(Input!$P$70=4,'AZ Hpol (4)'!$W33,"")))) -> 0.8353945065 | AG33: -1.5622 | AH33: 0.3141592654 | AI33: -1.562167699
B34: 7 | C34: 0.7917413665 | D34: 43 | E34: 0.9757876159 | F34: 79 | G34: 0.9372798798 | H34: 115 | I34: 0.7263063933 | J34: 151 | K34: 0.4046155967 | L34: 187 | M34: 0.6418056682 | N34: 223 | O34: 0.435480632 | P34: 259 | Q34: 0.8407923366 | R34: 295 | S34: 0.9870808411 | T34: 331 | U34: 0.9007465756 | W34: =IF(Input!$F$31<14,"",INDEX($X$15:$AD$374,MATCH(MOD($X34-$Y$13,360),$X$15:$X$374,1),IF(OR(Input!$K$13="Full",Input!$K$13="Partial"),2,6))) -> 0.8407996128 | X34: 19 | Y34: 0.8443573825 | Z34: 1.093796403 | AA34: 1.300900222 | AB34: -1.725238875 | AC34: 0.8407996128 | AD34: 0.8407996128 | AE34: 0 | AF34: =IF(Input!$P$70=1,'AZ Hpol'!$W34,IF(Input!$P$70=2,'AZ Hpol (2)'!$W34,IF(Input!$P$70=3,'AZ Hpol (3)'!$W34,IF(Input!$P$70=4,'AZ Hpol (4)'!$W34,"")))) -> 0.8407996128 | AG34: -1.5061 | AH34: 0.3316125579 | AI34: -1.50614994
B35: 8 | C35: 0.7942803337 | D35: 44 | E35: 0.9795071844 | F35: 80 | G35: 0.9332002492 | H35: 116 | I35: 0.7153961911 | J35: 152 | K35: 0.4131646073 | L35: 188 | M35: 0.6353505954 | N35: 224 | O35: 0.447034147 | P35: 260 | Q35: 0.846514441 | R35: 296 | S35: 0.9894200468 | T35: 332 | U35: 0.8945407788 | W35: =IF(Input!$F$31<14,"",INDEX($X$15:$AD$374,MATCH(MOD($X35-$Y$13,360),$X$15:$X$374,1),IF(OR(Input!$K$13="Full",Input!$K$13="Partial"),2,6))) -> 0.8463771563 | X35: 20 | Y35: 0.8499025146 | Z35: 1.100979671 | AA35: 1.300814492 | AB35: -1.725351741 | AC35: 0.8463771563 | AD35: 0.8463771563 | AE35: 0 | AF35: =IF(Input!$P$70=1,'AZ Hpol'!$W35,IF(Input!$P$70=2,'AZ Hpol (2)'!$W35,IF(Input!$P$70=3,'AZ Hpol (3)'!$W35,IF(Input!$P$70=4,'AZ Hpol (4)'!$W35,"")))) -> 0.8463771563 | AG35: -1.4487 | AH35: 0.3490658504 | AI35: -1.448721335
B36: 9 | C36: 0.7971358833 | D36: 45 | E36: 0.9829370725 | F36: 81 | G36: 0.9291017018 | H36: 117 | I36: 0.7040719055 | J36: 153 | K36: 0.4227217985 | L36: 189 | M36: 0.6281098347 | N36: 225 | O36: 0.4593440558 | P36: 261 | Q36: 0.8520115446 | R36: 297 | S36: 0.9915439519 | T36: 333 | U36: 0.8883223641 | W36: =IF(Input!$F$31<14,"",INDEX($X$15:$AD$374,MATCH(MOD($X36-$Y$13,360),$X$15:$X$374,1),IF(OR(Input!$K$13="Full",Input!$K$13="Partial"),2,6))) -> 0.8521087369 | X36: 21 | Y36: 0.8555988035 | Z36: 1.10835875 | AA36: 1.300724546 | AB36: -1.725470152 | AC36: 0.8521087369 | AD36: 0.8521087369 | AE36: 0 | AF36: =IF(Input!$P$70=1,'AZ Hpol'!$W36,IF(Input!$P$70=2,'AZ Hpol (2)'!$W36,IF(Input!$P$70=3,'AZ Hpol (3)'!$W36,IF(Input!$P$70=4,'AZ Hpol (4)'!$W36,"")))) -> 0.8521087369 | AG36: -1.3901 | AH36: 0.3665191429 | AI36: -1.390099635
B37: 10 | C37: 0.8002997823 | D37: 46 | E37: 0.9860682683 | F37: 82 | G37: 0.9249890393 | H37: 118 | I37: 0.6923398507 | J37: 154 | K37: 0.4331437399 | L37: 190 | M37: 0.6201170015 | N37: 226 | O37: 0.4722868375 | P37: 262 | Q37: 0.857303367 | R37: 298 | S37: 0.9934394387 | T37: 334 | U37: 0.8821128423 | W37: =IF(Input!$F$31<14,"",INDEX($X$15:$AD$374,MATCH(MOD($X37-$Y$13,360),$X$15:$X$374,1),IF(OR(Input!$K$13="Full",Input!$K$13="Partial"),2,6))) -> 0.8579752704 | X37: 22 | Y37: 0.8614270178 | Z37: 1.115908729 | AA37: 1.300630411 | AB37: -1.725594073 | AC37: 0.8579752704 | AD37: 0.8579752704 | AE37: 0 | AF37: =IF(Input!$P$70=1,'AZ Hpol'!$W37,IF(Input!$P$70=2,'AZ Hpol (2)'!$W37,IF(Input!$P$70=3,'AZ Hpol (3)'!$W37,IF(Input!$P$70=4,'AZ Hpol (4)'!$W37,"")))) -> 0.8579752704 | AG37: -1.3305 | AH37: 0.3839724354 | AI37: -1.330504595
B38: 11 | C38: 0.8037627954 | D38: 47 | E38: 0.9888931006 | F38: 83 | G38: 0.9208654673 | H38: 119 | I38: 0.6802098254 | J38: 155 | K38: 0.4442866944 | L38: 191 | M38: 0.6114101343 | N38: 227 | O38: 0.4857449627 | P38: 263 | Q38: 0.8624094124 | R38: 299 | S38: 0.9950939619 | T38: 335 | U38: 0.8759336699 | W38: =IF(Input!$F$31<14,"",INDEX($X$15:$AD$374,MATCH(MOD($X38-$Y$13,360),$X$15:$X$374,1),IF(OR(Input!$K$13="Full",Input!$K$13="Partial"),2,6))) -> 0.8639570586 | X38: 23 | Y38: 0.867367314 | Z38: 1.1236039 | AA38: 1.300532114 | AB38: -1.725723465 | AC38: 0.8639570586 | AD38: 0.8639570586 | AE38: 0 | AF38: =IF(Input!$P$70=1,'AZ Hpol'!$W38,IF(Input!$P$70=2,'AZ Hpol (2)'!$W38,IF(Input!$P$70=3,'AZ Hpol (3)'!$W38,IF(Input!$P$70=4,'AZ Hpol (4)'!$W38,"")))) -> 0.8639570586 | AG38: -1.2702 | AH38: 0.401425728 | AI38: -1.270156855
B39: 12 | C39: 0.8075146836 | D39: 48 | E39: 0.9914052674 | F39: 84 | G39: 0.9167325297 | H39: 120 | I39: 0.6676953649 | J39: 156 | K39: 0.4560097111 | L39: 192 | M39: 0.6020318721 | N39: 228 | O39: 0.4996081322 | P39: 264 | Q39: 0.8673487867 | R39: 300 | S39: 0.9964956508 | T39: 336 | U39: 0.8698061495 | W39: =IF(Input!$F$31<14,"",INDEX($X$15:$AD$374,MATCH(MOD($X39-$Y$13,360),$X$15:$X$374,1),IF(OR(Input!$K$13="Full",Input!$K$13="Partial"),2,6))) -> 0.8700338663 | X39: 24 | Y39: 0.8733993141 | Z39: 1.131417866 | AA39: 1.300429684 | AB39: -1.725858289 | AC39: 0.8700338663 | AD39: 0.8700338663 | AE39: 0 | AF39: =IF(Input!$P$70=1,'AZ Hpol'!$W39,IF(Input!$P$70=2,'AZ Hpol (2)'!$W39,IF(Input!$P$70=3,'AZ Hpol (3)'!$W39,IF(Input!$P$70=4,'AZ Hpol (4)'!$W39,"")))) -> 0.8700338663 | AG39: -1.2093 | AH39: 0.4188790205 | AI39: -1.209276841
B40: 13 | C40: 0.8115442075 | D40: 49 | E40: 0.9935998569 | F40: 85 | G40: 0.912590059 | H40: 121 | I40: 0.6548140081 | J40: 157 | K40: 0.4681768715 | L40: 193 | M40: 0.5920296619 | N40: 229 | O40: 0.5137739795 | P40: 265 | Q40: 0.872140021 | R40: 301 | S40: 0.9976334056 | T40: 337 | U40: 0.8637513319 | W40: =IF(Input!$F$31<14,"",INDEX($X$15:$AD$374,MATCH(MOD($X40-$Y$13,360),$X$15:$X$374,1),IF(OR(Input!$K$13="Full",Input!$K$13="Partial"),2,6))) -> 0.8761850031 | X40: 25 | Y40: 0.8795021896 | Z40: 1.139323645 | AA40: 1.300323152 | AB40: -1.725998504 | AC40: 0.8761850031 | AD40: 0.8761850031 | AE40: 0 | AF40: =IF(Input!$P$70=1,'AZ Hpol'!$W40,IF(Input!$P$70=2,'AZ Hpol (2)'!$W40,IF(Input!$P$70=3,'AZ Hpol (3)'!$W40,IF(Input!$P$70=4,'AZ Hpol (4)'!$W40,"")))) -> 0.8761850031 | AG40: -1.1481 | AH40: 0.436332313 | AI40: -1.148083691
B41: 14 | C41: 0.8158391356 | D41: 50 | E41: 0.9954733601 | F41: 86 | G41: 0.9084361431 | H41: 122 | I41: 0.6415875843 | J41: 158 | K41: 0.4806587941 | L41: 194 | M41: 0.5814559967 | N41: 230 | O41: 0.5281483683 | P41: 266 | Q41: 0.876800904 | R41: 302 | S41: 0.9984969864 | T41: 338 | U41: 0.8577899218 | W41: =IF(Input!$F$31<14,"",INDEX($X$15:$AD$374,MATCH(MOD($X41-$Y$13,360),$X$15:$X$374,1),IF(OR(Input!$K$13="Full",Input!$K$13="Partial"),2,6))) -> 0.8823894109 | X41: 26 | Y41: 0.8856547493 | Z41: 1.147293787 | AA41: 1.300212551 | AB41: -1.726144067 | AC41: 0.8823894109 | AD41: 0.8823894109 | AE41: 0 | AF41: =IF(Input!$P$70=1,'AZ Hpol'!$W41,IF(Input!$P$70=2,'AZ Hpol (2)'!$W41,IF(Input!$P$70=3,'AZ Hpol (3)'!$W41,IF(Input!$P$70=4,'AZ Hpol (4)'!$W41,"")))) -> 0.8823894109 | AG41: -1.0868 | AH41: 0.4537856055 | AI41: -1.086794245
B42: 15 | C42: 0.8203862585 | D42: 51 | E42: 0.9970236766 | F42: 87 | G42: 0.9042671094 | H42: 123 | I42: 0.6280425201 | J42: 159 | K42: 0.4933335326 | L42: 195 | M42: 0.5703686866 | N42: 231 | O42: 0.5426453974 | P42: 267 | Q42: 0.8813483244 | R42: 303 | S42: 0.9990770963 | T42: 339 | U42: 0.8519421884 | W42: =IF(Input!$F$31<14,"",INDEX($X$15:$AD$374,MATCH(MOD($X42-$Y$13,360),$X$15:$X$374,1),IF(OR(Input!$K$13="Full",Input!$K$13="Partial"),2,6))) -> 0.8886257556 | X42: 27 | Y42: 0.8918355322 | Z42: 1.155300489 | AA42: 1.300097911 | AB42: -1.726294935 | AC42: 0.8886257556 | AD42: 0.8886257556 | AE42: 0 | AF42: =IF(Input!$P$70=1,'AZ Hpol'!$W42,IF(Input!$P$70=2,'AZ Hpol (2)'!$W42,IF(Input!$P$70=3,'AZ Hpol (3)'!$W42,IF(Input!$P$70=4,'AZ Hpol (4)'!$W42,"")))) -> 0.8886257556 | AG42: -1.0256 | AH42: 0.471238898 | AI42: -1.025622069
B43: 16 | C43: 0.8251714089 | D43: 52 | E43: 0.998250112 | F43: 88 | G43: 0.9000775268 | H43: 124 | I43: 0.6142101726 | J43: 160 | K43: 0.5060870128 | L43: 196 | M43: 0.5588311631 | N43: 232 | O43: 0.5571872095 | P43: 268 | Q43: 0.8857981246 | R43: 304 | S43: 0.9993654573 | T43: 340 | U43: 0.8462278797 | W43: =IF(Input!$F$31<14,"",INDEX($X$15:$AD$374,MATCH(MOD($X43-$Y$13,360),$X$15:$X$374,1),IF(OR(Input!$K$13="Full",Input!$K$13="Partial"),2,6))) -> 0.8948725216 | X43: 28 | Y43: 0.898022904 | Z43: 1.163315726 | AA43: 1.299979269 | AB43: -1.72645106 | AC43: 0.8948725216 | AD43: 0.8948725216 | AE43: 0 | AF43: =IF(Input!$P$70=1,'AZ Hpol'!$W43,IF(Input!$P$70=2,'AZ Hpol (2)'!$W43,IF(Input!$P$70=3,'AZ Hpol (3)'!$W43,IF(Input!$P$70=4,'AZ Hpol (4)'!$W43,"")))) -> 0.8948725216 | AG43: -0.9648 | AH43: 0.4886921906 | AI43: -0.9647765479
B44: 17 | C44: 0.8301794894 | D44: 53 | E44: 0.9991533673 | F44: 89 | G44: 0.8958602265 | H44: 125 | I44: 0.6001271867 | J44: 161 | K44: 0.5188131335 | L44: 197 | M44: 0.5469128115 | N44: 233 | O44: 0.5717036736 | P44: 269 | Q44: 0.8901649672 | R44: 305 | S44: 0.9993548787 | T44: 341 | U44: 0.8406661433 | W44: =IF(Input!$F$31<14,"",INDEX($X$15:$AD$374,MATCH(MOD($X44-$Y$13,360),$X$15:$X$374,1),IF(OR(Input!$K$13="Full",Input!$K$13="Partial"),2,6))) -> 0.9011081094 | X44: 29 | Y44: 0.9041951551 | Z44: 1.171311376 | AA44: 1.299856659 | AB44: -1.726612396 | AC44: 0.9011081094 | AD44: 0.9011081094 | AE44: 0 | AF44: =IF(Input!$P$70=1,'AZ Hpol'!$W44,IF(Input!$P$70=2,'AZ Hpol (2)'!$W44,IF(Input!$P$70=3,'AZ Hpol (3)'!$W44,IF(Input!$P$70=4,'AZ Hpol (4)'!$W44,"")))) -> 0.9011081094 | AG44: -0.9045 | AH44: 0.5061454831 | AI44: -0.9044620382
B45: 18 | C45: 0.8353945065 | D45: 54 | E45: 0.9997355205 | F45: 90 | G45: 0.8916063408 | H45: 126 | I45: 0.5858358814 | J45: 162 | K45: 0.5314136407 | L45: 198 | M45: 0.5346893288 | N45: 234 | O45: 0.5861319971 | P45: 270 | Q45: 0.8944622149 | R45: 306 | S45: 0.9990393193 | T45: 342 | U45: 0.8352754531 | W45: =IF(Input!$F$31<14,"",INDEX($X$15:$AD$374,MATCH(MOD($X45-$Y$13,360),$X$15:$X$374,1),IF(OR(Input!$K$13="Full",Input!$K$13="Partial"),2,6))) -> 0.9073109358 | X45: 30 | Y45: 0.9103306017 | Z45: 1.179259349 | AA45: 1.299730117 | AB45: -1.726778893 | AC45: 0.9073109358 | AD45: 0.9073109358 | AE45: 1 | AF45: =IF(Input!$P$70=1,'AZ Hpol'!$W45,IF(Input!$P$70=2,'AZ Hpol (2)'!$W45,IF(Input!$P$70=3,'AZ Hpol (3)'!$W45,IF(Input!$P$70=4,'AZ Hpol (4)'!$W45,"")))) -> 0.9073109358 | AG45: -0.8449 | AH45: 0.5235987756 | AI45: -0.8448770909
B46: 19 | C46: 0.8407996128 | D46: 55 | E46: 1 | F46: 91 | G46: 0.8873053606 | H46: 127 | I46: 0.5713846614 | J46: 163 | K46: 0.5437978585 | L46: 199 | M46: 0.5222430929 | N46: 235 | O46: 0.6004163042 | P46: 271 | Q46: 0.898701826 | R46: 307 | S46: 0.9984139408 | T46: 343 | U46: 0.8300735434 | W46: =IF(Input!$F$31<14,"",INDEX($X$15:$AD$374,MATCH(MOD($X46-$Y$13,360),$X$15:$X$374,1),IF(OR(Input!$K$13="Full",Input!$K$13="Partial"),2,6))) -> 0.9134595339 | X46: 31 | Y46: 0.9164076874 | Z46: 1.18713172 | AA46: 1.299599682 | AB46: -1.7269505 | AC46: 0.9134595339 | AD46: 0.9134595339 | AE46: 0 | AF46: =IF(Input!$P$70=1,'AZ Hpol'!$W46,IF(Input!$P$70=2,'AZ Hpol (2)'!$W46,IF(Input!$P$70=3,'AZ Hpol (3)'!$W46,IF(Input!$P$70=4,'AZ Hpol (4)'!$W46,"")))) -> 0.9134595339 | AG46: -0.7862 | AH46: 0.5410520681 | AI46: -0.7862137416
B47: 20 | C47: 0.8463771563 | D47: 56 | E47: 0.9999515494 | F47: 92 | G47: 0.88294521 | H47: 128 | I47: 0.5568284518 | J47: 164 | K47: 0.5558823394 | L47: 200 | M47: 0.5096635257 | N47: 236 | O47: 0.6145072065 | P47: 272 | Q47: 0.9028942653 | R47: 308 | S47: 0.9974751555 | T47: 344 | U47: 0.8250773493 | W47: =IF(Input!$F$31<14,"",INDEX($X$15:$AD$374,MATCH(MOD($X47-$Y$13,360),$X$15:$X$374,1),IF(OR(Input!$K$13="Full",Input!$K$13="Partial"),2,6))) -> 0.9195326542 | X47: 32 | Y47: 0.9224050849 | Z47: 1.194900861 | AA47: 1.299465392 | AB47: -1.727127166 | AC47: 0.9195326542 | AD47: 0.9195326542 | AE47: 0 | AF47: =IF(Input!$P$70=1,'AZ Hpol'!$W47,IF(Input!$P$70=2,'AZ Hpol (2)'!$W47,IF(Input!$P$70=3,'AZ Hpol (3)'!$W47,IF(Input!$P$70=4,'AZ Hpol (4)'!$W47,"")))) -> 0.9195326542 | AG47: -0.7287 | AH47: 0.5585053606 | AI47: -0.7286568723
B48: 21 | C48: 0.8521087369 | D48: 57 | E48: 0.9995961849 | F48: 93 | G48: 0.8785123392 | H48: 129 | I48: 0.5422291462 | J48: 165 | K48: 0.5675904787 | L48: 201 | M48: 0.4970474205 | N48: 237 | O48: 0.6283613834 | P48: 273 | Q48: 0.9070484318 | R48: 309 | S48: 0.9962206648 | T48: 345 | U48: 0.8203029556 | W48: =IF(Input!$F$31<14,"",INDEX($X$15:$AD$374,MATCH(MOD($X48-$Y$13,360),$X$15:$X$374,1),IF(OR(Input!$K$13="Full",Input!$K$13="Partial"),2,6))) -> 0.9255093654 | X48: 33 | Y48: 0.9283017977 | Z48: 1.202539574 | AA48: 1.299327288 | AB48: -1.727308837 | AC48: 0.9255093654 | AD48: 0.9255093654 | AE48: 0 | AF48: =IF(Input!$P$70=1,'AZ Hpol'!$W48,IF(Input!$P$70=2,'AZ Hpol (2)'!$W48,IF(Input!$P$70=3,'AZ Hpol (3)'!$W48,IF(Input!$P$70=4,'AZ Hpol (4)'!$W48,"")))) -> 0.9255093654 | AG48: -0.6724 | AH48: 0.5759586532 | AI48: -0.6723836436
B49: 22 | C49: 0.8579752704 | D49: 58 | E49: 0.9989411439 | F49: 94 | G49: 0.8739918327 | H49: 130 | I49: 0.5276560544 | J49: 166 | K49: 0.5788521239 | L49: 202 | M49: 0.4844991919 | N49: 238 | O49: 0.64194118 | P49: 274 | Q49: 0.9111716035 | R49: 310 | S49: 0.9946494911 | T49: 346 | U49: 0.8157655528 | W49: =IF(Input!$F$31<14,"",INDEX($X$15:$AD$374,MATCH(MOD($X49-$Y$13,360),$X$15:$X$374,1),IF(OR(Input!$K$13="Full",Input!$K$13="Partial"),2,6))) -> 0.9313691536 | X49: 34 | Y49: 0.9340772598 | Z49: 1.210021216 | AA49: 1.29918541 | AB49: -1.727495456 | AC49: 0.9313691536 | AD49: 0.9313691536 | AE49: 0 | AF49: =IF(Input!$P$70=1,'AZ Hpol'!$W49,IF(Input!$P$70=2,'AZ Hpol (2)'!$W49,IF(Input!$P$70=3,'AZ Hpol (3)'!$W49,IF(Input!$P$70=4,'AZ Hpol (4)'!$W49,"")))) -> 0.9313691536 | AG49: -0.6176 | AH49: 0.5934119457 | AI49: -0.6175629952
B50: 23 | C50: 0.8639570586 | D50: 59 | E50: 0.9979948259 | F50: 95 | G50: 0.8693675334 | H50: 131 | I50: 0.5131863262 | J50: 167 | K50: 0.5896031975 | L50: 203 | M50: 0.4721309881 | N50: 239 | O50: 0.6552142287 | P50: 275 | Q50: 0.9152693999 | R50: 311 | S50: 0.9927620022 | T50: 347 | U50: 0.8114794009 | W50: =IF(Input!$F$31<14,"",INDEX($X$15:$AD$374,MATCH(MOD($X50-$Y$13,360),$X$15:$X$374,1),IF(OR(Input!$K$13="Full",Input!$K$13="Partial"),2,6))) -> 0.9370920195 | X50: 35 | Y50: 0.9397114339 | Z50: 1.217319831 | AA50: 1.299039801 | AB50: -1.727686968 | AC50: 0.9370920195 | AD50: 0.9370920195 | AE50: 0 | AF50: =IF(Input!$P$70=1,'AZ Hpol'!$W50,IF(Input!$P$70=2,'AZ Hpol (2)'!$W50,IF(Input!$P$70=3,'AZ Hpol (3)'!$W50,IF(Input!$P$70=4,'AZ Hpol (4)'!$W50,"")))) -> 0.9370920195 | AG50: -0.5644 | AH50: 0.6108652382 | AI50: -0.5643552129
B51: 24 | C51: 0.8700338663 | D51: 60 | E51: 0.996766725 | F51: 96 | G51: 0.8646221808 | H51: 132 | I51: 0.4989053135 | J51: 168 | K51: 0.5997853462 | L51: 204 | M51: 0.4600625868 | N51: 240 | O51: 0.6681530959 | P51: 276 | Q51: 0.9193457615 | R51: 312 | S51: 0.9905599273 | T51: 348 | U51: 0.8074578008 | W51: =IF(Input!$F$31<14,"",INDEX($X$15:$AD$374,MATCH(MOD($X51-$Y$13,360),$X$15:$X$374,1),IF(OR(Input!$K$13="Full",Input!$K$13="Partial"),2,6))) -> 0.942658574 | X51: 36 | Y51: 0.9451849071 | Z51: 1.22441027 | AA51: 1.298890504 | AB51: -1.727883314 | AC51: 0.942658574 | AD51: 0.942658574 | AE51: 0 | AF51: =IF(Input!$P$70=1,'AZ Hpol'!$W51,IF(Input!$P$70=2,'AZ Hpol (2)'!$W51,IF(Input!$P$70=3,'AZ Hpol (3)'!$W51,IF(Input!$P$70=4,'AZ Hpol (4)'!$W51,"")))) -> 0.942658574 | AG51: -0.5129 | AH51: 0.6283185307 | AI51: -0.5129115594
B52: 25 | C52: 0.8761850031 | D52: 61 | E52: 0.9952673546 | F52: 97 | G52: 0.8597375611 | H52: 133 | I52: 0.4849068213 | J52: 169 | K52: 0.6093456222 | L52: 205 | M52: 0.4484209748 | N52: 241 | O52: 0.680734954 | P52: 277 | Q52: 0.9234029475 | R52: 313 | S52: 0.9880463661 | T52: 349 | U52: 0.8037130729 | W52: =IF(Input!$F$31<14,"",INDEX($X$15:$AD$374,MATCH(MOD($X52-$Y$13,360),$X$15:$X$374,1),IF(OR(Input!$K$13="Full",Input!$K$13="Partial"),2,6))) -> 0.9480501293 | X52: 37 | Y52: 0.9504789829 | Z52: 1.231268316 | AA52: 1.298737564 | AB52: -1.728084434 | AC52: 0.9480501293 | AD52: 0.9480501293 | AE52: 0 | AF52: =IF(Input!$P$70=1,'AZ Hpol'!$W52,IF(Input!$P$70=2,'AZ Hpol (2)'!$W52,IF(Input!$P$70=3,'AZ Hpol (3)'!$W52,IF(Input!$P$70=4,'AZ Hpol (4)'!$W52,"")))) -> 0.9480501293 | AG52: -0.4634 | AH52: 0.6457718232 | AI52: -0.4633739646
B53: 26 | C53: 0.8823894109 | D53: 62 | E53: 0.9935081641 | F53: 98 | G53: 0.8546946698 | H53: 134 | I53: 0.4712931738 | J53: 170 | K53: 0.6182361984 | L53: 206 | M53: 0.4373394895 | N53: 242 | O53: 0.6929412757 | P53: 278 | Q53: 0.9274415498 | R53: 314 | S53: 0.9852257892 | T53: 350 | U53: 0.8002565417 | W53: =IF(Input!$F$31<14,"",INDEX($X$15:$AD$374,MATCH(MOD($X53-$Y$13,360),$X$15:$X$374,1),IF(OR(Input!$K$13="Full",Input!$K$13="Partial"),2,6))) -> 0.9532487873 | X53: 38 | Y53: 0.9555757698 | Z53: 1.237870789 | AA53: 1.298581027 | AB53: -1.728290267 | AC53: 0.9532487873 | AD53: 0.9532487873 | AE53: 0 | AF53: =IF(Input!$P$70=1,'AZ Hpol'!$W53,IF(Input!$P$70=2,'AZ Hpol (2)'!$W53,IF(Input!$P$70=3,'AZ Hpol (3)'!$W53,IF(Input!$P$70=4,'AZ Hpol (4)'!$W53,"")))) -> 0.9532487873 | AG53: -0.4159 | AH53: 0.6632251158 | AI53: -0.4158747711
B54: 27 | C54: 0.8886257556 | D54: 63 | E54: 0.9915014484 | F54: 99 | G54: 0.8494738834 | H54: 135 | I54: 0.4581750047 | J54: 171 | K54: 0.626414118 | L54: 207 | M54: 0.4269563912 | N54: 243 | O54: 0.7047575498 | P54: 279 | Q54: 0.9314605234 | R54: 315 | S54: 0.9821040326 | T54: 351 | U54: 0.7970985277 | W54: =IF(Input!$F$31<14,"",INDEX($X$15:$AD$374,MATCH(MOD($X54-$Y$13,360),$X$15:$X$374,1),IF(OR(Input!$K$13="Full",Input!$K$13="Partial"),2,6))) -> 0.9582375236 | X54: 39 | Y54: 0.960458265 | Z54: 1.244195665 | AA54: 1.298420939 | AB54: -1.72850075 | AC54: 0.9582375236 | AD54: 0.9582375236 | AE54: 0 | AF54: =IF(Input!$P$70=1,'AZ Hpol'!$W54,IF(Input!$P$70=2,'AZ Hpol (2)'!$W54,IF(Input!$P$70=3,'AZ Hpol (3)'!$W54,IF(Input!$P$70=4,'AZ Hpol (4)'!$W54,"")))) -> 0.9582375236 | AG54: -0.3705 | AH54: 0.6806784083 | AI54: -0.3705365322
B55: 28 | C55: 0.8948725216 | D55: 64 | E55: 0.9892602493 | F55: 100 | G55: 0.8440551393 | H55: 136 | I55: 0.4456706528 | J55: 172 | K55: 0.6338410782 | L55: 208 | M55: 0.417412736 | N55: 244 | O55: 0.7161730151 | P55: 280 | Q55: 0.9354572334 | R55: 316 | S55: 0.9786882824 | T55: 352 | U55: 0.794248343 | W55: =IF(Input!$F$31<14,"",INDEX($X$15:$AD$374,MATCH(MOD($X55-$Y$13,360),$X$15:$X$374,1),IF(OR(Input!$K$13="Full",Input!$K$13="Partial"),2,6))) -> 0.9630002664 | X55: 40 | Y55: 0.9651104337 | Z55: 1.250222172 | AA55: 1.298257348 | AB55: -1.728715819 | AC55: 0.9630002664 | AD55: 0.9630002664 | AE55: 0 | AF55: =IF(Input!$P$70=1,'AZ Hpol'!$W55,IF(Input!$P$70=2,'AZ Hpol (2)'!$W55,IF(Input!$P$70=3,'AZ Hpol (3)'!$W55,IF(Input!$P$70=4,'AZ Hpol (4)'!$W55,"")))) -> 0.9630002664 | AG55: -0.3275 | AH55: 0.6981317008 | AI55: -0.327471855
B56: 29 | C56: 0.9011081094 | D56: 65 | E56: 0.9867982502 | F56: 101 | G56: 0.8384181235 | H56: 137 | I56: 0.4339050297 | J56: 173 | K56: 0.6404832432 | L56: 209 | M56: 0.4088494493 | N56: 245 | O56: 0.7271804097 | P56: 281 | Q56: 0.9394275149 | R56: 317 | S56: 0.9749870538 | T56: 353 | U56: 0.7917142928 | W56: =IF(Input!$F$31<14,"",INDEX($X$15:$AD$374,MATCH(MOD($X56-$Y$13,360),$X$15:$X$374,1),IF(OR(Input!$K$13="Full",Input!$K$13="Partial"),2,6))) -> 0.9675219702 | X56: 41 | Y56: 0.9695172831 | Z56: 1.255930887 | AA56: 1.298090303 | AB56: -1.728935409 | AC56: 0.9675219702 | AD56: 0.9675219702 | AE56: 0 | AF56: =IF(Input!$P$70=1,'AZ Hpol'!$W56,IF(Input!$P$70=2,'AZ Hpol (2)'!$W56,IF(Input!$P$70=3,'AZ Hpol (3)'!$W56,IF(Input!$P$70=4,'AZ Hpol (4)'!$W56,"")))) -> 0.9675219702 | AG56: -0.2868 | AH56: 0.7155849933 | AI56: -0.2867832878
B57: 30 | C57: 0.9073109358 | D57: 66 | E57: 0.9841296644 | F57: 102 | G57: 0.8325424629 | H57: 138 | I57: 0.4230078166 | J57: 174 | K57: 0.6463110866 | L57: 210 | M57: 0.4014035656 | N57: 246 | O57: 0.7377757329 | P57: 282 | Q57: 0.9433657479 | R57: 318 | S57: 0.9710101617 | T57: 354 | U57: 0.7895036792 | W57: =IF(Input!$F$31<14,"",INDEX($X$15:$AD$374,MATCH(MOD($X57-$Y$13,360),$X$15:$X$374,1),IF(OR(Input!$K$13="Full",Input!$K$13="Partial"),2,6))) -> 0.9717886844 | X57: 42 | Y57: 0.9736649301 | Z57: 1.261303827 | AA57: 1.297919854 | AB57: -1.729159452 | AC57: 0.9717886844 | AD57: 0.9717886844 | AE57: 0 | AF57: =IF(Input!$P$70=1,'AZ Hpol'!$W57,IF(Input!$P$70=2,'AZ Hpol (2)'!$W57,IF(Input!$P$70=3,'AZ Hpol (3)'!$W57,IF(Input!$P$70=4,'AZ Hpol (4)'!$W57,"")))) -> 0.9717886844 | AG57: -0.2486 | AH57: 0.7330382858 | AI57: -0.2485632438
B58: 31 | C58: 0.9134595339 | D58: 67 | E58: 0.9812691159 | F58: 103 | G58: 0.8264079224 | H58: 139 | I58: 0.4131108617 | J58: 175 | K58: 0.651299259 | L58: 211 | M58: 0.3952037097 | N58: 247 | O58: 0.7479580179 | P58: 283 | Q58: 0.9472649435 | R58: 319 | S58: 0.9667686842 | T58: 355 | U58: 0.7876228082 | W58: =IF(Input!$F$31<14,"",INDEX($X$15:$AD$374,MATCH(MOD($X58-$Y$13,360),$X$15:$X$374,1),IF(OR(Input!$K$13="Full",Input!$K$13="Partial"),2,6))) -> 0.9757876159 | X58: 43 | Y58: 0.977540664 | Z58: 1.266324525 | AA58: 1.297746051 | AB58: -1.729387881 | AC58: 0.9757876159 | AD58: 0.9757876159 | AE58: 0 | AF58: =IF(Input!$P$70=1,'AZ Hpol'!$W58,IF(Input!$P$70=2,'AZ Hpol (2)'!$W58,IF(Input!$P$70=3,'AZ Hpol (3)'!$W58,IF(Input!$P$70=4,'AZ Hpol (4)'!$W58,"")))) -> 0.9757876159 | AG58: -0.2129 | AH58: 0.7504915784 | AI58: -0.2128939598
B59: 32 | C59: 0.9195326542 | D59: 68 | E59: 0.9782315159 | F59: 104 | G59: 0.8199946047 | H59: 140 | I59: 0.4043446977 | J59: 176 | K59: 0.6554264779 | L59: 212 | M59: 0.3903650354 | N59: 248 | O59: 0.7577291122 | P59: 284 | Q59: 0.9511168408 | R59: 320 | S59: 0.9622749188 | T59: 356 | U59: 0.7860769983 | W59: =IF(Input!$F$31<14,"",INDEX($X$15:$AD$374,MATCH(MOD($X59-$Y$13,360),$X$15:$X$374,1),IF(OR(Input!$K$13="Full",Input!$K$13="Partial"),2,6))) -> 0.9795071844 | X59: 44 | Y59: 0.9811330013 | Z59: 1.270978106 | AA59: 1.297568948 | AB59: -1.729620626 | AC59: 0.9795071844 | AD59: 0.9795071844 | AE59: 0 | AF59: =IF(Input!$P$70=1,'AZ Hpol'!$W59,IF(Input!$P$70=2,'AZ Hpol (2)'!$W59,IF(Input!$P$70=3,'AZ Hpol (3)'!$W59,IF(Input!$P$70=4,'AZ Hpol (4)'!$W59,"")))) -> 0.9795071844 | AG59: -0.1798 | AH59: 0.7679448709 | AI59: -0.1798474849
B60: 33 | C60: 0.9255093654 | D60: 69 | E60: 0.9750319332 | F60: 105 | G60: 0.8132831527 | H60: 141 | I60: 0.3968341914 | J60: 177 | K60: 0.6586754395 | L60: 213 | M60: 0.3869840048 | N60: 249 | O60: 0.7670934645 | P60: 285 | Q60: 0.9549120142 | R60: 321 | S60: 0.957542332 | T60: 357 | U60: 0.7848705891 | W60: =IF(Input!$F$31<14,"",INDEX($X$15:$AD$374,MATCH(MOD($X60-$Y$13,360),$X$15:$X$374,1),IF(OR(Input!$K$13="Full",Input!$K$13="Partial"),2,6))) -> 0.9829370725 | X60: 45 | Y60: 0.9844317353 | Z60: 1.275251348 | AA60: 1.297388596 | AB60: -1.729857616 | AC60: 0.9829370725 | AD60: 0.9829370725 | AE60: 0 | AF60: =IF(Input!$P$70=1,'AZ Hpol'!$W60,IF(Input!$P$70=2,'AZ Hpol (2)'!$W60,IF(Input!$P$70=3,'AZ Hpol (3)'!$W60,IF(Input!$P$70=4,'AZ Hpol (4)'!$W60,"")))) -> 0.9829370725 | AG60: -0.1495 | AH60: 0.7853981634 | AI60: -0.1494856949
B61: 34 | C61: 0.9313691536 | D61: 70 | E61: 0.9716854603 | F61: 106 | G61: 0.8062549529 | H61: 142 | I61: 0.3906934697 | J61: 178 | K61: 0.6610327482 | L61: 214 | M61: 0.3851335227 | N61: 250 | O61: 0.7760579155 | P61: 286 | Q61: 0.9586399869 | R61: 322 | S61: 0.9525855016 | T61: 358 | U61: 0.7840069504 | W61: =IF(Input!$F$31<14,"",INDEX($X$15:$AD$374,MATCH(MOD($X61-$Y$13,360),$X$15:$X$374,1),IF(OR(Input!$K$13="Full",Input!$K$13="Partial"),2,6))) -> 0.9860682683 | X61: 46 | Y61: 0.9874279779 | Z61: 1.279132737 | AA61: 1.29720505 | AB61: -1.730098778 | AC61: 0.9860682683 | AD61: 0.9860682683 | AE61: 0 | AF61: =IF(Input!$P$70=1,'AZ Hpol'!$W61,IF(Input!$P$70=2,'AZ Hpol (2)'!$W61,IF(Input!$P$70=3,'AZ Hpol (3)'!$W61,IF(Input!$P$70=4,'AZ Hpol (4)'!$W61,"")))) -> 0.9860682683 | AG61: -0.1219 | AH61: 0.8028514559 | AI61: -0.1218603318
B62: 35 | C62: 0.9370920195 | D62: 71 | E62: 0.9682070762 | F62: 107 | G62: 0.7988923385 | H62: 143 | I62: 0.38602044 | J62: 179 | K62: 0.6624888635 | L62: 215 | M62: 0.38485901 | N62: 251 | O62: 0.7846314922 | P62: 287 | Q62: 0.9622893527 | R62: 323 | S62: 0.9474200532 | T62: 359 | U62: 0.7834884896 | W62: =IF(Input!$F$31<14,"",INDEX($X$15:$AD$374,MATCH(MOD($X62-$Y$13,360),$X$15:$X$374,1),IF(OR(Input!$K$13="Full",Input!$K$13="Partial"),2,6))) -> 0.9888931006 | X62: 47 | Y62: 0.9901141942 | Z62: 1.282612512 | AA62: 1.297018365 | AB62: -1.73034404 | AC62: 0.9888931006 | AD62: 0.9888931006 | AE62: 0 | AF62: =IF(Input!$P$70=1,'AZ Hpol'!$W62,IF(Input!$P$70=2,'AZ Hpol (2)'!$W62,IF(Input!$P$70=3,'AZ Hpol (3)'!$W62,IF(Input!$P$70=4,'AZ Hpol (4)'!$W62,"")))) -> 0.9888931006 | AG62: -0.097 | AH62: 0.8203047484 | AI62: -0.09701306271
W63: =IF(Input!$F$31<14,"",INDEX($X$15:$AD$374,MATCH(MOD($X63-$Y$13,360),$X$15:$X$374,1),IF(OR(Input!$K$13="Full",Input!$K$13="Partial"),2,6))) -> 0.9914052674 | X63: 48 | Y63: 0.9924842301 | Z63: 1.285682701 | AA63: 1.296828596 | AB63: -1.730593327 | AC63: 0.9914052674 | AD63: 0.9914052674 | AE63: 0 | AF63: =IF(Input!$P$70=1,'AZ Hpol'!$W63,IF(Input!$P$70=2,'AZ Hpol (2)'!$W63,IF(Input!$P$70=3,'AZ Hpol (3)'!$W63,IF(Input!$P$70=4,'AZ Hpol (4)'!$W63,"")))) -> 0.9914052674 | AG63: -0.075 | AH63: 0.837758041 | AI63: -0.07497555938
A64: This document contains proprietary and confidential information of Dielectric. It is to be used solely for the purpose for which it is provided. | W64: =IF(Input!$F$31<14,"",INDEX($X$15:$AD$374,MATCH(MOD($X64-$Y$13,360),$X$15:$X$374,1),IF(OR(Input!$K$13="Full",Input!$K$13="Partial"),2,6))) -> 0.9935998569 | X64: 49 | Y64: 0.9945333321 | Z64: 1.288337147 | AA64: 1.296635801 | AB64: -1.730846562 | AC64: 0.9935998569 | AD64: 0.9935998569 | AE64: 0 | AF64: =IF(Input!$P$70=1,'AZ Hpol'!$W64,IF(Input!$P$70=2,'AZ Hpol (2)'!$W64,IF(Input!$P$70=3,'AZ Hpol (3)'!$W64,IF(Input!$P$70=4,'AZ Hpol (4)'!$W64,"")))) -> 0.9935998569 | AG64: -0.0558 | AH64: 0.8552113335 | AI64: -0.05576959413
A65: No disclosure, reproduction, or use of this document or any part of it may be made without the written permission of Dielectric. | W65: =IF(Input!$F$31<14,"",INDEX($X$15:$AD$374,MATCH(MOD($X65-$Y$13,360),$X$15:$X$374,1),IF(OR(Input!$K$13="Full",Input!$K$13="Partial"),2,6))) -> 0.9954733601 | X65: 50 | Y65: 0.9962581593 | Z65: 1.29057152 | AA65: 1.296440037 | AB65: -1.731103668 | AC65: 0.9954733601 | AD65: 0.9954733601 | AE65: 0 | AF65: =IF(Input!$P$70=1,'AZ Hpol'!$W65,IF(Input!$P$70=2,'AZ Hpol (2)'!$W65,IF(Input!$P$70=3,'AZ Hpol (3)'!$W65,IF(Input!$P$70=4,'AZ Hpol (4)'!$W65,"")))) -> 0.9954733601 | AG65: -0.0394 | AH65: 0.872664626 | AI65: -0.03940715301
W66: =IF(Input!$F$31<14,"",INDEX($X$15:$AD$374,MATCH(MOD($X66-$Y$13,360),$X$15:$X$374,1),IF(OR(Input!$K$13="Full",Input!$K$13="Partial"),2,6))) -> 0.9970236766 | X66: 51 | Y66: 0.9976567878 | Z66: 1.29238333 | AA66: 1.296241363 | AB66: -1.731364568 | AC66: 0.9970236766 | AD66: 0.9970236766 | AE66: 0 | AF66: =IF(Input!$P$70=1,'AZ Hpol'!$W66,IF(Input!$P$70=2,'AZ Hpol (2)'!$W66,IF(Input!$P$70=3,'AZ Hpol (3)'!$W66,IF(Input!$P$70=4,'AZ Hpol (4)'!$W66,"")))) -> 0.9970236766 | AG66: -0.0259 | AH66: 0.8901179185 | AI66: -0.02589056512
W67: =IF(Input!$F$31<14,"",INDEX($X$15:$AD$374,MATCH(MOD($X67-$Y$13,360),$X$15:$X$374,1),IF(OR(Input!$K$13="Full",Input!$K$13="Partial"),2,6))) -> 0.998250112 | X67: 52 | Y67: 0.9987287071 | Z67: 1.293771914 | AA67: 1.296039839 | AB67: -1.731629182 | AC67: 0.998250112 | AD67: 0.998250112 | AE67: 0 | AF67: =IF(Input!$P$70=1,'AZ Hpol'!$W67,IF(Input!$P$70=2,'AZ Hpol (2)'!$W67,IF(Input!$P$70=3,'AZ Hpol (3)'!$W67,IF(Input!$P$70=4,'AZ Hpol (4)'!$W67,"")))) -> 0.998250112 | AG67: -0.0152 | AH67: 0.907571211 | AI67: -0.01521264844
W68: =IF(Input!$F$31<14,"",INDEX($X$15:$AD$374,MATCH(MOD($X68-$Y$13,360),$X$15:$X$374,1),IF(OR(Input!$K$13="Full",Input!$K$13="Partial"),2,6))) -> 0.9991533673 | X68: 53 | Y68: 0.9994748082 | Z68: 1.294738427 | AA68: 1.295835524 | AB68: -1.731897428 | AC68: 0.9991533673 | AD68: 0.9991533673 | AE68: 0 | AF68: =IF(Input!$P$70=1,'AZ Hpol'!$W68,IF(Input!$P$70=2,'AZ Hpol (2)'!$W68,IF(Input!$P$70=3,'AZ Hpol (3)'!$W68,IF(Input!$P$70=4,'AZ Hpol (4)'!$W68,"")))) -> 0.9991533673 | AG68: -0.0074 | AH68: 0.9250245036 | AI68: -0.007356873084
W69: =IF(Input!$F$31<14,"",INDEX($X$15:$AD$374,MATCH(MOD($X69-$Y$13,360),$X$15:$X$374,1),IF(OR(Input!$K$13="Full",Input!$K$13="Partial"),2,6))) -> 0.9997355205 | X69: 54 | Y69: 0.9998973636 | Z69: 1.295285814 | AA69: 1.295628481 | AB69: -1.732169226 | AC69: 0.9997355205 | AD69: 0.9997355205 | AE69: 0 | AF69: =IF(Input!$P$70=1,'AZ Hpol'!$W69,IF(Input!$P$70=2,'AZ Hpol (2)'!$W69,IF(Input!$P$70=3,'AZ Hpol (3)'!$W69,IF(Input!$P$70=4,'AZ Hpol (4)'!$W69,"")))) -> 0.9997355205 | AG69: -0.0023 | AH69: 0.9424777961 | AI69: -0.002297543274
W70: =IF(Input!$F$31<14,"",INDEX($X$15:$AD$374,MATCH(MOD($X70-$Y$13,360),$X$15:$X$374,1),IF(OR(Input!$K$13="Full",Input!$K$13="Partial"),2,6))) -> 1 | X70: 55 | Y70: 1 | Z70: 1.295418771 | AA70: 1.295418771 | AB70: -1.732444493 | AC70: 1 | AD70: 1 | AE70: 0 | AF70: =IF(Input!$P$70=1,'AZ Hpol'!$W70,IF(Input!$P$70=2,'AZ Hpol (2)'!$W70,IF(Input!$P$70=3,'AZ Hpol (3)'!$W70,IF(Input!$P$70=4,'AZ Hpol (4)'!$W70,"")))) -> 1 | AG70: 0 | AH70: 0.9599310886 | AI70: 0
W71: =IF(Input!$F$31<14,"",INDEX($X$15:$AD$374,MATCH(MOD($X71-$Y$13,360),$X$15:$X$374,1),IF(OR(Input!$K$13="Full",Input!$K$13="Partial"),2,6))) -> 0.9999515494 | X71: 56 | Y71: 0.9997876615 | Z71: 1.295143704 | AA71: 1.295206457 | AB71: -1.732723145 | AC71: 0.9999515494 | AD71: 0.9999515494 | AE71: 0 | AF71: =IF(Input!$P$70=1,'AZ Hpol'!$W71,IF(Input!$P$70=2,'AZ Hpol (2)'!$W71,IF(Input!$P$70=3,'AZ Hpol (3)'!$W71,IF(Input!$P$70=4,'AZ Hpol (4)'!$W71,"")))) -> 0.9999515494 | AG71: -0.0004 | AH71: 0.9773843811 | AI71: -0.000420846863
W72: =IF(Input!$F$31<14,"",INDEX($X$15:$AD$374,MATCH(MOD($X72-$Y$13,360),$X$15:$X$374,1),IF(OR(Input!$K$13="Full",Input!$K$13="Partial"),2,6))) -> 0.9995961849 | X72: 57 | Y72: 0.9992665658 | Z72: 1.294468666 | AA72: 1.294991604 | AB72: -1.733005096 | AC72: 0.9995961849 | AD72: 0.9995961849 | AE72: 0 | AF72: =IF(Input!$P$70=1,'AZ Hpol'!$W72,IF(Input!$P$70=2,'AZ Hpol (2)'!$W72,IF(Input!$P$70=3,'AZ Hpol (3)'!$W72,IF(Input!$P$70=4,'AZ Hpol (4)'!$W72,"")))) -> 0.9995961849 | AG72: -0.0035 | AH72: 0.9948376736 | AI72: -0.003508202056
W73: =IF(Input!$F$31<14,"",INDEX($X$15:$AD$374,MATCH(MOD($X73-$Y$13,360),$X$15:$X$374,1),IF(OR(Input!$K$13="Full",Input!$K$13="Partial"),2,6))) -> 0.9989411439 | X73: 58 | Y73: 0.9984441512 | Z73: 1.293403295 | AA73: 1.294774275 | AB73: -1.733290261 | AC73: 0.9989411439 | AD73: 0.9989411439 | AE73: 0 | AF73: =IF(Input!$P$70=1,'AZ Hpol'!$W73,IF(Input!$P$70=2,'AZ Hpol (2)'!$W73,IF(Input!$P$70=3,'AZ Hpol (3)'!$W73,IF(Input!$P$70=4,'AZ Hpol (4)'!$W73,"")))) -> 0.9989411439 | AG73: -0.0092 | AH73: 1.012290966 | AI73: -0.009201979918
W74: =IF(Input!$F$31<14,"",INDEX($X$15:$AD$374,MATCH(MOD($X74-$Y$13,360),$X$15:$X$374,1),IF(OR(Input!$K$13="Full",Input!$K$13="Partial"),2,6))) -> 0.9979948259 | X74: 59 | Y74: 0.9973290164 | Z74: 1.291958729 | AA74: 1.294554536 | AB74: -1.733578554 | AC74: 0.9979948259 | AD74: 0.9979948259 | AE74: 0 | AF74: =IF(Input!$P$70=1,'AZ Hpol'!$W74,IF(Input!$P$70=2,'AZ Hpol (2)'!$W74,IF(Input!$P$70=3,'AZ Hpol (3)'!$W74,IF(Input!$P$70=4,'AZ Hpol (4)'!$W74,"")))) -> 0.9979948259 | AG74: -0.0174 | AH74: 1.029744259 | AI74: -0.01743420589
W75: =IF(Input!$F$31<14,"",INDEX($X$15:$AD$374,MATCH(MOD($X75-$Y$13,360),$X$15:$X$374,1),IF(OR(Input!$K$13="Full",Input!$K$13="Partial"),2,6))) -> 0.996766725 | X75: 60 | Y75: 0.9959308521 | Z75: 1.29014752 | AA75: 1.294332453 | AB75: -1.733869886 | AC75: 0.996766725 | AD75: 0.996766725 | AE75: 1 | AF75: =IF(Input!$P$70=1,'AZ Hpol'!$W75,IF(Input!$P$70=2,'AZ Hpol (2)'!$W75,IF(Input!$P$70=3,'AZ Hpol (3)'!$W75,IF(Input!$P$70=4,'AZ Hpol (4)'!$W75,"")))) -> 0.996766725 | AG75: -0.0281 | AH75: 1.047197551 | AI75: -0.02812936905
W76: =IF(Input!$F$31<14,"",INDEX($X$15:$AD$374,MATCH(MOD($X76-$Y$13,360),$X$15:$X$374,1),IF(OR(Input!$K$13="Full",Input!$K$13="Partial"),2,6))) -> 0.9952673546 | X76: 61 | Y76: 0.9942603637 | Z76: 1.287983538 | AA76: 1.294108093 | AB76: -1.734164168 | AC76: 0.9952673546 | AD76: 0.9952673546 | AE76: 0 | AF76: =IF(Input!$P$70=1,'AZ Hpol'!$W76,IF(Input!$P$70=2,'AZ Hpol (2)'!$W76,IF(Input!$P$70=3,'AZ Hpol (3)'!$W76,IF(Input!$P$70=4,'AZ Hpol (4)'!$W76,"")))) -> 0.9952673546 | AG76: -0.0412 | AH76: 1.064650844 | AI76: -0.04120481653
W77: =IF(Input!$F$31<14,"",INDEX($X$15:$AD$374,MATCH(MOD($X77-$Y$13,360),$X$15:$X$374,1),IF(OR(Input!$K$13="Full",Input!$K$13="Partial"),2,6))) -> 0.9935081641 | X77: 62 | Y77: 0.9923291879 | Z77: 1.285481857 | AA77: 1.293881523 | AB77: -1.734461312 | AC77: 0.9935081641 | AD77: 0.9935081641 | AE77: 0 | AF77: =IF(Input!$P$70=1,'AZ Hpol'!$W77,IF(Input!$P$70=2,'AZ Hpol (2)'!$W77,IF(Input!$P$70=3,'AZ Hpol (3)'!$W77,IF(Input!$P$70=4,'AZ Hpol (4)'!$W77,"")))) -> 0.9935081641 | AG77: -0.0566 | AH77: 1.082104136 | AI77: -0.05657119457
W78: =IF(Input!$F$31<14,"",INDEX($X$15:$AD$374,MATCH(MOD($X78-$Y$13,360),$X$15:$X$374,1),IF(OR(Input!$K$13="Full",Input!$K$13="Partial"),2,6))) -> 0.9915014484 | X78: 63 | Y78: 0.9901498003 | Z78: 1.282658637 | AA78: 1.293652812 | AB78: -1.734761226 | AC78: 0.9915014484 | AD78: 0.9915014484 | AE78: 0 | AF78: =IF(Input!$P$70=1,'AZ Hpol'!$W78,IF(Input!$P$70=2,'AZ Hpol (2)'!$W78,IF(Input!$P$70=3,'AZ Hpol (3)'!$W78,IF(Input!$P$70=4,'AZ Hpol (4)'!$W78,"")))) -> 0.9915014484 | AG78: -0.0741 | AH78: 1.099557429 | AI78: -0.07413294048
W79: =IF(Input!$F$31<14,"",INDEX($X$15:$AD$374,MATCH(MOD($X79-$Y$13,360),$X$15:$X$374,1),IF(OR(Input!$K$13="Full",Input!$K$13="Partial"),2,6))) -> 0.9892602493 | X79: 64 | Y79: 0.9877354162 | Z79: 1.279530999 | AA79: 1.293422029 | AB79: -1.735063819 | AC79: 0.9892602493 | AD79: 0.9892602493 | AE79: 0 | AF79: =IF(Input!$P$70=1,'AZ Hpol'!$W79,IF(Input!$P$70=2,'AZ Hpol (2)'!$W79,IF(Input!$P$70=3,'AZ Hpol (3)'!$W79,IF(Input!$P$70=4,'AZ Hpol (4)'!$W79,"")))) -> 0.9892602493 | AG79: =ROUND(20*LOG(W79),4) -> -0.0938 | AH79: 1.117010721 | AI79: -0.09378883015
W80: =IF(Input!$F$31<14,"",INDEX($X$15:$AD$374,MATCH(MOD($X80-$Y$13,360),$X$15:$X$374,1),IF(OR(Input!$K$13="Full",Input!$K$13="Partial"),2,6))) -> 0.9867982502 | X80: 65 | Y80: =(1/$Z$11)*$Z80 -> 0.9850998846 | Z80: =AD80*AA80 -> 1.276116882 | AA80: =SQRT(((1+COS(AB80))^2)+(SIN(AB80)^2)) -> 1.293189242 | AB80: =($AB$12*$AE$10*COS($AH80))+RADIANS($AE$9) -> -1.735368999 | AC80: =(1/$AC$11)*$AD80 -> 0.9867982502 | AD80: 0.9867982502 | AE80: 0 | AF80: =IF(Input!$P$70=1,'AZ Hpol'!$W80,IF(Input!$P$70=2,'AZ Hpol (2)'!$W80,IF(Input!$P$70=3,'AZ Hpol (3)'!$W80,IF(Input!$P$70=4,'AZ Hpol (4)'!$W80,"")))) -> 0.9867982502 | AG80: -0.1154 | AH80: =RADIANS(X80) -> 1.134464014 | AI80: -0.1154325852
W81: =IF(Input!$F$31<14,"",INDEX($X$15:$AD$374,MATCH(MOD($X81-$Y$13,360),$X$15:$X$374,1),IF(OR(Input!$K$13="Full",Input!$K$13="Partial"),2,6))) -> 0.9841296644 | X81: 66 | Y81: 0.9822575753 | Z81: 1.272434901 | AA81: 1.292954523 | AB81: -1.735676673 | AC81: 0.9841296644 | AD81: 0.9841296644 | AE81: 0 | AF81: =IF(Input!$P$70=1,'AZ Hpol'!$W81,IF(Input!$P$70=2,'AZ Hpol (2)'!$W81,IF(Input!$P$70=3,'AZ Hpol (3)'!$W81,IF(Input!$P$70=4,'AZ Hpol (4)'!$W81,"")))) -> 0.9841296644 | AG81: -0.139 | AH81: 1.151917306 | AI81: -0.1389535434
W82: =IF(Input!$F$31<14,"",INDEX($X$15:$AD$374,MATCH(MOD($X82-$Y$13,360),$X$15:$X$374,1),IF(OR(Input!$K$13="Full",Input!$K$13="Partial"),2,6))) -> 0.9812691159 | X82: 67 | Y82: 0.9792232599 | Z82: 1.268504192 | AA82: 1.292717942 | AB82: -1.735986747 | AC82: 0.9812691159 | AD82: 0.9812691159 | AE82: 0 | AF82: =IF(Input!$P$70=1,'AZ Hpol'!$W82,IF(Input!$P$70=2,'AZ Hpol (2)'!$W82,IF(Input!$P$70=3,'AZ Hpol (3)'!$W82,IF(Input!$P$70=4,'AZ Hpol (4)'!$W82,"")))) -> 0.9812691159 | AG82: -0.1642 | AH82: 1.169370599 | AI82: =IF(AF82<=0.031622776602,-30,20*LOG(AF82)) -> -0.1642373955
W83: =IF(Input!$F$31<14,"",INDEX($X$15:$AD$374,MATCH(MOD($X83-$Y$13,360),$X$15:$X$374,1),IF(OR(Input!$K$13="Full",Input!$K$13="Partial"),2,6))) -> 0.9782315159 | X83: 68 | Y83: 0.9760119871 | Z83: 1.264344249 | AA83: 1.29247957 | AB83: -1.736299127 | AC83: 0.9782315159 | AD83: 0.9782315159 | AE83: 0 | AF83: =IF(Input!$P$70=1,'AZ Hpol'!$W83,IF(Input!$P$70=2,'AZ Hpol (2)'!$W83,IF(Input!$P$70=3,'AZ Hpol (3)'!$W83,IF(Input!$P$70=4,'AZ Hpol (4)'!$W83,"")))) -> 0.9782315159 | AG83: -0.1912 | AH83: 1.186823891 | AI83: -0.1911669904
W84: =IF(Input!$F$31<14,"",INDEX($X$15:$AD$374,MATCH(MOD($X84-$Y$13,360),$X$15:$X$374,1),IF(OR(Input!$K$13="Full",Input!$K$13="Partial"),2,6))) -> 0.9750319332 | X84: 69 | Y84: 0.9726389532 | Z84: 1.259974757 | AA84: 1.292239479 | AB84: -1.736613717 | AC84: 0.9750319332 | AD84: 0.9750319332 | AE84: 0 | AF84: =IF(Input!$P$70=1,'AZ Hpol'!$W84,IF(Input!$P$70=2,'AZ Hpol (2)'!$W84,IF(Input!$P$70=3,'AZ Hpol (3)'!$W84,IF(Input!$P$70=4,'AZ Hpol (4)'!$W84,"")))) -> 0.9750319332 | AG84: -0.2196 | AH84: 1.204277184 | AI84: -0.2196232103
W85: =IF(Input!$F$31<14,"",INDEX($X$15:$AD$374,MATCH(MOD($X85-$Y$13,360),$X$15:$X$374,1),IF(OR(Input!$K$13="Full",Input!$K$13="Partial"),2,6))) -> 0.9716854603 | X85: 70 | Y85: 0.9691193679 | Z85: 1.25541542 | AA85: 1.291997742 | AB85: -1.736930422 | AC85: 0.9716854603 | AD85: 0.9716854603 | AE85: 0 | AF85: =IF(Input!$P$70=1,'AZ Hpol'!$W85,IF(Input!$P$70=2,'AZ Hpol (2)'!$W85,IF(Input!$P$70=3,'AZ Hpol (3)'!$W85,IF(Input!$P$70=4,'AZ Hpol (4)'!$W85,"")))) -> 0.9716854603 | AG85: -0.2495 | AH85: 1.221730476 | AI85: -0.2494859145
W86: =IF(Input!$F$31<14,"",INDEX($X$15:$AD$374,MATCH(MOD($X86-$Y$13,360),$X$15:$X$374,1),IF(OR(Input!$K$13="Full",Input!$K$13="Partial"),2,6))) -> 0.9682070762 | X86: 71 | Y86: 0.9654683175 | Z86: 1.250685781 | AA86: 1.291754431 | AB86: -1.737249146 | AC86: 0.9682070762 | AD86: 0.9682070762 | AE86: 0 | AF86: =IF(Input!$P$70=1,'AZ Hpol'!$W86,IF(Input!$P$70=2,'AZ Hpol (2)'!$W86,IF(Input!$P$70=3,'AZ Hpol (3)'!$W86,IF(Input!$P$70=4,'AZ Hpol (4)'!$W86,"")))) -> 0.9682070762 | AG86: -0.2806 | AH86: 1.239183769 | AI86: -0.2806349521
W87: =IF(Input!$F$31<14,"",INDEX($X$15:$AD$374,MATCH(MOD($X87-$Y$13,360),$X$15:$X$374,1),IF(OR(Input!$K$13="Full",Input!$K$13="Partial"),2,6))) -> 0.9646115064 | X87: 72 | Y87: 0.9617006248 | Z87: 1.245805041 | AA87: 1.291509621 | AB87: -1.737569791 | AC87: 0.9646115064 | AD87: 0.9646115064 | AE87: 0 | AF87: =IF(Input!$P$70=1,'AZ Hpol'!$W87,IF(Input!$P$70=2,'AZ Hpol (2)'!$W87,IF(Input!$P$70=3,'AZ Hpol (3)'!$W87,IF(Input!$P$70=4,'AZ Hpol (4)'!$W87,"")))) -> 0.9646115064 | AG87: -0.313 | AH87: 1.256637061 | AI87: -0.3129512376
W88: =IF(Input!$F$31<14,"",INDEX($X$15:$AD$374,MATCH(MOD($X88-$Y$13,360),$X$15:$X$374,1),IF(OR(Input!$K$13="Full",Input!$K$13="Partial"),2,6))) -> 0.9609130813 | X88: 73 | Y88: 0.957830708 | Z88: 1.240791878 | AA88: 1.291263385 | AB88: -1.737892259 | AC88: 0.9609130813 | AD88: 0.9609130813 | AE88: 0 | AF88: =IF(Input!$P$70=1,'AZ Hpol'!$W88,IF(Input!$P$70=2,'AZ Hpol (2)'!$W88,IF(Input!$P$70=3,'AZ Hpol (3)'!$W88,IF(Input!$P$70=4,'AZ Hpol (4)'!$W88,"")))) -> 0.9609130813 | AG88: -0.3463 | AH88: 1.274090354 | AI88: -0.346317887
W89: =IF(Input!$F$31<14,"",INDEX($X$15:$AD$374,MATCH(MOD($X89-$Y$13,360),$X$15:$X$374,1),IF(OR(Input!$K$13="Full",Input!$K$13="Partial"),2,6))) -> 0.9571255943 | X89: 74 | Y89: 0.9538724394 | Z89: 1.235664263 | AA89: 1.291015798 | AB89: -1.738216453 | AC89: 0.9571255943 | AD89: 0.9571255943 | AE89: 0 | AF89: =IF(Input!$P$70=1,'AZ Hpol'!$W89,IF(Input!$P$70=2,'AZ Hpol (2)'!$W89,IF(Input!$P$70=3,'AZ Hpol (3)'!$W89,IF(Input!$P$70=4,'AZ Hpol (4)'!$W89,"")))) -> 0.9571255943 | AG89: -0.3806 | AH89: 1.291543646 | AI89: -0.3806214051
W90: =IF(Input!$F$31<14,"",INDEX($X$15:$AD$374,MATCH(MOD($X90-$Y$13,360),$X$15:$X$374,1),IF(OR(Input!$K$13="Full",Input!$K$13="Partial"),2,6))) -> 0.9532621606 | X90: 75 | Y90: 0.9498390054 | Z90: 1.230439277 | AA90: 1.290766934 | AB90: -1.738542273 | AC90: 0.9532621606 | AD90: 0.9532621606 | AE90: 0 | AF90: =IF(Input!$P$70=1,'AZ Hpol'!$W90,IF(Input!$P$70=2,'AZ Hpol (2)'!$W90,IF(Input!$P$70=3,'AZ Hpol (3)'!$W90,IF(Input!$P$70=4,'AZ Hpol (4)'!$W90,"")))) -> 0.9532621606 | AG90: -0.4158 | AH90: 1.308996939 | AI90: -0.4157529159
W91: =IF(Input!$F$31<14,"",INDEX($X$15:$AD$374,MATCH(MOD($X91-$Y$13,360),$X$15:$X$374,1),IF(OR(Input!$K$13="Full",Input!$K$13="Partial"),2,6))) -> 0.9493350789 | X91: 76 | Y91: 0.9457427683 | Z91: 1.225132934 | AA91: 1.29051687 | AB91: -1.738869621 | AC91: 0.9493350789 | AD91: 0.9493350789 | AE91: 0 | AF91: =IF(Input!$P$70=1,'AZ Hpol'!$W91,IF(Input!$P$70=2,'AZ Hpol (2)'!$W91,IF(Input!$P$70=3,'AZ Hpol (3)'!$W91,IF(Input!$P$70=4,'AZ Hpol (4)'!$W91,"")))) -> 0.9493350789 | AG91: -0.4516 | AH91: 1.326450232 | AI91: -0.4516094245
W92: =IF(Input!$F$31<14,"",INDEX($X$15:$AD$374,MATCH(MOD($X92-$Y$13,360),$X$15:$X$374,1),IF(OR(Input!$K$13="Full",Input!$K$13="Partial"),2,6))) -> 0.9453556956 | X92: 77 | Y92: 0.9415951325 | Z92: 1.219760009 | AA92: 1.29026568 | AB92: -1.739198396 | AC92: 0.9453556956 | AD92: 0.9453556956 | AE92: 0 | AF92: =IF(Input!$P$70=1,'AZ Hpol'!$W92,IF(Input!$P$70=2,'AZ Hpol (2)'!$W92,IF(Input!$P$70=3,'AZ Hpol (3)'!$W92,IF(Input!$P$70=4,'AZ Hpol (4)'!$W92,"")))) -> 0.9453556956 | AG92: -0.4881 | AH92: 1.343903524 | AI92: -0.4880950982
W93: =IF(Input!$F$31<14,"",INDEX($X$15:$AD$374,MATCH(MOD($X93-$Y$13,360),$X$15:$X$374,1),IF(OR(Input!$K$13="Full",Input!$K$13="Partial"),2,6))) -> 0.9413342758 | X93: 78 | Y93: 0.9374064164 | Z93: 1.214333868 | AA93: 1.29001344 | AB93: -1.739528499 | AC93: 0.9413342758 | AD93: 0.9413342758 | AE93: 0 | AF93: =IF(Input!$P$70=1,'AZ Hpol'!$W93,IF(Input!$P$70=2,'AZ Hpol (2)'!$W93,IF(Input!$P$70=3,'AZ Hpol (3)'!$W93,IF(Input!$P$70=4,'AZ Hpol (4)'!$W93,"")))) -> 0.9413342758 | AG93: -0.5251 | AH93: 1.361356817 | AI93: -0.5251225506
W94: =IF(Input!$F$31<14,"",INDEX($X$15:$AD$374,MATCH(MOD($X94-$Y$13,360),$X$15:$X$374,1),IF(OR(Input!$K$13="Full",Input!$K$13="Partial"),2,6))) -> 0.9372798798 | X94: 79 | Y94: 0.9331857303 | Z94: 1.208866312 | AA94: 1.289760228 | AB94: -1.739859829 | AC94: 0.9372798798 | AD94: 0.9372798798 | AE94: 0 | AF94: =IF(Input!$P$70=1,'AZ Hpol'!$W94,IF(Input!$P$70=2,'AZ Hpol (2)'!$W94,IF(Input!$P$70=3,'AZ Hpol (3)'!$W94,IF(Input!$P$70=4,'AZ Hpol (4)'!$W94,"")))) -> 0.9372798798 | AG94: -0.5626 | AH94: 1.378810109 | AI94: -0.5626141135
W95: =IF(Input!$F$31<14,"",INDEX($X$15:$AD$374,MATCH(MOD($X95-$Y$13,360),$X$15:$X$374,1),IF(OR(Input!$K$13="Full",Input!$K$13="Partial"),2,6))) -> 0.9332002492 | X95: 80 | Y95: 0.9289408642 | Z95: 1.203367432 | AA95: 1.28950612 | AB95: -1.740192285 | AC95: 0.9332002492 | AD95: 0.9332002492 | AE95: 0 | AF95: =IF(Input!$P$70=1,'AZ Hpol'!$W95,IF(Input!$P$70=2,'AZ Hpol (2)'!$W95,IF(Input!$P$70=3,'AZ Hpol (3)'!$W95,IF(Input!$P$70=4,'AZ Hpol (4)'!$W95,"")))) -> 0.9332002492 | AG95: -0.6005 | AH95: 1.396263402 | AI95: -0.6005030782
W96: =IF(Input!$F$31<14,"",INDEX($X$15:$AD$374,MATCH(MOD($X96-$Y$13,360),$X$15:$X$374,1),IF(OR(Input!$K$13="Full",Input!$K$13="Partial"),2,6))) -> 0.9291017018 | X96: 81 | Y96: 0.9246781844 | Z96: 1.197845477 | AA96: 1.289251192 | AB96: -1.740525765 | AC96: 0.9291017018 | AD96: 0.9291017018 | AE96: 0 | AF96: =IF(Input!$P$70=1,'AZ Hpol'!$W96,IF(Input!$P$70=2,'AZ Hpol (2)'!$W96,IF(Input!$P$70=3,'AZ Hpol (3)'!$W96,IF(Input!$P$70=4,'AZ Hpol (4)'!$W96,"")))) -> 0.9291017018 | AG96: -0.6387 | AH96: 1.413716694 | AI96: -0.6387348889
W97: =IF(Input!$F$31<14,"",INDEX($X$15:$AD$374,MATCH(MOD($X97-$Y$13,360),$X$15:$X$374,1),IF(OR(Input!$K$13="Full",Input!$K$13="Partial"),2,6))) -> 0.9249890393 | X97: 82 | Y97: 0.920402543 | Z97: 1.192306731 | AA97: 1.288995523 | AB97: -1.740860169 | AC97: 0.9249890393 | AD97: 0.9249890393 | AE97: 0 | AF97: =IF(Input!$P$70=1,'AZ Hpol'!$W97,IF(Input!$P$70=2,'AZ Hpol (2)'!$W97,IF(Input!$P$70=3,'AZ Hpol (3)'!$W97,IF(Input!$P$70=4,'AZ Hpol (4)'!$W97,"")))) -> 0.9249890393 | AG97: -0.6773 | AH97: 1.431169987 | AI97: -0.6772682684
W98: =IF(Input!$F$31<14,"",INDEX($X$15:$AD$374,MATCH(MOD($X98-$Y$13,360),$X$15:$X$374,1),IF(OR(Input!$K$13="Full",Input!$K$13="Partial"),2,6))) -> 0.9208654673 | X98: 83 | Y98: 0.9161171997 | Z98: 1.186755417 | AA98: 1.28873919 | AB98: -1.741195394 | AC98: 0.9208654673 | AD98: 0.9208654673 | AE98: 0 | AF98: =IF(Input!$P$70=1,'AZ Hpol'!$W98,IF(Input!$P$70=2,'AZ Hpol (2)'!$W98,IF(Input!$P$70=3,'AZ Hpol (3)'!$W98,IF(Input!$P$70=4,'AZ Hpol (4)'!$W98,"")))) -> 0.9208654673 | AG98: -0.7161 | AH98: 1.448623279 | AI98: -0.7160762579
W99: =IF(Input!$F$31<14,"",INDEX($X$15:$AD$374,MATCH(MOD($X99-$Y$13,360),$X$15:$X$374,1),IF(OR(Input!$K$13="Full",Input!$K$13="Partial"),2,6))) -> 0.9167325297 | X99: 84 | Y99: 0.9118237579 | Z99: 1.181193612 | AA99: 1.288482271 | AB99: -1.741531338 | AC99: 0.9167325297 | AD99: 0.9167325297 | AE99: 0 | AF99: =IF(Input!$P$70=1,'AZ Hpol'!$W99,IF(Input!$P$70=2,'AZ Hpol (2)'!$W99,IF(Input!$P$70=3,'AZ Hpol (3)'!$W99,IF(Input!$P$70=4,'AZ Hpol (4)'!$W99,"")))) -> 0.9167325297 | AG99: -0.7551 | AH99: 1.466076572 | AI99: -0.7551471543
W100: =IF(Input!$F$31<14,"",INDEX($X$15:$AD$374,MATCH(MOD($X100-$Y$13,360),$X$15:$X$374,1),IF(OR(Input!$K$13="Full",Input!$K$13="Partial"),2,6))) -> 0.912590059 | X100: 85 | Y100: 0.9075221174 | Z100: 1.175621186 | AA100: 1.288224843 | AB100: -1.741867899 | AC100: 0.912590059 | AD100: 0.912590059 | AE100: 0 | AF100: =IF(Input!$P$70=1,'AZ Hpol'!$W100,IF(Input!$P$70=2,'AZ Hpol (2)'!$W100,IF(Input!$P$70=3,'AZ Hpol (3)'!$W100,IF(Input!$P$70=4,'AZ Hpol (4)'!$W100,"")))) -> 0.912590059 | AG100: -0.7945 | AH100: 1.483529864 | AI100: -0.7944853276
W101: =IF(Input!$F$31<14,"",INDEX($X$15:$AD$374,MATCH(MOD($X101-$Y$13,360),$X$15:$X$374,1),IF(OR(Input!$K$13="Full",Input!$K$13="Partial"),2,6))) -> 0.9084361431 | X101: 86 | Y101: 0.9032104424 | Z101: 1.170035761 | AA101: 1.287966986 | AB101: -1.742204974 | AC101: 0.9084361431 | AD101: 0.9084361431 | AE101: 0 | AF101: =IF(Input!$P$70=1,'AZ Hpol'!$W101,IF(Input!$P$70=2,'AZ Hpol (2)'!$W101,IF(Input!$P$70=3,'AZ Hpol (3)'!$W101,IF(Input!$P$70=4,'AZ Hpol (4)'!$W101,"")))) -> 0.9084361431 | AG101: -0.8341 | AH101: 1.500983157 | AI101: -0.8341119043
W102: =IF(Input!$F$31<14,"",INDEX($X$15:$AD$374,MATCH(MOD($X102-$Y$13,360),$X$15:$X$374,1),IF(OR(Input!$K$13="Full",Input!$K$13="Partial"),2,6))) -> 0.9042671094 | X102: 87 | Y102: 0.8988851479 | Z102: 1.164432693 | AA102: 1.287708777 | AB102: -1.742542461 | AC102: 0.9042671094 | AD102: 0.9042671094 | AE102: 0 | AF102: =IF(Input!$P$70=1,'AZ Hpol'!$W102,IF(Input!$P$70=2,'AZ Hpol (2)'!$W102,IF(Input!$P$70=3,'AZ Hpol (3)'!$W102,IF(Input!$P$70=4,'AZ Hpol (4)'!$W102,"")))) -> 0.9042671094 | AG102: -0.8741 | AH102: 1.518436449 | AI102: -0.8740653061
W103: =IF(Input!$F$31<14,"",INDEX($X$15:$AD$374,MATCH(MOD($X103-$Y$13,360),$X$15:$X$374,1),IF(OR(Input!$K$13="Full",Input!$K$13="Partial"),2,6))) -> 0.9000775268 | X103: 88 | Y103: 0.8945409031 | Z103: 1.158805077 | AA103: 1.287450295 | AB103: -1.742880256 | AC103: 0.9000775268 | AD103: 0.9000775268 | AE103: 0 | AF103: =IF(Input!$P$70=1,'AZ Hpol'!$W103,IF(Input!$P$70=2,'AZ Hpol (2)'!$W103,IF(Input!$P$70=3,'AZ Hpol (3)'!$W103,IF(Input!$P$70=4,'AZ Hpol (4)'!$W103,"")))) -> 0.9000775268 | AG103: -0.9144 | AH103: 1.535889742 | AI103: -0.914401633
W104: =IF(Input!$F$31<14,"",INDEX($X$15:$AD$374,MATCH(MOD($X104-$Y$13,360),$X$15:$X$374,1),IF(OR(Input!$K$13="Full",Input!$K$13="Partial"),2,6))) -> 0.8958602265 | X104: 89 | Y104: 0.8901706542 | Z104: 1.153143775 | AA104: 1.287191618 | AB104: -1.743218258 | AC104: 0.8958602265 | AD104: 0.8958602265 | AE104: 0 | AF104: =IF(Input!$P$70=1,'AZ Hpol'!$W104,IF(Input!$P$70=2,'AZ Hpol (2)'!$W104,IF(Input!$P$70=3,'AZ Hpol (3)'!$W104,IF(Input!$P$70=4,'AZ Hpol (4)'!$W104,"")))) -> 0.8958602265 | AG104: -0.9552 | AH104: 1.553343034 | AI104: -0.9551948869
W105: =IF(Input!$F$31<14,"",INDEX($X$15:$AD$374,MATCH(MOD($X105-$Y$13,360),$X$15:$X$374,1),IF(OR(Input!$K$13="Full",Input!$K$13="Partial"),2,6))) -> 0.8916063408 | X105: 90 | Y105: 0.8857656643 | Z105: 1.147437468 | AA105: 1.286932826 | AB105: -1.743556363 | AC105: 0.8916063408 | AD105: 0.8916063408 | AE105: 1 | AF105: =IF(Input!$P$70=1,'AZ Hpol'!$W105,IF(Input!$P$70=2,'AZ Hpol (2)'!$W105,IF(Input!$P$70=3,'AZ Hpol (3)'!$W105,IF(Input!$P$70=4,'AZ Hpol (4)'!$W105,"")))) -> 0.8916063408 | AG105: -0.9965 | AH105: 1.570796327 | AI105: -0.9965370321
W106: =IF(Input!$F$31<14,"",INDEX($X$15:$AD$374,MATCH(MOD($X106-$Y$13,360),$X$15:$X$374,1),IF(OR(Input!$K$13="Full",Input!$K$13="Partial"),2,6))) -> 0.8873053606 | X106: 91 | Y106: 0.8813155721 | Z106: 1.141672735 | AA106: 1.286673997 | AB106: -1.743894467 | AC106: 0.8873053606 | AD106: 0.8873053606 | AE106: 0 | AF106: =IF(Input!$P$70=1,'AZ Hpol'!$W106,IF(Input!$P$70=2,'AZ Hpol (2)'!$W106,IF(Input!$P$70=3,'AZ Hpol (3)'!$W106,IF(Input!$P$70=4,'AZ Hpol (4)'!$W106,"")))) -> 0.8873053606 | AG106: -1.0385 | AH106: 1.588249619 | AI106: -1.038537894
W107: =IF(Input!$F$31<14,"",INDEX($X$15:$AD$374,MATCH(MOD($X107-$Y$13,360),$X$15:$X$374,1),IF(OR(Input!$K$13="Full",Input!$K$13="Partial"),2,6))) -> 0.88294521 | X107: 92 | Y107: 0.8768084683 | Z107: 1.135834148 | AA107: 1.286415211 | AB107: -1.744232469 | AC107: 0.88294521 | AD107: 0.88294521 | AE107: 0 | AF107: =IF(Input!$P$70=1,'AZ Hpol'!$W107,IF(Input!$P$70=2,'AZ Hpol (2)'!$W107,IF(Input!$P$70=3,'AZ Hpol (3)'!$W107,IF(Input!$P$70=4,'AZ Hpol (4)'!$W107,"")))) -> 0.88294521 | AG107: -1.0813 | AH107: 1.605702912 | AI107: -1.081324903
W108: =IF(Input!$F$31<14,"",INDEX($X$15:$AD$374,MATCH(MOD($X108-$Y$13,360),$X$15:$X$374,1),IF(OR(Input!$K$13="Full",Input!$K$13="Partial"),2,6))) -> 0.8785123392 | X108: 93 | Y108: 0.8722309883 | Z108: 1.129904395 | AA108: 1.286156545 | AB108: -1.744570265 | AC108: 0.8785123392 | AD108: 0.8785123392 | AE108: 0 | AF108: =IF(Input!$P$70=1,'AZ Hpol'!$W108,IF(Input!$P$70=2,'AZ Hpol (2)'!$W108,IF(Input!$P$70=3,'AZ Hpol (3)'!$W108,IF(Input!$P$70=4,'AZ Hpol (4)'!$W108,"")))) -> 0.8785123392 | AG108: -1.125 | AH108: 1.623156204 | AI108: -1.125042685
W109: =IF(Input!$F$31<14,"",INDEX($X$15:$AD$374,MATCH(MOD($X109-$Y$13,360),$X$15:$X$374,1),IF(OR(Input!$K$13="Full",Input!$K$13="Partial"),2,6))) -> 0.8739918327 | X109: 94 | Y109: 0.8675684218 | Z109: 1.123864419 | AA109: 1.285898079 | AB109: -1.744907752 | AC109: 0.8739918327 | AD109: 0.8739918327 | AE109: 0 | AF109: =IF(Input!$P$70=1,'AZ Hpol'!$W109,IF(Input!$P$70=2,'AZ Hpol (2)'!$W109,IF(Input!$P$70=3,'AZ Hpol (3)'!$W109,IF(Input!$P$70=4,'AZ Hpol (4)'!$W109,"")))) -> 0.8739918327 | AG109: -1.1699 | AH109: 1.640609497 | AI109: -1.169852515
W110: =IF(Input!$F$31<14,"",INDEX($X$15:$AD$374,MATCH(MOD($X110-$Y$13,360),$X$15:$X$374,1),IF(OR(Input!$K$13="Full",Input!$K$13="Partial"),2,6))) -> 0.8693675334 | X110: 95 | Y110: 0.8628048371 | Z110: 1.117693582 | AA110: 1.285639892 | AB110: -1.745244827 | AC110: 0.8693675334 | AD110: 0.8693675334 | AE110: 0 | AF110: =IF(Input!$P$70=1,'AZ Hpol'!$W110,IF(Input!$P$70=2,'AZ Hpol (2)'!$W110,IF(Input!$P$70=3,'AZ Hpol (3)'!$W110,IF(Input!$P$70=4,'AZ Hpol (4)'!$W110,"")))) -> 0.8693675334 | AG110: -1.2159 | AH110: 1.658062789 | AI110: -1.215931652
W111: =IF(Input!$F$31<14,"",INDEX($X$15:$AD$374,MATCH(MOD($X111-$Y$13,360),$X$15:$X$374,1),IF(OR(Input!$K$13="Full",Input!$K$13="Partial"),2,6))) -> 0.8646221808 | X111: 96 | Y111: 0.8579232188 | Z111: 1.111369842 | AA111: 1.285382062 | AB111: -1.745581388 | AC111: 0.8646221808 | AD111: 0.8646221808 | AE111: 0 | AF111: =IF(Input!$P$70=1,'AZ Hpol'!$W111,IF(Input!$P$70=2,'AZ Hpol (2)'!$W111,IF(Input!$P$70=3,'AZ Hpol (3)'!$W111,IF(Input!$P$70=4,'AZ Hpol (4)'!$W111,"")))) -> 0.8646221808 | AG111: -1.2635 | AH111: 1.675516082 | AI111: -1.263472548
W112: =IF(Input!$F$31<14,"",INDEX($X$15:$AD$374,MATCH(MOD($X112-$Y$13,360),$X$15:$X$374,1),IF(OR(Input!$K$13="Full",Input!$K$13="Partial"),2,6))) -> 0.8597375611 | X112: 97 | Y112: 0.8529056188 | Z112: 1.104869948 | AA112: 1.285124669 | AB112: -1.745917332 | AC112: 0.8597375611 | AD112: 0.8597375611 | AE112: 0 | AF112: =IF(Input!$P$70=1,'AZ Hpol'!$W112,IF(Input!$P$70=2,'AZ Hpol (2)'!$W112,IF(Input!$P$70=3,'AZ Hpol (3)'!$W112,IF(Input!$P$70=4,'AZ Hpol (4)'!$W112,"")))) -> 0.8597375611 | AG112: -1.3127 | AH112: 1.692969374 | AI112: -1.312681979
W113: =IF(Input!$F$31<14,"",INDEX($X$15:$AD$374,MATCH(MOD($X113-$Y$13,360),$X$15:$X$374,1),IF(OR(Input!$K$13="Full",Input!$K$13="Partial"),2,6))) -> 0.8546946698 | X113: 98 | Y113: 0.847733317 | Z113: 1.098169652 | AA113: 1.28486779 | AB113: -1.746252557 | AC113: 0.8546946698 | AD113: 0.8546946698 | AE113: 0 | AF113: =IF(Input!$P$70=1,'AZ Hpol'!$W113,IF(Input!$P$70=2,'AZ Hpol (2)'!$W113,IF(Input!$P$70=3,'AZ Hpol (3)'!$W113,IF(Input!$P$70=4,'AZ Hpol (4)'!$W113,"")))) -> 0.8546946698 | AG113: -1.3638 | AH113: 1.710422667 | AI113: -1.363780089
W114: =IF(Input!$F$31<14,"",INDEX($X$15:$AD$374,MATCH(MOD($X114-$Y$13,360),$X$15:$X$374,1),IF(OR(Input!$K$13="Full",Input!$K$13="Partial"),2,6))) -> 0.8494738834 | X114: 99 | Y114: 0.8423869935 | Z114: 1.091243924 | AA114: 1.284611505 | AB114: -1.74658696 | AC114: 0.8494738834 | AD114: 0.8494738834 | AE114: 0 | AF114: =IF(Input!$P$70=1,'AZ Hpol'!$W114,IF(Input!$P$70=2,'AZ Hpol (2)'!$W114,IF(Input!$P$70=3,'AZ Hpol (3)'!$W114,IF(Input!$P$70=4,'AZ Hpol (4)'!$W114,"")))) -> 0.8494738834 | AG114: -1.417 | AH114: 1.727875959 | AI114: -1.416999375
W115: =IF(Input!$F$31<14,"",INDEX($X$15:$AD$374,MATCH(MOD($X115-$Y$13,360),$X$15:$X$374,1),IF(OR(Input!$K$13="Full",Input!$K$13="Partial"),2,6))) -> 0.8440551393 | X115: 100 | Y115: 0.8368469064 | Z115: 1.084067191 | AA115: 1.284355891 | AB115: -1.746920441 | AC115: 0.8440551393 | AD115: 0.8440551393 | AE115: 0 | AF115: =IF(Input!$P$70=1,'AZ Hpol'!$W115,IF(Input!$P$70=2,'AZ Hpol (2)'!$W115,IF(Input!$P$70=3,'AZ Hpol (3)'!$W115,IF(Input!$P$70=4,'AZ Hpol (4)'!$W115,"")))) -> 0.8440551393 | AG115: -1.4726 | AH115: 1.745329252 | AI115: -1.472583629
W116: =IF(Input!$F$31<14,"",INDEX($X$15:$AD$374,MATCH(MOD($X116-$Y$13,360),$X$15:$X$374,1),IF(OR(Input!$K$13="Full",Input!$K$13="Partial"),2,6))) -> 0.8384181235 | X116: 101 | Y116: 0.8310930785 | Z116: 1.076613574 | AA116: 1.284101028 | AB116: -1.747252896 | AC116: 0.8384181235 | AD116: 0.8384181235 | AE116: 0 | AF116: =IF(Input!$P$70=1,'AZ Hpol'!$W116,IF(Input!$P$70=2,'AZ Hpol (2)'!$W116,IF(Input!$P$70=3,'AZ Hpol (3)'!$W116,IF(Input!$P$70=4,'AZ Hpol (4)'!$W116,"")))) -> 0.8384181235 | AG116: -1.5308 | AH116: 1.762782545 | AI116: -1.530786848
W117: =IF(Input!$F$31<14,"",INDEX($X$15:$AD$374,MATCH(MOD($X117-$Y$13,360),$X$15:$X$374,1),IF(OR(Input!$K$13="Full",Input!$K$13="Partial"),2,6))) -> 0.8325424629 | X117: 102 | Y117: 0.8251054879 | Z117: 1.068857137 | AA117: 1.283846992 | AB117: -1.747584226 | AC117: 0.8325424629 | AD117: 0.8325424629 | AE117: 0 | AF117: =IF(Input!$P$70=1,'AZ Hpol'!$W117,IF(Input!$P$70=2,'AZ Hpol (2)'!$W117,IF(Input!$P$70=3,'AZ Hpol (3)'!$W117,IF(Input!$P$70=4,'AZ Hpol (4)'!$W117,"")))) -> 0.8325424629 | AG117: -1.5919 | AH117: 1.780235837 | AI117: -1.591872131
W118: =IF(Input!$F$31<14,"",INDEX($X$15:$AD$374,MATCH(MOD($X118-$Y$13,360),$X$15:$X$374,1),IF(OR(Input!$K$13="Full",Input!$K$13="Partial"),2,6))) -> 0.8264079224 | X118: 103 | Y118: 0.8188642628 | Z118: 1.060772137 | AA118: 1.283593862 | AB118: -1.747914329 | AC118: 0.8264079224 | AD118: 0.8264079224 | AE118: 0 | AF118: =IF(Input!$P$70=1,'AZ Hpol'!$W118,IF(Input!$P$70=2,'AZ Hpol (2)'!$W118,IF(Input!$P$70=3,'AZ Hpol (3)'!$W118,IF(Input!$P$70=4,'AZ Hpol (4)'!$W118,"")))) -> 0.8264079224 | AG118: -1.6561 | AH118: 1.79768913 | AI118: -1.656110562
W119: =IF(Input!$F$31<14,"",INDEX($X$15:$AD$374,MATCH(MOD($X119-$Y$13,360),$X$15:$X$374,1),IF(OR(Input!$K$13="Full",Input!$K$13="Partial"),2,6))) -> 0.8199946047 | X119: 104 | Y119: 0.8123498797 | Z119: 1.052333283 | AA119: 1.283341715 | AB119: -1.748243104 | AC119: 0.8199946047 | AD119: 0.8199946047 | AE119: 0 | AF119: =IF(Input!$P$70=1,'AZ Hpol'!$W119,IF(Input!$P$70=2,'AZ Hpol (2)'!$W119,IF(Input!$P$70=3,'AZ Hpol (3)'!$W119,IF(Input!$P$70=4,'AZ Hpol (4)'!$W119,"")))) -> 0.8199946047 | AG119: -1.7238 | AH119: 1.815142422 | AI119: -1.723780103
W120: =IF(Input!$F$31<14,"",INDEX($X$15:$AD$374,MATCH(MOD($X120-$Y$13,360),$X$15:$X$374,1),IF(OR(Input!$K$13="Full",Input!$K$13="Partial"),2,6))) -> 0.8132831527 | X120: 105 | Y120: 0.8055433622 | Z120: 1.043515992 | AA120: 1.283090629 | AB120: -1.748570452 | AC120: 0.8132831527 | AD120: 0.8132831527 | AE120: 0 | AF120: =IF(Input!$P$70=1,'AZ Hpol'!$W120,IF(Input!$P$70=2,'AZ Hpol (2)'!$W120,IF(Input!$P$70=3,'AZ Hpol (3)'!$W120,IF(Input!$P$70=4,'AZ Hpol (4)'!$W120,"")))) -> 0.8132831527 | AG120: -1.7952 | AH120: 1.832595715 | AI120: -1.795164481
W121: =IF(Input!$F$31<14,"",INDEX($X$15:$AD$374,MATCH(MOD($X121-$Y$13,360),$X$15:$X$374,1),IF(OR(Input!$K$13="Full",Input!$K$13="Partial"),2,6))) -> 0.8062549529 | X121: 106 | Y121: 0.7984264821 | Z121: 1.034296652 | AA121: 1.28284068 | AB121: -1.748896272 | AC121: 0.8062549529 | AD121: 0.8062549529 | AE121: 0 | AF121: =IF(Input!$P$70=1,'AZ Hpol'!$W121,IF(Input!$P$70=2,'AZ Hpol (2)'!$W121,IF(Input!$P$70=3,'AZ Hpol (3)'!$W121,IF(Input!$P$70=4,'AZ Hpol (4)'!$W121,"")))) -> 0.8062549529 | AG121: -1.8706 | AH121: 1.850049007 | AI121: -1.870552089
W122: =IF(Input!$F$31<14,"",INDEX($X$15:$AD$374,MATCH(MOD($X122-$Y$13,360),$X$15:$X$374,1),IF(OR(Input!$K$13="Full",Input!$K$13="Partial"),2,6))) -> 0.7988923385 | X122: 107 | Y122: 0.7909819601 | Z122: 1.024652878 | AA122: 1.282591945 | AB122: -1.749220466 | AC122: 0.7988923385 | AD122: 0.7988923385 | AE122: 0 | AF122: =IF(Input!$P$70=1,'AZ Hpol'!$W122,IF(Input!$P$70=2,'AZ Hpol (2)'!$W122,IF(Input!$P$70=3,'AZ Hpol (3)'!$W122,IF(Input!$P$70=4,'AZ Hpol (4)'!$W122,"")))) -> 0.7988923385 | AG122: -1.9502 | AH122: 1.8675023 | AI122: -1.950234875
W123: =IF(Input!$F$31<14,"",INDEX($X$15:$AD$374,MATCH(MOD($X123-$Y$13,360),$X$15:$X$374,1),IF(OR(Input!$K$13="Full",Input!$K$13="Partial"),2,6))) -> 0.7911787942 | X123: 108 | Y123: 0.7831936657 | Z123: 1.014563776 | AA123: 1.2823445 | AB123: -1.749542935 | AC123: 0.7911787942 | AD123: 0.7911787942 | AE123: 0 | AF123: =IF(Input!$P$70=1,'AZ Hpol'!$W123,IF(Input!$P$70=2,'AZ Hpol (2)'!$W123,IF(Input!$P$70=3,'AZ Hpol (3)'!$W123,IF(Input!$P$70=4,'AZ Hpol (4)'!$W123,"")))) -> 0.7911787942 | AG123: -2.0345 | AH123: 1.884955592 | AI123: -2.034507231
W124: =IF(Input!$F$31<14,"",INDEX($X$15:$AD$374,MATCH(MOD($X124-$Y$13,360),$X$15:$X$374,1),IF(OR(Input!$K$13="Full",Input!$K$13="Partial"),2,6))) -> 0.7830991592 | X124: 109 | Y124: 0.775046818 | Z124: 1.004010196 | AA124: 1.282098422 | AB124: -1.749863579 | AC124: 0.7830991592 | AD124: 0.7830991592 | AE124: 0 | AF124: =IF(Input!$P$70=1,'AZ Hpol'!$W124,IF(Input!$P$70=2,'AZ Hpol (2)'!$W124,IF(Input!$P$70=3,'AZ Hpol (3)'!$W124,IF(Input!$P$70=4,'AZ Hpol (4)'!$W124,"")))) -> 0.7830991592 | AG124: -2.1237 | AH124: 1.902408885 | AI124: -2.123664847
W125: =IF(Input!$F$31<14,"",INDEX($X$15:$AD$374,MATCH(MOD($X125-$Y$13,360),$X$15:$X$374,1),IF(OR(Input!$K$13="Full",Input!$K$13="Partial"),2,6))) -> 0.7746398305 | X125: 110 | Y125: 0.766528185 | Z125: 0.9929749991 | AA125: 1.281853786 | AB125: -1.750182303 | AC125: 0.7746398305 | AD125: 0.7746398305 | AE125: 0 | AF125: =IF(Input!$P$70=1,'AZ Hpol'!$W125,IF(Input!$P$70=2,'AZ Hpol (2)'!$W125,IF(Input!$P$70=3,'AZ Hpol (3)'!$W125,IF(Input!$P$70=4,'AZ Hpol (4)'!$W125,"")))) -> 0.7746398305 | AG125: -2.218 | AH125: 1.919862177 | AI125: -2.218003524
W126: =IF(Input!$F$31<14,"",INDEX($X$15:$AD$374,MATCH(MOD($X126-$Y$13,360),$X$15:$X$374,1),IF(OR(Input!$K$13="Full",Input!$K$13="Partial"),2,6))) -> 0.7657889665 | X126: 111 | Y126: 0.7576262823 | Z126: 0.9814433073 | AA126: 1.281610666 | AB126: -1.750499008 | AC126: 0.7657889665 | AD126: 0.7657889665 | AE126: 0 | AF126: =IF(Input!$P$70=1,'AZ Hpol'!$W126,IF(Input!$P$70=2,'AZ Hpol (2)'!$W126,IF(Input!$P$70=3,'AZ Hpol (3)'!$W126,IF(Input!$P$70=4,'AZ Hpol (4)'!$W126,"")))) -> 0.7657889665 | AG126: -2.3178 | AH126: 1.93731547 | AI126: -2.317817905
W127: =IF(Input!$F$31<14,"",INDEX($X$15:$AD$374,MATCH(MOD($X127-$Y$13,360),$X$15:$X$374,1),IF(OR(Input!$K$13="Full",Input!$K$13="Partial"),2,6))) -> 0.7565366903 | X127: 112 | Y127: 0.7483315731 | Z127: 0.9694027665 | AA127: 1.281369138 | AB127: -1.750813599 | AC127: 0.7565366903 | AD127: 0.7565366903 | AE127: 0 | AF127: =IF(Input!$P$70=1,'AZ Hpol'!$W127,IF(Input!$P$70=2,'AZ Hpol (2)'!$W127,IF(Input!$P$70=3,'AZ Hpol (3)'!$W127,IF(Input!$P$70=4,'AZ Hpol (4)'!$W127,"")))) -> 0.7565366903 | AG127: -2.4234 | AH127: 1.954768762 | AI127: -2.423400097
W128: =IF(Input!$F$31<14,"",INDEX($X$15:$AD$374,MATCH(MOD($X128-$Y$13,360),$X$15:$X$374,1),IF(OR(Input!$K$13="Full",Input!$K$13="Partial"),2,6))) -> 0.7468752937 | X128: 113 | Y128: 0.7386366676 | Z128: 0.956843804 | AA128: 1.281129276 | AB128: -1.751125979 | AC128: 0.7468752937 | AD128: 0.7468752937 | AE128: 0 | AF128: =IF(Input!$P$70=1,'AZ Hpol'!$W128,IF(Input!$P$70=2,'AZ Hpol (2)'!$W128,IF(Input!$P$70=3,'AZ Hpol (3)'!$W128,IF(Input!$P$70=4,'AZ Hpol (4)'!$W128,"")))) -> 0.7468752937 | AG128: -2.535 | AH128: 1.972222055 | AI128: -2.535038132
W129: =IF(Input!$F$31<14,"",INDEX($X$15:$AD$374,MATCH(MOD($X129-$Y$13,360),$X$15:$X$374,1),IF(OR(Input!$K$13="Full",Input!$K$13="Partial"),2,6))) -> 0.7367994441 | X129: 114 | Y129: 0.7285365249 | Z129: 0.9437598895 | AA129: 1.280891153 | AB129: -1.751436053 | AC129: 0.7367994441 | AD129: 0.7367994441 | AE129: 0 | AF129: =IF(Input!$P$70=1,'AZ Hpol'!$W129,IF(Input!$P$70=2,'AZ Hpol (2)'!$W129,IF(Input!$P$70=3,'AZ Hpol (3)'!$W129,IF(Input!$P$70=4,'AZ Hpol (4)'!$W129,"")))) -> 0.7367994441 | AG129: -2.653 | AH129: 1.989675347 | AI129: -2.653014209
W130: =IF(Input!$F$31<14,"",INDEX($X$15:$AD$374,MATCH(MOD($X130-$Y$13,360),$X$15:$X$374,1),IF(OR(Input!$K$13="Full",Input!$K$13="Partial"),2,6))) -> 0.7263063933 | X130: 115 | Y130: 0.718028657 | Z130: 0.9301478002 | AA130: 1.280654843 | AB130: -1.751743727 | AC130: 0.7263063933 | AD130: 0.7263063933 | AE130: 0 | AF130: =IF(Input!$P$70=1,'AZ Hpol'!$W130,IF(Input!$P$70=2,'AZ Hpol (2)'!$W130,IF(Input!$P$70=3,'AZ Hpol (3)'!$W130,IF(Input!$P$70=4,'AZ Hpol (4)'!$W130,"")))) -> 0.7263063933 | AG130: -2.7776 | AH130: 2.00712864 | AI130: -2.777602659
W131: =IF(Input!$F$31<14,"",INDEX($X$15:$AD$374,MATCH(MOD($X131-$Y$13,360),$X$15:$X$374,1),IF(OR(Input!$K$13="Full",Input!$K$13="Partial"),2,6))) -> 0.7153961911 | X131: 116 | Y131: 0.7071133377 | Z131: 0.9160078907 | AA131: 1.280420419 | AB131: -1.752048907 | AC131: 0.7153961911 | AD131: 0.7153961911 | AE131: 0 | AF131: =IF(Input!$P$70=1,'AZ Hpol'!$W131,IF(Input!$P$70=2,'AZ Hpol (2)'!$W131,IF(Input!$P$70=3,'AZ Hpol (3)'!$W131,IF(Input!$P$70=4,'AZ Hpol (4)'!$W131,"")))) -> 0.7153961911 | AG131: -2.9091 | AH131: 2.024581932 | AI131: -2.909067529
W132: =IF(Input!$F$31<14,"",INDEX($X$15:$AD$374,MATCH(MOD($X132-$Y$13,360),$X$15:$X$374,1),IF(OR(Input!$K$13="Full",Input!$K$13="Partial"),2,6))) -> 0.7040719055 | X132: 117 | Y132: 0.695793817 | Z132: 0.9013443711 | AA132: 1.280187952 | AB132: -1.7523515 | AC132: 0.7040719055 | AD132: 0.7040719055 | AE132: 0 | AF132: =IF(Input!$P$70=1,'AZ Hpol'!$W132,IF(Input!$P$70=2,'AZ Hpol (2)'!$W132,IF(Input!$P$70=3,'AZ Hpol (3)'!$W132,IF(Input!$P$70=4,'AZ Hpol (4)'!$W132,"")))) -> 0.7040719055 | AG132: -3.0477 | AH132: 2.042035225 | AI132: -3.047659699
W133: =IF(Input!$F$31<14,"",INDEX($X$15:$AD$374,MATCH(MOD($X133-$Y$13,360),$X$15:$X$374,1),IF(OR(Input!$K$13="Full",Input!$K$13="Partial"),2,6))) -> 0.6923398507 | X133: 118 | Y133: 0.6840765434 | Z133: 0.8861655949 | AA133: 1.279957515 | AB133: -1.752651413 | AC133: 0.6923398507 | AD133: 0.6923398507 | AE133: 0 | AF133: =IF(Input!$P$70=1,'AZ Hpol'!$W133,IF(Input!$P$70=2,'AZ Hpol (2)'!$W133,IF(Input!$P$70=3,'AZ Hpol (3)'!$W133,IF(Input!$P$70=4,'AZ Hpol (4)'!$W133,"")))) -> 0.6923398507 | AG133: -3.1936 | AH133: 2.059488517 | AI133: -3.193613399
W134: =IF(Input!$F$31<14,"",INDEX($X$15:$AD$374,MATCH(MOD($X134-$Y$13,360),$X$15:$X$374,1),IF(OR(Input!$K$13="Full",Input!$K$13="Partial"),2,6))) -> 0.6802098254 | X134: 119 | Y134: 0.6719713968 | Z134: 0.8704843609 | AA134: 1.279729178 | AB134: -1.752948557 | AC134: 0.6802098254 | AD134: 0.6802098254 | AE134: 0 | AF134: =IF(Input!$P$70=1,'AZ Hpol'!$W134,IF(Input!$P$70=2,'AZ Hpol (2)'!$W134,IF(Input!$P$70=3,'AZ Hpol (3)'!$W134,IF(Input!$P$70=4,'AZ Hpol (4)'!$W134,"")))) -> 0.6802098254 | AG134: -3.3471 | AH134: 2.07694181 | AI134: -3.347141983
W135: =IF(Input!$F$31<14,"",INDEX($X$15:$AD$374,MATCH(MOD($X135-$Y$13,360),$X$15:$X$374,1),IF(OR(Input!$K$13="Full",Input!$K$13="Partial"),2,6))) -> 0.6676953649 | X135: 120 | Y135: 0.6594919339 | Z135: 0.8543182304 | AA135: 1.279503012 | AB135: -1.753242839 | AC135: 0.6676953649 | AD135: 0.6676953649 | AE135: 1 | AF135: =IF(Input!$P$70=1,'AZ Hpol'!$W135,IF(Input!$P$70=2,'AZ Hpol (2)'!$W135,IF(Input!$P$70=3,'AZ Hpol (3)'!$W135,IF(Input!$P$70=4,'AZ Hpol (4)'!$W135,"")))) -> 0.6676953649 | AG135: -3.5084 | AH135: 2.094395102 | AI135: -3.508432772
W136: =IF(Input!$F$31<14,"",INDEX($X$15:$AD$374,MATCH(MOD($X136-$Y$13,360),$X$15:$X$374,1),IF(OR(Input!$K$13="Full",Input!$K$13="Partial"),2,6))) -> 0.6548140081 | X136: 121 | Y136: 0.6466556489 | Z136: 0.8376898658 | AA136: 1.279279086 | AB136: -1.753534171 | AC136: 0.6548140081 | AD136: 0.6548140081 | AE136: 0 | AF136: =IF(Input!$P$70=1,'AZ Hpol'!$W136,IF(Input!$P$70=2,'AZ Hpol (2)'!$W136,IF(Input!$P$70=3,'AZ Hpol (3)'!$W136,IF(Input!$P$70=4,'AZ Hpol (4)'!$W136,"")))) -> 0.6548140081 | AG136: -3.6776 | AH136: 2.111848395 | AI136: -3.67764077
W137: =IF(Input!$F$31<14,"",INDEX($X$15:$AD$374,MATCH(MOD($X137-$Y$13,360),$X$15:$X$374,1),IF(OR(Input!$K$13="Full",Input!$K$13="Partial"),2,6))) -> 0.6415875843 | X137: 122 | Y137: 0.6334842526 | Z137: 0.8206273919 | AA137: 1.279057469 | AB137: -1.753822464 | AC137: 0.6415875843 | AD137: 0.6415875843 | AE137: 0 | AF137: =IF(Input!$P$70=1,'AZ Hpol'!$W137,IF(Input!$P$70=2,'AZ Hpol (2)'!$W137,IF(Input!$P$70=3,'AZ Hpol (3)'!$W137,IF(Input!$P$70=4,'AZ Hpol (4)'!$W137,"")))) -> 0.6415875843 | AG137: -3.8549 | AH137: 2.129301687 | AI137: -3.854880979
W138: =IF(Input!$F$31<14,"",INDEX($X$15:$AD$374,MATCH(MOD($X138-$Y$13,360),$X$15:$X$374,1),IF(OR(Input!$K$13="Full",Input!$K$13="Partial"),2,6))) -> 0.6280425201 | X138: 123 | Y138: 0.6200039734 | Z138: 0.8031647851 | AA138: 1.27883823 | AB138: -1.754107629 | AC138: 0.6280425201 | AD138: 0.6280425201 | AE138: 0 | AF138: =IF(Input!$P$70=1,'AZ Hpol'!$W138,IF(Input!$P$70=2,'AZ Hpol (2)'!$W138,IF(Input!$P$70=3,'AZ Hpol (3)'!$W138,IF(Input!$P$70=4,'AZ Hpol (4)'!$W138,"")))) -> 0.6280425201 | AG138: -4.0402 | AH138: 2.14675498 | AI138: -4.040219048
W139: =IF(Input!$F$31<14,"",INDEX($X$15:$AD$374,MATCH(MOD($X139-$Y$13,360),$X$15:$X$374,1),IF(OR(Input!$K$13="Full",Input!$K$13="Partial"),2,6))) -> 0.6142101726 | X139: 124 | Y139: 0.6062458807 | Z139: 0.7853422935 | AA139: 1.278621437 | AB139: -1.754389581 | AC139: 0.6142101726 | AD139: 0.6142101726 | AE139: 0 | AF139: =IF(Input!$P$70=1,'AZ Hpol'!$W139,IF(Input!$P$70=2,'AZ Hpol (2)'!$W139,IF(Input!$P$70=3,'AZ Hpol (3)'!$W139,IF(Input!$P$70=4,'AZ Hpol (4)'!$W139,"")))) -> 0.6142101726 | AG139: -4.2337 | AH139: 2.164208272 | AI139: -4.233659901
W140: =IF(Input!$F$31<14,"",INDEX($X$15:$AD$374,MATCH(MOD($X140-$Y$13,360),$X$15:$X$374,1),IF(OR(Input!$K$13="Full",Input!$K$13="Partial"),2,6))) -> 0.6001271867 | X140: 125 | Y140: 0.5922462352 | Z140: 0.7672068899 | AA140: 1.278407156 | AB140: -1.754668232 | AC140: 0.6001271867 | AD140: 0.6001271867 | AE140: 0 | AF140: =IF(Input!$P$70=1,'AZ Hpol'!$W140,IF(Input!$P$70=2,'AZ Hpol (2)'!$W140,IF(Input!$P$70=3,'AZ Hpol (3)'!$W140,IF(Input!$P$70=4,'AZ Hpol (4)'!$W140,"")))) -> 0.6001271867 | AG140: -4.4351 | AH140: 2.181661565 | AI140: -4.435133972
W141: =IF(Input!$F$31<14,"",INDEX($X$15:$AD$374,MATCH(MOD($X141-$Y$13,360),$X$15:$X$374,1),IF(OR(Input!$K$13="Full",Input!$K$13="Partial"),2,6))) -> 0.5858358814 | X141: 126 | Y141: 0.5780468655 | Z141: 0.74881276 | AA141: 1.278195453 | AB141: -1.754943499 | AC141: 0.5858358814 | AD141: 0.5858358814 | AE141: 0 | AF141: =IF(Input!$P$70=1,'AZ Hpol'!$W141,IF(Input!$P$70=2,'AZ Hpol (2)'!$W141,IF(Input!$P$70=3,'AZ Hpol (3)'!$W141,IF(Input!$P$70=4,'AZ Hpol (4)'!$W141,"")))) -> 0.5858358814 | AG141: -4.6445 | AH141: 2.199114858 | AI141: -4.644480642
W142: =IF(Input!$F$31<14,"",INDEX($X$15:$AD$374,MATCH(MOD($X142-$Y$13,360),$X$15:$X$374,1),IF(OR(Input!$K$13="Full",Input!$K$13="Partial"),2,6))) -> 0.5713846614 | X142: 127 | Y142: 0.5636955709 | Z142: 0.7302218235 | AA142: 1.277986395 | AB142: -1.755215297 | AC142: 0.5713846614 | AD142: 0.5713846614 | AE142: 0 | AF142: =IF(Input!$P$70=1,'AZ Hpol'!$W142,IF(Input!$P$70=2,'AZ Hpol (2)'!$W142,IF(Input!$P$70=3,'AZ Hpol (3)'!$W142,IF(Input!$P$70=4,'AZ Hpol (4)'!$W142,"")))) -> 0.5713846614 | AG142: -4.8614 | AH142: 2.21656815 | AI142: -4.861428445
W143: =IF(Input!$F$31<14,"",INDEX($X$15:$AD$374,MATCH(MOD($X143-$Y$13,360),$X$15:$X$374,1),IF(OR(Input!$K$13="Full",Input!$K$13="Partial"),2,6))) -> 0.5568284518 | X143: 128 | Y143: 0.5492465449 | Z143: 0.711504284 | AA143: 1.277780045 | AB143: -1.755483544 | AC143: 0.5568284518 | AD143: 0.5568284518 | AE143: 0 | AF143: =IF(Input!$P$70=1,'AZ Hpol'!$W143,IF(Input!$P$70=2,'AZ Hpol (2)'!$W143,IF(Input!$P$70=3,'AZ Hpol (3)'!$W143,IF(Input!$P$70=4,'AZ Hpol (4)'!$W143,"")))) -> 0.5568284518 | AG143: =ROUND(20*LOG(W143),4) -> -5.0856 | AH143: 2.234021443 | AI143: -5.08557164
W144: =IF(Input!$F$31<14,"",INDEX($X$15:$AD$374,MATCH(MOD($X144-$Y$13,360),$X$15:$X$374,1),IF(OR(Input!$K$13="Full",Input!$K$13="Partial"),2,6))) -> 0.5422291462 | X144: 129 | Y144: =(1/$Z$11)*$Z144 -> 0.5347608143 | Z144: =AD144*AA144 -> 0.6927391967 | AA144: =SQRT(((1+COS(AB144))^2)+(SIN(AB144)^2)) -> 1.277576467 | AB144: =($AB$12*$AE$10*COS($AH144))+RADIANS($AE$9) -> -1.755748157 | AC144: =(1/$AC$11)*$AD144 -> 0.5422291462 | AD144: 0.5422291462 | AE144: 0 | AF144: =IF(Input!$P$70=1,'AZ Hpol'!$W144,IF(Input!$P$70=2,'AZ Hpol (2)'!$W144,IF(Input!$P$70=3,'AZ Hpol (3)'!$W144,IF(Input!$P$70=4,'AZ Hpol (4)'!$W144,"")))) -> 0.5422291462 | AG144: -5.3163 | AH144: =RADIANS(X144) -> 2.251474735 | AI144: -5.316342834
W145: =IF(Input!$F$31<14,"",INDEX($X$15:$AD$374,MATCH(MOD($X145-$Y$13,360),$X$15:$X$374,1),IF(OR(Input!$K$13="Full",Input!$K$13="Partial"),2,6))) -> 0.5276560544 | X145: 130 | Y145: 0.5203066759 | Z145: 0.6740150346 | AA145: 1.277375724 | AB145: -1.756009057 | AC145: 0.5276560544 | AD145: 0.5276560544 | AE145: 0 | AF145: =IF(Input!$P$70=1,'AZ Hpol'!$W145,IF(Input!$P$70=2,'AZ Hpol (2)'!$W145,IF(Input!$P$70=3,'AZ Hpol (3)'!$W145,IF(Input!$P$70=4,'AZ Hpol (4)'!$W145,"")))) -> 0.5276560544 | AG145: -5.553 | AH145: 2.268928028 | AI145: -5.552981487
W146: =IF(Input!$F$31<14,"",INDEX($X$15:$AD$374,MATCH(MOD($X146-$Y$13,360),$X$15:$X$374,1),IF(OR(Input!$K$13="Full",Input!$K$13="Partial"),2,6))) -> 0.5131863262 | X146: 131 | Y146: 0.5059601098 | Z146: 0.6554302235 | AA146: 1.277177879 | AB146: -1.756266164 | AC146: 0.5131863262 | AD146: 0.5131863262 | AE146: 0 | AF146: =IF(Input!$P$70=1,'AZ Hpol'!$W146,IF(Input!$P$70=2,'AZ Hpol (2)'!$W146,IF(Input!$P$70=3,'AZ Hpol (3)'!$W146,IF(Input!$P$70=4,'AZ Hpol (4)'!$W146,"")))) -> 0.5131863262 | AG146: -5.7945 | AH146: 2.28638132 | AI146: =IF(AF146<=0.031622776602,-30,20*LOG(AF146)) -> -5.794498478
W147: =IF(Input!$F$31<14,"",INDEX($X$15:$AD$374,MATCH(MOD($X147-$Y$13,360),$X$15:$X$374,1),IF(OR(Input!$K$13="Full",Input!$K$13="Partial"),2,6))) -> 0.4989053135 | X147: 132 | Y147: 0.4918051323 | Z147: 0.6370936 | AA147: 1.276982992 | AB147: -1.756519399 | AC147: 0.4989053135 | AD147: 0.4989053135 | AE147: 0 | AF147: =IF(Input!$P$70=1,'AZ Hpol'!$W147,IF(Input!$P$70=2,'AZ Hpol (2)'!$W147,IF(Input!$P$70=3,'AZ Hpol (3)'!$W147,IF(Input!$P$70=4,'AZ Hpol (4)'!$W147,"")))) -> 0.4989053135 | AG147: -6.0396 | AH147: 2.303834613 | AI147: -6.039637413
W148: =IF(Input!$F$31<14,"",INDEX($X$15:$AD$374,MATCH(MOD($X148-$Y$13,360),$X$15:$X$374,1),IF(OR(Input!$K$13="Full",Input!$K$13="Partial"),2,6))) -> 0.4849068213 | X148: 133 | Y148: 0.4779340391 | Z148: 0.6191247254 | AA148: 1.276791124 | AB148: -1.756768685 | AC148: 0.4849068213 | AD148: 0.4849068213 | AE148: 0 | AF148: =IF(Input!$P$70=1,'AZ Hpol'!$W148,IF(Input!$P$70=2,'AZ Hpol (2)'!$W148,IF(Input!$P$70=3,'AZ Hpol (3)'!$W148,IF(Input!$P$70=4,'AZ Hpol (4)'!$W148,"")))) -> 0.4849068213 | AG148: -6.2868 | AH148: 2.321287905 | AI148: -6.286834131
W149: =IF(Input!$F$31<14,"",INDEX($X$15:$AD$374,MATCH(MOD($X149-$Y$13,360),$X$15:$X$374,1),IF(OR(Input!$K$13="Full",Input!$K$13="Partial"),2,6))) -> 0.4712931738 | X149: 134 | Y149: 0.4644474663 | Z149: 0.6016539659 | AA149: 1.276602334 | AB149: -1.757013947 | AC149: 0.4712931738 | AD149: 0.4712931738 | AE149: 0 | AF149: =IF(Input!$P$70=1,'AZ Hpol'!$W149,IF(Input!$P$70=2,'AZ Hpol (2)'!$W149,IF(Input!$P$70=3,'AZ Hpol (3)'!$W149,IF(Input!$P$70=4,'AZ Hpol (4)'!$W149,"")))) -> 0.4712931738 | AG149: -6.5342 | AH149: 2.338741198 | AI149: -6.53417701
W150: =IF(Input!$F$31<14,"",INDEX($X$15:$AD$374,MATCH(MOD($X150-$Y$13,360),$X$15:$X$374,1),IF(OR(Input!$K$13="Full",Input!$K$13="Partial"),2,6))) -> 0.4581750047 | X150: 135 | Y150: 0.4514541801 | Z150: 0.584822219 | AA150: 1.276416681 | AB150: -1.757255109 | AC150: 0.4581750047 | AD150: 0.4581750047 | AE150: 0 | AF150: =IF(Input!$P$70=1,'AZ Hpol'!$W150,IF(Input!$P$70=2,'AZ Hpol (2)'!$W150,IF(Input!$P$70=3,'AZ Hpol (3)'!$W150,IF(Input!$P$70=4,'AZ Hpol (4)'!$W150,"")))) -> 0.4581750047 | AG150: -6.7794 | AH150: 2.35619449 | AI150: -6.779372141
W151: =IF(Input!$F$31<14,"",INDEX($X$15:$AD$374,MATCH(MOD($X151-$Y$13,360),$X$15:$X$374,1),IF(OR(Input!$K$13="Full",Input!$K$13="Partial"),2,6))) -> 0.4456706528 | X151: 136 | Y151: 0.4390704782 | Z151: 0.5687801391 | AA151: 1.276234223 | AB151: -1.757492099 | AC151: 0.4456706528 | AD151: 0.4456706528 | AE151: 0 | AF151: =IF(Input!$P$70=1,'AZ Hpol'!$W151,IF(Input!$P$70=2,'AZ Hpol (2)'!$W151,IF(Input!$P$70=3,'AZ Hpol (3)'!$W151,IF(Input!$P$70=4,'AZ Hpol (4)'!$W151,"")))) -> 0.4456706528 | AG151: -7.0197 | AH151: 2.373647783 | AI151: -7.019719262
W152: =IF(Input!$F$31<14,"",INDEX($X$15:$AD$374,MATCH(MOD($X152-$Y$13,360),$X$15:$X$374,1),IF(OR(Input!$K$13="Full",Input!$K$13="Partial"),2,6))) -> 0.4339050297 | X152: 137 | Y152: 0.4274190721 | Z152: 0.553686689 | AA152: 1.276055015 | AB152: -1.757724844 | AC152: 0.4339050297 | AD152: 0.4339050297 | AE152: 0 | AF152: =IF(Input!$P$70=1,'AZ Hpol'!$W152,IF(Input!$P$70=2,'AZ Hpol (2)'!$W152,IF(Input!$P$70=3,'AZ Hpol (3)'!$W152,IF(Input!$P$70=4,'AZ Hpol (4)'!$W152,"")))) -> 0.4339050297 | AG152: -7.2521 | AH152: 2.391101075 | AI152: -7.252106313
W153: =IF(Input!$F$31<14,"",INDEX($X$15:$AD$374,MATCH(MOD($X153-$Y$13,360),$X$15:$X$374,1),IF(OR(Input!$K$13="Full",Input!$K$13="Partial"),2,6))) -> 0.4230078166 | X153: 138 | Y153: 0.4166273101 | Z153: 0.5397068379 | AA153: 1.275879113 | AB153: -1.757953273 | AC153: 0.4230078166 | AD153: 0.4230078166 | AE153: 0 | AF153: =IF(Input!$P$70=1,'AZ Hpol'!$W153,IF(Input!$P$70=2,'AZ Hpol (2)'!$W153,IF(Input!$P$70=3,'AZ Hpol (3)'!$W153,IF(Input!$P$70=4,'AZ Hpol (4)'!$W153,"")))) -> 0.4230078166 | AG153: -7.473 | AH153: 2.408554368 | AI153: -7.473032147
W154: =IF(Input!$F$31<14,"",INDEX($X$15:$AD$374,MATCH(MOD($X154-$Y$13,360),$X$15:$X$374,1),IF(OR(Input!$K$13="Full",Input!$K$13="Partial"),2,6))) -> 0.4131108617 | X154: 139 | Y154: 0.4068246139 | Z154: 0.5270082413 | AA154: 1.275706572 | AB154: -1.758177316 | AC154: 0.4131108617 | AD154: 0.4131108617 | AE154: 0 | AF154: =IF(Input!$P$70=1,'AZ Hpol'!$W154,IF(Input!$P$70=2,'AZ Hpol (2)'!$W154,IF(Input!$P$70=3,'AZ Hpol (3)'!$W154,IF(Input!$P$70=4,'AZ Hpol (4)'!$W154,"")))) -> 0.4131108617 | AG154: -7.6787 | AH154: 2.42600766 | AI154: -7.678667724
W155: =IF(Input!$F$31<14,"",INDEX($X$15:$AD$374,MATCH(MOD($X155-$Y$13,360),$X$15:$X$374,1),IF(OR(Input!$K$13="Full",Input!$K$13="Partial"),2,6))) -> 0.4043446977 | X155: 140 | Y155: 0.3981390532 | Z155: 0.515756803 | AA155: 1.275537446 | AB155: -1.758396906 | AC155: 0.4043446977 | AD155: 0.4043446977 | AE155: 0 | AF155: =IF(Input!$P$70=1,'AZ Hpol'!$W155,IF(Input!$P$70=2,'AZ Hpol (2)'!$W155,IF(Input!$P$70=3,'AZ Hpol (3)'!$W155,IF(Input!$P$70=4,'AZ Hpol (4)'!$W155,"")))) -> 0.4043446977 | AG155: -7.865 | AH155: 2.443460953 | AI155: -7.86496495
W156: =IF(Input!$F$31<14,"",INDEX($X$15:$AD$374,MATCH(MOD($X156-$Y$13,360),$X$15:$X$374,1),IF(OR(Input!$K$13="Full",Input!$K$13="Partial"),2,6))) -> 0.3968341914 | X156: 141 | Y156: 0.3906930661 | Z156: 0.5061111315 | AA156: 1.275371786 | AB156: -1.758611975 | AC156: 0.3968341914 | AD156: 0.3968341914 | AE156: 0 | AF156: =IF(Input!$P$70=1,'AZ Hpol'!$W156,IF(Input!$P$70=2,'AZ Hpol (2)'!$W156,IF(Input!$P$70=3,'AZ Hpol (3)'!$W156,IF(Input!$P$70=4,'AZ Hpol (4)'!$W156,"")))) -> 0.3968341914 | AG156: -8.0278 | AH156: 2.460914245 | AI156: -8.027818318
W157: =IF(Input!$F$31<14,"",INDEX($X$15:$AD$374,MATCH(MOD($X157-$Y$13,360),$X$15:$X$374,1),IF(OR(Input!$K$13="Full",Input!$K$13="Partial"),2,6))) -> 0.3906934697 | X157: 142 | Y157: 0.3845984726 | Z157: 0.4982160807 | AA157: 1.275209645 | AB157: -1.758822458 | AC157: 0.3906934697 | AD157: 0.3906934697 | AE157: 0 | AF157: =IF(Input!$P$70=1,'AZ Hpol'!$W157,IF(Input!$P$70=2,'AZ Hpol (2)'!$W157,IF(Input!$P$70=3,'AZ Hpol (3)'!$W157,IF(Input!$P$70=4,'AZ Hpol (4)'!$W157,"")))) -> 0.3906934697 | AG157: -8.1633 | AH157: 2.478367538 | AI157: -8.163276955
W158: =IF(Input!$F$31<14,"",INDEX($X$15:$AD$374,MATCH(MOD($X158-$Y$13,360),$X$15:$X$374,1),IF(OR(Input!$K$13="Full",Input!$K$13="Partial"),2,6))) -> 0.38602044 | X158: 143 | Y158: 0.3799510913 | Z158: 0.4921957757 | AA158: 1.275051072 | AB158: -1.759028291 | AC158: 0.38602044 | AD158: 0.38602044 | AE158: 0 | AF158: =IF(Input!$P$70=1,'AZ Hpol'!$W158,IF(Input!$P$70=2,'AZ Hpol (2)'!$W158,IF(Input!$P$70=3,'AZ Hpol (3)'!$W158,IF(Input!$P$70=4,'AZ Hpol (4)'!$W158,"")))) -> 0.38602044 | AG158: -8.2678 | AH158: 2.49582083 | AI158: -8.267793972
W159: =IF(Input!$F$31<14,"",INDEX($X$15:$AD$374,MATCH(MOD($X159-$Y$13,360),$X$15:$X$374,1),IF(OR(Input!$K$13="Full",Input!$K$13="Partial"),2,6))) -> 0.3828913852 | X159: 144 | Y159: 0.3768254336 | Z159: 0.48814674 | AA159: 1.274896116 | AB159: -1.759229411 | AC159: 0.3828913852 | AD159: 0.3828913852 | AE159: 0 | AF159: =IF(Input!$P$70=1,'AZ Hpol'!$W159,IF(Input!$P$70=2,'AZ Hpol (2)'!$W159,IF(Input!$P$70=3,'AZ Hpol (3)'!$W159,IF(Input!$P$70=4,'AZ Hpol (4)'!$W159,"")))) -> 0.3828913852 | AG159: -8.3385 | AH159: 2.513274123 | AI159: -8.338488099
W160: =IF(Input!$F$31<14,"",INDEX($X$15:$AD$374,MATCH(MOD($X160-$Y$13,360),$X$15:$X$374,1),IF(OR(Input!$K$13="Full",Input!$K$13="Partial"),2,6))) -> 0.381356234 | X160: 145 | Y160: 0.3752700652 | Z160: 0.4861318866 | AA160: 1.274744827 | AB160: -1.759425757 | AC160: 0.381356234 | AD160: 0.381356234 | AE160: 0 | AF160: =IF(Input!$P$70=1,'AZ Hpol'!$W160,IF(Input!$P$70=2,'AZ Hpol (2)'!$W160,IF(Input!$P$70=3,'AZ Hpol (3)'!$W160,IF(Input!$P$70=4,'AZ Hpol (4)'!$W160,"")))) -> 0.381356234 | AG160: -8.3734 | AH160: 2.530727415 | AI160: -8.373382997
W161: =IF(Input!$F$31<14,"",INDEX($X$15:$AD$374,MATCH(MOD($X161-$Y$13,360),$X$15:$X$374,1),IF(OR(Input!$K$13="Full",Input!$K$13="Partial"),2,6))) -> 0.3814351197 | X161: 146 | Y161: 0.3753042382 | Z161: 0.4861761549 | AA161: 1.274597251 | AB161: -1.759617269 | AC161: 0.3814351197 | AD161: 0.3814351197 | AE161: 0 | AF161: =IF(Input!$P$70=1,'AZ Hpol'!$W161,IF(Input!$P$70=2,'AZ Hpol (2)'!$W161,IF(Input!$P$70=3,'AZ Hpol (3)'!$W161,IF(Input!$P$70=4,'AZ Hpol (4)'!$W161,"")))) -> 0.3814351197 | AG161: -8.3716 | AH161: 2.548180708 | AI161: -8.371586456
W162: =IF(Input!$F$31<14,"",INDEX($X$15:$AD$374,MATCH(MOD($X162-$Y$13,360),$X$15:$X$374,1),IF(OR(Input!$K$13="Full",Input!$K$13="Partial"),2,6))) -> 0.3831167195 | X162: 147 | Y162: 0.3769162756 | Z162: 0.4882644184 | AA162: 1.274453433 | AB162: -1.759803889 | AC162: 0.3831167195 | AD162: 0.3831167195 | AE162: 0 | AF162: =IF(Input!$P$70=1,'AZ Hpol'!$W162,IF(Input!$P$70=2,'AZ Hpol (2)'!$W162,IF(Input!$P$70=3,'AZ Hpol (3)'!$W162,IF(Input!$P$70=4,'AZ Hpol (4)'!$W162,"")))) -> 0.3831167195 | AG162: -8.3334 | AH162: 2.565634 | AI162: -8.333377892
W163: =IF(Input!$F$31<14,"",INDEX($X$15:$AD$374,MATCH(MOD($X163-$Y$13,360),$X$15:$X$374,1),IF(OR(Input!$K$13="Full",Input!$K$13="Partial"),2,6))) -> 0.3863586243 | X163: 148 | Y163: 0.3800639534 | Z163: 0.4923419793 | AA163: 1.274313419 | AB163: -1.759985559 | AC163: 0.3863586243 | AD163: 0.3863586243 | AE163: 0 | AF163: =IF(Input!$P$70=1,'AZ Hpol'!$W163,IF(Input!$P$70=2,'AZ Hpol (2)'!$W163,IF(Input!$P$70=3,'AZ Hpol (3)'!$W163,IF(Input!$P$70=4,'AZ Hpol (4)'!$W163,"")))) -> 0.3863586243 | AG163: -8.2602 | AH163: 2.583087293 | AI163: -8.260187781
W164: =IF(Input!$F$31<14,"",INDEX($X$15:$AD$374,MATCH(MOD($X164-$Y$13,360),$X$15:$X$374,1),IF(OR(Input!$K$13="Full",Input!$K$13="Partial"),2,6))) -> 0.391089676 | X164: 149 | Y164: 0.3846768161 | Z164: 0.4983175683 | AA164: 1.274177251 | AB164: -1.760162225 | AC164: 0.391089676 | AD164: 0.391089676 | AE164: 0 | AF164: =IF(Input!$P$70=1,'AZ Hpol'!$W164,IF(Input!$P$70=2,'AZ Hpol (2)'!$W164,IF(Input!$P$70=3,'AZ Hpol (3)'!$W164,IF(Input!$P$70=4,'AZ Hpol (4)'!$W164,"")))) -> 0.391089676 | AG164: -8.1545 | AH164: 2.600540585 | AI164: -8.154472969
W165: =IF(Input!$F$31<14,"",INDEX($X$15:$AD$374,MATCH(MOD($X165-$Y$13,360),$X$15:$X$374,1),IF(OR(Input!$K$13="Full",Input!$K$13="Partial"),2,6))) -> 0.3972139173 | X165: 150 | Y165: 0.3906600753 | Z165: 0.5060683945 | AA165: 1.274044973 | AB165: -1.760333833 | AC165: 0.3972139173 | AD165: 0.3972139173 | AE165: 1 | AF165: =IF(Input!$P$70=1,'AZ Hpol'!$W165,IF(Input!$P$70=2,'AZ Hpol (2)'!$W165,IF(Input!$P$70=3,'AZ Hpol (3)'!$W165,IF(Input!$P$70=4,'AZ Hpol (4)'!$W165,"")))) -> 0.3972139173 | AG165: -8.0195 | AH165: 2.617993878 | AI165: -8.019510868
W166: =IF(Input!$F$31<14,"",INDEX($X$15:$AD$374,MATCH(MOD($X166-$Y$13,360),$X$15:$X$374,1),IF(OR(Input!$K$13="Full",Input!$K$13="Partial"),2,6))) -> 0.4046155967 | X166: 151 | Y166: 0.3978995418 | Z166: 0.5154465353 | AA166: 1.273916625 | AB166: -1.76050033 | AC166: 0.4046155967 | AD166: 0.4046155967 | AE166: 0 | AF166: =IF(Input!$P$70=1,'AZ Hpol'!$W166,IF(Input!$P$70=2,'AZ Hpol (2)'!$W166,IF(Input!$P$70=3,'AZ Hpol (3)'!$W166,IF(Input!$P$70=4,'AZ Hpol (4)'!$W166,"")))) -> 0.4046155967 | AG166: -7.8591 | AH166: 2.635447171 | AI166: -7.859147611
W167: =IF(Input!$F$31<14,"",INDEX($X$15:$AD$374,MATCH(MOD($X167-$Y$13,360),$X$15:$X$374,1),IF(OR(Input!$K$13="Full",Input!$K$13="Partial"),2,6))) -> 0.4131646073 | X167: 152 | Y167: 0.4062669814 | Z167: 0.5262858737 | AA167: 1.273792247 | AB167: -1.760661665 | AC167: 0.4131646073 | AD167: 0.4131646073 | AE167: 0 | AF167: =IF(Input!$P$70=1,'AZ Hpol'!$W167,IF(Input!$P$70=2,'AZ Hpol (2)'!$W167,IF(Input!$P$70=3,'AZ Hpol (3)'!$W167,IF(Input!$P$70=4,'AZ Hpol (4)'!$W167,"")))) -> 0.4131646073 | AG167: -7.6775 | AH167: 2.652900463 | AI167: -7.677537766
W168: =IF(Input!$F$31<14,"",INDEX($X$15:$AD$374,MATCH(MOD($X168-$Y$13,360),$X$15:$X$374,1),IF(OR(Input!$K$13="Full",Input!$K$13="Partial"),2,6))) -> 0.4227217985 | X168: 153 | Y168: 0.4156253402 | Z168: 0.5384088673 | AA168: 1.273671879 | AB168: -1.760817791 | AC168: 0.4227217985 | AD168: 0.4227217985 | AE168: 0 | AF168: =IF(Input!$P$70=1,'AZ Hpol'!$W168,IF(Input!$P$70=2,'AZ Hpol (2)'!$W168,IF(Input!$P$70=3,'AZ Hpol (3)'!$W168,IF(Input!$P$70=4,'AZ Hpol (4)'!$W168,"")))) -> 0.4227217985 | AG168: -7.4789 | AH168: 2.670353756 | AI168: -7.478907127
W169: =IF(Input!$F$31<14,"",INDEX($X$15:$AD$374,MATCH(MOD($X169-$Y$13,360),$X$15:$X$374,1),IF(OR(Input!$K$13="Full",Input!$K$13="Partial"),2,6))) -> 0.4331437399 | X169: 154 | Y169: 0.4258334287 | Z169: 0.5516326168 | AA169: 1.273555557 | AB169: -1.760968658 | AC169: 0.4331437399 | AD169: 0.4331437399 | AE169: 0 | AF169: =IF(Input!$P$70=1,'AZ Hpol'!$W169,IF(Input!$P$70=2,'AZ Hpol (2)'!$W169,IF(Input!$P$70=3,'AZ Hpol (3)'!$W169,IF(Input!$P$70=4,'AZ Hpol (4)'!$W169,"")))) -> 0.4331437399 | AG169: -7.2674 | AH169: 2.687807048 | AI169: -7.267359158
W170: =IF(Input!$F$31<14,"",INDEX($X$15:$AD$374,MATCH(MOD($X170-$Y$13,360),$X$15:$X$374,1),IF(OR(Input!$K$13="Full",Input!$K$13="Partial"),2,6))) -> 0.4442866944 | X170: 155 | Y170: 0.4367498253 | Z170: 0.5657739219 | AA170: 1.273443317 | AB170: -1.761114221 | AC170: 0.4442866944 | AD170: 0.4442866944 | AE170: 0 | AF170: =IF(Input!$P$70=1,'AZ Hpol'!$W170,IF(Input!$P$70=2,'AZ Hpol (2)'!$W170,IF(Input!$P$70=3,'AZ Hpol (3)'!$W170,IF(Input!$P$70=4,'AZ Hpol (4)'!$W170,"")))) -> 0.4442866944 | AG170: -7.0467 | AH170: 2.705260341 | AI170: -7.046733857
W171: =IF(Input!$F$31<14,"",INDEX($X$15:$AD$374,MATCH(MOD($X171-$Y$13,360),$X$15:$X$374,1),IF(OR(Input!$K$13="Full",Input!$K$13="Partial"),2,6))) -> 0.4560097111 | X171: 156 | Y171: 0.4482359121 | Z171: 0.5806532143 | AA171: 1.273335195 | AB171: -1.761254436 | AC171: 0.4560097111 | AD171: 0.4560097111 | AE171: 0 | AF171: =IF(Input!$P$70=1,'AZ Hpol'!$W171,IF(Input!$P$70=2,'AZ Hpol (2)'!$W171,IF(Input!$P$70=3,'AZ Hpol (3)'!$W171,IF(Input!$P$70=4,'AZ Hpol (4)'!$W171,"")))) -> 0.4560097111 | AG171: -6.8205 | AH171: 2.722713633 | AI171: -6.820518172
W172: =IF(Input!$F$31<14,"",INDEX($X$15:$AD$374,MATCH(MOD($X172-$Y$13,360),$X$15:$X$374,1),IF(OR(Input!$K$13="Full",Input!$K$13="Partial"),2,6))) -> 0.4681768715 | X172: 157 | Y172: 0.4601580776 | Z172: 0.5960974112 | AA172: 1.273231224 | AB172: -1.76138926 | AC172: 0.4681768715 | AD172: 0.4681768715 | AE172: 0 | AF172: =IF(Input!$P$70=1,'AZ Hpol'!$W172,IF(Input!$P$70=2,'AZ Hpol (2)'!$W172,IF(Input!$P$70=3,'AZ Hpol (3)'!$W172,IF(Input!$P$70=4,'AZ Hpol (4)'!$W172,"")))) -> 0.4681768715 | AG172: -6.5918 | AH172: 2.740166926 | AI172: -6.591800895
W173: =IF(Input!$F$31<14,"",INDEX($X$15:$AD$374,MATCH(MOD($X173-$Y$13,360),$X$15:$X$374,1),IF(OR(Input!$K$13="Full",Input!$K$13="Partial"),2,6))) -> 0.4806587941 | X173: 158 | Y173: 0.4723891879 | Z173: 0.6119418211 | AA173: 1.273131437 | AB173: -1.761518652 | AC173: 0.4806587941 | AD173: 0.4806587941 | AE173: 0 | AF173: =IF(Input!$P$70=1,'AZ Hpol'!$W173,IF(Input!$P$70=2,'AZ Hpol (2)'!$W173,IF(Input!$P$70=3,'AZ Hpol (3)'!$W173,IF(Input!$P$70=4,'AZ Hpol (4)'!$W173,"")))) -> 0.4806587941 | AG173: -6.3633 | AH173: 2.757620218 | AI173: -6.36326215
W174: =IF(Input!$F$31<14,"",INDEX($X$15:$AD$374,MATCH(MOD($X174-$Y$13,360),$X$15:$X$374,1),IF(OR(Input!$K$13="Full",Input!$K$13="Partial"),2,6))) -> 0.4933335326 | X174: 159 | Y174: 0.484809464 | Z174: 0.62803128 | AA174: 1.273035864 | AB174: -1.761642573 | AC174: 0.4933335326 | AD174: 0.4933335326 | AE174: 0 | AF174: =IF(Input!$P$70=1,'AZ Hpol'!$W174,IF(Input!$P$70=2,'AZ Hpol (2)'!$W174,IF(Input!$P$70=3,'AZ Hpol (3)'!$W174,IF(Input!$P$70=4,'AZ Hpol (4)'!$W174,"")))) -> 0.4933335326 | AG174: -6.1372 | AH174: 2.775073511 | AI174: -6.137187278
W175: =IF(Input!$F$31<14,"",INDEX($X$15:$AD$374,MATCH(MOD($X175-$Y$13,360),$X$15:$X$374,1),IF(OR(Input!$K$13="Full",Input!$K$13="Partial"),2,6))) -> 0.5060870128 | X175: 160 | Y175: 0.4973069035 | Z175: 0.6442206976 | AA175: 1.272944536 | AB175: -1.761760984 | AC175: 0.5060870128 | AD175: 0.5060870128 | AE175: 0 | AF175: =IF(Input!$P$70=1,'AZ Hpol'!$W175,IF(Input!$P$70=2,'AZ Hpol (2)'!$W175,IF(Input!$P$70=3,'AZ Hpol (3)'!$W175,IF(Input!$P$70=4,'AZ Hpol (4)'!$W175,"")))) -> 0.5060870128 | AG175: -5.9155 | AH175: 2.792526803 | AI175: -5.915496148
W176: =IF(Input!$F$31<14,"",INDEX($X$15:$AD$374,MATCH(MOD($X176-$Y$13,360),$X$15:$X$374,1),IF(OR(Input!$K$13="Full",Input!$K$13="Partial"),2,6))) -> 0.5188131335 | X176: 161 | Y176: 0.5097773729 | Z176: 0.6603751778 | AA176: 1.27285748 | AB176: -1.76187385 | AC176: 0.5188131335 | AD176: 0.5188131335 | AE176: 0 | AF176: =IF(Input!$P$70=1,'AZ Hpol'!$W176,IF(Input!$P$70=2,'AZ Hpol (2)'!$W176,IF(Input!$P$70=3,'AZ Hpol (3)'!$W176,IF(Input!$P$70=4,'AZ Hpol (4)'!$W176,"")))) -> 0.5188131335 | AG176: -5.6998 | AH176: 2.809980096 | AI176: -5.69978077
W177: =IF(Input!$F$31<14,"",INDEX($X$15:$AD$374,MATCH(MOD($X177-$Y$13,360),$X$15:$X$374,1),IF(OR(Input!$K$13="Full",Input!$K$13="Partial"),2,6))) -> 0.5314136407 | X177: 162 | Y177: 0.5221244786 | Z177: 0.6763698502 | AA177: 1.272774725 | AB177: -1.761981136 | AC177: 0.5314136407 | AD177: 0.5314136407 | AE177: 0 | AF177: =IF(Input!$P$70=1,'AZ Hpol'!$W177,IF(Input!$P$70=2,'AZ Hpol (2)'!$W177,IF(Input!$P$70=3,'AZ Hpol (3)'!$W177,IF(Input!$P$70=4,'AZ Hpol (4)'!$W177,"")))) -> 0.5314136407 | AG177: -5.4913 | AH177: 2.827433388 | AI177: -5.49134604
W178: =IF(Input!$F$31<14,"",INDEX($X$15:$AD$374,MATCH(MOD($X178-$Y$13,360),$X$15:$X$374,1),IF(OR(Input!$K$13="Full",Input!$K$13="Partial"),2,6))) -> 0.5437978585 | X178: 163 | Y178: 0.5342592953 | Z178: 0.6920895196 | AA178: 1.272696295 | AB178: -1.76208281 | AC178: 0.5437978585 | AD178: 0.5437978585 | AE178: 0 | AF178: =IF(Input!$P$70=1,'AZ Hpol'!$W178,IF(Input!$P$70=2,'AZ Hpol (2)'!$W178,IF(Input!$P$70=3,'AZ Hpol (3)'!$W178,IF(Input!$P$70=4,'AZ Hpol (4)'!$W178,"")))) -> 0.5437978585 | AG178: -5.2913 | AH178: 2.844886681 | AI178: -5.29125014
W179: =IF(Input!$F$31<14,"",INDEX($X$15:$AD$374,MATCH(MOD($X179-$Y$13,360),$X$15:$X$374,1),IF(OR(Input!$K$13="Full",Input!$K$13="Partial"),2,6))) -> 0.5558823394 | X179: 164 | Y179: 0.5461000181 | Z179: 0.7074282141 | AA179: 1.272622215 | AB179: -1.762178841 | AC179: 0.5558823394 | AD179: 0.5558823394 | AE179: 0 | AF179: =IF(Input!$P$70=1,'AZ Hpol'!$W179,IF(Input!$P$70=2,'AZ Hpol (2)'!$W179,IF(Input!$P$70=3,'AZ Hpol (3)'!$W179,IF(Input!$P$70=4,'AZ Hpol (4)'!$W179,"")))) -> 0.5558823394 | AG179: -5.1003 | AH179: 2.862339973 | AI179: -5.100342469
W180: =IF(Input!$F$31<14,"",INDEX($X$15:$AD$374,MATCH(MOD($X180-$Y$13,360),$X$15:$X$374,1),IF(OR(Input!$K$13="Full",Input!$K$13="Partial"),2,6))) -> 0.5675904787 | X180: 165 | Y180: 0.5575715776 | Z180: 0.7222886877 | AA180: 1.272552509 | AB180: -1.762269199 | AC180: 0.5675904787 | AD180: 0.5675904787 | AE180: 0 | AF180: =IF(Input!$P$70=1,'AZ Hpol'!$W180,IF(Input!$P$70=2,'AZ Hpol (2)'!$W180,IF(Input!$P$70=3,'AZ Hpol (3)'!$W180,IF(Input!$P$70=4,'AZ Hpol (4)'!$W180,"")))) -> 0.5675904787 | AG180: -4.9193 | AH180: 2.879793266 | AI180: -4.919297968
W181: =IF(Input!$F$31<14,"",INDEX($X$15:$AD$374,MATCH(MOD($X181-$Y$13,360),$X$15:$X$374,1),IF(OR(Input!$K$13="Full",Input!$K$13="Partial"),2,6))) -> 0.5788521239 | X181: 166 | Y181: 0.5686052522 | Z181: 0.7365819169 | AA181: 1.272487197 | AB181: -1.762353857 | AC181: 0.5788521239 | AD181: 0.5788521239 | AE181: 0 | AF181: =IF(Input!$P$70=1,'AZ Hpol'!$W181,IF(Input!$P$70=2,'AZ Hpol (2)'!$W181,IF(Input!$P$70=3,'AZ Hpol (3)'!$W181,IF(Input!$P$70=4,'AZ Hpol (4)'!$W181,"")))) -> 0.5788521239 | AG181: -4.7486 | AH181: 2.897246558 | AI181: -4.748647377
W182: =IF(Input!$F$31<14,"",INDEX($X$15:$AD$374,MATCH(MOD($X182-$Y$13,360),$X$15:$X$374,1),IF(OR(Input!$K$13="Full",Input!$K$13="Partial"),2,6))) -> 0.5896031975 | X182: 167 | Y182: 0.5791382931 | Z182: 0.7502266158 | AA182: 1.272426301 | AB182: -1.762432789 | AC182: 0.5896031975 | AD182: 0.5896031975 | AE182: 0 | AF182: =IF(Input!$P$70=1,'AZ Hpol'!$W182,IF(Input!$P$70=2,'AZ Hpol (2)'!$W182,IF(Input!$P$70=3,'AZ Hpol (3)'!$W182,IF(Input!$P$70=4,'AZ Hpol (4)'!$W182,"")))) -> 0.5896031975 | AG182: -4.5888 | AH182: 2.914699851 | AI182: -4.588803399
W183: =IF(Input!$F$31<14,"",INDEX($X$15:$AD$374,MATCH(MOD($X183-$Y$13,360),$X$15:$X$374,1),IF(OR(Input!$K$13="Full",Input!$K$13="Partial"),2,6))) -> 0.5997853462 | X183: 168 | Y183: 0.5891135762 | Z183: 0.7631487847 | AA183: 1.27236984 | AB183: -1.762505971 | AC183: 0.5997853462 | AD183: 0.5997853462 | AE183: 0 | AF183: =IF(Input!$P$70=1,'AZ Hpol'!$W183,IF(Input!$P$70=2,'AZ Hpol (2)'!$W183,IF(Input!$P$70=3,'AZ Hpol (3)'!$W183,IF(Input!$P$70=4,'AZ Hpol (4)'!$W183,"")))) -> 0.5997853462 | AG183: -4.4401 | AH183: 2.932153143 | AI183: -4.44008298
W184: =IF(Input!$F$31<14,"",INDEX($X$15:$AD$374,MATCH(MOD($X184-$Y$13,360),$X$15:$X$374,1),IF(OR(Input!$K$13="Full",Input!$K$13="Partial"),2,6))) -> 0.6093456222 | X184: 169 | Y184: 0.5984792849 | Z184: 0.7752812996 | AA184: 1.27231783 | AB184: -1.76257338 | AC184: 0.6093456222 | AD184: 0.6093456222 | AE184: 0 | AF184: =IF(Input!$P$70=1,'AZ Hpol'!$W184,IF(Input!$P$70=2,'AZ Hpol (2)'!$W184,IF(Input!$P$70=3,'AZ Hpol (3)'!$W184,IF(Input!$P$70=4,'AZ Hpol (4)'!$W184,"")))) -> 0.6093456222 | AG184: -4.3027 | AH184: 2.949606436 | AI184: -4.302726093
W185: =IF(Input!$F$31<14,"",INDEX($X$15:$AD$374,MATCH(MOD($X185-$Y$13,360),$X$15:$X$374,1),IF(OR(Input!$K$13="Full",Input!$K$13="Partial"),2,6))) -> 0.6182361984 | X185: 170 | Y185: 0.607188628 | Z185: 0.7865635461 | AA185: 1.272270288 | AB185: -1.762634997 | AC185: 0.6182361984 | AD185: 0.6182361984 | AE185: 0 | AF185: =IF(Input!$P$70=1,'AZ Hpol'!$W185,IF(Input!$P$70=2,'AZ Hpol (2)'!$W185,IF(Input!$P$70=3,'AZ Hpol (3)'!$W185,IF(Input!$P$70=4,'AZ Hpol (4)'!$W185,"")))) -> 0.6182361984 | AG185: -4.1769 | AH185: 2.967059728 | AI185: -4.176911403
W186: =IF(Input!$F$31<14,"",INDEX($X$15:$AD$374,MATCH(MOD($X186-$Y$13,360),$X$15:$X$374,1),IF(OR(Input!$K$13="Full",Input!$K$13="Partial"),2,6))) -> 0.626414118 | X186: 171 | Y186: 0.6151995908 | Z186: 0.7969410977 | AA186: 1.272227229 | AB186: -1.762690803 | AC186: 0.626414118 | AD186: 0.626414118 | AE186: 0 | AF186: =IF(Input!$P$70=1,'AZ Hpol'!$W186,IF(Input!$P$70=2,'AZ Hpol (2)'!$W186,IF(Input!$P$70=3,'AZ Hpol (3)'!$W186,IF(Input!$P$70=4,'AZ Hpol (4)'!$W186,"")))) -> 0.626414118 | AG186: -4.0628 | AH186: 2.984513021 | AI186: -4.062769256
W187: =IF(Input!$F$31<14,"",INDEX($X$15:$AD$374,MATCH(MOD($X187-$Y$13,360),$X$15:$X$374,1),IF(OR(Input!$K$13="Full",Input!$K$13="Partial"),2,6))) -> 0.6338410782 | X187: 172 | Y187: 0.6224747197 | Z187: 0.8063654362 | AA187: 1.272188667 | AB187: -1.76274078 | AC187: 0.6338410782 | AD187: 0.6338410782 | AE187: 0 | AF187: =IF(Input!$P$70=1,'AZ Hpol'!$W187,IF(Input!$P$70=2,'AZ Hpol (2)'!$W187,IF(Input!$P$70=3,'AZ Hpol (3)'!$W187,IF(Input!$P$70=4,'AZ Hpol (4)'!$W187,"")))) -> 0.6338410782 | AG187: -3.9604 | AH187: 3.001966313 | AI187: -3.960392367
W188: =IF(Input!$F$31<14,"",INDEX($X$15:$AD$374,MATCH(MOD($X188-$Y$13,360),$X$15:$X$374,1),IF(OR(Input!$K$13="Full",Input!$K$13="Partial"),2,6))) -> 0.6404832432 | X188: 173 | Y188: 0.628980937 | Z188: 0.8147937122 | AA188: 1.272154613 | AB188: -1.762784913 | AC188: 0.6404832432 | AD188: 0.6404832432 | AE188: 0 | AF188: =IF(Input!$P$70=1,'AZ Hpol'!$W188,IF(Input!$P$70=2,'AZ Hpol (2)'!$W188,IF(Input!$P$70=3,'AZ Hpol (3)'!$W188,IF(Input!$P$70=4,'AZ Hpol (4)'!$W188,"")))) -> 0.6404832432 | AG188: -3.8698 | AH188: 3.019419606 | AI188: -3.869844563
W189: =IF(Input!$F$31<14,"",INDEX($X$15:$AD$374,MATCH(MOD($X189-$Y$13,360),$X$15:$X$374,1),IF(OR(Input!$K$13="Full",Input!$K$13="Partial"),2,6))) -> 0.6463110866 | X189: 174 | Y189: 0.6346893838 | Z189: 0.8221885414 | AA189: 1.272125078 | AB189: -1.762823189 | AC189: 0.6463110866 | AD189: 0.6463110866 | AE189: 0 | AF189: =IF(Input!$P$70=1,'AZ Hpol'!$W189,IF(Input!$P$70=2,'AZ Hpol (2)'!$W189,IF(Input!$P$70=3,'AZ Hpol (3)'!$W189,IF(Input!$P$70=4,'AZ Hpol (4)'!$W189,"")))) -> 0.6463110866 | AG189: -3.7912 | AH189: 3.036872898 | AI189: -3.791167885
W190: =IF(Input!$F$31<14,"",INDEX($X$15:$AD$374,MATCH(MOD($X190-$Y$13,360),$X$15:$X$374,1),IF(OR(Input!$K$13="Full",Input!$K$13="Partial"),2,6))) -> 0.651299259 | X190: 175 | Y190: 0.6395752882 | Z190: 0.8285178337 | AA190: 1.272100071 | AB190: -1.762855596 | AC190: 0.651299259 | AD190: 0.651299259 | AE190: 0 | AF190: =IF(Input!$P$70=1,'AZ Hpol'!$W190,IF(Input!$P$70=2,'AZ Hpol (2)'!$W190,IF(Input!$P$70=3,'AZ Hpol (3)'!$W190,IF(Input!$P$70=4,'AZ Hpol (4)'!$W190,"")))) -> 0.651299259 | AG190: -3.7244 | AH190: 3.054326191 | AI190: -3.724388319
W191: =IF(Input!$F$31<14,"",INDEX($X$15:$AD$374,MATCH(MOD($X191-$Y$13,360),$X$15:$X$374,1),IF(OR(Input!$K$13="Full",Input!$K$13="Partial"),2,6))) -> 0.6554264779 | X191: 176 | Y191: 0.6436178562 | Z191: 0.8337546521 | AA191: 1.272079601 | AB191: -1.762882125 | AC191: 0.6554264779 | AD191: 0.6554264779 | AE191: 0 | AF191: =IF(Input!$P$70=1,'AZ Hpol'!$W191,IF(Input!$P$70=2,'AZ Hpol (2)'!$W191,IF(Input!$P$70=3,'AZ Hpol (3)'!$W191,IF(Input!$P$70=4,'AZ Hpol (4)'!$W191,"")))) -> 0.6554264779 | AG191: -3.6695 | AH191: 3.071779484 | AI191: -3.66952036
W192: =IF(Input!$F$31<14,"",INDEX($X$15:$AD$374,MATCH(MOD($X192-$Y$13,360),$X$15:$X$374,1),IF(OR(Input!$K$13="Full",Input!$K$13="Partial"),2,6))) -> 0.6586754395 | X192: 177 | Y192: 0.6468001833 | Z192: 0.8378770984 | AA192: 1.272063672 | AB192: -1.762902766 | AC192: 0.6586754395 | AD192: 0.6586754395 | AE192: 0 | AF192: =IF(Input!$P$70=1,'AZ Hpol'!$W192,IF(Input!$P$70=2,'AZ Hpol (2)'!$W192,IF(Input!$P$70=3,'AZ Hpol (3)'!$W192,IF(Input!$P$70=4,'AZ Hpol (4)'!$W192,"")))) -> 0.6586754395 | AG192: -3.6266 | AH192: 3.089232776 | AI192: -3.626570602
W193: =IF(Input!$F$31<14,"",INDEX($X$15:$AD$374,MATCH(MOD($X193-$Y$13,360),$X$15:$X$374,1),IF(OR(Input!$K$13="Full",Input!$K$13="Partial"),2,6))) -> 0.6610327482 | X193: 178 | Y193: 0.6491091846 | Z193: 0.840868222 | AA193: 1.272052291 | AB193: -1.762917515 | AC193: 0.6610327482 | AD193: 0.6610327482 | AE193: 0 | AF193: =IF(Input!$P$70=1,'AZ Hpol'!$W193,IF(Input!$P$70=2,'AZ Hpol (2)'!$W193,IF(Input!$P$70=3,'AZ Hpol (3)'!$W193,IF(Input!$P$70=4,'AZ Hpol (4)'!$W193,"")))) -> 0.6610327482 | AG193: -3.5955 | AH193: 3.106686069 | AI193: -3.595540492
W194: =IF(Input!$F$31<14,"",INDEX($X$15:$AD$374,MATCH(MOD($X194-$Y$13,360),$X$15:$X$374,1),IF(OR(Input!$K$13="Full",Input!$K$13="Partial"),2,6))) -> 0.6624888635 | X194: 179 | Y194: 0.6505355419 | Z194: 0.842715952 | AA194: 1.272045461 | AB194: -1.762926366 | AC194: 0.6624888635 | AD194: 0.6624888635 | AE194: 0 | AF194: =IF(Input!$P$70=1,'AZ Hpol'!$W194,IF(Input!$P$70=2,'AZ Hpol (2)'!$W194,IF(Input!$P$70=3,'AZ Hpol (3)'!$W194,IF(Input!$P$70=4,'AZ Hpol (4)'!$W194,"")))) -> 0.6624888635 | AG194: -3.5764 | AH194: 3.124139361 | AI194: -3.576428358
W195: =IF(Input!$F$31<14,"",INDEX($X$15:$AD$374,MATCH(MOD($X195-$Y$13,360),$X$15:$X$374,1),IF(OR(Input!$K$13="Full",Input!$K$13="Partial"),2,6))) -> 0.6630380621 | X195: 180 | Y195: 0.6510736659 | Z195: 0.843413048 | AA195: 1.272043185 | AB195: -1.762929316 | AC195: 0.6630380621 | AD195: 0.6630380621 | AE195: 1 | AF195: =IF(Input!$P$70=1,'AZ Hpol'!$W195,IF(Input!$P$70=2,'AZ Hpol (2)'!$W195,IF(Input!$P$70=3,'AZ Hpol (3)'!$W195,IF(Input!$P$70=4,'AZ Hpol (4)'!$W195,"")))) -> 0.6630380621 | AG195: -3.5692 | AH195: 3.141592654 | AI195: -3.569230798
W196: =IF(Input!$F$31<14,"",INDEX($X$15:$AD$374,MATCH(MOD($X196-$Y$13,360),$X$15:$X$374,1),IF(OR(Input!$K$13="Full",Input!$K$13="Partial"),2,6))) -> 0.6626784157 | X196: 181 | Y196: 0.650721674 | Z196: 0.8429570711 | AA196: 1.272045461 | AB196: -1.762926366 | AC196: 0.6626784157 | AD196: 0.6626784157 | AE196: 0 | AF196: =IF(Input!$P$70=1,'AZ Hpol'!$W196,IF(Input!$P$70=2,'AZ Hpol (2)'!$W196,IF(Input!$P$70=3,'AZ Hpol (3)'!$W196,IF(Input!$P$70=4,'AZ Hpol (4)'!$W196,"")))) -> 0.6626784157 | AG196: -3.5739 | AH196: 3.159045946 | AI196: -3.573943494
W197: =IF(Input!$F$31<14,"",INDEX($X$15:$AD$374,MATCH(MOD($X197-$Y$13,360),$X$15:$X$374,1),IF(OR(Input!$K$13="Full",Input!$K$13="Partial"),2,6))) -> 0.6614117817 | X197: 182 | Y197: 0.6494813812 | Z197: 0.8413503724 | AA197: 1.272052291 | AB197: -1.762917515 | AC197: 0.6614117817 | AD197: 0.6614117817 | AE197: 0 | AF197: =IF(Input!$P$70=1,'AZ Hpol'!$W197,IF(Input!$P$70=2,'AZ Hpol (2)'!$W197,IF(Input!$P$70=3,'AZ Hpol (3)'!$W197,IF(Input!$P$70=4,'AZ Hpol (4)'!$W197,"")))) -> 0.6614117817 | AG197: -3.5906 | AH197: 3.176499239 | AI197: -3.590561466
W198: =IF(Input!$F$31<14,"",INDEX($X$15:$AD$374,MATCH(MOD($X198-$Y$13,360),$X$15:$X$374,1),IF(OR(Input!$K$13="Full",Input!$K$13="Partial"),2,6))) -> 0.6592438085 | X198: 183 | Y198: 0.6473583052 | Z198: 0.8386001 | AA198: 1.272063672 | AB198: -1.762902766 | AC198: 0.6592438085 | AD198: 0.6592438085 | AE198: 0 | AF198: =IF(Input!$P$70=1,'AZ Hpol'!$W198,IF(Input!$P$70=2,'AZ Hpol (2)'!$W198,IF(Input!$P$70=3,'AZ Hpol (3)'!$W198,IF(Input!$P$70=4,'AZ Hpol (4)'!$W198,"")))) -> 0.6592438085 | AG198: -3.6191 | AH198: 3.193952531 | AI198: -3.619078806
W199: =IF(Input!$F$31<14,"",INDEX($X$15:$AD$374,MATCH(MOD($X199-$Y$13,360),$X$15:$X$374,1),IF(OR(Input!$K$13="Full",Input!$K$13="Partial"),2,6))) -> 0.6561839549 | X199: 184 | Y199: 0.644361686 | Z199: 0.8347182232 | AA199: 1.272079601 | AB199: -1.762882125 | AC199: 0.6561839549 | AD199: 0.6561839549 | AE199: 0 | AF199: =IF(Input!$P$70=1,'AZ Hpol'!$W199,IF(Input!$P$70=2,'AZ Hpol (2)'!$W199,IF(Input!$P$70=3,'AZ Hpol (3)'!$W199,IF(Input!$P$70=4,'AZ Hpol (4)'!$W199,"")))) -> 0.6561839549 | AG199: -3.6595 | AH199: 3.211405824 | AI199: -3.659487865
W200: =IF(Input!$F$31<14,"",INDEX($X$15:$AD$374,MATCH(MOD($X200-$Y$13,360),$X$15:$X$374,1),IF(OR(Input!$K$13="Full",Input!$K$13="Partial"),2,6))) -> 0.6522455234 | X200: 185 | Y200: 0.6405045191 | Z200: 0.8297215768 | AA200: 1.272100071 | AB200: -1.762855596 | AC200: 0.6522455234 | AD200: 0.6522455234 | AE200: 0 | AF200: =IF(Input!$P$70=1,'AZ Hpol'!$W200,IF(Input!$P$70=2,'AZ Hpol (2)'!$W200,IF(Input!$P$70=3,'AZ Hpol (3)'!$W200,IF(Input!$P$70=4,'AZ Hpol (4)'!$W200,"")))) -> 0.6522455234 | AG200: -3.7118 | AH200: 3.228859116 | AI200: -3.711777858
W201: =IF(Input!$F$31<14,"",INDEX($X$15:$AD$374,MATCH(MOD($X201-$Y$13,360),$X$15:$X$374,1),IF(OR(Input!$K$13="Full",Input!$K$13="Partial"),2,6))) -> 0.6474457098 | X201: 186 | Y201: 0.6358036046 | Z201: 0.823631924 | AA201: 1.272125078 | AB201: -1.762823189 | AC201: 0.6474457098 | AD201: 0.6474457098 | AE201: 0 | AF201: =IF(Input!$P$70=1,'AZ Hpol'!$W201,IF(Input!$P$70=2,'AZ Hpol (2)'!$W201,IF(Input!$P$70=3,'AZ Hpol (3)'!$W201,IF(Input!$P$70=4,'AZ Hpol (4)'!$W201,"")))) -> 0.6474457098 | AG201: -3.7759 | AH201: 3.246312409 | AI201: -3.775932852
W202: =IF(Input!$F$31<14,"",INDEX($X$15:$AD$374,MATCH(MOD($X202-$Y$13,360),$X$15:$X$374,1),IF(OR(Input!$K$13="Full",Input!$K$13="Partial"),2,6))) -> 0.6418056682 | X202: 187 | Y202: 0.6302796129 | Z202: 0.8164760413 | AA202: 1.272154613 | AB202: -1.762784913 | AC202: 0.6418056682 | AD202: 0.6418056682 | AE202: 0 | AF202: =IF(Input!$P$70=1,'AZ Hpol'!$W202,IF(Input!$P$70=2,'AZ Hpol (2)'!$W202,IF(Input!$P$70=3,'AZ Hpol (3)'!$W202,IF(Input!$P$70=4,'AZ Hpol (4)'!$W202,"")))) -> 0.6418056682 | AG202: -3.8519 | AH202: 3.263765701 | AI202: -3.851929034
W203: =IF(Input!$F$31<14,"",INDEX($X$15:$AD$374,MATCH(MOD($X203-$Y$13,360),$X$15:$X$374,1),IF(OR(Input!$K$13="Full",Input!$K$13="Partial"),2,6))) -> 0.6353505954 | X203: 188 | Y203: 0.6239571675 | Z203: 0.808285827 | AA203: 1.272188667 | AB203: -1.76274078 | AC203: 0.6353505954 | AD203: 0.6353505954 | AE203: 0 | AF203: =IF(Input!$P$70=1,'AZ Hpol'!$W203,IF(Input!$P$70=2,'AZ Hpol (2)'!$W203,IF(Input!$P$70=3,'AZ Hpol (3)'!$W203,IF(Input!$P$70=4,'AZ Hpol (4)'!$W203,"")))) -> 0.6353505954 | AG203: -3.9397 | AH203: 3.281218994 | AI203: -3.939731175
W204: =IF(Input!$F$31<14,"",INDEX($X$15:$AD$374,MATCH(MOD($X204-$Y$13,360),$X$15:$X$374,1),IF(OR(Input!$K$13="Full",Input!$K$13="Partial"),2,6))) -> 0.6281098347 | X204: 189 | Y204: 0.6168649495 | Z204: 0.7990984347 | AA204: 1.272227229 | AB204: -1.762690803 | AC204: 0.6281098347 | AD204: 0.6281098347 | AE204: 0 | AF204: =IF(Input!$P$70=1,'AZ Hpol'!$W204,IF(Input!$P$70=2,'AZ Hpol (2)'!$W204,IF(Input!$P$70=3,'AZ Hpol (3)'!$W204,IF(Input!$P$70=4,'AZ Hpol (4)'!$W204,"")))) -> 0.6281098347 | AG204: -4.0393 | AH204: 3.298672286 | AI204: -4.03928813
W205: =IF(Input!$F$31<14,"",INDEX($X$15:$AD$374,MATCH(MOD($X205-$Y$13,360),$X$15:$X$374,1),IF(OR(Input!$K$13="Full",Input!$K$13="Partial"),2,6))) -> 0.6201170015 | X205: 190 | Y205: 0.6090358221 | Z205: 0.7889564361 | AA205: 1.272270288 | AB205: -1.762634997 | AC205: 0.6201170015 | AD205: 0.6201170015 | AE205: 0 | AF205: =IF(Input!$P$70=1,'AZ Hpol'!$W205,IF(Input!$P$70=2,'AZ Hpol (2)'!$W205,IF(Input!$P$70=3,'AZ Hpol (3)'!$W205,IF(Input!$P$70=4,'AZ Hpol (4)'!$W205,"")))) -> 0.6201170015 | AG205: -4.1505 | AH205: 3.316125579 | AI205: -4.150527232
... 169 more rows

Sheet AZ Hpol (2)
AB2: =(ROUND(((($R$13-389)/6)-13),0)*2)+1 -> 
O6: AZIMUTH PATTERN
O7: Horizontal Polarization
O9: Proposal No. | R9: =Cover!$E$13 ->  | Y9: Normalized Directivity | Z9: =IF(AC15=0,0,360/SUMSQ($W$15:$W$374)) ->  | AA9: Offset Ch | AB9: =Input!L16 -> 17 | AC9: =IF($AB9<37,473+6*($AB9-14),"") -> 491 | AD9: Offset Phase | AE9: =-IF(Input!K13="Partial",(11802.854*Input!L18/AC9/360)*(AC10*360/11802.824),(11802.854*90/AC9/360)*(AC10*360/11802.824)) ->  | AF9: degrees | AG9: =RADIANS(AE9) ->  | AH9: radians
O10: Date | R10: =Cover!$E$14 ->  | Y10: Input Peak Value | Z10: =MAX($AC$15:$AC$374) -> 1 | AA10: Display Ch | AB10: =Input!F33 -> 0 | AC10: =R13 ->  | AD10: Distence | AE10: =11802.854*IF(Input!K13="Full",90,Input!L18)/AC9/360 -> 0.06677333107 | AF10: inches
O11: Call Letters | R11: =IF(Input!$D$33>1,Input!$D$33,"") ->  | Y11: Normalize Value | Z11: =MAX($Z$15:$Z$374) ->  | AA11: Wave Length | AB11: =11802.76/AC10 ->  | AC11: =MAX($AD$15:$AD$374) -> 1
O12: Channel | R12: =IF(Input!$F$33>1,Input!$F$33,"") ->  | X12: Dwg No | Y12: C160 | AA12: K | AB12: =2*(PI()/AB11) -> 
O13: Frequency | R13: =IF(Input!$G$33>1,Input!$G$33,"") ->  | X13: Rotation | Y13: =Input!G13 -> 0
O14: Antenna Type | R14: =Cover!$E$11 -> TFU-4WB-LP/VP-R C160 | W14: Pattern | X14: Degs | Y14: Normalized | Z14: F | AA14: AF | AB14: KdCOS… | AC14: Normalized P | AD14: Input P | AG14: dB | AH14: Radians | AI14: dB -30
O15: Gain | R15: =IF(Input!$F$33<14,"",IF(ISNUMBER($Z$9),ROUND($Z$9,2)&" ("&ROUND(10*LOG($Z$9),2)&"dB)","")) ->  | W15: =IF(Input!$F$33<14,"",INDEX($X$15:$AD$374,MATCH(MOD($X15-$Y$13,360),$X$15:$X$374,1),IF(OR(Input!$K$13="Full",Input!$K$13="Partial"),2,6))) ->  | X15: 0 | Y15: =(1/$Z$11)*$Z15 ->  | Z15: =AD15*AA15 ->  | AA15: =SQRT(((1+COS(AB15))^2)+(SIN(AB15)^2)) ->  | AB15: =($AB$12*$AE$10*COS($AH15))+RADIANS($AE$9) ->  | AC15: =(1/$AC$11)*$AD15 -> 0.9540622491 | AD15: 0.9540622491 | AE15: 1 | AF15: =IF(Input!$P$70=1,'AZ Hpol'!$W15,IF(Input!$P$70=2,'AZ Hpol (2)'!$W15,IF(Input!$P$70=3,'AZ Hpol (3)'!W15,IF(Input!$P$70=4,'AZ Hpol (4)'!W15,"")))) -> 0.7833166583 | AG15: =ROUND(20*LOG(W15),4) ->  | AH15: =RADIANS(X15) -> 0 | AI15: =IF(W15<=0.031622776602,-30,20*LOG(W15)) -> 
R16: Calculated | W16: =IF(Input!$F$33<14,"",INDEX($X$15:$AD$374,MATCH(MOD($X16-$Y$13,360),$X$15:$X$374,1),IF(OR(Input!$K$13="Full",Input!$K$13="Partial"),2,6))) ->  | X16: 1 | Y16: =(1/$Z$11)*$Z16 ->  | AA16: =SQRT(((1+COS(AB16))^2)+(SIN(AB16)^2)) ->  | AB16: =($AB$12*$AE$10*COS($AH16))+RADIANS($AE$9) ->  | AC16: =(1/$AC$11)*$AD16 -> 0.9540887136 | AD16: 0.9540887136 | AE16: 0 | AF16: =IF(Input!$P$70=1,'AZ Hpol'!$W16,IF(Input!$P$70=2,'AZ Hpol (2)'!$W16,IF(Input!$P$70=3,'AZ Hpol (3)'!W16,IF(Input!$P$70=4,'AZ Hpol (4)'!W16,"")))) -> 0.7834919559 | AH16: =RADIANS(X16) -> 0.01745329252
W17: =IF(Input!$F$33<14,"",INDEX($X$15:$AD$374,MATCH(MOD($X17-$Y$13,360),$X$15:$X$374,1),IF(OR(Input!$K$13="Full",Input!$K$13="Partial"),2,6))) ->  | X17: 2 | AC17: 0.9542548641 | AD17: 0.9542548641 | AE17: 0 | AF17: =IF(Input!$P$70=1,'AZ Hpol'!$W17,IF(Input!$P$70=2,'AZ Hpol (2)'!$W17,IF(Input!$P$70=3,'AZ Hpol (3)'!W17,IF(Input!$P$70=4,'AZ Hpol (4)'!W17,"")))) -> 0.7840139314 | AH17: 0.03490658504
O18: Pattern Number | R18: =IF(Input!$F$33<14,"",$Y$12&"-"&$R$12&" Hpol") ->  | W18: =IF(Input!$F$33<14,"",INDEX($X$15:$AD$374,MATCH(MOD($X18-$Y$13,360),$X$15:$X$374,1),IF(OR(Input!$K$13="Full",Input!$K$13="Partial"),2,6))) ->  | X18: 3 | AC18: 0.9545597794 | AD18: 0.9545597794 | AE18: 0 | AF18: =IF(Input!$P$70=1,'AZ Hpol'!$W18,IF(Input!$P$70=2,'AZ Hpol (2)'!$W18,IF(Input!$P$70=3,'AZ Hpol (3)'!W18,IF(Input!$P$70=4,'AZ Hpol (4)'!W18,"")))) -> 0.7848811826 | AH18: 0.05235987756
W19: =IF(Input!$F$33<14,"",INDEX($X$15:$AD$374,MATCH(MOD($X19-$Y$13,360),$X$15:$X$374,1),IF(OR(Input!$K$13="Full",Input!$K$13="Partial"),2,6))) ->  | X19: 4 | AC19: 0.9550017237 | AD19: 0.9550017237 | AE19: 0 | AF19: =IF(Input!$P$70=1,'AZ Hpol'!$W19,IF(Input!$P$70=2,'AZ Hpol (2)'!$W19,IF(Input!$P$70=3,'AZ Hpol (3)'!W19,IF(Input!$P$70=4,'AZ Hpol (4)'!W19,"")))) -> 0.7860913528 | AH19: 0.06981317008
W20: =IF(Input!$F$33<14,"",INDEX($X$15:$AD$374,MATCH(MOD($X20-$Y$13,360),$X$15:$X$374,1),IF(OR(Input!$K$13="Full",Input!$K$13="Partial"),2,6))) ->  | X20: 5 | AC20: 0.955578156 | AD20: 0.955578156 | AE20: 0 | AF20: =IF(Input!$P$70=1,'AZ Hpol'!$W20,IF(Input!$P$70=2,'AZ Hpol (2)'!$W20,IF(Input!$P$70=3,'AZ Hpol (3)'!W20,IF(Input!$P$70=4,'AZ Hpol (4)'!W20,"")))) -> 0.7876411252 | AH20: 0.0872664626
W21: =IF(Input!$F$33<14,"",INDEX($X$15:$AD$374,MATCH(MOD($X21-$Y$13,360),$X$15:$X$374,1),IF(OR(Input!$K$13="Full",Input!$K$13="Partial"),2,6))) ->  | X21: 6 | AC21: 0.9562857424 | AD21: 0.9562857424 | AE21: 0 | AF21: =IF(Input!$P$70=1,'AZ Hpol'!$W21,IF(Input!$P$70=2,'AZ Hpol (2)'!$W21,IF(Input!$P$70=3,'AZ Hpol (3)'!W21,IF(Input!$P$70=4,'AZ Hpol (4)'!W21,"")))) -> 0.7895262161 | AH21: 0.1047197551
W22: =IF(Input!$F$33<14,"",INDEX($X$15:$AD$374,MATCH(MOD($X22-$Y$13,360),$X$15:$X$374,1),IF(OR(Input!$K$13="Full",Input!$K$13="Partial"),2,6))) ->  | X22: 7 | AC22: 0.957120374 | AD22: 0.957120374 | AE22: 0 | AF22: =IF(Input!$P$70=1,'AZ Hpol'!$W22,IF(Input!$P$70=2,'AZ Hpol (2)'!$W22,IF(Input!$P$70=3,'AZ Hpol (3)'!W22,IF(Input!$P$70=4,'AZ Hpol (4)'!W22,"")))) -> 0.7917413665 | AH22: 0.1221730476
W23: =IF(Input!$F$33<14,"",INDEX($X$15:$AD$374,MATCH(MOD($X23-$Y$13,360),$X$15:$X$374,1),IF(OR(Input!$K$13="Full",Input!$K$13="Partial"),2,6))) ->  | X23: 8 | AC23: 0.9580771878 | AD23: 0.9580771878 | AE23: 0 | AF23: =IF(Input!$P$70=1,'AZ Hpol'!$W23,IF(Input!$P$70=2,'AZ Hpol (2)'!$W23,IF(Input!$P$70=3,'AZ Hpol (3)'!W23,IF(Input!$P$70=4,'AZ Hpol (4)'!W23,"")))) -> 0.7942803337 | AH23: 0.1396263402
W24: =IF(Input!$F$33<14,"",INDEX($X$15:$AD$374,MATCH(MOD($X24-$Y$13,360),$X$15:$X$374,1),IF(OR(Input!$K$13="Full",Input!$K$13="Partial"),2,6))) ->  | X24: 9 | AC24: 0.9591505928 | AD24: 0.9591505928 | AE24: 0 | AF24: =IF(Input!$P$70=1,'AZ Hpol'!$W24,IF(Input!$P$70=2,'AZ Hpol (2)'!$W24,IF(Input!$P$70=3,'AZ Hpol (3)'!W24,IF(Input!$P$70=4,'AZ Hpol (4)'!W24,"")))) -> 0.7971358833 | AH24: 0.1570796327
W25: =IF(Input!$F$33<14,"",INDEX($X$15:$AD$374,MATCH(MOD($X25-$Y$13,360),$X$15:$X$374,1),IF(OR(Input!$K$13="Full",Input!$K$13="Partial"),2,6))) ->  | X25: 10 | AC25: 0.9603342987 | AD25: 0.9603342987 | AE25: 0 | AF25: =IF(Input!$P$70=1,'AZ Hpol'!$W25,IF(Input!$P$70=2,'AZ Hpol (2)'!$W25,IF(Input!$P$70=3,'AZ Hpol (3)'!W25,IF(Input!$P$70=4,'AZ Hpol (4)'!W25,"")))) -> 0.8002997823 | AH25: 0.1745329252
B26: Deg | C26: Value | D26: Deg | E26: Value | F26: Deg | G26: Value | H26: Deg | I26: Value | J26: Deg | K26: Value | L26: Deg | M26: Value | N26: Deg | O26: Value | P26: Deg | Q26: Value | R26: Deg | S26: Value | T26: Deg | U26: Value | W26: =IF(Input!$F$33<14,"",INDEX($X$15:$AD$374,MATCH(MOD($X26-$Y$13,360),$X$15:$X$374,1),IF(OR(Input!$K$13="Full",Input!$K$13="Partial"),2,6))) ->  | X26: 11 | AC26: 0.9616213492 | AD26: 0.9616213492 | AE26: 0 | AF26: =IF(Input!$P$70=1,'AZ Hpol'!$W26,IF(Input!$P$70=2,'AZ Hpol (2)'!$W26,IF(Input!$P$70=3,'AZ Hpol (3)'!W26,IF(Input!$P$70=4,'AZ Hpol (4)'!W26,"")))) -> 0.8037627954 | AH26: 0.1919862177
B27: 0 | C27: =W15 ->  | D27: 36 | E27: =W51 ->  | F27: 72 | G27: =W87 ->  | H27: 108 | I27: =W123 ->  | J27: 144 | K27: =W159 ->  | L27: 180 | M27: =W195 ->  | N27: 216 | O27: =W231 ->  | P27: 252 | Q27: =W267 ->  | R27: 288 | S27: =W303 ->  | T27: 324 | U27: =W339 ->  | W27: =IF(Input!$F$33<14,"",INDEX($X$15:$AD$374,MATCH(MOD($X27-$Y$13,360),$X$15:$X$374,1),IF(OR(Input!$K$13="Full",Input!$K$13="Partial"),2,6))) ->  | X27: 12 | AC27: 0.9630041589 | AD27: 0.9630041589 | AE27: 0 | AF27: =IF(Input!$P$70=1,'AZ Hpol'!$W27,IF(Input!$P$70=2,'AZ Hpol (2)'!$W27,IF(Input!$P$70=3,'AZ Hpol (3)'!W27,IF(Input!$P$70=4,'AZ Hpol (4)'!W27,"")))) -> 0.8075146836 | AH27: 0.2094395102
B28: 1 | D28: 37 | F28: 73 | H28: 109 | J28: 145 | L28: 181 | N28: 217 | P28: 253 | R28: 289 | T28: 325 | W28: =IF(Input!$F$33<14,"",INDEX($X$15:$AD$374,MATCH(MOD($X28-$Y$13,360),$X$15:$X$374,1),IF(OR(Input!$K$13="Full",Input!$K$13="Partial"),2,6))) ->  | X28: 13 | AC28: 0.9644745527 | AD28: 0.9644745527 | AE28: 0 | AF28: =IF(Input!$P$70=1,'AZ Hpol'!$W28,IF(Input!$P$70=2,'AZ Hpol (2)'!$W28,IF(Input!$P$70=3,'AZ Hpol (3)'!W28,IF(Input!$P$70=4,'AZ Hpol (4)'!W28,"")))) -> 0.8115442075 | AH28: 0.2268928028
B29: 2 | D29: 38 | F29: 74 | H29: 110 | J29: 146 | L29: 182 | N29: 218 | P29: 254 | R29: 290 | T29: 326 | W29: =IF(Input!$F$33<14,"",INDEX($X$15:$AD$374,MATCH(MOD($X29-$Y$13,360),$X$15:$X$374,1),IF(OR(Input!$K$13="Full",Input!$K$13="Partial"),2,6))) ->  | X29: 14 | AC29: 0.9660238095 | AD29: 0.9660238095 | AE29: 0 | AF29: =IF(Input!$P$70=1,'AZ Hpol'!$W29,IF(Input!$P$70=2,'AZ Hpol (2)'!$W29,IF(Input!$P$70=3,'AZ Hpol (3)'!W29,IF(Input!$P$70=4,'AZ Hpol (4)'!W29,"")))) -> 0.8158391356 | AH29: 0.2443460953
B30: 3 | D30: 39 | F30: 75 | H30: 111 | J30: 147 | L30: 183 | N30: 219 | P30: 255 | R30: 291 | T30: 327 | W30: =IF(Input!$F$33<14,"",INDEX($X$15:$AD$374,MATCH(MOD($X30-$Y$13,360),$X$15:$X$374,1),IF(OR(Input!$K$13="Full",Input!$K$13="Partial"),2,6))) ->  | X30: 15 | AC30: 0.9676427079 | AD30: 0.9676427079 | AE30: 0 | AF30: =IF(Input!$P$70=1,'AZ Hpol'!$W30,IF(Input!$P$70=2,'AZ Hpol (2)'!$W30,IF(Input!$P$70=3,'AZ Hpol (3)'!W30,IF(Input!$P$70=4,'AZ Hpol (4)'!W30,"")))) -> 0.8203862585 | AH30: 0.2617993878
B31: 4 | D31: 40 | F31: 76 | H31: 112 | J31: 148 | L31: 184 | N31: 220 | P31: 256 | R31: 292 | T31: 328 | W31: =IF(Input!$F$33<14,"",INDEX($X$15:$AD$374,MATCH(MOD($X31-$Y$13,360),$X$15:$X$374,1),IF(OR(Input!$K$13="Full",Input!$K$13="Partial"),2,6))) ->  | X31: 16 | AC31: 0.9693215749 | AD31: 0.9693215749 | AE31: 0 | AF31: =IF(Input!$P$70=1,'AZ Hpol'!$W31,IF(Input!$P$70=2,'AZ Hpol (2)'!$W31,IF(Input!$P$70=3,'AZ Hpol (3)'!W31,IF(Input!$P$70=4,'AZ Hpol (4)'!W31,"")))) -> 0.8251714089 | AH31: 0.2792526803
B32: 5 | D32: 41 | F32: 77 | H32: 113 | J32: 149 | L32: 185 | N32: 221 | P32: 257 | R32: 293 | T32: 329 | W32: =IF(Input!$F$33<14,"",INDEX($X$15:$AD$374,MATCH(MOD($X32-$Y$13,360),$X$15:$X$374,1),IF(OR(Input!$K$13="Full",Input!$K$13="Partial"),2,6))) ->  | X32: 17 | AC32: 0.9710503374 | AD32: 0.9710503374 | AE32: 0 | AF32: =IF(Input!$P$70=1,'AZ Hpol'!$W32,IF(Input!$P$70=2,'AZ Hpol (2)'!$W32,IF(Input!$P$70=3,'AZ Hpol (3)'!W32,IF(Input!$P$70=4,'AZ Hpol (4)'!W32,"")))) -> 0.8301794894 | AH32: 0.2967059728
B33: 6 | D33: 42 | F33: 78 | H33: 114 | J33: 150 | L33: 186 | N33: 222 | P33: 258 | R33: 294 | T33: 330 | W33: =IF(Input!$F$33<14,"",INDEX($X$15:$AD$374,MATCH(MOD($X33-$Y$13,360),$X$15:$X$374,1),IF(OR(Input!$K$13="Full",Input!$K$13="Partial"),2,6))) ->  | X33: 18 | AC33: 0.9728185748 | AD33: 0.9728185748 | AE33: 0 | AF33: =IF(Input!$P$70=1,'AZ Hpol'!$W33,IF(Input!$P$70=2,'AZ Hpol (2)'!$W33,IF(Input!$P$70=3,'AZ Hpol (3)'!W33,IF(Input!$P$70=4,'AZ Hpol (4)'!W33,"")))) -> 0.8353945065 | AH33: 0.3141592654
B34: 7 | D34: 43 | F34: 79 | H34: 115 | J34: 151 | L34: 187 | N34: 223 | P34: 259 | R34: 295 | T34: 331 | W34: =IF(Input!$F$33<14,"",INDEX($X$15:$AD$374,MATCH(MOD($X34-$Y$13,360),$X$15:$X$374,1),IF(OR(Input!$K$13="Full",Input!$K$13="Partial"),2,6))) ->  | X34: 19 | AC34: 0.9746155748 | AD34: 0.9746155748 | AE34: 0 | AF34: =IF(Input!$P$70=1,'AZ Hpol'!$W34,IF(Input!$P$70=2,'AZ Hpol (2)'!$W34,IF(Input!$P$70=3,'AZ Hpol (3)'!W34,IF(Input!$P$70=4,'AZ Hpol (4)'!W34,"")))) -> 0.8407996128 | AH34: 0.3316125579
B35: 8 | D35: 44 | F35: 80 | H35: 116 | J35: 152 | L35: 188 | N35: 224 | P35: 260 | R35: 296 | T35: 332 | W35: =IF(Input!$F$33<14,"",INDEX($X$15:$AD$374,MATCH(MOD($X35-$Y$13,360),$X$15:$X$374,1),IF(OR(Input!$K$13="Full",Input!$K$13="Partial"),2,6))) ->  | X35: 20 | AC35: 0.9764303897 | AD35: 0.9764303897 | AE35: 0 | AF35: =IF(Input!$P$70=1,'AZ Hpol'!$W35,IF(Input!$P$70=2,'AZ Hpol (2)'!$W35,IF(Input!$P$70=3,'AZ Hpol (3)'!W35,IF(Input!$P$70=4,'AZ Hpol (4)'!W35,"")))) -> 0.8463771563 | AH35: 0.3490658504
B36: 9 | D36: 45 | F36: 81 | H36: 117 | J36: 153 | L36: 189 | N36: 225 | P36: 261 | R36: 297 | T36: 333 | W36: =IF(Input!$F$33<14,"",INDEX($X$15:$AD$374,MATCH(MOD($X36-$Y$13,360),$X$15:$X$374,1),IF(OR(Input!$K$13="Full",Input!$K$13="Partial"),2,6))) ->  | X36: 21 | AC36: 0.9782518941 | AD36: 0.9782518941 | AE36: 0 | AF36: =IF(Input!$P$70=1,'AZ Hpol'!$W36,IF(Input!$P$70=2,'AZ Hpol (2)'!$W36,IF(Input!$P$70=3,'AZ Hpol (3)'!W36,IF(Input!$P$70=4,'AZ Hpol (4)'!W36,"")))) -> 0.8521087369 | AH36: 0.3665191429
B37: 10 | D37: 46 | F37: 82 | H37: 118 | J37: 154 | L37: 190 | N37: 226 | P37: 262 | R37: 298 | T37: 334 | W37: =IF(Input!$F$33<14,"",INDEX($X$15:$AD$374,MATCH(MOD($X37-$Y$13,360),$X$15:$X$374,1),IF(OR(Input!$K$13="Full",Input!$K$13="Partial"),2,6))) ->  | X37: 22 | AC37: 0.9800688443 | AD37: 0.9800688443 | AE37: 0 | AF37: =IF(Input!$P$70=1,'AZ Hpol'!$W37,IF(Input!$P$70=2,'AZ Hpol (2)'!$W37,IF(Input!$P$70=3,'AZ Hpol (3)'!W37,IF(Input!$P$70=4,'AZ Hpol (4)'!W37,"")))) -> 0.8579752704 | AH37: 0.3839724354
B38: 11 | D38: 47 | F38: 83 | H38: 119 | J38: 155 | L38: 191 | N38: 227 | P38: 263 | R38: 299 | T38: 335 | W38: =IF(Input!$F$33<14,"",INDEX($X$15:$AD$374,MATCH(MOD($X38-$Y$13,360),$X$15:$X$374,1),IF(OR(Input!$K$13="Full",Input!$K$13="Partial"),2,6))) ->  | X38: 23 | AC38: 0.9818699374 | AD38: 0.9818699374 | AE38: 0 | AF38: =IF(Input!$P$70=1,'AZ Hpol'!$W38,IF(Input!$P$70=2,'AZ Hpol (2)'!$W38,IF(Input!$P$70=3,'AZ Hpol (3)'!W38,IF(Input!$P$70=4,'AZ Hpol (4)'!W38,"")))) -> 0.8639570586 | AH38: 0.401425728
B39: 12 | D39: 48 | F39: 84 | H39: 120 | J39: 156 | L39: 192 | N39: 228 | P39: 264 | R39: 300 | T39: 336 | W39: =IF(Input!$F$33<14,"",INDEX($X$15:$AD$374,MATCH(MOD($X39-$Y$13,360),$X$15:$X$374,1),IF(OR(Input!$K$13="Full",Input!$K$13="Partial"),2,6))) ->  | X39: 24 | AC39: 0.9836438708 | AD39: 0.9836438708 | AE39: 0 | AF39: =IF(Input!$P$70=1,'AZ Hpol'!$W39,IF(Input!$P$70=2,'AZ Hpol (2)'!$W39,IF(Input!$P$70=3,'AZ Hpol (3)'!W39,IF(Input!$P$70=4,'AZ Hpol (4)'!W39,"")))) -> 0.8700338663 | AH39: 0.4188790205
B40: 13 | D40: 49 | F40: 85 | H40: 121 | J40: 157 | L40: 193 | N40: 229 | P40: 265 | R40: 301 | T40: 337 | W40: =IF(Input!$F$33<14,"",INDEX($X$15:$AD$374,MATCH(MOD($X40-$Y$13,360),$X$15:$X$374,1),IF(OR(Input!$K$13="Full",Input!$K$13="Partial"),2,6))) ->  | X40: 25 | AC40: 0.9853794025 | AD40: 0.9853794025 | AE40: 0 | AF40: =IF(Input!$P$70=1,'AZ Hpol'!$W40,IF(Input!$P$70=2,'AZ Hpol (2)'!$W40,IF(Input!$P$70=3,'AZ Hpol (3)'!W40,IF(Input!$P$70=4,'AZ Hpol (4)'!W40,"")))) -> 0.8761850031 | AH40: 0.436332313
B41: 14 | D41: 50 | F41: 86 | H41: 122 | J41: 158 | L41: 194 | N41: 230 | P41: 266 | R41: 302 | T41: 338 | W41: =IF(Input!$F$33<14,"",INDEX($X$15:$AD$374,MATCH(MOD($X41-$Y$13,360),$X$15:$X$374,1),IF(OR(Input!$K$13="Full",Input!$K$13="Partial"),2,6))) ->  | X41: 26 | AC41: 0.9870654101 | AD41: 0.9870654101 | AE41: 0 | AF41: =IF(Input!$P$70=1,'AZ Hpol'!$W41,IF(Input!$P$70=2,'AZ Hpol (2)'!$W41,IF(Input!$P$70=3,'AZ Hpol (3)'!W41,IF(Input!$P$70=4,'AZ Hpol (4)'!W41,"")))) -> 0.8823894109 | AH41: 0.4537856055
B42: 15 | D42: 51 | F42: 87 | H42: 123 | J42: 159 | L42: 195 | N42: 231 | P42: 267 | R42: 303 | T42: 339 | W42: =IF(Input!$F$33<14,"",INDEX($X$15:$AD$374,MATCH(MOD($X42-$Y$13,360),$X$15:$X$374,1),IF(OR(Input!$K$13="Full",Input!$K$13="Partial"),2,6))) ->  | X42: 27 | AC42: 0.9886909495 | AD42: 0.9886909495 | AE42: 0 | AF42: =IF(Input!$P$70=1,'AZ Hpol'!$W42,IF(Input!$P$70=2,'AZ Hpol (2)'!$W42,IF(Input!$P$70=3,'AZ Hpol (3)'!W42,IF(Input!$P$70=4,'AZ Hpol (4)'!W42,"")))) -> 0.8886257556 | AH42: 0.471238898
B43: 16 | D43: 52 | F43: 88 | H43: 124 | J43: 160 | L43: 196 | N43: 232 | P43: 268 | R43: 304 | T43: 340 | W43: =IF(Input!$F$33<14,"",INDEX($X$15:$AD$374,MATCH(MOD($X43-$Y$13,360),$X$15:$X$374,1),IF(OR(Input!$K$13="Full",Input!$K$13="Partial"),2,6))) ->  | X43: 28 | AC43: 0.9902453128 | AD43: 0.9902453128 | AE43: 0 | AF43: =IF(Input!$P$70=1,'AZ Hpol'!$W43,IF(Input!$P$70=2,'AZ Hpol (2)'!$W43,IF(Input!$P$70=3,'AZ Hpol (3)'!W43,IF(Input!$P$70=4,'AZ Hpol (4)'!W43,"")))) -> 0.8948725216 | AH43: 0.4886921906
B44: 17 | D44: 53 | F44: 89 | H44: 125 | J44: 161 | L44: 197 | N44: 233 | P44: 269 | R44: 305 | T44: 341 | W44: =IF(Input!$F$33<14,"",INDEX($X$15:$AD$374,MATCH(MOD($X44-$Y$13,360),$X$15:$X$374,1),IF(OR(Input!$K$13="Full",Input!$K$13="Partial"),2,6))) ->  | X44: 29 | AC44: 0.9917180843 | AD44: 0.9917180843 | AE44: 0 | AF44: =IF(Input!$P$70=1,'AZ Hpol'!$W44,IF(Input!$P$70=2,'AZ Hpol (2)'!$W44,IF(Input!$P$70=3,'AZ Hpol (3)'!W44,IF(Input!$P$70=4,'AZ Hpol (4)'!W44,"")))) -> 0.9011081094 | AH44: 0.5061454831
B45: 18 | D45: 54 | F45: 90 | H45: 126 | J45: 162 | L45: 198 | N45: 234 | P45: 270 | R45: 306 | T45: 342 | W45: =IF(Input!$F$33<14,"",INDEX($X$15:$AD$374,MATCH(MOD($X45-$Y$13,360),$X$15:$X$374,1),IF(OR(Input!$K$13="Full",Input!$K$13="Partial"),2,6))) ->  | X45: 30 | AC45: 0.9930991955 | AD45: 0.9930991955 | AE45: 1 | AF45: =IF(Input!$P$70=1,'AZ Hpol'!$W45,IF(Input!$P$70=2,'AZ Hpol (2)'!$W45,IF(Input!$P$70=3,'AZ Hpol (3)'!W45,IF(Input!$P$70=4,'AZ Hpol (4)'!W45,"")))) -> 0.9073109358 | AH45: 0.5235987756
B46: 19 | D46: 55 | F46: 91 | H46: 127 | J46: 163 | L46: 199 | N46: 235 | P46: 271 | R46: 307 | T46: 343 | W46: =IF(Input!$F$33<14,"",INDEX($X$15:$AD$374,MATCH(MOD($X46-$Y$13,360),$X$15:$X$374,1),IF(OR(Input!$K$13="Full",Input!$K$13="Partial"),2,6))) ->  | X46: 31 | AC46: 0.9943789778 | AD46: 0.9943789778 | AE46: 0 | AF46: =IF(Input!$P$70=1,'AZ Hpol'!$W46,IF(Input!$P$70=2,'AZ Hpol (2)'!$W46,IF(Input!$P$70=3,'AZ Hpol (3)'!W46,IF(Input!$P$70=4,'AZ Hpol (4)'!W46,"")))) -> 0.9134595339 | AH46: 0.5410520681
B47: 20 | D47: 56 | F47: 92 | H47: 128 | J47: 164 | L47: 200 | N47: 236 | P47: 272 | R47: 308 | T47: 344 | W47: =IF(Input!$F$33<14,"",INDEX($X$15:$AD$374,MATCH(MOD($X47-$Y$13,360),$X$15:$X$374,1),IF(OR(Input!$K$13="Full",Input!$K$13="Partial"),2,6))) ->  | X47: 32 | AC47: 0.9955482128 | AD47: 0.9955482128 | AE47: 0 | AF47: =IF(Input!$P$70=1,'AZ Hpol'!$W47,IF(Input!$P$70=2,'AZ Hpol (2)'!$W47,IF(Input!$P$70=3,'AZ Hpol (3)'!W47,IF(Input!$P$70=4,'AZ Hpol (4)'!W47,"")))) -> 0.9195326542 | AH47: 0.5585053606
B48: 21 | D48: 57 | F48: 93 | H48: 129 | J48: 165 | L48: 201 | N48: 237 | P48: 273 | R48: 309 | T48: 345 | W48: =IF(Input!$F$33<14,"",INDEX($X$15:$AD$374,MATCH(MOD($X48-$Y$13,360),$X$15:$X$374,1),IF(OR(Input!$K$13="Full",Input!$K$13="Partial"),2,6))) ->  | X48: 33 | AC48: 0.9965981808 | AD48: 0.9965981808 | AE48: 0 | AF48: =IF(Input!$P$70=1,'AZ Hpol'!$W48,IF(Input!$P$70=2,'AZ Hpol (2)'!$W48,IF(Input!$P$70=3,'AZ Hpol (3)'!W48,IF(Input!$P$70=4,'AZ Hpol (4)'!W48,"")))) -> 0.9255093654 | AH48: 0.5759586532
B49: 22 | D49: 58 | F49: 94 | H49: 130 | J49: 166 | L49: 202 | N49: 238 | P49: 274 | R49: 310 | T49: 346 | W49: =IF(Input!$F$33<14,"",INDEX($X$15:$AD$374,MATCH(MOD($X49-$Y$13,360),$X$15:$X$374,1),IF(OR(Input!$K$13="Full",Input!$K$13="Partial"),2,6))) ->  | X49: 34 | AC49: 0.9975207053 | AD49: 0.9975207053 | AE49: 0 | AF49: =IF(Input!$P$70=1,'AZ Hpol'!$W49,IF(Input!$P$70=2,'AZ Hpol (2)'!$W49,IF(Input!$P$70=3,'AZ Hpol (3)'!W49,IF(Input!$P$70=4,'AZ Hpol (4)'!W49,"")))) -> 0.9313691536 | AH49: 0.5934119457
B50: 23 | D50: 59 | F50: 95 | H50: 131 | J50: 167 | L50: 203 | N50: 239 | P50: 275 | R50: 311 | T50: 347 | W50: =IF(Input!$F$33<14,"",INDEX($X$15:$AD$374,MATCH(MOD($X50-$Y$13,360),$X$15:$X$374,1),IF(OR(Input!$K$13="Full",Input!$K$13="Partial"),2,6))) ->  | X50: 35 | AC50: 0.9983081954 | AD50: 0.9983081954 | AE50: 0 | AF50: =IF(Input!$P$70=1,'AZ Hpol'!$W50,IF(Input!$P$70=2,'AZ Hpol (2)'!$W50,IF(Input!$P$70=3,'AZ Hpol (3)'!W50,IF(Input!$P$70=4,'AZ Hpol (4)'!W50,"")))) -> 0.9370920195 | AH50: 0.6108652382
B51: 24 | D51: 60 | F51: 96 | H51: 132 | J51: 168 | L51: 204 | N51: 240 | P51: 276 | R51: 312 | T51: 348 | W51: =IF(Input!$F$33<14,"",INDEX($X$15:$AD$374,MATCH(MOD($X51-$Y$13,360),$X$15:$X$374,1),IF(OR(Input!$K$13="Full",Input!$K$13="Partial"),2,6))) ->  | X51: 36 | AC51: 0.9989536845 | AD51: 0.9989536845 | AE51: 0 | AF51: =IF(Input!$P$70=1,'AZ Hpol'!$W51,IF(Input!$P$70=2,'AZ Hpol (2)'!$W51,IF(Input!$P$70=3,'AZ Hpol (3)'!W51,IF(Input!$P$70=4,'AZ Hpol (4)'!W51,"")))) -> 0.942658574 | AH51: 0.6283185307
B52: 25 | D52: 61 | F52: 97 | H52: 133 | J52: 169 | L52: 205 | N52: 241 | P52: 277 | R52: 313 | T52: 349 | W52: =IF(Input!$F$33<14,"",INDEX($X$15:$AD$374,MATCH(MOD($X52-$Y$13,360),$X$15:$X$374,1),IF(OR(Input!$K$13="Full",Input!$K$13="Partial"),2,6))) ->  | X52: 37 | AC52: 0.9994508653 | AD52: 0.9994508653 | AE52: 0 | AF52: =IF(Input!$P$70=1,'AZ Hpol'!$W52,IF(Input!$P$70=2,'AZ Hpol (2)'!$W52,IF(Input!$P$70=3,'AZ Hpol (3)'!W52,IF(Input!$P$70=4,'AZ Hpol (4)'!W52,"")))) -> 0.9480501293 | AH52: 0.6457718232
B53: 26 | D53: 62 | F53: 98 | H53: 134 | J53: 170 | L53: 206 | N53: 242 | P53: 278 | R53: 314 | T53: 350 | W53: =IF(Input!$F$33<14,"",INDEX($X$15:$AD$374,MATCH(MOD($X53-$Y$13,360),$X$15:$X$374,1),IF(OR(Input!$K$13="Full",Input!$K$13="Partial"),2,6))) ->  | X53: 38 | AC53: 0.9997941208 | AD53: 0.9997941208 | AE53: 0 | AF53: =IF(Input!$P$70=1,'AZ Hpol'!$W53,IF(Input!$P$70=2,'AZ Hpol (2)'!$W53,IF(Input!$P$70=3,'AZ Hpol (3)'!W53,IF(Input!$P$70=4,'AZ Hpol (4)'!W53,"")))) -> 0.9532487873 | AH53: 0.6632251158
B54: 27 | D54: 63 | F54: 99 | H54: 135 | J54: 171 | L54: 207 | N54: 243 | P54: 279 | R54: 315 | T54: 351 | W54: =IF(Input!$F$33<14,"",INDEX($X$15:$AD$374,MATCH(MOD($X54-$Y$13,360),$X$15:$X$374,1),IF(OR(Input!$K$13="Full",Input!$K$13="Partial"),2,6))) ->  | X54: 39 | AC54: 0.9999785519 | AD54: 0.9999785519 | AE54: 0 | AF54: =IF(Input!$P$70=1,'AZ Hpol'!$W54,IF(Input!$P$70=2,'AZ Hpol (2)'!$W54,IF(Input!$P$70=3,'AZ Hpol (3)'!W54,IF(Input!$P$70=4,'AZ Hpol (4)'!W54,"")))) -> 0.9582375236 | AH54: 0.6806784083
B55: 28 | D55: 64 | F55: 100 | H55: 136 | J55: 172 | L55: 208 | N55: 244 | P55: 280 | R55: 316 | T55: 352 | W55: =IF(Input!$F$33<14,"",INDEX($X$15:$AD$374,MATCH(MOD($X55-$Y$13,360),$X$15:$X$374,1),IF(OR(Input!$K$13="Full",Input!$K$13="Partial"),2,6))) ->  | X55: 40 | AC55: 1 | AD55: 1 | AE55: 0 | AF55: =IF(Input!$P$70=1,'AZ Hpol'!$W55,IF(Input!$P$70=2,'AZ Hpol (2)'!$W55,IF(Input!$P$70=3,'AZ Hpol (3)'!W55,IF(Input!$P$70=4,'AZ Hpol (4)'!W55,"")))) -> 0.9630002664 | AH55: 0.6981317008
B56: 29 | D56: 65 | F56: 101 | H56: 137 | J56: 173 | L56: 209 | N56: 245 | P56: 281 | R56: 317 | T56: 353 | W56: =IF(Input!$F$33<14,"",INDEX($X$15:$AD$374,MATCH(MOD($X56-$Y$13,360),$X$15:$X$374,1),IF(OR(Input!$K$13="Full",Input!$K$13="Partial"),2,6))) ->  | X56: 41 | AC56: 0.9998550654 | AD56: 0.9998550654 | AE56: 0 | AF56: =IF(Input!$P$70=1,'AZ Hpol'!$W56,IF(Input!$P$70=2,'AZ Hpol (2)'!$W56,IF(Input!$P$70=3,'AZ Hpol (3)'!W56,IF(Input!$P$70=4,'AZ Hpol (4)'!W56,"")))) -> 0.9675219702 | AH56: 0.7155849933
B57: 30 | D57: 66 | F57: 102 | H57: 138 | J57: 174 | L57: 210 | N57: 246 | P57: 282 | R57: 318 | T57: 354 | W57: =IF(Input!$F$33<14,"",INDEX($X$15:$AD$374,MATCH(MOD($X57-$Y$13,360),$X$15:$X$374,1),IF(OR(Input!$K$13="Full",Input!$K$13="Partial"),2,6))) ->  | X57: 42 | AC57: 0.9995411214 | AD57: 0.9995411214 | AE57: 0 | AF57: =IF(Input!$P$70=1,'AZ Hpol'!$W57,IF(Input!$P$70=2,'AZ Hpol (2)'!$W57,IF(Input!$P$70=3,'AZ Hpol (3)'!W57,IF(Input!$P$70=4,'AZ Hpol (4)'!W57,"")))) -> 0.9717886844 | AH57: 0.7330382858
B58: 31 | D58: 67 | F58: 103 | H58: 139 | J58: 175 | L58: 211 | N58: 247 | P58: 283 | R58: 319 | T58: 355 | W58: =IF(Input!$F$33<14,"",INDEX($X$15:$AD$374,MATCH(MOD($X58-$Y$13,360),$X$15:$X$374,1),IF(OR(Input!$K$13="Full",Input!$K$13="Partial"),2,6))) ->  | X58: 43 | AC58: 0.9990563229 | AD58: 0.9990563229 | AE58: 0 | AF58: =IF(Input!$P$70=1,'AZ Hpol'!$W58,IF(Input!$P$70=2,'AZ Hpol (2)'!$W58,IF(Input!$P$70=3,'AZ Hpol (3)'!W58,IF(Input!$P$70=4,'AZ Hpol (4)'!W58,"")))) -> 0.9757876159 | AH58: 0.7504915784
B59: 32 | D59: 68 | F59: 104 | H59: 140 | J59: 176 | L59: 212 | N59: 248 | P59: 284 | R59: 320 | T59: 356 | W59: =IF(Input!$F$33<14,"",INDEX($X$15:$AD$374,MATCH(MOD($X59-$Y$13,360),$X$15:$X$374,1),IF(OR(Input!$K$13="Full",Input!$K$13="Partial"),2,6))) ->  | X59: 44 | AC59: 0.998399611 | AD59: 0.998399611 | AE59: 0 | AF59: =IF(Input!$P$70=1,'AZ Hpol'!$W59,IF(Input!$P$70=2,'AZ Hpol (2)'!$W59,IF(Input!$P$70=3,'AZ Hpol (3)'!W59,IF(Input!$P$70=4,'AZ Hpol (4)'!W59,"")))) -> 0.9795071844 | AH59: 0.7679448709
B60: 33 | D60: 69 | F60: 105 | H60: 141 | J60: 177 | L60: 213 | N60: 249 | P60: 285 | R60: 321 | T60: 357 | W60: =IF(Input!$F$33<14,"",INDEX($X$15:$AD$374,MATCH(MOD($X60-$Y$13,360),$X$15:$X$374,1),IF(OR(Input!$K$13="Full",Input!$K$13="Partial"),2,6))) ->  | X60: 45 | AC60: 0.9975707117 | AD60: 0.9975707117 | AE60: 0 | AF60: =IF(Input!$P$70=1,'AZ Hpol'!$W60,IF(Input!$P$70=2,'AZ Hpol (2)'!$W60,IF(Input!$P$70=3,'AZ Hpol (3)'!W60,IF(Input!$P$70=4,'AZ Hpol (4)'!W60,"")))) -> 0.9829370725 | AH60: 0.7853981634
B61: 34 | D61: 70 | F61: 106 | H61: 142 | J61: 178 | L61: 214 | N61: 250 | P61: 286 | R61: 322 | T61: 358 | W61: =IF(Input!$F$33<14,"",INDEX($X$15:$AD$374,MATCH(MOD($X61-$Y$13,360),$X$15:$X$374,1),IF(OR(Input!$K$13="Full",Input!$K$13="Partial"),2,6))) ->  | X61: 46 | AC61: 0.9965701303 | AD61: 0.9965701303 | AE61: 0 | AF61: =IF(Input!$P$70=1,'AZ Hpol'!$W61,IF(Input!$P$70=2,'AZ Hpol (2)'!$W61,IF(Input!$P$70=3,'AZ Hpol (3)'!W61,IF(Input!$P$70=4,'AZ Hpol (4)'!W61,"")))) -> 0.9860682683 | AH61: 0.8028514559
B62: 35 | D62: 71 | F62: 107 | H62: 143 | J62: 179 | L62: 215 | N62: 251 | P62: 287 | R62: 323 | T62: 359 | W62: =IF(Input!$F$33<14,"",INDEX($X$15:$AD$374,MATCH(MOD($X62-$Y$13,360),$X$15:$X$374,1),IF(OR(Input!$K$13="Full",Input!$K$13="Partial"),2,6))) ->  | X62: 47 | AC62: 0.9953991398 | AD62: 0.9953991398 | AE62: 0 | AF62: =IF(Input!$P$70=1,'AZ Hpol'!$W62,IF(Input!$P$70=2,'AZ Hpol (2)'!$W62,IF(Input!$P$70=3,'AZ Hpol (3)'!W62,IF(Input!$P$70=4,'AZ Hpol (4)'!W62,"")))) -> 0.9888931006 | AH62: 0.8203047484
W63: =IF(Input!$F$33<14,"",INDEX($X$15:$AD$374,MATCH(MOD($X63-$Y$13,360),$X$15:$X$374,1),IF(OR(Input!$K$13="Full",Input!$K$13="Partial"),2,6))) ->  | X63: 48 | AC63: 0.9940597649 | AD63: 0.9940597649 | AE63: 0 | AF63: =IF(Input!$P$70=1,'AZ Hpol'!$W63,IF(Input!$P$70=2,'AZ Hpol (2)'!$W63,IF(Input!$P$70=3,'AZ Hpol (3)'!W63,IF(Input!$P$70=4,'AZ Hpol (4)'!W63,"")))) -> 0.9914052674 | AH63: 0.837758041
A64: This document contains proprietary and confidential information of Dielectric. It is to be used solely for the purpose for which it is provided. | W64: =IF(Input!$F$33<14,"",INDEX($X$15:$AD$374,MATCH(MOD($X64-$Y$13,360),$X$15:$X$374,1),IF(OR(Input!$K$13="Full",Input!$K$13="Partial"),2,6))) ->  | X64: 49 | AC64: 0.9925547606 | AD64: 0.9925547606 | AE64: 0 | AF64: =IF(Input!$P$70=1,'AZ Hpol'!$W64,IF(Input!$P$70=2,'AZ Hpol (2)'!$W64,IF(Input!$P$70=3,'AZ Hpol (3)'!W64,IF(Input!$P$70=4,'AZ Hpol (4)'!W64,"")))) -> 0.9935998569 | AH64: 0.8552113335
A65: No disclosure, reproduction, or use of this document or any part of it may be made without the written permission of Dielectric. | W65: =IF(Input!$F$33<14,"",INDEX($X$15:$AD$374,MATCH(MOD($X65-$Y$13,360),$X$15:$X$374,1),IF(OR(Input!$K$13="Full",Input!$K$13="Partial"),2,6))) ->  | X65: 50 | AC65: 0.9908875847 | AD65: 0.9908875847 | AE65: 0 | AF65: =IF(Input!$P$70=1,'AZ Hpol'!$W65,IF(Input!$P$70=2,'AZ Hpol (2)'!$W65,IF(Input!$P$70=3,'AZ Hpol (3)'!W65,IF(Input!$P$70=4,'AZ Hpol (4)'!W65,"")))) -> 0.9954733601 | AH65: 0.872664626
W66: =IF(Input!$F$33<14,"",INDEX($X$15:$AD$374,MATCH(MOD($X66-$Y$13,360),$X$15:$X$374,1),IF(OR(Input!$K$13="Full",Input!$K$13="Partial"),2,6))) ->  | X66: 51 | AC66: 0.9890623666 | AD66: 0.9890623666 | AE66: 0 | AF66: =IF(Input!$P$70=1,'AZ Hpol'!$W66,IF(Input!$P$70=2,'AZ Hpol (2)'!$W66,IF(Input!$P$70=3,'AZ Hpol (3)'!W66,IF(Input!$P$70=4,'AZ Hpol (4)'!W66,"")))) -> 0.9970236766 | AH66: 0.8901179185
W67: =IF(Input!$F$33<14,"",INDEX($X$15:$AD$374,MATCH(MOD($X67-$Y$13,360),$X$15:$X$374,1),IF(OR(Input!$K$13="Full",Input!$K$13="Partial"),2,6))) ->  | X67: 52 | AC67: 0.9870838699 | AD67: 0.9870838699 | AE67: 0 | AF67: =IF(Input!$P$70=1,'AZ Hpol'!$W67,IF(Input!$P$70=2,'AZ Hpol (2)'!$W67,IF(Input!$P$70=3,'AZ Hpol (3)'!W67,IF(Input!$P$70=4,'AZ Hpol (4)'!W67,"")))) -> 0.998250112 | AH67: 0.907571211
W68: =IF(Input!$F$33<14,"",INDEX($X$15:$AD$374,MATCH(MOD($X68-$Y$13,360),$X$15:$X$374,1),IF(OR(Input!$K$13="Full",Input!$K$13="Partial"),2,6))) ->  | X68: 53 | AC68: 0.9849574508 | AD68: 0.9849574508 | AE68: 0 | AF68: =IF(Input!$P$70=1,'AZ Hpol'!$W68,IF(Input!$P$70=2,'AZ Hpol (2)'!$W68,IF(Input!$P$70=3,'AZ Hpol (3)'!W68,IF(Input!$P$70=4,'AZ Hpol (4)'!W68,"")))) -> 0.9991533673 | AH68: 0.9250245036
W69: =IF(Input!$F$33<14,"",INDEX($X$15:$AD$374,MATCH(MOD($X69-$Y$13,360),$X$15:$X$374,1),IF(OR(Input!$K$13="Full",Input!$K$13="Partial"),2,6))) ->  | X69: 54 | AC69: 0.9826890107 | AD69: 0.9826890107 | AE69: 0 | AF69: =IF(Input!$P$70=1,'AZ Hpol'!$W69,IF(Input!$P$70=2,'AZ Hpol (2)'!$W69,IF(Input!$P$70=3,'AZ Hpol (3)'!W69,IF(Input!$P$70=4,'AZ Hpol (4)'!W69,"")))) -> 0.9997355205 | AH69: 0.9424777961
W70: =IF(Input!$F$33<14,"",INDEX($X$15:$AD$374,MATCH(MOD($X70-$Y$13,360),$X$15:$X$374,1),IF(OR(Input!$K$13="Full",Input!$K$13="Partial"),2,6))) ->  | X70: 55 | AC70: 0.9802849453 | AD70: 0.9802849453 | AE70: 0 | AF70: =IF(Input!$P$70=1,'AZ Hpol'!$W70,IF(Input!$P$70=2,'AZ Hpol (2)'!$W70,IF(Input!$P$70=3,'AZ Hpol (3)'!W70,IF(Input!$P$70=4,'AZ Hpol (4)'!W70,"")))) -> 1 | AH70: 0.9599310886
W71: =IF(Input!$F$33<14,"",INDEX($X$15:$AD$374,MATCH(MOD($X71-$Y$13,360),$X$15:$X$374,1),IF(OR(Input!$K$13="Full",Input!$K$13="Partial"),2,6))) ->  | X71: 56 | AC71: 0.9777520886 | AD71: 0.9777520886 | AE71: 0 | AF71: =IF(Input!$P$70=1,'AZ Hpol'!$W71,IF(Input!$P$70=2,'AZ Hpol (2)'!$W71,IF(Input!$P$70=3,'AZ Hpol (3)'!W71,IF(Input!$P$70=4,'AZ Hpol (4)'!W71,"")))) -> 0.9999515494 | AH71: 0.9773843811
W72: =IF(Input!$F$33<14,"",INDEX($X$15:$AD$374,MATCH(MOD($X72-$Y$13,360),$X$15:$X$374,1),IF(OR(Input!$K$13="Full",Input!$K$13="Partial"),2,6))) ->  | X72: 57 | AC72: 0.9750976527 | AD72: 0.9750976527 | AE72: 0 | AF72: =IF(Input!$P$70=1,'AZ Hpol'!$W72,IF(Input!$P$70=2,'AZ Hpol (2)'!$W72,IF(Input!$P$70=3,'AZ Hpol (3)'!W72,IF(Input!$P$70=4,'AZ Hpol (4)'!W72,"")))) -> 0.9995961849 | AH72: 0.9948376736
W73: =IF(Input!$F$33<14,"",INDEX($X$15:$AD$374,MATCH(MOD($X73-$Y$13,360),$X$15:$X$374,1),IF(OR(Input!$K$13="Full",Input!$K$13="Partial"),2,6))) ->  | X73: 58 | AC73: 0.972329164 | AD73: 0.972329164 | AE73: 0 | AF73: =IF(Input!$P$70=1,'AZ Hpol'!$W73,IF(Input!$P$70=2,'AZ Hpol (2)'!$W73,IF(Input!$P$70=3,'AZ Hpol (3)'!W73,IF(Input!$P$70=4,'AZ Hpol (4)'!W73,"")))) -> 0.9989411439 | AH73: 1.012290966
W74: =IF(Input!$F$33<14,"",INDEX($X$15:$AD$374,MATCH(MOD($X74-$Y$13,360),$X$15:$X$374,1),IF(OR(Input!$K$13="Full",Input!$K$13="Partial"),2,6))) ->  | X74: 59 | AC74: 0.969454396 | AD74: 0.969454396 | AE74: 0 | AF74: =IF(Input!$P$70=1,'AZ Hpol'!$W74,IF(Input!$P$70=2,'AZ Hpol (2)'!$W74,IF(Input!$P$70=3,'AZ Hpol (3)'!W74,IF(Input!$P$70=4,'AZ Hpol (4)'!W74,"")))) -> 0.9979948259 | AH74: 1.029744259
W75: =IF(Input!$F$33<14,"",INDEX($X$15:$AD$374,MATCH(MOD($X75-$Y$13,360),$X$15:$X$374,1),IF(OR(Input!$K$13="Full",Input!$K$13="Partial"),2,6))) ->  | X75: 60 | AC75: 0.9664812982 | AD75: 0.9664812982 | AE75: 1 | AF75: =IF(Input!$P$70=1,'AZ Hpol'!$W75,IF(Input!$P$70=2,'AZ Hpol (2)'!$W75,IF(Input!$P$70=3,'AZ Hpol (3)'!W75,IF(Input!$P$70=4,'AZ Hpol (4)'!W75,"")))) -> 0.996766725 | AH75: 1.047197551
W76: =IF(Input!$F$33<14,"",INDEX($X$15:$AD$374,MATCH(MOD($X76-$Y$13,360),$X$15:$X$374,1),IF(OR(Input!$K$13="Full",Input!$K$13="Partial"),2,6))) ->  | X76: 61 | AC76: 0.9634179235 | AD76: 0.9634179235 | AE76: 0 | AF76: =IF(Input!$P$70=1,'AZ Hpol'!$W76,IF(Input!$P$70=2,'AZ Hpol (2)'!$W76,IF(Input!$P$70=3,'AZ Hpol (3)'!W76,IF(Input!$P$70=4,'AZ Hpol (4)'!W76,"")))) -> 0.9952673546 | AH76: 1.064650844
W77: =IF(Input!$F$33<14,"",INDEX($X$15:$AD$374,MATCH(MOD($X77-$Y$13,360),$X$15:$X$374,1),IF(OR(Input!$K$13="Full",Input!$K$13="Partial"),2,6))) ->  | X77: 62 | AC77: 0.960272352 | AD77: 0.960272352 | AE77: 0 | AF77: =IF(Input!$P$70=1,'AZ Hpol'!$W77,IF(Input!$P$70=2,'AZ Hpol (2)'!$W77,IF(Input!$P$70=3,'AZ Hpol (3)'!W77,IF(Input!$P$70=4,'AZ Hpol (4)'!W77,"")))) -> 0.9935081641 | AH77: 1.082104136
W78: =IF(Input!$F$33<14,"",INDEX($X$15:$AD$374,MATCH(MOD($X78-$Y$13,360),$X$15:$X$374,1),IF(OR(Input!$K$13="Full",Input!$K$13="Partial"),2,6))) ->  | X78: 63 | AC78: 0.9570526144 | AD78: 0.9570526144 | AE78: 0 | AF78: =IF(Input!$P$70=1,'AZ Hpol'!$W78,IF(Input!$P$70=2,'AZ Hpol (2)'!$W78,IF(Input!$P$70=3,'AZ Hpol (3)'!W78,IF(Input!$P$70=4,'AZ Hpol (4)'!W78,"")))) -> 0.9915014484 | AH78: 1.099557429
W79: =IF(Input!$F$33<14,"",INDEX($X$15:$AD$374,MATCH(MOD($X79-$Y$13,360),$X$15:$X$374,1),IF(OR(Input!$K$13="Full",Input!$K$13="Partial"),2,6))) ->  | X79: 64 | AC79: 0.9537666133 | AD79: 0.9537666133 | AE79: 0 | AF79: =IF(Input!$P$70=1,'AZ Hpol'!$W79,IF(Input!$P$70=2,'AZ Hpol (2)'!$W79,IF(Input!$P$70=3,'AZ Hpol (3)'!W79,IF(Input!$P$70=4,'AZ Hpol (4)'!W79,"")))) -> 0.9892602493 | AG79: =ROUND(20*LOG(W79),4) ->  | AH79: 1.117010721 | AI79: =IF(W79<=0.031622776602,-30,20*LOG(W79)) -> 
W80: =IF(Input!$F$33<14,"",INDEX($X$15:$AD$374,MATCH(MOD($X80-$Y$13,360),$X$15:$X$374,1),IF(OR(Input!$K$13="Full",Input!$K$13="Partial"),2,6))) ->  | X80: 65 | Y80: =(1/$Z$11)*$Z80 ->  | Z80: =AD80*AA80 ->  | AA80: =SQRT(((1+COS(AB80))^2)+(SIN(AB80)^2)) ->  | AB80: =($AB$12*$AE$10*COS($AH80))+RADIANS($AE$9) ->  | AC80: =(1/$AC$11)*$AD80 -> 0.9504220441 | AD80: 0.9504220441 | AE80: 0 | AF80: =IF(Input!$P$70=1,'AZ Hpol'!$W80,IF(Input!$P$70=2,'AZ Hpol (2)'!$W80,IF(Input!$P$70=3,'AZ Hpol (3)'!W80,IF(Input!$P$70=4,'AZ Hpol (4)'!W80,"")))) -> 0.9867982502 | AH80: =RADIANS(X80) -> 1.134464014
W81: =IF(Input!$F$33<14,"",INDEX($X$15:$AD$374,MATCH(MOD($X81-$Y$13,360),$X$15:$X$374,1),IF(OR(Input!$K$13="Full",Input!$K$13="Partial"),2,6))) ->  | X81: 66 | AC81: 0.9470263164 | AD81: 0.9470263164 | AE81: 0 | AF81: =IF(Input!$P$70=1,'AZ Hpol'!$W81,IF(Input!$P$70=2,'AZ Hpol (2)'!$W81,IF(Input!$P$70=3,'AZ Hpol (3)'!W81,IF(Input!$P$70=4,'AZ Hpol (4)'!W81,"")))) -> 0.9841296644 | AH81: 1.151917306
W82: =IF(Input!$F$33<14,"",INDEX($X$15:$AD$374,MATCH(MOD($X82-$Y$13,360),$X$15:$X$374,1),IF(OR(Input!$K$13="Full",Input!$K$13="Partial"),2,6))) ->  | X82: 67 | AC82: 0.9435864755 | AD82: 0.9435864755 | AE82: 0 | AF82: =IF(Input!$P$70=1,'AZ Hpol'!$W82,IF(Input!$P$70=2,'AZ Hpol (2)'!$W82,IF(Input!$P$70=3,'AZ Hpol (3)'!W82,IF(Input!$P$70=4,'AZ Hpol (4)'!W82,"")))) -> 0.9812691159 | AH82: 1.169370599
W83: =IF(Input!$F$33<14,"",INDEX($X$15:$AD$374,MATCH(MOD($X83-$Y$13,360),$X$15:$X$374,1),IF(OR(Input!$K$13="Full",Input!$K$13="Partial"),2,6))) ->  | X83: 68 | AC83: 0.9401091259 | AD83: 0.9401091259 | AE83: 0 | AF83: =IF(Input!$P$70=1,'AZ Hpol'!$W83,IF(Input!$P$70=2,'AZ Hpol (2)'!$W83,IF(Input!$P$70=3,'AZ Hpol (3)'!W83,IF(Input!$P$70=4,'AZ Hpol (4)'!W83,"")))) -> 0.9782315159 | AH83: 1.186823891
W84: =IF(Input!$F$33<14,"",INDEX($X$15:$AD$374,MATCH(MOD($X84-$Y$13,360),$X$15:$X$374,1),IF(OR(Input!$K$13="Full",Input!$K$13="Partial"),2,6))) ->  | X84: 69 | AC84: 0.9366003563 | AD84: 0.9366003563 | AE84: 0 | AF84: =IF(Input!$P$70=1,'AZ Hpol'!$W84,IF(Input!$P$70=2,'AZ Hpol (2)'!$W84,IF(Input!$P$70=3,'AZ Hpol (3)'!W84,IF(Input!$P$70=4,'AZ Hpol (4)'!W84,"")))) -> 0.9750319332 | AH84: 1.204277184
W85: =IF(Input!$F$33<14,"",INDEX($X$15:$AD$374,MATCH(MOD($X85-$Y$13,360),$X$15:$X$374,1),IF(OR(Input!$K$13="Full",Input!$K$13="Partial"),2,6))) ->  | X85: 70 | AC85: 0.933065668 | AD85: 0.933065668 | AE85: 0 | AF85: =IF(Input!$P$70=1,'AZ Hpol'!$W85,IF(Input!$P$70=2,'AZ Hpol (2)'!$W85,IF(Input!$P$70=3,'AZ Hpol (3)'!W85,IF(Input!$P$70=4,'AZ Hpol (4)'!W85,"")))) -> 0.9716854603 | AH85: 1.221730476
W86: =IF(Input!$F$33<14,"",INDEX($X$15:$AD$374,MATCH(MOD($X86-$Y$13,360),$X$15:$X$374,1),IF(OR(Input!$K$13="Full",Input!$K$13="Partial"),2,6))) ->  | X86: 71 | AC86: 0.9295099066 | AD86: 0.9295099066 | AE86: 0 | AF86: =IF(Input!$P$70=1,'AZ Hpol'!$W86,IF(Input!$P$70=2,'AZ Hpol (2)'!$W86,IF(Input!$P$70=3,'AZ Hpol (3)'!W86,IF(Input!$P$70=4,'AZ Hpol (4)'!W86,"")))) -> 0.9682070762 | AH86: 1.239183769
W87: =IF(Input!$F$33<14,"",INDEX($X$15:$AD$374,MATCH(MOD($X87-$Y$13,360),$X$15:$X$374,1),IF(OR(Input!$K$13="Full",Input!$K$13="Partial"),2,6))) ->  | X87: 72 | AC87: 0.9259371975 | AD87: 0.9259371975 | AE87: 0 | AF87: =IF(Input!$P$70=1,'AZ Hpol'!$W87,IF(Input!$P$70=2,'AZ Hpol (2)'!$W87,IF(Input!$P$70=3,'AZ Hpol (3)'!W87,IF(Input!$P$70=4,'AZ Hpol (4)'!W87,"")))) -> 0.9646115064 | AH87: 1.256637061
W88: =IF(Input!$F$33<14,"",INDEX($X$15:$AD$374,MATCH(MOD($X88-$Y$13,360),$X$15:$X$374,1),IF(OR(Input!$K$13="Full",Input!$K$13="Partial"),2,6))) ->  | X88: 73 | AC88: 0.9223508873 | AD88: 0.9223508873 | AE88: 0 | AF88: =IF(Input!$P$70=1,'AZ Hpol'!$W88,IF(Input!$P$70=2,'AZ Hpol (2)'!$W88,IF(Input!$P$70=3,'AZ Hpol (3)'!W88,IF(Input!$P$70=4,'AZ Hpol (4)'!W88,"")))) -> 0.9609130813 | AH88: 1.274090354
W89: =IF(Input!$F$33<14,"",INDEX($X$15:$AD$374,MATCH(MOD($X89-$Y$13,360),$X$15:$X$374,1),IF(OR(Input!$K$13="Full",Input!$K$13="Partial"),2,6))) ->  | X89: 74 | AC89: 0.9187534902 | AD89: 0.9187534902 | AE89: 0 | AF89: =IF(Input!$P$70=1,'AZ Hpol'!$W89,IF(Input!$P$70=2,'AZ Hpol (2)'!$W89,IF(Input!$P$70=3,'AZ Hpol (3)'!W89,IF(Input!$P$70=4,'AZ Hpol (4)'!W89,"")))) -> 0.9571255943 | AH89: 1.291543646
W90: =IF(Input!$F$33<14,"",INDEX($X$15:$AD$374,MATCH(MOD($X90-$Y$13,360),$X$15:$X$374,1),IF(OR(Input!$K$13="Full",Input!$K$13="Partial"),2,6))) ->  | X90: 75 | AC90: 0.9151466404 | AD90: 0.9151466404 | AE90: 0 | AF90: =IF(Input!$P$70=1,'AZ Hpol'!$W90,IF(Input!$P$70=2,'AZ Hpol (2)'!$W90,IF(Input!$P$70=3,'AZ Hpol (3)'!W90,IF(Input!$P$70=4,'AZ Hpol (4)'!W90,"")))) -> 0.9532621606 | AH90: 1.308996939
W91: =IF(Input!$F$33<14,"",INDEX($X$15:$AD$374,MATCH(MOD($X91-$Y$13,360),$X$15:$X$374,1),IF(OR(Input!$K$13="Full",Input!$K$13="Partial"),2,6))) ->  | X91: 76 | AC91: 0.9115310521 | AD91: 0.9115310521 | AE91: 0 | AF91: =IF(Input!$P$70=1,'AZ Hpol'!$W91,IF(Input!$P$70=2,'AZ Hpol (2)'!$W91,IF(Input!$P$70=3,'AZ Hpol (3)'!W91,IF(Input!$P$70=4,'AZ Hpol (4)'!W91,"")))) -> 0.9493350789 | AH91: 1.326450232
W92: =IF(Input!$F$33<14,"",INDEX($X$15:$AD$374,MATCH(MOD($X92-$Y$13,360),$X$15:$X$374,1),IF(OR(Input!$K$13="Full",Input!$K$13="Partial"),2,6))) ->  | X92: 77 | AC92: 0.9079064865 | AD92: 0.9079064865 | AE92: 0 | AF92: =IF(Input!$P$70=1,'AZ Hpol'!$W92,IF(Input!$P$70=2,'AZ Hpol (2)'!$W92,IF(Input!$P$70=3,'AZ Hpol (3)'!W92,IF(Input!$P$70=4,'AZ Hpol (4)'!W92,"")))) -> 0.9453556956 | AH92: 1.343903524
W93: =IF(Input!$F$33<14,"",INDEX($X$15:$AD$374,MATCH(MOD($X93-$Y$13,360),$X$15:$X$374,1),IF(OR(Input!$K$13="Full",Input!$K$13="Partial"),2,6))) ->  | X93: 78 | AC93: 0.9042717264 | AD93: 0.9042717264 | AE93: 0 | AF93: =IF(Input!$P$70=1,'AZ Hpol'!$W93,IF(Input!$P$70=2,'AZ Hpol (2)'!$W93,IF(Input!$P$70=3,'AZ Hpol (3)'!W93,IF(Input!$P$70=4,'AZ Hpol (4)'!W93,"")))) -> 0.9413342758 | AH93: 1.361356817
W94: =IF(Input!$F$33<14,"",INDEX($X$15:$AD$374,MATCH(MOD($X94-$Y$13,360),$X$15:$X$374,1),IF(OR(Input!$K$13="Full",Input!$K$13="Partial"),2,6))) ->  | X94: 79 | AC94: 0.9006245596 | AD94: 0.9006245596 | AE94: 0 | AF94: =IF(Input!$P$70=1,'AZ Hpol'!$W94,IF(Input!$P$70=2,'AZ Hpol (2)'!$W94,IF(Input!$P$70=3,'AZ Hpol (3)'!W94,IF(Input!$P$70=4,'AZ Hpol (4)'!W94,"")))) -> 0.9372798798 | AH94: 1.378810109
W95: =IF(Input!$F$33<14,"",INDEX($X$15:$AD$374,MATCH(MOD($X95-$Y$13,360),$X$15:$X$374,1),IF(OR(Input!$K$13="Full",Input!$K$13="Partial"),2,6))) ->  | X95: 80 | AC95: 0.8969617703 | AD95: 0.8969617703 | AE95: 0 | AF95: =IF(Input!$P$70=1,'AZ Hpol'!$W95,IF(Input!$P$70=2,'AZ Hpol (2)'!$W95,IF(Input!$P$70=3,'AZ Hpol (3)'!W95,IF(Input!$P$70=4,'AZ Hpol (4)'!W95,"")))) -> 0.9332002492 | AH95: 1.396263402
W96: =IF(Input!$F$33<14,"",INDEX($X$15:$AD$374,MATCH(MOD($X96-$Y$13,360),$X$15:$X$374,1),IF(OR(Input!$K$13="Full",Input!$K$13="Partial"),2,6))) ->  | X96: 81 | AC96: 0.89327914 | AD96: 0.89327914 | AE96: 0 | AF96: =IF(Input!$P$70=1,'AZ Hpol'!$W96,IF(Input!$P$70=2,'AZ Hpol (2)'!$W96,IF(Input!$P$70=3,'AZ Hpol (3)'!W96,IF(Input!$P$70=4,'AZ Hpol (4)'!W96,"")))) -> 0.9291017018 | AH96: 1.413716694
W97: =IF(Input!$F$33<14,"",INDEX($X$15:$AD$374,MATCH(MOD($X97-$Y$13,360),$X$15:$X$374,1),IF(OR(Input!$K$13="Full",Input!$K$13="Partial"),2,6))) ->  | X97: 82 | AC97: 0.8895714564 | AD97: 0.8895714564 | AE97: 0 | AF97: =IF(Input!$P$70=1,'AZ Hpol'!$W97,IF(Input!$P$70=2,'AZ Hpol (2)'!$W97,IF(Input!$P$70=3,'AZ Hpol (3)'!W97,IF(Input!$P$70=4,'AZ Hpol (4)'!W97,"")))) -> 0.9249890393 | AH97: 1.431169987
W98: =IF(Input!$F$33<14,"",INDEX($X$15:$AD$374,MATCH(MOD($X98-$Y$13,360),$X$15:$X$374,1),IF(OR(Input!$K$13="Full",Input!$K$13="Partial"),2,6))) ->  | X98: 83 | AC98: 0.8858325323 | AD98: 0.8858325323 | AE98: 0 | AF98: =IF(Input!$P$70=1,'AZ Hpol'!$W98,IF(Input!$P$70=2,'AZ Hpol (2)'!$W98,IF(Input!$P$70=3,'AZ Hpol (3)'!W98,IF(Input!$P$70=4,'AZ Hpol (4)'!W98,"")))) -> 0.9208654673 | AH98: 1.448623279
W99: =IF(Input!$F$33<14,"",INDEX($X$15:$AD$374,MATCH(MOD($X99-$Y$13,360),$X$15:$X$374,1),IF(OR(Input!$K$13="Full",Input!$K$13="Partial"),2,6))) ->  | X99: 84 | AC99: 0.8820552328 | AD99: 0.8820552328 | AE99: 0 | AF99: =IF(Input!$P$70=1,'AZ Hpol'!$W99,IF(Input!$P$70=2,'AZ Hpol (2)'!$W99,IF(Input!$P$70=3,'AZ Hpol (3)'!W99,IF(Input!$P$70=4,'AZ Hpol (4)'!W99,"")))) -> 0.9167325297 | AH99: 1.466076572
W100: =IF(Input!$F$33<14,"",INDEX($X$15:$AD$374,MATCH(MOD($X100-$Y$13,360),$X$15:$X$374,1),IF(OR(Input!$K$13="Full",Input!$K$13="Partial"),2,6))) ->  | X100: 85 | AC100: 0.8782315115 | AD100: 0.8782315115 | AE100: 0 | AF100: =IF(Input!$P$70=1,'AZ Hpol'!$W100,IF(Input!$P$70=2,'AZ Hpol (2)'!$W100,IF(Input!$P$70=3,'AZ Hpol (3)'!W100,IF(Input!$P$70=4,'AZ Hpol (4)'!W100,"")))) -> 0.912590059 | AH100: 1.483529864
W101: =IF(Input!$F$33<14,"",INDEX($X$15:$AD$374,MATCH(MOD($X101-$Y$13,360),$X$15:$X$374,1),IF(OR(Input!$K$13="Full",Input!$K$13="Partial"),2,6))) ->  | X101: 86 | AC101: 0.8743524559 | AD101: 0.8743524559 | AE101: 0 | AF101: =IF(Input!$P$70=1,'AZ Hpol'!$W101,IF(Input!$P$70=2,'AZ Hpol (2)'!$W101,IF(Input!$P$70=3,'AZ Hpol (3)'!W101,IF(Input!$P$70=4,'AZ Hpol (4)'!W101,"")))) -> 0.9084361431 | AH101: 1.500983157
W102: =IF(Input!$F$33<14,"",INDEX($X$15:$AD$374,MATCH(MOD($X102-$Y$13,360),$X$15:$X$374,1),IF(OR(Input!$K$13="Full",Input!$K$13="Partial"),2,6))) ->  | X102: 87 | AC102: 0.8704083399 | AD102: 0.8704083399 | AE102: 0 | AF102: =IF(Input!$P$70=1,'AZ Hpol'!$W102,IF(Input!$P$70=2,'AZ Hpol (2)'!$W102,IF(Input!$P$70=3,'AZ Hpol (3)'!W102,IF(Input!$P$70=4,'AZ Hpol (4)'!W102,"")))) -> 0.9042671094 | AH102: 1.518436449
W103: =IF(Input!$F$33<14,"",INDEX($X$15:$AD$374,MATCH(MOD($X103-$Y$13,360),$X$15:$X$374,1),IF(OR(Input!$K$13="Full",Input!$K$13="Partial"),2,6))) ->  | X103: 88 | AC103: 0.8663886861 | AD103: 0.8663886861 | AE103: 0 | AF103: =IF(Input!$P$70=1,'AZ Hpol'!$W103,IF(Input!$P$70=2,'AZ Hpol (2)'!$W103,IF(Input!$P$70=3,'AZ Hpol (3)'!W103,IF(Input!$P$70=4,'AZ Hpol (4)'!W103,"")))) -> 0.9000775268 | AH103: 1.535889742
W104: =IF(Input!$F$33<14,"",INDEX($X$15:$AD$374,MATCH(MOD($X104-$Y$13,360),$X$15:$X$374,1),IF(OR(Input!$K$13="Full",Input!$K$13="Partial"),2,6))) ->  | X104: 89 | AC104: 0.862282334 | AD104: 0.862282334 | AE104: 0 | AF104: =IF(Input!$P$70=1,'AZ Hpol'!$W104,IF(Input!$P$70=2,'AZ Hpol (2)'!$W104,IF(Input!$P$70=3,'AZ Hpol (3)'!W104,IF(Input!$P$70=4,'AZ Hpol (4)'!W104,"")))) -> 0.8958602265 | AH104: 1.553343034
W105: =IF(Input!$F$33<14,"",INDEX($X$15:$AD$374,MATCH(MOD($X105-$Y$13,360),$X$15:$X$374,1),IF(OR(Input!$K$13="Full",Input!$K$13="Partial"),2,6))) ->  | X105: 90 | AC105: 0.8580775167 | AD105: 0.8580775167 | AE105: 1 | AF105: =IF(Input!$P$70=1,'AZ Hpol'!$W105,IF(Input!$P$70=2,'AZ Hpol (2)'!$W105,IF(Input!$P$70=3,'AZ Hpol (3)'!W105,IF(Input!$P$70=4,'AZ Hpol (4)'!W105,"")))) -> 0.8916063408 | AH105: 1.570796327
W106: =IF(Input!$F$33<14,"",INDEX($X$15:$AD$374,MATCH(MOD($X106-$Y$13,360),$X$15:$X$374,1),IF(OR(Input!$K$13="Full",Input!$K$13="Partial"),2,6))) ->  | X106: 91 | AC106: 0.8537619437 | AD106: 0.8537619437 | AE106: 0 | AF106: =IF(Input!$P$70=1,'AZ Hpol'!$W106,IF(Input!$P$70=2,'AZ Hpol (2)'!$W106,IF(Input!$P$70=3,'AZ Hpol (3)'!W106,IF(Input!$P$70=4,'AZ Hpol (4)'!W106,"")))) -> 0.8873053606 | AH106: 1.588249619
W107: =IF(Input!$F$33<14,"",INDEX($X$15:$AD$374,MATCH(MOD($X107-$Y$13,360),$X$15:$X$374,1),IF(OR(Input!$K$13="Full",Input!$K$13="Partial"),2,6))) ->  | X107: 92 | AC107: 0.8493228895 | AD107: 0.8493228895 | AE107: 0 | AF107: =IF(Input!$P$70=1,'AZ Hpol'!$W107,IF(Input!$P$70=2,'AZ Hpol (2)'!$W107,IF(Input!$P$70=3,'AZ Hpol (3)'!W107,IF(Input!$P$70=4,'AZ Hpol (4)'!W107,"")))) -> 0.88294521 | AH107: 1.605702912
W108: =IF(Input!$F$33<14,"",INDEX($X$15:$AD$374,MATCH(MOD($X108-$Y$13,360),$X$15:$X$374,1),IF(OR(Input!$K$13="Full",Input!$K$13="Partial"),2,6))) ->  | X108: 93 | AC108: 0.8447472894 | AD108: 0.8447472894 | AE108: 0 | AF108: =IF(Input!$P$70=1,'AZ Hpol'!$W108,IF(Input!$P$70=2,'AZ Hpol (2)'!$W108,IF(Input!$P$70=3,'AZ Hpol (3)'!W108,IF(Input!$P$70=4,'AZ Hpol (4)'!W108,"")))) -> 0.8785123392 | AH108: 1.623156204
W109: =IF(Input!$F$33<14,"",INDEX($X$15:$AD$374,MATCH(MOD($X109-$Y$13,360),$X$15:$X$374,1),IF(OR(Input!$K$13="Full",Input!$K$13="Partial"),2,6))) ->  | X109: 94 | AC109: 0.8400218382 | AD109: 0.8400218382 | AE109: 0 | AF109: =IF(Input!$P$70=1,'AZ Hpol'!$W109,IF(Input!$P$70=2,'AZ Hpol (2)'!$W109,IF(Input!$P$70=3,'AZ Hpol (3)'!W109,IF(Input!$P$70=4,'AZ Hpol (4)'!W109,"")))) -> 0.8739918327 | AH109: 1.640609497
W110: =IF(Input!$F$33<14,"",INDEX($X$15:$AD$374,MATCH(MOD($X110-$Y$13,360),$X$15:$X$374,1),IF(OR(Input!$K$13="Full",Input!$K$13="Partial"),2,6))) ->  | X110: 95 | AC110: 0.8351330955 | AD110: 0.8351330955 | AE110: 0 | AF110: =IF(Input!$P$70=1,'AZ Hpol'!$W110,IF(Input!$P$70=2,'AZ Hpol (2)'!$W110,IF(Input!$P$70=3,'AZ Hpol (3)'!W110,IF(Input!$P$70=4,'AZ Hpol (4)'!W110,"")))) -> 0.8693675334 | AH110: 1.658062789
W111: =IF(Input!$F$33<14,"",INDEX($X$15:$AD$374,MATCH(MOD($X111-$Y$13,360),$X$15:$X$374,1),IF(OR(Input!$K$13="Full",Input!$K$13="Partial"),2,6))) ->  | X111: 96 | AC111: 0.8300675938 | AD111: 0.8300675938 | AE111: 0 | AF111: =IF(Input!$P$70=1,'AZ Hpol'!$W111,IF(Input!$P$70=2,'AZ Hpol (2)'!$W111,IF(Input!$P$70=3,'AZ Hpol (3)'!W111,IF(Input!$P$70=4,'AZ Hpol (4)'!W111,"")))) -> 0.8646221808 | AH111: 1.675516082
W112: =IF(Input!$F$33<14,"",INDEX($X$15:$AD$374,MATCH(MOD($X112-$Y$13,360),$X$15:$X$374,1),IF(OR(Input!$K$13="Full",Input!$K$13="Partial"),2,6))) ->  | X112: 97 | AC112: 0.824811951 | AD112: 0.824811951 | AE112: 0 | AF112: =IF(Input!$P$70=1,'AZ Hpol'!$W112,IF(Input!$P$70=2,'AZ Hpol (2)'!$W112,IF(Input!$P$70=3,'AZ Hpol (3)'!W112,IF(Input!$P$70=4,'AZ Hpol (4)'!W112,"")))) -> 0.8597375611 | AH112: 1.692969374
W113: =IF(Input!$F$33<14,"",INDEX($X$15:$AD$374,MATCH(MOD($X113-$Y$13,360),$X$15:$X$374,1),IF(OR(Input!$K$13="Full",Input!$K$13="Partial"),2,6))) ->  | X113: 98 | AC113: 0.8193529853 | AD113: 0.8193529853 | AE113: 0 | AF113: =IF(Input!$P$70=1,'AZ Hpol'!$W113,IF(Input!$P$70=2,'AZ Hpol (2)'!$W113,IF(Input!$P$70=3,'AZ Hpol (3)'!W113,IF(Input!$P$70=4,'AZ Hpol (4)'!W113,"")))) -> 0.8546946698 | AH113: 1.710422667
W114: =IF(Input!$F$33<14,"",INDEX($X$15:$AD$374,MATCH(MOD($X114-$Y$13,360),$X$15:$X$374,1),IF(OR(Input!$K$13="Full",Input!$K$13="Partial"),2,6))) ->  | X114: 99 | AC114: 0.8136778338 | AD114: 0.8136778338 | AE114: 0 | AF114: =IF(Input!$P$70=1,'AZ Hpol'!$W114,IF(Input!$P$70=2,'AZ Hpol (2)'!$W114,IF(Input!$P$70=3,'AZ Hpol (3)'!W114,IF(Input!$P$70=4,'AZ Hpol (4)'!W114,"")))) -> 0.8494738834 | AH114: 1.727875959
W115: =IF(Input!$F$33<14,"",INDEX($X$15:$AD$374,MATCH(MOD($X115-$Y$13,360),$X$15:$X$374,1),IF(OR(Input!$K$13="Full",Input!$K$13="Partial"),2,6))) ->  | X115: 100 | AC115: 0.8077740722 | AD115: 0.8077740722 | AE115: 0 | AF115: =IF(Input!$P$70=1,'AZ Hpol'!$W115,IF(Input!$P$70=2,'AZ Hpol (2)'!$W115,IF(Input!$P$70=3,'AZ Hpol (3)'!W115,IF(Input!$P$70=4,'AZ Hpol (4)'!W115,"")))) -> 0.8440551393 | AH115: 1.745329252
W116: =IF(Input!$F$33<14,"",INDEX($X$15:$AD$374,MATCH(MOD($X116-$Y$13,360),$X$15:$X$374,1),IF(OR(Input!$K$13="Full",Input!$K$13="Partial"),2,6))) ->  | X116: 101 | AC116: 0.801629838 | AD116: 0.801629838 | AE116: 0 | AF116: =IF(Input!$P$70=1,'AZ Hpol'!$W116,IF(Input!$P$70=2,'AZ Hpol (2)'!$W116,IF(Input!$P$70=3,'AZ Hpol (3)'!W116,IF(Input!$P$70=4,'AZ Hpol (4)'!W116,"")))) -> 0.8384181235 | AH116: 1.762782545
W117: =IF(Input!$F$33<14,"",INDEX($X$15:$AD$374,MATCH(MOD($X117-$Y$13,360),$X$15:$X$374,1),IF(OR(Input!$K$13="Full",Input!$K$13="Partial"),2,6))) ->  | X117: 102 | AC117: 0.7952339544 | AD117: 0.7952339544 | AE117: 0 | AF117: =IF(Input!$P$70=1,'AZ Hpol'!$W117,IF(Input!$P$70=2,'AZ Hpol (2)'!$W117,IF(Input!$P$70=3,'AZ Hpol (3)'!W117,IF(Input!$P$70=4,'AZ Hpol (4)'!W117,"")))) -> 0.8325424629 | AH117: 1.780235837
W118: =IF(Input!$F$33<14,"",INDEX($X$15:$AD$374,MATCH(MOD($X118-$Y$13,360),$X$15:$X$374,1),IF(OR(Input!$K$13="Full",Input!$K$13="Partial"),2,6))) ->  | X118: 103 | AC118: 0.7885760561 | AD118: 0.7885760561 | AE118: 0 | AF118: =IF(Input!$P$70=1,'AZ Hpol'!$W118,IF(Input!$P$70=2,'AZ Hpol (2)'!$W118,IF(Input!$P$70=3,'AZ Hpol (3)'!W118,IF(Input!$P$70=4,'AZ Hpol (4)'!W118,"")))) -> 0.8264079224 | AH118: 1.79768913
W119: =IF(Input!$F$33<14,"",INDEX($X$15:$AD$374,MATCH(MOD($X119-$Y$13,360),$X$15:$X$374,1),IF(OR(Input!$K$13="Full",Input!$K$13="Partial"),2,6))) ->  | X119: 104 | AC119: 0.7816467171 | AD119: 0.7816467171 | AE119: 0 | AF119: =IF(Input!$P$70=1,'AZ Hpol'!$W119,IF(Input!$P$70=2,'AZ Hpol (2)'!$W119,IF(Input!$P$70=3,'AZ Hpol (3)'!W119,IF(Input!$P$70=4,'AZ Hpol (4)'!W119,"")))) -> 0.8199946047 | AH119: 1.815142422
W120: =IF(Input!$F$33<14,"",INDEX($X$15:$AD$374,MATCH(MOD($X120-$Y$13,360),$X$15:$X$374,1),IF(OR(Input!$K$13="Full",Input!$K$13="Partial"),2,6))) ->  | X120: 105 | AC120: 0.7744375796 | AD120: 0.7744375796 | AE120: 0 | AF120: =IF(Input!$P$70=1,'AZ Hpol'!$W120,IF(Input!$P$70=2,'AZ Hpol (2)'!$W120,IF(Input!$P$70=3,'AZ Hpol (3)'!W120,IF(Input!$P$70=4,'AZ Hpol (4)'!W120,"")))) -> 0.8132831527 | AH120: 1.832595715
W121: =IF(Input!$F$33<14,"",INDEX($X$15:$AD$374,MATCH(MOD($X121-$Y$13,360),$X$15:$X$374,1),IF(OR(Input!$K$13="Full",Input!$K$13="Partial"),2,6))) ->  | X121: 106 | AC121: 0.7669414839 | AD121: 0.7669414839 | AE121: 0 | AF121: =IF(Input!$P$70=1,'AZ Hpol'!$W121,IF(Input!$P$70=2,'AZ Hpol (2)'!$W121,IF(Input!$P$70=3,'AZ Hpol (3)'!W121,IF(Input!$P$70=4,'AZ Hpol (4)'!W121,"")))) -> 0.8062549529 | AH121: 1.850049007
W122: =IF(Input!$F$33<14,"",INDEX($X$15:$AD$374,MATCH(MOD($X122-$Y$13,360),$X$15:$X$374,1),IF(OR(Input!$K$13="Full",Input!$K$13="Partial"),2,6))) ->  | X122: 107 | AC122: 0.7591526006 | AD122: 0.7591526006 | AE122: 0 | AF122: =IF(Input!$P$70=1,'AZ Hpol'!$W122,IF(Input!$P$70=2,'AZ Hpol (2)'!$W122,IF(Input!$P$70=3,'AZ Hpol (3)'!W122,IF(Input!$P$70=4,'AZ Hpol (4)'!W122,"")))) -> 0.7988923385 | AH122: 1.8675023
W123: =IF(Input!$F$33<14,"",INDEX($X$15:$AD$374,MATCH(MOD($X123-$Y$13,360),$X$15:$X$374,1),IF(OR(Input!$K$13="Full",Input!$K$13="Partial"),2,6))) ->  | X123: 108 | AC123: 0.7510665642 | AD123: 0.7510665642 | AE123: 0 | AF123: =IF(Input!$P$70=1,'AZ Hpol'!$W123,IF(Input!$P$70=2,'AZ Hpol (2)'!$W123,IF(Input!$P$70=3,'AZ Hpol (3)'!W123,IF(Input!$P$70=4,'AZ Hpol (4)'!W123,"")))) -> 0.7911787942 | AH123: 1.884955592
W124: =IF(Input!$F$33<14,"",INDEX($X$15:$AD$374,MATCH(MOD($X124-$Y$13,360),$X$15:$X$374,1),IF(OR(Input!$K$13="Full",Input!$K$13="Partial"),2,6))) ->  | X124: 109 | AC124: 0.7426806088 | AD124: 0.7426806088 | AE124: 0 | AF124: =IF(Input!$P$70=1,'AZ Hpol'!$W124,IF(Input!$P$70=2,'AZ Hpol (2)'!$W124,IF(Input!$P$70=3,'AZ Hpol (3)'!W124,IF(Input!$P$70=4,'AZ Hpol (4)'!W124,"")))) -> 0.7830991592 | AH124: 1.902408885
W125: =IF(Input!$F$33<14,"",INDEX($X$15:$AD$374,MATCH(MOD($X125-$Y$13,360),$X$15:$X$374,1),IF(OR(Input!$K$13="Full",Input!$K$13="Partial"),2,6))) ->  | X125: 110 | AC125: 0.7339937051 | AD125: 0.7339937051 | AE125: 0 | AF125: =IF(Input!$P$70=1,'AZ Hpol'!$W125,IF(Input!$P$70=2,'AZ Hpol (2)'!$W125,IF(Input!$P$70=3,'AZ Hpol (3)'!W125,IF(Input!$P$70=4,'AZ Hpol (4)'!W125,"")))) -> 0.7746398305 | AH125: 1.919862177
W126: =IF(Input!$F$33<14,"",INDEX($X$15:$AD$374,MATCH(MOD($X126-$Y$13,360),$X$15:$X$374,1),IF(OR(Input!$K$13="Full",Input!$K$13="Partial"),2,6))) ->  | X126: 111 | AC126: 0.7250067016 | AD126: 0.7250067016 | AE126: 0 | AF126: =IF(Input!$P$70=1,'AZ Hpol'!$W126,IF(Input!$P$70=2,'AZ Hpol (2)'!$W126,IF(Input!$P$70=3,'AZ Hpol (3)'!W126,IF(Input!$P$70=4,'AZ Hpol (4)'!W126,"")))) -> 0.7657889665 | AH126: 1.93731547
W127: =IF(Input!$F$33<14,"",INDEX($X$15:$AD$374,MATCH(MOD($X127-$Y$13,360),$X$15:$X$374,1),IF(OR(Input!$K$13="Full",Input!$K$13="Partial"),2,6))) ->  | X127: 112 | AC127: 0.7157224671 | AD127: 0.7157224671 | AE127: 0 | AF127: =IF(Input!$P$70=1,'AZ Hpol'!$W127,IF(Input!$P$70=2,'AZ Hpol (2)'!$W127,IF(Input!$P$70=3,'AZ Hpol (3)'!W127,IF(Input!$P$70=4,'AZ Hpol (4)'!W127,"")))) -> 0.7565366903 | AH127: 1.954768762
W128: =IF(Input!$F$33<14,"",INDEX($X$15:$AD$374,MATCH(MOD($X128-$Y$13,360),$X$15:$X$374,1),IF(OR(Input!$K$13="Full",Input!$K$13="Partial"),2,6))) ->  | X128: 113 | AC128: 0.7061460373 | AD128: 0.7061460373 | AE128: 0 | AF128: =IF(Input!$P$70=1,'AZ Hpol'!$W128,IF(Input!$P$70=2,'AZ Hpol (2)'!$W128,IF(Input!$P$70=3,'AZ Hpol (3)'!W128,IF(Input!$P$70=4,'AZ Hpol (4)'!W128,"")))) -> 0.7468752937 | AH128: 1.972222055
W129: =IF(Input!$F$33<14,"",INDEX($X$15:$AD$374,MATCH(MOD($X129-$Y$13,360),$X$15:$X$374,1),IF(OR(Input!$K$13="Full",Input!$K$13="Partial"),2,6))) ->  | X129: 114 | AC129: 0.6962847653 | AD129: 0.6962847653 | AE129: 0 | AF129: =IF(Input!$P$70=1,'AZ Hpol'!$W129,IF(Input!$P$70=2,'AZ Hpol (2)'!$W129,IF(Input!$P$70=3,'AZ Hpol (3)'!W129,IF(Input!$P$70=4,'AZ Hpol (4)'!W129,"")))) -> 0.7367994441 | AH129: 1.989675347
W130: =IF(Input!$F$33<14,"",INDEX($X$15:$AD$374,MATCH(MOD($X130-$Y$13,360),$X$15:$X$374,1),IF(OR(Input!$K$13="Full",Input!$K$13="Partial"),2,6))) ->  | X130: 115 | AC130: 0.6861484756 | AD130: 0.6861484756 | AE130: 0 | AF130: =IF(Input!$P$70=1,'AZ Hpol'!$W130,IF(Input!$P$70=2,'AZ Hpol (2)'!$W130,IF(Input!$P$70=3,'AZ Hpol (3)'!W130,IF(Input!$P$70=4,'AZ Hpol (4)'!W130,"")))) -> 0.7263063933 | AH130: 2.00712864
W131: =IF(Input!$F$33<14,"",INDEX($X$15:$AD$374,MATCH(MOD($X131-$Y$13,360),$X$15:$X$374,1),IF(OR(Input!$K$13="Full",Input!$K$13="Partial"),2,6))) ->  | X131: 116 | AC131: 0.6757496229 | AD131: 0.6757496229 | AE131: 0 | AF131: =IF(Input!$P$70=1,'AZ Hpol'!$W131,IF(Input!$P$70=2,'AZ Hpol (2)'!$W131,IF(Input!$P$70=3,'AZ Hpol (3)'!W131,IF(Input!$P$70=4,'AZ Hpol (4)'!W131,"")))) -> 0.7153961911 | AH131: 2.024581932
W132: =IF(Input!$F$33<14,"",INDEX($X$15:$AD$374,MATCH(MOD($X132-$Y$13,360),$X$15:$X$374,1),IF(OR(Input!$K$13="Full",Input!$K$13="Partial"),2,6))) ->  | X132: 117 | AC132: 0.6651034558 | AD132: 0.6651034558 | AE132: 0 | AF132: =IF(Input!$P$70=1,'AZ Hpol'!$W132,IF(Input!$P$70=2,'AZ Hpol (2)'!$W132,IF(Input!$P$70=3,'AZ Hpol (3)'!W132,IF(Input!$P$70=4,'AZ Hpol (4)'!W132,"")))) -> 0.7040719055 | AH132: 2.042035225
W133: =IF(Input!$F$33<14,"",INDEX($X$15:$AD$374,MATCH(MOD($X133-$Y$13,360),$X$15:$X$374,1),IF(OR(Input!$K$13="Full",Input!$K$13="Partial"),2,6))) ->  | X133: 118 | AC133: 0.6542281844 | AD133: 0.6542281844 | AE133: 0 | AF133: =IF(Input!$P$70=1,'AZ Hpol'!$W133,IF(Input!$P$70=2,'AZ Hpol (2)'!$W133,IF(Input!$P$70=3,'AZ Hpol (3)'!W133,IF(Input!$P$70=4,'AZ Hpol (4)'!W133,"")))) -> 0.6923398507 | AH133: 2.059488517
W134: =IF(Input!$F$33<14,"",INDEX($X$15:$AD$374,MATCH(MOD($X134-$Y$13,360),$X$15:$X$374,1),IF(OR(Input!$K$13="Full",Input!$K$13="Partial"),2,6))) ->  | X134: 119 | AC134: 0.6431451521 | AD134: 0.6431451521 | AE134: 0 | AF134: =IF(Input!$P$70=1,'AZ Hpol'!$W134,IF(Input!$P$70=2,'AZ Hpol (2)'!$W134,IF(Input!$P$70=3,'AZ Hpol (3)'!W134,IF(Input!$P$70=4,'AZ Hpol (4)'!W134,"")))) -> 0.6802098254 | AH134: 2.07694181
W135: =IF(Input!$F$33<14,"",INDEX($X$15:$AD$374,MATCH(MOD($X135-$Y$13,360),$X$15:$X$374,1),IF(OR(Input!$K$13="Full",Input!$K$13="Partial"),2,6))) ->  | X135: 120 | AC135: 0.6318790117 | AD135: 0.6318790117 | AE135: 1 | AF135: =IF(Input!$P$70=1,'AZ Hpol'!$W135,IF(Input!$P$70=2,'AZ Hpol (2)'!$W135,IF(Input!$P$70=3,'AZ Hpol (3)'!W135,IF(Input!$P$70=4,'AZ Hpol (4)'!W135,"")))) -> 0.6676953649 | AH135: 2.094395102
W136: =IF(Input!$F$33<14,"",INDEX($X$15:$AD$374,MATCH(MOD($X136-$Y$13,360),$X$15:$X$374,1),IF(OR(Input!$K$13="Full",Input!$K$13="Partial"),2,6))) ->  | X136: 121 | AC136: 0.6204579016 | AD136: 0.6204579016 | AE136: 0 | AF136: =IF(Input!$P$70=1,'AZ Hpol'!$W136,IF(Input!$P$70=2,'AZ Hpol (2)'!$W136,IF(Input!$P$70=3,'AZ Hpol (3)'!W136,IF(Input!$P$70=4,'AZ Hpol (4)'!W136,"")))) -> 0.6548140081 | AH136: 2.111848395
W137: =IF(Input!$F$33<14,"",INDEX($X$15:$AD$374,MATCH(MOD($X137-$Y$13,360),$X$15:$X$374,1),IF(OR(Input!$K$13="Full",Input!$K$13="Partial"),2,6))) ->  | X137: 122 | AC137: 0.6089136222 | AD137: 0.6089136222 | AE137: 0 | AF137: =IF(Input!$P$70=1,'AZ Hpol'!$W137,IF(Input!$P$70=2,'AZ Hpol (2)'!$W137,IF(Input!$P$70=3,'AZ Hpol (3)'!W137,IF(Input!$P$70=4,'AZ Hpol (4)'!W137,"")))) -> 0.6415875843 | AH137: 2.129301687
W138: =IF(Input!$F$33<14,"",INDEX($X$15:$AD$374,MATCH(MOD($X138-$Y$13,360),$X$15:$X$374,1),IF(OR(Input!$K$13="Full",Input!$K$13="Partial"),2,6))) ->  | X138: 123 | AC138: 0.597281808 | AD138: 0.597281808 | AE138: 0 | AF138: =IF(Input!$P$70=1,'AZ Hpol'!$W138,IF(Input!$P$70=2,'AZ Hpol (2)'!$W138,IF(Input!$P$70=3,'AZ Hpol (3)'!W138,IF(Input!$P$70=4,'AZ Hpol (4)'!W138,"")))) -> 0.6280425201 | AH138: 2.14675498
W139: =IF(Input!$F$33<14,"",INDEX($X$15:$AD$374,MATCH(MOD($X139-$Y$13,360),$X$15:$X$374,1),IF(OR(Input!$K$13="Full",Input!$K$13="Partial"),2,6))) ->  | X139: 124 | AC139: 0.5856020885 | AD139: 0.5856020885 | AE139: 0 | AF139: =IF(Input!$P$70=1,'AZ Hpol'!$W139,IF(Input!$P$70=2,'AZ Hpol (2)'!$W139,IF(Input!$P$70=3,'AZ Hpol (3)'!W139,IF(Input!$P$70=4,'AZ Hpol (4)'!W139,"")))) -> 0.6142101726 | AH139: 2.164208272
W140: =IF(Input!$F$33<14,"",INDEX($X$15:$AD$374,MATCH(MOD($X140-$Y$13,360),$X$15:$X$374,1),IF(OR(Input!$K$13="Full",Input!$K$13="Partial"),2,6))) ->  | X140: 125 | AC140: 0.5739182332 | AD140: 0.5739182332 | AE140: 0 | AF140: =IF(Input!$P$70=1,'AZ Hpol'!$W140,IF(Input!$P$70=2,'AZ Hpol (2)'!$W140,IF(Input!$P$70=3,'AZ Hpol (3)'!W140,IF(Input!$P$70=4,'AZ Hpol (4)'!W140,"")))) -> 0.6001271867 | AH140: 2.181661565
W141: =IF(Input!$F$33<14,"",INDEX($X$15:$AD$374,MATCH(MOD($X141-$Y$13,360),$X$15:$X$374,1),IF(OR(Input!$K$13="Full",Input!$K$13="Partial"),2,6))) ->  | X141: 126 | AC141: 0.5622782681 | AD141: 0.5622782681 | AE141: 0 | AF141: =IF(Input!$P$70=1,'AZ Hpol'!$W141,IF(Input!$P$70=2,'AZ Hpol (2)'!$W141,IF(Input!$P$70=3,'AZ Hpol (3)'!W141,IF(Input!$P$70=4,'AZ Hpol (4)'!W141,"")))) -> 0.5858358814 | AH141: 2.199114858
W142: =IF(Input!$F$33<14,"",INDEX($X$15:$AD$374,MATCH(MOD($X142-$Y$13,360),$X$15:$X$374,1),IF(OR(Input!$K$13="Full",Input!$K$13="Partial"),2,6))) ->  | X142: 127 | AC142: 0.5507345521 | AD142: 0.5507345521 | AE142: 0 | AF142: =IF(Input!$P$70=1,'AZ Hpol'!$W142,IF(Input!$P$70=2,'AZ Hpol (2)'!$W142,IF(Input!$P$70=3,'AZ Hpol (3)'!W142,IF(Input!$P$70=4,'AZ Hpol (4)'!W142,"")))) -> 0.5713846614 | AH142: 2.21656815
W143: =IF(Input!$F$33<14,"",INDEX($X$15:$AD$374,MATCH(MOD($X143-$Y$13,360),$X$15:$X$374,1),IF(OR(Input!$K$13="Full",Input!$K$13="Partial"),2,6))) ->  | X143: 128 | AC143: 0.5393437964 | AD143: 0.5393437964 | AE143: 0 | AF143: =IF(Input!$P$70=1,'AZ Hpol'!$W143,IF(Input!$P$70=2,'AZ Hpol (2)'!$W143,IF(Input!$P$70=3,'AZ Hpol (3)'!W143,IF(Input!$P$70=4,'AZ Hpol (4)'!W143,"")))) -> 0.5568284518 | AG143: =ROUND(20*LOG(W143),4) ->  | AH143: 2.234021443 | AI143: =IF(W143<=0.031622776602,-30,20*LOG(W143)) -> 
W144: =IF(Input!$F$33<14,"",INDEX($X$15:$AD$374,MATCH(MOD($X144-$Y$13,360),$X$15:$X$374,1),IF(OR(Input!$K$13="Full",Input!$K$13="Partial"),2,6))) ->  | X144: 129 | Y144: =(1/$Z$11)*$Z144 ->  | Z144: =AD144*AA144 ->  | AA144: =SQRT(((1+COS(AB144))^2)+(SIN(AB144)^2)) ->  | AB144: =($AB$12*$AE$10*COS($AH144))+RADIANS($AE$9) ->  | AC144: =(1/$AC$11)*$AD144 -> 0.5281670054 | AD144: 0.5281670054 | AE144: 0 | AF144: =IF(Input!$P$70=1,'AZ Hpol'!$W144,IF(Input!$P$70=2,'AZ Hpol (2)'!$W144,IF(Input!$P$70=3,'AZ Hpol (3)'!W144,IF(Input!$P$70=4,'AZ Hpol (4)'!W144,"")))) -> 0.5422291462 | AH144: =RADIANS(X144) -> 2.251474735
W145: =IF(Input!$F$33<14,"",INDEX($X$15:$AD$374,MATCH(MOD($X145-$Y$13,360),$X$15:$X$374,1),IF(OR(Input!$K$13="Full",Input!$K$13="Partial"),2,6))) ->  | X145: 130 | AC145: 0.5172693151 | AD145: 0.5172693151 | AE145: 0 | AF145: =IF(Input!$P$70=1,'AZ Hpol'!$W145,IF(Input!$P$70=2,'AZ Hpol (2)'!$W145,IF(Input!$P$70=3,'AZ Hpol (3)'!W145,IF(Input!$P$70=4,'AZ Hpol (4)'!W145,"")))) -> 0.5276560544 | AH145: 2.268928028
W146: =IF(Input!$F$33<14,"",INDEX($X$15:$AD$374,MATCH(MOD($X146-$Y$13,360),$X$15:$X$374,1),IF(OR(Input!$K$13="Full",Input!$K$13="Partial"),2,6))) ->  | X146: 131 | AC146: 0.5067196995 | AD146: 0.5067196995 | AE146: 0 | AF146: =IF(Input!$P$70=1,'AZ Hpol'!$W146,IF(Input!$P$70=2,'AZ Hpol (2)'!$W146,IF(Input!$P$70=3,'AZ Hpol (3)'!W146,IF(Input!$P$70=4,'AZ Hpol (4)'!W146,"")))) -> 0.5131863262 | AH146: 2.28638132
W147: =IF(Input!$F$33<14,"",INDEX($X$15:$AD$374,MATCH(MOD($X147-$Y$13,360),$X$15:$X$374,1),IF(OR(Input!$K$13="Full",Input!$K$13="Partial"),2,6))) ->  | X147: 132 | AC147: 0.4965905131 | AD147: 0.4965905131 | AE147: 0 | AF147: =IF(Input!$P$70=1,'AZ Hpol'!$W147,IF(Input!$P$70=2,'AZ Hpol (2)'!$W147,IF(Input!$P$70=3,'AZ Hpol (3)'!W147,IF(Input!$P$70=4,'AZ Hpol (4)'!W147,"")))) -> 0.4989053135 | AH147: 2.303834613
W148: =IF(Input!$F$33<14,"",INDEX($X$15:$AD$374,MATCH(MOD($X148-$Y$13,360),$X$15:$X$374,1),IF(OR(Input!$K$13="Full",Input!$K$13="Partial"),2,6))) ->  | X148: 133 | AC148: 0.4869568382 | AD148: 0.4869568382 | AE148: 0 | AF148: =IF(Input!$P$70=1,'AZ Hpol'!$W148,IF(Input!$P$70=2,'AZ Hpol (2)'!$W148,IF(Input!$P$70=3,'AZ Hpol (3)'!W148,IF(Input!$P$70=4,'AZ Hpol (4)'!W148,"")))) -> 0.4849068213 | AH148: 2.321287905
W149: =IF(Input!$F$33<14,"",INDEX($X$15:$AD$374,MATCH(MOD($X149-$Y$13,360),$X$15:$X$374,1),IF(OR(Input!$K$13="Full",Input!$K$13="Partial"),2,6))) ->  | X149: 134 | AC149: 0.4778956038 | AD149: 0.4778956038 | AE149: 0 | AF149: =IF(Input!$P$70=1,'AZ Hpol'!$W149,IF(Input!$P$70=2,'AZ Hpol (2)'!$W149,IF(Input!$P$70=3,'AZ Hpol (3)'!W149,IF(Input!$P$70=4,'AZ Hpol (4)'!W149,"")))) -> 0.4712931738 | AH149: 2.338741198
W150: =IF(Input!$F$33<14,"",INDEX($X$15:$AD$374,MATCH(MOD($X150-$Y$13,360),$X$15:$X$374,1),IF(OR(Input!$K$13="Full",Input!$K$13="Partial"),2,6))) ->  | X150: 135 | AC150: 0.4694844543 | AD150: 0.4694844543 | AE150: 0 | AF150: =IF(Input!$P$70=1,'AZ Hpol'!$W150,IF(Input!$P$70=2,'AZ Hpol (2)'!$W150,IF(Input!$P$70=3,'AZ Hpol (3)'!W150,IF(Input!$P$70=4,'AZ Hpol (4)'!W150,"")))) -> 0.4581750047 | AH150: 2.35619449
W151: =IF(Input!$F$33<14,"",INDEX($X$15:$AD$374,MATCH(MOD($X151-$Y$13,360),$X$15:$X$374,1),IF(OR(Input!$K$13="Full",Input!$K$13="Partial"),2,6))) ->  | X151: 136 | AC151: 0.4618003552 | AD151: 0.4618003552 | AE151: 0 | AF151: =IF(Input!$P$70=1,'AZ Hpol'!$W151,IF(Input!$P$70=2,'AZ Hpol (2)'!$W151,IF(Input!$P$70=3,'AZ Hpol (3)'!W151,IF(Input!$P$70=4,'AZ Hpol (4)'!W151,"")))) -> 0.4456706528 | AH151: 2.373647783
W152: =IF(Input!$F$33<14,"",INDEX($X$15:$AD$374,MATCH(MOD($X152-$Y$13,360),$X$15:$X$374,1),IF(OR(Input!$K$13="Full",Input!$K$13="Partial"),2,6))) ->  | X152: 137 | AC152: 0.4549179442 | AD152: 0.4549179442 | AE152: 0 | AF152: =IF(Input!$P$70=1,'AZ Hpol'!$W152,IF(Input!$P$70=2,'AZ Hpol (2)'!$W152,IF(Input!$P$70=3,'AZ Hpol (3)'!W152,IF(Input!$P$70=4,'AZ Hpol (4)'!W152,"")))) -> 0.4339050297 | AH152: 2.391101075
W153: =IF(Input!$F$33<14,"",INDEX($X$15:$AD$374,MATCH(MOD($X153-$Y$13,360),$X$15:$X$374,1),IF(OR(Input!$K$13="Full",Input!$K$13="Partial"),2,6))) ->  | X153: 138 | AC153: 0.4489076607 | AD153: 0.4489076607 | AE153: 0 | AF153: =IF(Input!$P$70=1,'AZ Hpol'!$W153,IF(Input!$P$70=2,'AZ Hpol (2)'!$W153,IF(Input!$P$70=3,'AZ Hpol (3)'!W153,IF(Input!$P$70=4,'AZ Hpol (4)'!W153,"")))) -> 0.4230078166 | AH153: 2.408554368
W154: =IF(Input!$F$33<14,"",INDEX($X$15:$AD$374,MATCH(MOD($X154-$Y$13,360),$X$15:$X$374,1),IF(OR(Input!$K$13="Full",Input!$K$13="Partial"),2,6))) ->  | X154: 139 | AC154: 0.4438337187 | AD154: 0.4438337187 | AE154: 0 | AF154: =IF(Input!$P$70=1,'AZ Hpol'!$W154,IF(Input!$P$70=2,'AZ Hpol (2)'!$W154,IF(Input!$P$70=3,'AZ Hpol (3)'!W154,IF(Input!$P$70=4,'AZ Hpol (4)'!W154,"")))) -> 0.4131108617 | AH154: 2.42600766
W155: =IF(Input!$F$33<14,"",INDEX($X$15:$AD$374,MATCH(MOD($X155-$Y$13,360),$X$15:$X$374,1),IF(OR(Input!$K$13="Full",Input!$K$13="Partial"),2,6))) ->  | X155: 140 | AC155: 0.439752019 | AD155: 0.439752019 | AE155: 0 | AF155: =IF(Input!$P$70=1,'AZ Hpol'!$W155,IF(Input!$P$70=2,'AZ Hpol (2)'!$W155,IF(Input!$P$70=3,'AZ Hpol (3)'!W155,IF(Input!$P$70=4,'AZ Hpol (4)'!W155,"")))) -> 0.4043446977 | AH155: 2.443460953
W156: =IF(Input!$F$33<14,"",INDEX($X$15:$AD$374,MATCH(MOD($X156-$Y$13,360),$X$15:$X$374,1),IF(OR(Input!$K$13="Full",Input!$K$13="Partial"),2,6))) ->  | X156: 141 | AC156: 0.436708128 | AD156: 0.436708128 | AE156: 0 | AF156: =IF(Input!$P$70=1,'AZ Hpol'!$W156,IF(Input!$P$70=2,'AZ Hpol (2)'!$W156,IF(Input!$P$70=3,'AZ Hpol (3)'!W156,IF(Input!$P$70=4,'AZ Hpol (4)'!W156,"")))) -> 0.3968341914 | AH156: 2.460914245
W157: =IF(Input!$F$33<14,"",INDEX($X$15:$AD$374,MATCH(MOD($X157-$Y$13,360),$X$15:$X$374,1),IF(OR(Input!$K$13="Full",Input!$K$13="Partial"),2,6))) ->  | X157: 142 | AC157: 0.4347354644 | AD157: 0.4347354644 | AE157: 0 | AF157: =IF(Input!$P$70=1,'AZ Hpol'!$W157,IF(Input!$P$70=2,'AZ Hpol (2)'!$W157,IF(Input!$P$70=3,'AZ Hpol (3)'!W157,IF(Input!$P$70=4,'AZ Hpol (4)'!W157,"")))) -> 0.3906934697 | AH157: 2.478367538
W158: =IF(Input!$F$33<14,"",INDEX($X$15:$AD$374,MATCH(MOD($X158-$Y$13,360),$X$15:$X$374,1),IF(OR(Input!$K$13="Full",Input!$K$13="Partial"),2,6))) ->  | X158: 143 | AC158: 0.4338538416 | AD158: 0.4338538416 | AE158: 0 | AF158: =IF(Input!$P$70=1,'AZ Hpol'!$W158,IF(Input!$P$70=2,'AZ Hpol (2)'!$W158,IF(Input!$P$70=3,'AZ Hpol (3)'!W158,IF(Input!$P$70=4,'AZ Hpol (4)'!W158,"")))) -> 0.38602044 | AH158: 2.49582083
W159: =IF(Input!$F$33<14,"",INDEX($X$15:$AD$374,MATCH(MOD($X159-$Y$13,360),$X$15:$X$374,1),IF(OR(Input!$K$13="Full",Input!$K$13="Partial"),2,6))) ->  | X159: 144 | AC159: 0.4340684928 | AD159: 0.4340684928 | AE159: 0 | AF159: =IF(Input!$P$70=1,'AZ Hpol'!$W159,IF(Input!$P$70=2,'AZ Hpol (2)'!$W159,IF(Input!$P$70=3,'AZ Hpol (3)'!W159,IF(Input!$P$70=4,'AZ Hpol (4)'!W159,"")))) -> 0.3828913852 | AH159: 2.513274123
W160: =IF(Input!$F$33<14,"",INDEX($X$15:$AD$374,MATCH(MOD($X160-$Y$13,360),$X$15:$X$374,1),IF(OR(Input!$K$13="Full",Input!$K$13="Partial"),2,6))) ->  | X160: 145 | AC160: 0.4353696678 | AD160: 0.4353696678 | AE160: 0 | AF160: =IF(Input!$P$70=1,'AZ Hpol'!$W160,IF(Input!$P$70=2,'AZ Hpol (2)'!$W160,IF(Input!$P$70=3,'AZ Hpol (3)'!W160,IF(Input!$P$70=4,'AZ Hpol (4)'!W160,"")))) -> 0.381356234 | AH160: 2.530727415
W161: =IF(Input!$F$33<14,"",INDEX($X$15:$AD$374,MATCH(MOD($X161-$Y$13,360),$X$15:$X$374,1),IF(OR(Input!$K$13="Full",Input!$K$13="Partial"),2,6))) ->  | X161: 146 | AC161: 0.4377328407 | AD161: 0.4377328407 | AE161: 0 | AF161: =IF(Input!$P$70=1,'AZ Hpol'!$W161,IF(Input!$P$70=2,'AZ Hpol (2)'!$W161,IF(Input!$P$70=3,'AZ Hpol (3)'!W161,IF(Input!$P$70=4,'AZ Hpol (4)'!W161,"")))) -> 0.3814351197 | AH161: 2.548180708
W162: =IF(Input!$F$33<14,"",INDEX($X$15:$AD$374,MATCH(MOD($X162-$Y$13,360),$X$15:$X$374,1),IF(OR(Input!$K$13="Full",Input!$K$13="Partial"),2,6))) ->  | X162: 147 | AC162: 0.4411195029 | AD162: 0.4411195029 | AE162: 0 | AF162: =IF(Input!$P$70=1,'AZ Hpol'!$W162,IF(Input!$P$70=2,'AZ Hpol (2)'!$W162,IF(Input!$P$70=3,'AZ Hpol (3)'!W162,IF(Input!$P$70=4,'AZ Hpol (4)'!W162,"")))) -> 0.3831167195 | AH162: 2.565634
W163: =IF(Input!$F$33<14,"",INDEX($X$15:$AD$374,MATCH(MOD($X163-$Y$13,360),$X$15:$X$374,1),IF(OR(Input!$K$13="Full",Input!$K$13="Partial"),2,6))) ->  | X163: 148 | AC163: 0.445478466 | AD163: 0.445478466 | AE163: 0 | AF163: =IF(Input!$P$70=1,'AZ Hpol'!$W163,IF(Input!$P$70=2,'AZ Hpol (2)'!$W163,IF(Input!$P$70=3,'AZ Hpol (3)'!W163,IF(Input!$P$70=4,'AZ Hpol (4)'!W163,"")))) -> 0.3863586243 | AH163: 2.583087293
W164: =IF(Input!$F$33<14,"",INDEX($X$15:$AD$374,MATCH(MOD($X164-$Y$13,360),$X$15:$X$374,1),IF(OR(Input!$K$13="Full",Input!$K$13="Partial"),2,6))) ->  | X164: 149 | AC164: 0.4507475545 | AD164: 0.4507475545 | AE164: 0 | AF164: =IF(Input!$P$70=1,'AZ Hpol'!$W164,IF(Input!$P$70=2,'AZ Hpol (2)'!$W164,IF(Input!$P$70=3,'AZ Hpol (3)'!W164,IF(Input!$P$70=4,'AZ Hpol (4)'!W164,"")))) -> 0.391089676 | AH164: 2.600540585
W165: =IF(Input!$F$33<14,"",INDEX($X$15:$AD$374,MATCH(MOD($X165-$Y$13,360),$X$15:$X$374,1),IF(OR(Input!$K$13="Full",Input!$K$13="Partial"),2,6))) ->  | X165: 150 | AC165: 0.4568555442 | AD165: 0.4568555442 | AE165: 1 | AF165: =IF(Input!$P$70=1,'AZ Hpol'!$W165,IF(Input!$P$70=2,'AZ Hpol (2)'!$W165,IF(Input!$P$70=3,'AZ Hpol (3)'!W165,IF(Input!$P$70=4,'AZ Hpol (4)'!W165,"")))) -> 0.3972139173 | AH165: 2.617993878
W166: =IF(Input!$F$33<14,"",INDEX($X$15:$AD$374,MATCH(MOD($X166-$Y$13,360),$X$15:$X$374,1),IF(OR(Input!$K$13="Full",Input!$K$13="Partial"),2,6))) ->  | X166: 151 | AC166: 0.4637242041 | AD166: 0.4637242041 | AE166: 0 | AF166: =IF(Input!$P$70=1,'AZ Hpol'!$W166,IF(Input!$P$70=2,'AZ Hpol (2)'!$W166,IF(Input!$P$70=3,'AZ Hpol (3)'!W166,IF(Input!$P$70=4,'AZ Hpol (4)'!W166,"")))) -> 0.4046155967 | AH166: 2.635447171
W167: =IF(Input!$F$33<14,"",INDEX($X$15:$AD$374,MATCH(MOD($X167-$Y$13,360),$X$15:$X$374,1),IF(OR(Input!$K$13="Full",Input!$K$13="Partial"),2,6))) ->  | X167: 152 | AC167: 0.4712703092 | AD167: 0.4712703092 | AE167: 0 | AF167: =IF(Input!$P$70=1,'AZ Hpol'!$W167,IF(Input!$P$70=2,'AZ Hpol (2)'!$W167,IF(Input!$P$70=3,'AZ Hpol (3)'!W167,IF(Input!$P$70=4,'AZ Hpol (4)'!W167,"")))) -> 0.4131646073 | AH167: 2.652900463
W168: =IF(Input!$F$33<14,"",INDEX($X$15:$AD$374,MATCH(MOD($X168-$Y$13,360),$X$15:$X$374,1),IF(OR(Input!$K$13="Full",Input!$K$13="Partial"),2,6))) ->  | X168: 153 | AC168: 0.4794075235 | AD168: 0.4794075235 | AE168: 0 | AF168: =IF(Input!$P$70=1,'AZ Hpol'!$W168,IF(Input!$P$70=2,'AZ Hpol (2)'!$W168,IF(Input!$P$70=3,'AZ Hpol (3)'!W168,IF(Input!$P$70=4,'AZ Hpol (4)'!W168,"")))) -> 0.4227217985 | AH168: 2.670353756
W169: =IF(Input!$F$33<14,"",INDEX($X$15:$AD$374,MATCH(MOD($X169-$Y$13,360),$X$15:$X$374,1),IF(OR(Input!$K$13="Full",Input!$K$13="Partial"),2,6))) ->  | X169: 154 | AC169: 0.4880480801 | AD169: 0.4880480801 | AE169: 0 | AF169: =IF(Input!$P$70=1,'AZ Hpol'!$W169,IF(Input!$P$70=2,'AZ Hpol (2)'!$W169,IF(Input!$P$70=3,'AZ Hpol (3)'!W169,IF(Input!$P$70=4,'AZ Hpol (4)'!W169,"")))) -> 0.4331437399 | AH169: 2.687807048
W170: =IF(Input!$F$33<14,"",INDEX($X$15:$AD$374,MATCH(MOD($X170-$Y$13,360),$X$15:$X$374,1),IF(OR(Input!$K$13="Full",Input!$K$13="Partial"),2,6))) ->  | X170: 155 | AC170: 0.4971042198 | AD170: 0.4971042198 | AE170: 0 | AF170: =IF(Input!$P$70=1,'AZ Hpol'!$W170,IF(Input!$P$70=2,'AZ Hpol (2)'!$W170,IF(Input!$P$70=3,'AZ Hpol (3)'!W170,IF(Input!$P$70=4,'AZ Hpol (4)'!W170,"")))) -> 0.4442866944 | AH170: 2.705260341
W171: =IF(Input!$F$33<14,"",INDEX($X$15:$AD$374,MATCH(MOD($X171-$Y$13,360),$X$15:$X$374,1),IF(OR(Input!$K$13="Full",Input!$K$13="Partial"),2,6))) ->  | X171: 156 | AC171: 0.5064893741 | AD171: 0.5064893741 | AE171: 0 | AF171: =IF(Input!$P$70=1,'AZ Hpol'!$W171,IF(Input!$P$70=2,'AZ Hpol (2)'!$W171,IF(Input!$P$70=3,'AZ Hpol (3)'!W171,IF(Input!$P$70=4,'AZ Hpol (4)'!W171,"")))) -> 0.4560097111 | AH171: 2.722713633
W172: =IF(Input!$F$33<14,"",INDEX($X$15:$AD$374,MATCH(MOD($X172-$Y$13,360),$X$15:$X$374,1),IF(OR(Input!$K$13="Full",Input!$K$13="Partial"),2,6))) ->  | X172: 157 | AC172: 0.5161191016 | AD172: 0.5161191016 | AE172: 0 | AF172: =IF(Input!$P$70=1,'AZ Hpol'!$W172,IF(Input!$P$70=2,'AZ Hpol (2)'!$W172,IF(Input!$P$70=3,'AZ Hpol (3)'!W172,IF(Input!$P$70=4,'AZ Hpol (4)'!W172,"")))) -> 0.4681768715 | AH172: 2.740166926
W173: =IF(Input!$F$33<14,"",INDEX($X$15:$AD$374,MATCH(MOD($X173-$Y$13,360),$X$15:$X$374,1),IF(OR(Input!$K$13="Full",Input!$K$13="Partial"),2,6))) ->  | X173: 158 | AC173: 0.5259117987 | AD173: 0.5259117987 | AE173: 0 | AF173: =IF(Input!$P$70=1,'AZ Hpol'!$W173,IF(Input!$P$70=2,'AZ Hpol (2)'!$W173,IF(Input!$P$70=3,'AZ Hpol (3)'!W173,IF(Input!$P$70=4,'AZ Hpol (4)'!W173,"")))) -> 0.4806587941 | AH173: 2.757620218
W174: =IF(Input!$F$33<14,"",INDEX($X$15:$AD$374,MATCH(MOD($X174-$Y$13,360),$X$15:$X$374,1),IF(OR(Input!$K$13="Full",Input!$K$13="Partial"),2,6))) ->  | X174: 159 | AC174: 0.5357892142 | AD174: 0.5357892142 | AE174: 0 | AF174: =IF(Input!$P$70=1,'AZ Hpol'!$W174,IF(Input!$P$70=2,'AZ Hpol (2)'!$W174,IF(Input!$P$70=3,'AZ Hpol (3)'!W174,IF(Input!$P$70=4,'AZ Hpol (4)'!W174,"")))) -> 0.4933335326 | AH174: 2.775073511
W175: =IF(Input!$F$33<14,"",INDEX($X$15:$AD$374,MATCH(MOD($X175-$Y$13,360),$X$15:$X$374,1),IF(OR(Input!$K$13="Full",Input!$K$13="Partial"),2,6))) ->  | X175: 160 | AC175: 0.5456767997 | AD175: 0.5456767997 | AE175: 0 | AF175: =IF(Input!$P$70=1,'AZ Hpol'!$W175,IF(Input!$P$70=2,'AZ Hpol (2)'!$W175,IF(Input!$P$70=3,'AZ Hpol (3)'!W175,IF(Input!$P$70=4,'AZ Hpol (4)'!W175,"")))) -> 0.5060870128 | AH175: 2.792526803
W176: =IF(Input!$F$33<14,"",INDEX($X$15:$AD$374,MATCH(MOD($X176-$Y$13,360),$X$15:$X$374,1),IF(OR(Input!$K$13="Full",Input!$K$13="Partial"),2,6))) ->  | X176: 161 | AC176: 0.5555039288 | AD176: 0.5555039288 | AE176: 0 | AF176: =IF(Input!$P$70=1,'AZ Hpol'!$W176,IF(Input!$P$70=2,'AZ Hpol (2)'!$W176,IF(Input!$P$70=3,'AZ Hpol (3)'!W176,IF(Input!$P$70=4,'AZ Hpol (4)'!W176,"")))) -> 0.5188131335 | AH176: 2.809980096
W177: =IF(Input!$F$33<14,"",INDEX($X$15:$AD$374,MATCH(MOD($X177-$Y$13,360),$X$15:$X$374,1),IF(OR(Input!$K$13="Full",Input!$K$13="Partial"),2,6))) ->  | X177: 162 | AC177: 0.5652040127 | AD177: 0.5652040127 | AE177: 0 | AF177: =IF(Input!$P$70=1,'AZ Hpol'!$W177,IF(Input!$P$70=2,'AZ Hpol (2)'!$W177,IF(Input!$P$70=3,'AZ Hpol (3)'!W177,IF(Input!$P$70=4,'AZ Hpol (4)'!W177,"")))) -> 0.5314136407 | AH177: 2.827433388
W178: =IF(Input!$F$33<14,"",INDEX($X$15:$AD$374,MATCH(MOD($X178-$Y$13,360),$X$15:$X$374,1),IF(OR(Input!$K$13="Full",Input!$K$13="Partial"),2,6))) ->  | X178: 163 | AC178: 0.5747145395 | AD178: 0.5747145395 | AE178: 0 | AF178: =IF(Input!$P$70=1,'AZ Hpol'!$W178,IF(Input!$P$70=2,'AZ Hpol (2)'!$W178,IF(Input!$P$70=3,'AZ Hpol (3)'!W178,IF(Input!$P$70=4,'AZ Hpol (4)'!W178,"")))) -> 0.5437978585 | AH178: 2.844886681
W179: =IF(Input!$F$33<14,"",INDEX($X$15:$AD$374,MATCH(MOD($X179-$Y$13,360),$X$15:$X$374,1),IF(OR(Input!$K$13="Full",Input!$K$13="Partial"),2,6))) ->  | X179: 164 | AC179: 0.5839770569 | AD179: 0.5839770569 | AE179: 0 | AF179: =IF(Input!$P$70=1,'AZ Hpol'!$W179,IF(Input!$P$70=2,'AZ Hpol (2)'!$W179,IF(Input!$P$70=3,'AZ Hpol (3)'!W179,IF(Input!$P$70=4,'AZ Hpol (4)'!W179,"")))) -> 0.5558823394 | AH179: 2.862339973
W180: =IF(Input!$F$33<14,"",INDEX($X$15:$AD$374,MATCH(MOD($X180-$Y$13,360),$X$15:$X$374,1),IF(OR(Input!$K$13="Full",Input!$K$13="Partial"),2,6))) ->  | X180: 165 | AC180: 0.5929371168 | AD180: 0.5929371168 | AE180: 0 | AF180: =IF(Input!$P$70=1,'AZ Hpol'!$W180,IF(Input!$P$70=2,'AZ Hpol (2)'!$W180,IF(Input!$P$70=3,'AZ Hpol (3)'!W180,IF(Input!$P$70=4,'AZ Hpol (4)'!W180,"")))) -> 0.5675904787 | AH180: 2.879793266
W181: =IF(Input!$F$33<14,"",INDEX($X$15:$AD$374,MATCH(MOD($X181-$Y$13,360),$X$15:$X$374,1),IF(OR(Input!$K$13="Full",Input!$K$13="Partial"),2,6))) ->  | X181: 166 | AC181: 0.601544195 | AD181: 0.601544195 | AE181: 0 | AF181: =IF(Input!$P$70=1,'AZ Hpol'!$W181,IF(Input!$P$70=2,'AZ Hpol (2)'!$W181,IF(Input!$P$70=3,'AZ Hpol (3)'!W181,IF(Input!$P$70=4,'AZ Hpol (4)'!W181,"")))) -> 0.5788521239 | AH181: 2.897246558
W182: =IF(Input!$F$33<14,"",INDEX($X$15:$AD$374,MATCH(MOD($X182-$Y$13,360),$X$15:$X$374,1),IF(OR(Input!$K$13="Full",Input!$K$13="Partial"),2,6))) ->  | X182: 167 | AC182: 0.6097515966 | AD182: 0.6097515966 | AE182: 0 | AF182: =IF(Input!$P$70=1,'AZ Hpol'!$W182,IF(Input!$P$70=2,'AZ Hpol (2)'!$W182,IF(Input!$P$70=3,'AZ Hpol (3)'!W182,IF(Input!$P$70=4,'AZ Hpol (4)'!W182,"")))) -> 0.5896031975 | AH182: 2.914699851
W183: =IF(Input!$F$33<14,"",INDEX($X$15:$AD$374,MATCH(MOD($X183-$Y$13,360),$X$15:$X$374,1),IF(OR(Input!$K$13="Full",Input!$K$13="Partial"),2,6))) ->  | X183: 168 | AC183: 0.6175163541 | AD183: 0.6175163541 | AE183: 0 | AF183: =IF(Input!$P$70=1,'AZ Hpol'!$W183,IF(Input!$P$70=2,'AZ Hpol (2)'!$W183,IF(Input!$P$70=3,'AZ Hpol (3)'!W183,IF(Input!$P$70=4,'AZ Hpol (4)'!W183,"")))) -> 0.5997853462 | AH183: 2.932153143
W184: =IF(Input!$F$33<14,"",INDEX($X$15:$AD$374,MATCH(MOD($X184-$Y$13,360),$X$15:$X$374,1),IF(OR(Input!$K$13="Full",Input!$K$13="Partial"),2,6))) ->  | X184: 169 | AC184: 0.6247991251 | AD184: 0.6247991251 | AE184: 0 | AF184: =IF(Input!$P$70=1,'AZ Hpol'!$W184,IF(Input!$P$70=2,'AZ Hpol (2)'!$W184,IF(Input!$P$70=3,'AZ Hpol (3)'!W184,IF(Input!$P$70=4,'AZ Hpol (4)'!W184,"")))) -> 0.6093456222 | AH184: 2.949606436
W185: =IF(Input!$F$33<14,"",INDEX($X$15:$AD$374,MATCH(MOD($X185-$Y$13,360),$X$15:$X$374,1),IF(OR(Input!$K$13="Full",Input!$K$13="Partial"),2,6))) ->  | X185: 170 | AC185: 0.631564093 | AD185: 0.631564093 | AE185: 0 | AF185: =IF(Input!$P$70=1,'AZ Hpol'!$W185,IF(Input!$P$70=2,'AZ Hpol (2)'!$W185,IF(Input!$P$70=3,'AZ Hpol (3)'!W185,IF(Input!$P$70=4,'AZ Hpol (4)'!W185,"")))) -> 0.6182361984 | AH185: 2.967059728
W186: =IF(Input!$F$33<14,"",INDEX($X$15:$AD$374,MATCH(MOD($X186-$Y$13,360),$X$15:$X$374,1),IF(OR(Input!$K$13="Full",Input!$K$13="Partial"),2,6))) ->  | X186: 171 | AC186: 0.6377788728 | AD186: 0.6377788728 | AE186: 0 | AF186: =IF(Input!$P$70=1,'AZ Hpol'!$W186,IF(Input!$P$70=2,'AZ Hpol (2)'!$W186,IF(Input!$P$70=3,'AZ Hpol (3)'!W186,IF(Input!$P$70=4,'AZ Hpol (4)'!W186,"")))) -> 0.626414118 | AH186: 2.984513021
W187: =IF(Input!$F$33<14,"",INDEX($X$15:$AD$374,MATCH(MOD($X187-$Y$13,360),$X$15:$X$374,1),IF(OR(Input!$K$13="Full",Input!$K$13="Partial"),2,6))) ->  | X187: 172 | AC187: 0.6434144244 | AD187: 0.6434144244 | AE187: 0 | AF187: =IF(Input!$P$70=1,'AZ Hpol'!$W187,IF(Input!$P$70=2,'AZ Hpol (2)'!$W187,IF(Input!$P$70=3,'AZ Hpol (3)'!W187,IF(Input!$P$70=4,'AZ Hpol (4)'!W187,"")))) -> 0.6338410782 | AH187: 3.001966313
W188: =IF(Input!$F$33<14,"",INDEX($X$15:$AD$374,MATCH(MOD($X188-$Y$13,360),$X$15:$X$374,1),IF(OR(Input!$K$13="Full",Input!$K$13="Partial"),2,6))) ->  | X188: 173 | AC188: 0.6484449747 | AD188: 0.6484449747 | AE188: 0 | AF188: =IF(Input!$P$70=1,'AZ Hpol'!$W188,IF(Input!$P$70=2,'AZ Hpol (2)'!$W188,IF(Input!$P$70=3,'AZ Hpol (3)'!W188,IF(Input!$P$70=4,'AZ Hpol (4)'!W188,"")))) -> 0.6404832432 | AH188: 3.019419606
W189: =IF(Input!$F$33<14,"",INDEX($X$15:$AD$374,MATCH(MOD($X189-$Y$13,360),$X$15:$X$374,1),IF(OR(Input!$K$13="Full",Input!$K$13="Partial"),2,6))) ->  | X189: 174 | AC189: 0.6528479478 | AD189: 0.6528479478 | AE189: 0 | AF189: =IF(Input!$P$70=1,'AZ Hpol'!$W189,IF(Input!$P$70=2,'AZ Hpol (2)'!$W189,IF(Input!$P$70=3,'AZ Hpol (3)'!W189,IF(Input!$P$70=4,'AZ Hpol (4)'!W189,"")))) -> 0.6463110866 | AH189: 3.036872898
W190: =IF(Input!$F$33<14,"",INDEX($X$15:$AD$374,MATCH(MOD($X190-$Y$13,360),$X$15:$X$374,1),IF(OR(Input!$K$13="Full",Input!$K$13="Partial"),2,6))) ->  | X190: 175 | AC190: 0.6566039045 | AD190: 0.6566039045 | AE190: 0 | AF190: =IF(Input!$P$70=1,'AZ Hpol'!$W190,IF(Input!$P$70=2,'AZ Hpol (2)'!$W190,IF(Input!$P$70=3,'AZ Hpol (3)'!W190,IF(Input!$P$70=4,'AZ Hpol (4)'!W190,"")))) -> 0.651299259 | AH190: 3.054326191
W191: =IF(Input!$F$33<14,"",INDEX($X$15:$AD$374,MATCH(MOD($X191-$Y$13,360),$X$15:$X$374,1),IF(OR(Input!$K$13="Full",Input!$K$13="Partial"),2,6))) ->  | X191: 176 | AC191: 0.6596964908 | AD191: 0.6596964908 | AE191: 0 | AF191: =IF(Input!$P$70=1,'AZ Hpol'!$W191,IF(Input!$P$70=2,'AZ Hpol (2)'!$W191,IF(Input!$P$70=3,'AZ Hpol (3)'!W191,IF(Input!$P$70=4,'AZ Hpol (4)'!W191,"")))) -> 0.6554264779 | AH191: 3.071779484
W192: =IF(Input!$F$33<14,"",INDEX($X$15:$AD$374,MATCH(MOD($X192-$Y$13,360),$X$15:$X$374,1),IF(OR(Input!$K$13="Full",Input!$K$13="Partial"),2,6))) ->  | X192: 177 | AC192: 0.6621123945 | AD192: 0.6621123945 | AE192: 0 | AF192: =IF(Input!$P$70=1,'AZ Hpol'!$W192,IF(Input!$P$70=2,'AZ Hpol (2)'!$W192,IF(Input!$P$70=3,'AZ Hpol (3)'!W192,IF(Input!$P$70=4,'AZ Hpol (4)'!W192,"")))) -> 0.6586754395 | AH192: 3.089232776
W193: =IF(Input!$F$33<14,"",INDEX($X$15:$AD$374,MATCH(MOD($X193-$Y$13,360),$X$15:$X$374,1),IF(OR(Input!$K$13="Full",Input!$K$13="Partial"),2,6))) ->  | X193: 178 | AC193: 0.6638413112 | AD193: 0.6638413112 | AE193: 0 | AF193: =IF(Input!$P$70=1,'AZ Hpol'!$W193,IF(Input!$P$70=2,'AZ Hpol (2)'!$W193,IF(Input!$P$70=3,'AZ Hpol (3)'!W193,IF(Input!$P$70=4,'AZ Hpol (4)'!W193,"")))) -> 0.6610327482 | AH193: 3.106686069
W194: =IF(Input!$F$33<14,"",INDEX($X$15:$AD$374,MATCH(MOD($X194-$Y$13,360),$X$15:$X$374,1),IF(OR(Input!$K$13="Full",Input!$K$13="Partial"),2,6))) ->  | X194: 179 | AC194: 0.6648759178 | AD194: 0.6648759178 | AE194: 0 | AF194: =IF(Input!$P$70=1,'AZ Hpol'!$W194,IF(Input!$P$70=2,'AZ Hpol (2)'!$W194,IF(Input!$P$70=3,'AZ Hpol (3)'!W194,IF(Input!$P$70=4,'AZ Hpol (4)'!W194,"")))) -> 0.6624888635 | AH194: 3.124139361
W195: =IF(Input!$F$33<14,"",INDEX($X$15:$AD$374,MATCH(MOD($X195-$Y$13,360),$X$15:$X$374,1),IF(OR(Input!$K$13="Full",Input!$K$13="Partial"),2,6))) ->  | X195: 180 | AC195: 0.6652118539 | AD195: 0.6652118539 | AE195: 1 | AF195: =IF(Input!$P$70=1,'AZ Hpol'!$W195,IF(Input!$P$70=2,'AZ Hpol (2)'!$W195,IF(Input!$P$70=3,'AZ Hpol (3)'!W195,IF(Input!$P$70=4,'AZ Hpol (4)'!W195,"")))) -> 0.6630380621 | AH195: 3.141592654
W196: =IF(Input!$F$33<14,"",INDEX($X$15:$AD$374,MATCH(MOD($X196-$Y$13,360),$X$15:$X$374,1),IF(OR(Input!$K$13="Full",Input!$K$13="Partial"),2,6))) ->  | X196: 181 | AC196: 0.6648477113 | AD196: 0.6648477113 | AE196: 0 | AF196: =IF(Input!$P$70=1,'AZ Hpol'!$W196,IF(Input!$P$70=2,'AZ Hpol (2)'!$W196,IF(Input!$P$70=3,'AZ Hpol (3)'!W196,IF(Input!$P$70=4,'AZ Hpol (4)'!W196,"")))) -> 0.6626784157 | AH196: 3.159045946
W197: =IF(Input!$F$33<14,"",INDEX($X$15:$AD$374,MATCH(MOD($X197-$Y$13,360),$X$15:$X$374,1),IF(OR(Input!$K$13="Full",Input!$K$13="Partial"),2,6))) ->  | X197: 182 | AC197: 0.663785031 | AD197: 0.663785031 | AE197: 0 | AF197: =IF(Input!$P$70=1,'AZ Hpol'!$W197,IF(Input!$P$70=2,'AZ Hpol (2)'!$W197,IF(Input!$P$70=3,'AZ Hpol (3)'!W197,IF(Input!$P$70=4,'AZ Hpol (4)'!W197,"")))) -> 0.6614117817 | AH197: 3.176499239
W198: =IF(Input!$F$33<14,"",INDEX($X$15:$AD$374,MATCH(MOD($X198-$Y$13,360),$X$15:$X$374,1),IF(OR(Input!$K$13="Full",Input!$K$13="Partial"),2,6))) ->  | X198: 183 | AC198: 0.662028308 | AD198: 0.662028308 | AE198: 0 | AF198: =IF(Input!$P$70=1,'AZ Hpol'!$W198,IF(Input!$P$70=2,'AZ Hpol (2)'!$W198,IF(Input!$P$70=3,'AZ Hpol (3)'!W198,IF(Input!$P$70=4,'AZ Hpol (4)'!W198,"")))) -> 0.6592438085 | AH198: 3.193952531
W199: =IF(Input!$F$33<14,"",INDEX($X$15:$AD$374,MATCH(MOD($X199-$Y$13,360),$X$15:$X$374,1),IF(OR(Input!$K$13="Full",Input!$K$13="Partial"),2,6))) ->  | X199: 184 | AC199: 0.6595850032 | AD199: 0.6595850032 | AE199: 0 | AF199: =IF(Input!$P$70=1,'AZ Hpol'!$W199,IF(Input!$P$70=2,'AZ Hpol (2)'!$W199,IF(Input!$P$70=3,'AZ Hpol (3)'!W199,IF(Input!$P$70=4,'AZ Hpol (4)'!W199,"")))) -> 0.6561839549 | AH199: 3.211405824
W200: =IF(Input!$F$33<14,"",INDEX($X$15:$AD$374,MATCH(MOD($X200-$Y$13,360),$X$15:$X$374,1),IF(OR(Input!$K$13="Full",Input!$K$13="Partial"),2,6))) ->  | X200: 185 | AC200: 0.6564655636 | AD200: 0.6564655636 | AE200: 0 | AF200: =IF(Input!$P$70=1,'AZ Hpol'!$W200,IF(Input!$P$70=2,'AZ Hpol (2)'!$W200,IF(Input!$P$70=3,'AZ Hpol (3)'!W200,IF(Input!$P$70=4,'AZ Hpol (4)'!W200,"")))) -> 0.6522455234 | AH200: 3.228859116
W201: =IF(Input!$F$33<14,"",INDEX($X$15:$AD$374,MATCH(MOD($X201-$Y$13,360),$X$15:$X$374,1),IF(OR(Input!$K$13="Full",Input!$K$13="Partial"),2,6))) ->  | X201: 186 | AC201: 0.6526834501 | AD201: 0.6526834501 | AE201: 0 | AF201: =IF(Input!$P$70=1,'AZ Hpol'!$W201,IF(Input!$P$70=2,'AZ Hpol (2)'!$W201,IF(Input!$P$70=3,'AZ Hpol (3)'!W201,IF(Input!$P$70=4,'AZ Hpol (4)'!W201,"")))) -> 0.6474457098 | AH201: 3.246312409
W202: =IF(Input!$F$33<14,"",INDEX($X$15:$AD$374,MATCH(MOD($X202-$Y$13,360),$X$15:$X$374,1),IF(OR(Input!$K$13="Full",Input!$K$13="Partial"),2,6))) ->  | X202: 187 | AC202: 0.6482551741 | AD202: 0.6482551741 | AE202: 0 | AF202: =IF(Input!$P$70=1,'AZ Hpol'!$W202,IF(Input!$P$70=2,'AZ Hpol (2)'!$W202,IF(Input!$P$70=3,'AZ Hpol (3)'!W202,IF(Input!$P$70=4,'AZ Hpol (4)'!W202,"")))) -> 0.6418056682 | AH202: 3.263765701
W203: =IF(Input!$F$33<14,"",INDEX($X$15:$AD$374,MATCH(MOD($X203-$Y$13,360),$X$15:$X$374,1),IF(OR(Input!$K$13="Full",Input!$K$13="Partial"),2,6))) ->  | X203: 188 | AC203: 0.6432003413 | AD203: 0.6432003413 | AE203: 0 | AF203: =IF(Input!$P$70=1,'AZ Hpol'!$W203,IF(Input!$P$70=2,'AZ Hpol (2)'!$W203,IF(Input!$P$70=3,'AZ Hpol (3)'!W203,IF(Input!$P$70=4,'AZ Hpol (4)'!W203,"")))) -> 0.6353505954 | AH203: 3.281218994
W204: =IF(Input!$F$33<14,"",INDEX($X$15:$AD$374,MATCH(MOD($X204-$Y$13,360),$X$15:$X$374,1),IF(OR(Input!$K$13="Full",Input!$K$13="Partial"),2,6))) ->  | X204: 189 | AC204: 0.6375417055 | AD204: 0.6375417055 | AE204: 0 | AF204: =IF(Input!$P$70=1,'AZ Hpol'!$W204,IF(Input!$P$70=2,'AZ Hpol (2)'!$W204,IF(Input!$P$70=3,'AZ Hpol (3)'!W204,IF(Input!$P$70=4,'AZ Hpol (4)'!W204,"")))) -> 0.6281098347 | AH204: 3.298672286
W205: =IF(Input!$F$33<14,"",INDEX($X$15:$AD$374,MATCH(MOD($X205-$Y$13,360),$X$15:$X$374,1),IF(OR(Input!$K$13="Full",Input!$K$13="Partial"),2,6))) ->  | X205: 190 | AC205: 0.6313052303 | AD205: 0.6313052303 | AE205: 0 | AF205: =IF(Input!$P$70=1,'AZ Hpol'!$W205,IF(Input!$P$70=2,'AZ Hpol (2)'!$W205,IF(Input!$P$70=3,'AZ Hpol (3)'!W205,IF(Input!$P$70=4,'AZ Hpol (4)'!W205,"")))) -> 0.6201170015 | AH205: 3.316125579
... 169 more rows

Sheet AZ Hpol (3)
AB2: =(ROUND(((($R$13-389)/6)-13),0)*2)+1 -> 
O6: AZIMUTH PATTERN
O7: Horizontal Polarization
O9: Proposal No. | R9: =Cover!$E$13 ->  | Y9: Normalized Directivity | Z9: =IF(AC15=0,0,360/SUMSQ($W$15:$W$374)) ->  | AA9: Offset Ch | AB9: =Input!L16 -> 17 | AC9: =IF($AB9<37,473+6*($AB9-14),"") -> 491 | AD9: Offset Phase | AE9: =-IF(Input!K13="Partial",(11802.854*Input!L18/AC9/360)*(AC10*360/11802.824),(11802.854*90/AC9/360)*(AC10*360/11802.824)) ->  | AF9: degrees | AG9: =RADIANS(AE9) ->  | AH9: radians
O10: Date | R10: =Cover!$E$14 ->  | Y10: Input Peak Value | Z10: =MAX($AC$15:$AC$374) -> 1 | AA10: Display Ch | AB10: =Input!F35 -> 0 | AC10: =R13 ->  | AD10: Distence | AE10: =11802.854*IF(Input!K13="Full",90,Input!L18)/AC9/360 -> 0.06677333107 | AF10: inches
O11: Call Letters | R11: =IF(Input!$D$35>1,Input!$D$35,"") ->  | Y11: Normalize Value | Z11: =MAX($Z$15:$Z$374) ->  | AA11: Wave Length | AB11: =11802.76/AC10 ->  | AC11: =MAX($AD$15:$AD$374) -> 1
O12: Channel | R12: =IF(Input!$F$35>1,Input!$F$35,"") ->  | X12: Dwg No | Y12: C160 | AA12: K | AB12: =2*(PI()/AB11) -> 
O13: Frequency | R13: =IF(Input!$G$35>1,Input!$G$35,"") ->  | X13: Rotation | Y13: =Input!G13 -> 0
O14: Antenna Type | R14: =Cover!$E$11 -> TFU-4WB-LP/VP-R C160 | W14: Pattern | X14: Degs | Y14: Normalized | Z14: F | AA14: AF | AB14: KdCOS… | AC14: Normalized P | AD14: Input P | AG14: dB | AH14: Radians | AI14: dB -30
O15: Gain | R15: =IF(Input!$F$35<14,"",IF(ISNUMBER($Z$9),ROUND($Z$9,2)&" ("&ROUND(10*LOG($Z$9),2)&"dB)","")) ->  | W15: =IF(Input!$F$35<14,"",INDEX($X$15:$AD$374,MATCH(MOD($X15-$Y$13,360),$X$15:$X$374,1),IF(OR(Input!$K$13="Full",Input!$K$13="Partial"),2,6))) ->  | X15: 0 | Y15: =(1/$Z$11)*$Z15 ->  | Z15: =AD15*AA15 ->  | AA15: =SQRT(((1+COS(AB15))^2)+(SIN(AB15)^2)) ->  | AB15: =($AB$12*$AE$10*COS($AH15))+RADIANS($AE$9) ->  | AC15: =(1/$AC$11)*$AD15 -> 0.8776010804 | AD15: 0.8776010804 | AE15: 1 | AF15: =IF(Input!$P$70=1,'AZ Hpol'!$W15,IF(Input!$P$70=2,'AZ Hpol (2)'!$W15,IF(Input!$P$70=3,'AZ Hpol (3)'!W15,IF(Input!$P$70=4,'AZ Hpol (4)'!W15,"")))) -> 0.7833166583 | AG15: =ROUND(20*LOG(W15),4) ->  | AH15: =RADIANS(X15) -> 0 | AI15: =IF(W15<=0.031622776602,-30,20*LOG(W15)) -> 
R16: Calculated | W16: =IF(Input!$F$35<14,"",INDEX($X$15:$AD$374,MATCH(MOD($X16-$Y$13,360),$X$15:$X$374,1),IF(OR(Input!$K$13="Full",Input!$K$13="Partial"),2,6))) ->  | X16: 1 | Y16: =(1/$Z$11)*$Z16 ->  | AA16: =SQRT(((1+COS(AB16))^2)+(SIN(AB16)^2)) ->  | AB16: =($AB$12*$AE$10*COS($AH16))+RADIANS($AE$9) ->  | AC16: =(1/$AC$11)*$AD16 -> 0.8776876564 | AD16: 0.8776876564 | AE16: 0 | AF16: =IF(Input!$P$70=1,'AZ Hpol (3)'!$W16,IF(Input!$P$70=2,#REF!,IF(Input!$P$70=3,#REF!,IF(Input!$P$70=4,#REF!,"")))) ->  | AH16: =RADIANS(X16) -> 0.01745329252
W17: =IF(Input!$F$35<14,"",INDEX($X$15:$AD$374,MATCH(MOD($X17-$Y$13,360),$X$15:$X$374,1),IF(OR(Input!$K$13="Full",Input!$K$13="Partial"),2,6))) ->  | X17: 2 | AC17: 0.8780290753 | AD17: 0.8780290753 | AE17: 0 | AF17: =IF(Input!$P$70=1,'AZ Hpol (3)'!$W17,IF(Input!$P$70=2,#REF!,IF(Input!$P$70=3,#REF!,IF(Input!$P$70=4,#REF!,"")))) ->  | AH17: 0.03490658504
O18: Pattern Number | R18: =IF(Input!$F$35<14,"",$Y$12&"-"&$R$12&" Hpol") ->  | W18: =IF(Input!$F$35<14,"",INDEX($X$15:$AD$374,MATCH(MOD($X18-$Y$13,360),$X$15:$X$374,1),IF(OR(Input!$K$13="Full",Input!$K$13="Partial"),2,6))) ->  | X18: 3 | AC18: 0.8786238821 | AD18: 0.8786238821 | AE18: 0 | AF18: =IF(Input!$P$70=1,'AZ Hpol (3)'!$W18,IF(Input!$P$70=2,#REF!,IF(Input!$P$70=3,#REF!,IF(Input!$P$70=4,#REF!,"")))) ->  | AH18: 0.05235987756
W19: =IF(Input!$F$35<14,"",INDEX($X$15:$AD$374,MATCH(MOD($X19-$Y$13,360),$X$15:$X$374,1),IF(OR(Input!$K$13="Full",Input!$K$13="Partial"),2,6))) ->  | X19: 4 | AC19: 0.8794695396 | AD19: 0.8794695396 | AE19: 0 | AF19: =IF(Input!$P$70=1,'AZ Hpol (3)'!$W19,IF(Input!$P$70=2,#REF!,IF(Input!$P$70=3,#REF!,IF(Input!$P$70=4,#REF!,"")))) ->  | AH19: 0.06981317008
W20: =IF(Input!$F$35<14,"",INDEX($X$15:$AD$374,MATCH(MOD($X20-$Y$13,360),$X$15:$X$374,1),IF(OR(Input!$K$13="Full",Input!$K$13="Partial"),2,6))) ->  | X20: 5 | AC20: 0.8805624397 | AD20: 0.8805624397 | AE20: 0 | AF20: =IF(Input!$P$70=1,'AZ Hpol (3)'!$W20,IF(Input!$P$70=2,#REF!,IF(Input!$P$70=3,#REF!,IF(Input!$P$70=4,#REF!,"")))) ->  | AH20: 0.0872664626
W21: =IF(Input!$F$35<14,"",INDEX($X$15:$AD$374,MATCH(MOD($X21-$Y$13,360),$X$15:$X$374,1),IF(OR(Input!$K$13="Full",Input!$K$13="Partial"),2,6))) ->  | X21: 6 | AC21: 0.8818979189 | AD21: 0.8818979189 | AE21: 0 | AF21: =IF(Input!$P$70=1,'AZ Hpol (3)'!$W21,IF(Input!$P$70=2,#REF!,IF(Input!$P$70=3,#REF!,IF(Input!$P$70=4,#REF!,"")))) ->  | AH21: 0.1047197551
W22: =IF(Input!$F$35<14,"",INDEX($X$15:$AD$374,MATCH(MOD($X22-$Y$13,360),$X$15:$X$374,1),IF(OR(Input!$K$13="Full",Input!$K$13="Partial"),2,6))) ->  | X22: 7 | AC22: 0.8834702798 | AD22: 0.8834702798 | AE22: 0 | AF22: =IF(Input!$P$70=1,'AZ Hpol (3)'!$W22,IF(Input!$P$70=2,#REF!,IF(Input!$P$70=3,#REF!,IF(Input!$P$70=4,#REF!,"")))) ->  | AH22: 0.1221730476
W23: =IF(Input!$F$35<14,"",INDEX($X$15:$AD$374,MATCH(MOD($X23-$Y$13,360),$X$15:$X$374,1),IF(OR(Input!$K$13="Full",Input!$K$13="Partial"),2,6))) ->  | X23: 8 | AC23: 0.8852728152 | AD23: 0.8852728152 | AE23: 0 | AF23: =IF(Input!$P$70=1,'AZ Hpol (3)'!$W23,IF(Input!$P$70=2,#REF!,IF(Input!$P$70=3,#REF!,IF(Input!$P$70=4,#REF!,"")))) ->  | AH23: 0.1396263402
W24: =IF(Input!$F$35<14,"",INDEX($X$15:$AD$374,MATCH(MOD($X24-$Y$13,360),$X$15:$X$374,1),IF(OR(Input!$K$13="Full",Input!$K$13="Partial"),2,6))) ->  | X24: 9 | AC24: 0.8872978386 | AD24: 0.8872978386 | AE24: 0 | AF24: =IF(Input!$P$70=1,'AZ Hpol (3)'!$W24,IF(Input!$P$70=2,#REF!,IF(Input!$P$70=3,#REF!,IF(Input!$P$70=4,#REF!,"")))) ->  | AH24: 0.1570796327
W25: =IF(Input!$F$35<14,"",INDEX($X$15:$AD$374,MATCH(MOD($X25-$Y$13,360),$X$15:$X$374,1),IF(OR(Input!$K$13="Full",Input!$K$13="Partial"),2,6))) ->  | X25: 10 | AC25: 0.8895367174 | AD25: 0.8895367174 | AE25: 0 | AF25: =IF(Input!$P$70=1,'AZ Hpol (3)'!$W25,IF(Input!$P$70=2,#REF!,IF(Input!$P$70=3,#REF!,IF(Input!$P$70=4,#REF!,"")))) ->  | AH25: 0.1745329252
B26: Deg | C26: Value | D26: Deg | E26: Value | F26: Deg | G26: Value | H26: Deg | I26: Value | J26: Deg | K26: Value | L26: Deg | M26: Value | N26: Deg | O26: Value | P26: Deg | Q26: Value | R26: Deg | S26: Value | T26: Deg | U26: Value | W26: =IF(Input!$F$35<14,"",INDEX($X$15:$AD$374,MATCH(MOD($X26-$Y$13,360),$X$15:$X$374,1),IF(OR(Input!$K$13="Full",Input!$K$13="Partial"),2,6))) ->  | X26: 11 | AC26: 0.8919799116 | AD26: 0.8919799116 | AE26: 0 | AF26: =IF(Input!$P$70=1,'AZ Hpol (3)'!$W26,IF(Input!$P$70=2,#REF!,IF(Input!$P$70=3,#REF!,IF(Input!$P$70=4,#REF!,"")))) ->  | AH26: 0.1919862177
B27: 0 | C27: =W15 ->  | D27: 36 | E27: =W51 ->  | F27: 72 | G27: =W87 ->  | H27: 108 | I27: =W123 ->  | J27: 144 | K27: =W159 ->  | L27: 180 | M27: =W195 ->  | N27: 216 | O27: =W231 ->  | P27: 252 | Q27: =W267 ->  | R27: 288 | S27: =W303 ->  | T27: 324 | U27: =W339 ->  | W27: =IF(Input!$F$35<14,"",INDEX($X$15:$AD$374,MATCH(MOD($X27-$Y$13,360),$X$15:$X$374,1),IF(OR(Input!$K$13="Full",Input!$K$13="Partial"),2,6))) ->  | X27: 12 | AC27: 0.8946170161 | AD27: 0.8946170161 | AE27: 0 | AF27: =IF(Input!$P$70=1,'AZ Hpol (3)'!$W27,IF(Input!$P$70=2,#REF!,IF(Input!$P$70=3,#REF!,IF(Input!$P$70=4,#REF!,"")))) ->  | AH27: 0.2094395102
B28: 1 | D28: 37 | F28: 73 | H28: 109 | J28: 145 | L28: 181 | N28: 217 | P28: 253 | R28: 289 | T28: 325 | W28: =IF(Input!$F$35<14,"",INDEX($X$15:$AD$374,MATCH(MOD($X28-$Y$13,360),$X$15:$X$374,1),IF(OR(Input!$K$13="Full",Input!$K$13="Partial"),2,6))) ->  | X28: 13 | AC28: 0.8974368064 | AD28: 0.8974368064 | AE28: 0 | AF28: =IF(Input!$P$70=1,'AZ Hpol (3)'!$W28,IF(Input!$P$70=2,#REF!,IF(Input!$P$70=3,#REF!,IF(Input!$P$70=4,#REF!,"")))) ->  | AH28: 0.2268928028
B29: 2 | D29: 38 | F29: 74 | H29: 110 | J29: 146 | L29: 182 | N29: 218 | P29: 254 | R29: 290 | T29: 326 | W29: =IF(Input!$F$35<14,"",INDEX($X$15:$AD$374,MATCH(MOD($X29-$Y$13,360),$X$15:$X$374,1),IF(OR(Input!$K$13="Full",Input!$K$13="Partial"),2,6))) ->  | X29: 14 | AC29: 0.9004272897 | AD29: 0.9004272897 | AE29: 0 | AF29: =IF(Input!$P$70=1,'AZ Hpol (3)'!$W29,IF(Input!$P$70=2,#REF!,IF(Input!$P$70=3,#REF!,IF(Input!$P$70=4,#REF!,"")))) ->  | AH29: 0.2443460953
B30: 3 | D30: 39 | F30: 75 | H30: 111 | J30: 147 | L30: 183 | N30: 219 | P30: 255 | R30: 291 | T30: 327 | W30: =IF(Input!$F$35<14,"",INDEX($X$15:$AD$374,MATCH(MOD($X30-$Y$13,360),$X$15:$X$374,1),IF(OR(Input!$K$13="Full",Input!$K$13="Partial"),2,6))) ->  | X30: 15 | AC30: 0.9035757574 | AD30: 0.9035757574 | AE30: 0 | AF30: =IF(Input!$P$70=1,'AZ Hpol (3)'!$W30,IF(Input!$P$70=2,#REF!,IF(Input!$P$70=3,#REF!,IF(Input!$P$70=4,#REF!,"")))) ->  | AH30: 0.2617993878
B31: 4 | D31: 40 | F31: 76 | H31: 112 | J31: 148 | L31: 184 | N31: 220 | P31: 256 | R31: 292 | T31: 328 | W31: =IF(Input!$F$35<14,"",INDEX($X$15:$AD$374,MATCH(MOD($X31-$Y$13,360),$X$15:$X$374,1),IF(OR(Input!$K$13="Full",Input!$K$13="Partial"),2,6))) ->  | X31: 16 | AC31: 0.9068688429 | AD31: 0.9068688429 | AE31: 0 | AF31: =IF(Input!$P$70=1,'AZ Hpol (3)'!$W31,IF(Input!$P$70=2,#REF!,IF(Input!$P$70=3,#REF!,IF(Input!$P$70=4,#REF!,"")))) ->  | AH31: 0.2792526803
B32: 5 | D32: 41 | F32: 77 | H32: 113 | J32: 149 | L32: 185 | N32: 221 | P32: 257 | R32: 293 | T32: 329 | W32: =IF(Input!$F$35<14,"",INDEX($X$15:$AD$374,MATCH(MOD($X32-$Y$13,360),$X$15:$X$374,1),IF(OR(Input!$K$13="Full",Input!$K$13="Partial"),2,6))) ->  | X32: 17 | AC32: 0.9102925816 | AD32: 0.9102925816 | AE32: 0 | AF32: =IF(Input!$P$70=1,'AZ Hpol (3)'!$W32,IF(Input!$P$70=2,#REF!,IF(Input!$P$70=3,#REF!,IF(Input!$P$70=4,#REF!,"")))) ->  | AH32: 0.2967059728
B33: 6 | D33: 42 | F33: 78 | H33: 114 | J33: 150 | L33: 186 | N33: 222 | P33: 258 | R33: 294 | T33: 330 | W33: =IF(Input!$F$35<14,"",INDEX($X$15:$AD$374,MATCH(MOD($X33-$Y$13,360),$X$15:$X$374,1),IF(OR(Input!$K$13="Full",Input!$K$13="Partial"),2,6))) ->  | X33: 18 | AC33: 0.9138324734 | AD33: 0.9138324734 | AE33: 0 | AF33: =IF(Input!$P$70=1,'AZ Hpol (3)'!$W33,IF(Input!$P$70=2,#REF!,IF(Input!$P$70=3,#REF!,IF(Input!$P$70=4,#REF!,"")))) ->  | AH33: 0.3141592654
B34: 7 | D34: 43 | F34: 79 | H34: 115 | J34: 151 | L34: 187 | N34: 223 | P34: 259 | R34: 295 | T34: 331 | W34: =IF(Input!$F$35<14,"",INDEX($X$15:$AD$374,MATCH(MOD($X34-$Y$13,360),$X$15:$X$374,1),IF(OR(Input!$K$13="Full",Input!$K$13="Partial"),2,6))) ->  | X34: 19 | AC34: 0.9174735492 | AD34: 0.9174735492 | AE34: 0 | AF34: =IF(Input!$P$70=1,'AZ Hpol (3)'!$W34,IF(Input!$P$70=2,#REF!,IF(Input!$P$70=3,#REF!,IF(Input!$P$70=4,#REF!,"")))) ->  | AH34: 0.3316125579
B35: 8 | D35: 44 | F35: 80 | H35: 116 | J35: 152 | L35: 188 | N35: 224 | P35: 260 | R35: 296 | T35: 332 | W35: =IF(Input!$F$35<14,"",INDEX($X$15:$AD$374,MATCH(MOD($X35-$Y$13,360),$X$15:$X$374,1),IF(OR(Input!$K$13="Full",Input!$K$13="Partial"),2,6))) ->  | X35: 20 | AC35: 0.9212004378 | AD35: 0.9212004378 | AE35: 0 | AF35: =IF(Input!$P$70=1,'AZ Hpol (3)'!$W35,IF(Input!$P$70=2,#REF!,IF(Input!$P$70=3,#REF!,IF(Input!$P$70=4,#REF!,"")))) ->  | AH35: 0.3490658504
B36: 9 | D36: 45 | F36: 81 | H36: 117 | J36: 153 | L36: 189 | N36: 225 | P36: 261 | R36: 297 | T36: 333 | W36: =IF(Input!$F$35<14,"",INDEX($X$15:$AD$374,MATCH(MOD($X36-$Y$13,360),$X$15:$X$374,1),IF(OR(Input!$K$13="Full",Input!$K$13="Partial"),2,6))) ->  | X36: 21 | AC36: 0.9249974366 | AD36: 0.9249974366 | AE36: 0 | AF36: =IF(Input!$P$70=1,'AZ Hpol (3)'!$W36,IF(Input!$P$70=2,#REF!,IF(Input!$P$70=3,#REF!,IF(Input!$P$70=4,#REF!,"")))) ->  | AH36: 0.3665191429
B37: 10 | D37: 46 | F37: 82 | H37: 118 | J37: 154 | L37: 190 | N37: 226 | P37: 262 | R37: 298 | T37: 334 | W37: =IF(Input!$F$35<14,"",INDEX($X$15:$AD$374,MATCH(MOD($X37-$Y$13,360),$X$15:$X$374,1),IF(OR(Input!$K$13="Full",Input!$K$13="Partial"),2,6))) ->  | X37: 22 | AC37: 0.9288485828 | AD37: 0.9288485828 | AE37: 0 | AF37: =IF(Input!$P$70=1,'AZ Hpol (3)'!$W37,IF(Input!$P$70=2,#REF!,IF(Input!$P$70=3,#REF!,IF(Input!$P$70=4,#REF!,"")))) ->  | AH37: 0.3839724354
B38: 11 | D38: 47 | F38: 83 | H38: 119 | J38: 155 | L38: 191 | N38: 227 | P38: 263 | R38: 299 | T38: 335 | W38: =IF(Input!$F$35<14,"",INDEX($X$15:$AD$374,MATCH(MOD($X38-$Y$13,360),$X$15:$X$374,1),IF(OR(Input!$K$13="Full",Input!$K$13="Partial"),2,6))) ->  | X38: 23 | AC38: 0.932737726 | AD38: 0.932737726 | AE38: 0 | AF38: =IF(Input!$P$70=1,'AZ Hpol (3)'!$W38,IF(Input!$P$70=2,#REF!,IF(Input!$P$70=3,#REF!,IF(Input!$P$70=4,#REF!,"")))) ->  | AH38: 0.401425728
B39: 12 | D39: 48 | F39: 84 | H39: 120 | J39: 156 | L39: 192 | N39: 228 | P39: 264 | R39: 300 | T39: 336 | W39: =IF(Input!$F$35<14,"",INDEX($X$15:$AD$374,MATCH(MOD($X39-$Y$13,360),$X$15:$X$374,1),IF(OR(Input!$K$13="Full",Input!$K$13="Partial"),2,6))) ->  | X39: 24 | AC39: 0.9366486025 | AD39: 0.9366486025 | AE39: 0 | AF39: =IF(Input!$P$70=1,'AZ Hpol (3)'!$W39,IF(Input!$P$70=2,#REF!,IF(Input!$P$70=3,#REF!,IF(Input!$P$70=4,#REF!,"")))) ->  | AH39: 0.4188790205
B40: 13 | D40: 49 | F40: 85 | H40: 121 | J40: 157 | L40: 193 | N40: 229 | P40: 265 | R40: 301 | T40: 337 | W40: =IF(Input!$F$35<14,"",INDEX($X$15:$AD$374,MATCH(MOD($X40-$Y$13,360),$X$15:$X$374,1),IF(OR(Input!$K$13="Full",Input!$K$13="Partial"),2,6))) ->  | X40: 25 | AC40: 0.9405649096 | AD40: 0.9405649096 | AE40: 0 | AF40: =IF(Input!$P$70=1,'AZ Hpol (3)'!$W40,IF(Input!$P$70=2,#REF!,IF(Input!$P$70=3,#REF!,IF(Input!$P$70=4,#REF!,"")))) ->  | AH40: 0.436332313
B41: 14 | D41: 50 | F41: 86 | H41: 122 | J41: 158 | L41: 194 | N41: 230 | P41: 266 | R41: 302 | T41: 338 | W41: =IF(Input!$F$35<14,"",INDEX($X$15:$AD$374,MATCH(MOD($X41-$Y$13,360),$X$15:$X$374,1),IF(OR(Input!$K$13="Full",Input!$K$13="Partial"),2,6))) ->  | X41: 26 | AC41: 0.94447038 | AD41: 0.94447038 | AE41: 0 | AF41: =IF(Input!$P$70=1,'AZ Hpol (3)'!$W41,IF(Input!$P$70=2,#REF!,IF(Input!$P$70=3,#REF!,IF(Input!$P$70=4,#REF!,"")))) ->  | AH41: 0.4537856055
B42: 15 | D42: 51 | F42: 87 | H42: 123 | J42: 159 | L42: 195 | N42: 231 | P42: 267 | R42: 303 | T42: 339 | W42: =IF(Input!$F$35<14,"",INDEX($X$15:$AD$374,MATCH(MOD($X42-$Y$13,360),$X$15:$X$374,1),IF(OR(Input!$K$13="Full",Input!$K$13="Partial"),2,6))) ->  | X42: 27 | AC42: 0.9483488566 | AD42: 0.9483488566 | AE42: 0 | AF42: =IF(Input!$P$70=1,'AZ Hpol (3)'!$W42,IF(Input!$P$70=2,#REF!,IF(Input!$P$70=3,#REF!,IF(Input!$P$70=4,#REF!,"")))) ->  | AH42: 0.471238898
B43: 16 | D43: 52 | F43: 88 | H43: 124 | J43: 160 | L43: 196 | N43: 232 | P43: 268 | R43: 304 | T43: 340 | W43: =IF(Input!$F$35<14,"",INDEX($X$15:$AD$374,MATCH(MOD($X43-$Y$13,360),$X$15:$X$374,1),IF(OR(Input!$K$13="Full",Input!$K$13="Partial"),2,6))) ->  | X43: 28 | AC43: 0.9521843665 | AD43: 0.9521843665 | AE43: 0 | AF43: =IF(Input!$P$70=1,'AZ Hpol (3)'!$W43,IF(Input!$P$70=2,#REF!,IF(Input!$P$70=3,#REF!,IF(Input!$P$70=4,#REF!,"")))) ->  | AH43: 0.4886921906
B44: 17 | D44: 53 | F44: 89 | H44: 125 | J44: 161 | L44: 197 | N44: 233 | P44: 269 | R44: 305 | T44: 341 | W44: =IF(Input!$F$35<14,"",INDEX($X$15:$AD$374,MATCH(MOD($X44-$Y$13,360),$X$15:$X$374,1),IF(OR(Input!$K$13="Full",Input!$K$13="Partial"),2,6))) ->  | X44: 29 | AC44: 0.9559611944 | AD44: 0.9559611944 | AE44: 0 | AF44: =IF(Input!$P$70=1,'AZ Hpol (3)'!$W44,IF(Input!$P$70=2,#REF!,IF(Input!$P$70=3,#REF!,IF(Input!$P$70=4,#REF!,"")))) ->  | AH44: 0.5061454831
B45: 18 | D45: 54 | F45: 90 | H45: 126 | J45: 162 | L45: 198 | N45: 234 | P45: 270 | R45: 306 | T45: 342 | W45: =IF(Input!$F$35<14,"",INDEX($X$15:$AD$374,MATCH(MOD($X45-$Y$13,360),$X$15:$X$374,1),IF(OR(Input!$K$13="Full",Input!$K$13="Partial"),2,6))) ->  | X45: 30 | AC45: 0.9596639541 | AD45: 0.9596639541 | AE45: 1 | AF45: =IF(Input!$P$70=1,'AZ Hpol (3)'!$W45,IF(Input!$P$70=2,#REF!,IF(Input!$P$70=3,#REF!,IF(Input!$P$70=4,#REF!,"")))) ->  | AH45: 0.5235987756
B46: 19 | D46: 55 | F46: 91 | H46: 127 | J46: 163 | L46: 199 | N46: 235 | P46: 271 | R46: 307 | T46: 343 | W46: =IF(Input!$F$35<14,"",INDEX($X$15:$AD$374,MATCH(MOD($X46-$Y$13,360),$X$15:$X$374,1),IF(OR(Input!$K$13="Full",Input!$K$13="Partial"),2,6))) ->  | X46: 31 | AC46: 0.9632776593 | AD46: 0.9632776593 | AE46: 0 | AF46: =IF(Input!$P$70=1,'AZ Hpol (3)'!$W46,IF(Input!$P$70=2,#REF!,IF(Input!$P$70=3,#REF!,IF(Input!$P$70=4,#REF!,"")))) ->  | AH46: 0.5410520681
B47: 20 | D47: 56 | F47: 92 | H47: 128 | J47: 164 | L47: 200 | N47: 236 | P47: 272 | R47: 308 | T47: 344 | W47: =IF(Input!$F$35<14,"",INDEX($X$15:$AD$374,MATCH(MOD($X47-$Y$13,360),$X$15:$X$374,1),IF(OR(Input!$K$13="Full",Input!$K$13="Partial"),2,6))) ->  | X47: 32 | AC47: 0.9667877916 | AD47: 0.9667877916 | AE47: 0 | AF47: =IF(Input!$P$70=1,'AZ Hpol (3)'!$W47,IF(Input!$P$70=2,#REF!,IF(Input!$P$70=3,#REF!,IF(Input!$P$70=4,#REF!,"")))) ->  | AH47: 0.5585053606
B48: 21 | D48: 57 | F48: 93 | H48: 129 | J48: 165 | L48: 201 | N48: 237 | P48: 273 | R48: 309 | T48: 345 | W48: =IF(Input!$F$35<14,"",INDEX($X$15:$AD$374,MATCH(MOD($X48-$Y$13,360),$X$15:$X$374,1),IF(OR(Input!$K$13="Full",Input!$K$13="Partial"),2,6))) ->  | X48: 33 | AC48: 0.9701803672 | AD48: 0.9701803672 | AE48: 0 | AF48: =IF(Input!$P$70=1,'AZ Hpol (3)'!$W48,IF(Input!$P$70=2,#REF!,IF(Input!$P$70=3,#REF!,IF(Input!$P$70=4,#REF!,"")))) ->  | AH48: 0.5759586532
B49: 22 | D49: 58 | F49: 94 | H49: 130 | J49: 166 | L49: 202 | N49: 238 | P49: 274 | R49: 310 | T49: 346 | W49: =IF(Input!$F$35<14,"",INDEX($X$15:$AD$374,MATCH(MOD($X49-$Y$13,360),$X$15:$X$374,1),IF(OR(Input!$K$13="Full",Input!$K$13="Partial"),2,6))) ->  | X49: 34 | AC49: 0.9734419996 | AD49: 0.9734419996 | AE49: 0 | AF49: =IF(Input!$P$70=1,'AZ Hpol (3)'!$W49,IF(Input!$P$70=2,#REF!,IF(Input!$P$70=3,#REF!,IF(Input!$P$70=4,#REF!,"")))) ->  | AH49: 0.5934119457
B50: 23 | D50: 59 | F50: 95 | H50: 131 | J50: 167 | L50: 203 | N50: 239 | P50: 275 | R50: 311 | T50: 347 | W50: =IF(Input!$F$35<14,"",INDEX($X$15:$AD$374,MATCH(MOD($X50-$Y$13,360),$X$15:$X$374,1),IF(OR(Input!$K$13="Full",Input!$K$13="Partial"),2,6))) ->  | X50: 35 | AC50: 0.9765599607 | AD50: 0.9765599607 | AE50: 0 | AF50: =IF(Input!$P$70=1,'AZ Hpol (3)'!$W50,IF(Input!$P$70=2,#REF!,IF(Input!$P$70=3,#REF!,IF(Input!$P$70=4,#REF!,"")))) ->  | AH50: 0.6108652382
B51: 24 | D51: 60 | F51: 96 | H51: 132 | J51: 168 | L51: 204 | N51: 240 | P51: 276 | R51: 312 | T51: 348 | W51: =IF(Input!$F$35<14,"",INDEX($X$15:$AD$374,MATCH(MOD($X51-$Y$13,360),$X$15:$X$374,1),IF(OR(Input!$K$13="Full",Input!$K$13="Partial"),2,6))) ->  | X51: 36 | AC51: 0.9795222374 | AD51: 0.9795222374 | AE51: 0 | AF51: =IF(Input!$P$70=1,'AZ Hpol (3)'!$W51,IF(Input!$P$70=2,#REF!,IF(Input!$P$70=3,#REF!,IF(Input!$P$70=4,#REF!,"")))) ->  | AH51: 0.6283185307
B52: 25 | D52: 61 | F52: 97 | H52: 133 | J52: 169 | L52: 205 | N52: 241 | P52: 277 | R52: 313 | T52: 349 | W52: =IF(Input!$F$35<14,"",INDEX($X$15:$AD$374,MATCH(MOD($X52-$Y$13,360),$X$15:$X$374,1),IF(OR(Input!$K$13="Full",Input!$K$13="Partial"),2,6))) ->  | X52: 37 | AC52: 0.9823175858 | AD52: 0.9823175858 | AE52: 0 | AF52: =IF(Input!$P$70=1,'AZ Hpol (3)'!$W52,IF(Input!$P$70=2,#REF!,IF(Input!$P$70=3,#REF!,IF(Input!$P$70=4,#REF!,"")))) ->  | AH52: 0.6457718232
B53: 26 | D53: 62 | F53: 98 | H53: 134 | J53: 170 | L53: 206 | N53: 242 | P53: 278 | R53: 314 | T53: 350 | W53: =IF(Input!$F$35<14,"",INDEX($X$15:$AD$374,MATCH(MOD($X53-$Y$13,360),$X$15:$X$374,1),IF(OR(Input!$K$13="Full",Input!$K$13="Partial"),2,6))) ->  | X53: 38 | AC53: 0.9849355802 | AD53: 0.9849355802 | AE53: 0 | AF53: =IF(Input!$P$70=1,'AZ Hpol (3)'!$W53,IF(Input!$P$70=2,#REF!,IF(Input!$P$70=3,#REF!,IF(Input!$P$70=4,#REF!,"")))) ->  | AH53: 0.6632251158
B54: 27 | D54: 63 | F54: 99 | H54: 135 | J54: 171 | L54: 207 | N54: 243 | P54: 279 | R54: 315 | T54: 351 | W54: =IF(Input!$F$35<14,"",INDEX($X$15:$AD$374,MATCH(MOD($X54-$Y$13,360),$X$15:$X$374,1),IF(OR(Input!$K$13="Full",Input!$K$13="Partial"),2,6))) ->  | X54: 39 | AC54: 0.9873666587 | AD54: 0.9873666587 | AE54: 0 | AF54: =IF(Input!$P$70=1,'AZ Hpol (3)'!$W54,IF(Input!$P$70=2,#REF!,IF(Input!$P$70=3,#REF!,IF(Input!$P$70=4,#REF!,"")))) ->  | AH54: 0.6806784083
B55: 28 | D55: 64 | F55: 100 | H55: 136 | J55: 172 | L55: 208 | N55: 244 | P55: 280 | R55: 316 | T55: 352 | W55: =IF(Input!$F$35<14,"",INDEX($X$15:$AD$374,MATCH(MOD($X55-$Y$13,360),$X$15:$X$374,1),IF(OR(Input!$K$13="Full",Input!$K$13="Partial"),2,6))) ->  | X55: 40 | AC55: 0.9896021643 | AD55: 0.9896021643 | AE55: 0 | AF55: =IF(Input!$P$70=1,'AZ Hpol (3)'!$W55,IF(Input!$P$70=2,#REF!,IF(Input!$P$70=3,#REF!,IF(Input!$P$70=4,#REF!,"")))) ->  | AH55: 0.6981317008
B56: 29 | D56: 65 | F56: 101 | H56: 137 | J56: 173 | L56: 209 | N56: 245 | P56: 281 | R56: 317 | T56: 353 | W56: =IF(Input!$F$35<14,"",INDEX($X$15:$AD$374,MATCH(MOD($X56-$Y$13,360),$X$15:$X$374,1),IF(OR(Input!$K$13="Full",Input!$K$13="Partial"),2,6))) ->  | X56: 41 | AC56: 0.9916343811 | AD56: 0.9916343811 | AE56: 0 | AF56: =IF(Input!$P$70=1,'AZ Hpol (3)'!$W56,IF(Input!$P$70=2,#REF!,IF(Input!$P$70=3,#REF!,IF(Input!$P$70=4,#REF!,"")))) ->  | AH56: 0.7155849933
B57: 30 | D57: 66 | F57: 102 | H57: 138 | J57: 174 | L57: 210 | N57: 246 | P57: 282 | R57: 318 | T57: 354 | W57: =IF(Input!$F$35<14,"",INDEX($X$15:$AD$374,MATCH(MOD($X57-$Y$13,360),$X$15:$X$374,1),IF(OR(Input!$K$13="Full",Input!$K$13="Partial"),2,6))) ->  | X57: 42 | AC57: 0.9934565654 | AD57: 0.9934565654 | AE57: 0 | AF57: =IF(Input!$P$70=1,'AZ Hpol (3)'!$W57,IF(Input!$P$70=2,#REF!,IF(Input!$P$70=3,#REF!,IF(Input!$P$70=4,#REF!,"")))) ->  | AH57: 0.7330382858
B58: 31 | D58: 67 | F58: 103 | H58: 139 | J58: 175 | L58: 211 | N58: 247 | P58: 283 | R58: 319 | T58: 355 | W58: =IF(Input!$F$35<14,"",INDEX($X$15:$AD$374,MATCH(MOD($X58-$Y$13,360),$X$15:$X$374,1),IF(OR(Input!$K$13="Full",Input!$K$13="Partial"),2,6))) ->  | X58: 43 | AC58: 0.9950629719 | AD58: 0.9950629719 | AE58: 0 | AF58: =IF(Input!$P$70=1,'AZ Hpol (3)'!$W58,IF(Input!$P$70=2,#REF!,IF(Input!$P$70=3,#REF!,IF(Input!$P$70=4,#REF!,"")))) ->  | AH58: 0.7504915784
B59: 32 | D59: 68 | F59: 104 | H59: 140 | J59: 176 | L59: 212 | N59: 248 | P59: 284 | R59: 320 | T59: 356 | W59: =IF(Input!$F$35<14,"",INDEX($X$15:$AD$374,MATCH(MOD($X59-$Y$13,360),$X$15:$X$374,1),IF(OR(Input!$K$13="Full",Input!$K$13="Partial"),2,6))) ->  | X59: 44 | AC59: 0.9964488743 | AD59: 0.9964488743 | AE59: 0 | AF59: =IF(Input!$P$70=1,'AZ Hpol (3)'!$W59,IF(Input!$P$70=2,#REF!,IF(Input!$P$70=3,#REF!,IF(Input!$P$70=4,#REF!,"")))) ->  | AH59: 0.7679448709
B60: 33 | D60: 69 | F60: 105 | H60: 141 | J60: 177 | L60: 213 | N60: 249 | P60: 285 | R60: 321 | T60: 357 | W60: =IF(Input!$F$35<14,"",INDEX($X$15:$AD$374,MATCH(MOD($X60-$Y$13,360),$X$15:$X$374,1),IF(OR(Input!$K$13="Full",Input!$K$13="Partial"),2,6))) ->  | X60: 45 | AC60: 0.9976105803 | AD60: 0.9976105803 | AE60: 0 | AF60: =IF(Input!$P$70=1,'AZ Hpol (3)'!$W60,IF(Input!$P$70=2,#REF!,IF(Input!$P$70=3,#REF!,IF(Input!$P$70=4,#REF!,"")))) ->  | AH60: 0.7853981634
B61: 34 | D61: 70 | F61: 106 | H61: 142 | J61: 178 | L61: 214 | N61: 250 | P61: 286 | R61: 322 | T61: 358 | W61: =IF(Input!$F$35<14,"",INDEX($X$15:$AD$374,MATCH(MOD($X61-$Y$13,360),$X$15:$X$374,1),IF(OR(Input!$K$13="Full",Input!$K$13="Partial"),2,6))) ->  | X61: 46 | AC61: 0.9985454414 | AD61: 0.9985454414 | AE61: 0 | AF61: =IF(Input!$P$70=1,'AZ Hpol (3)'!$W61,IF(Input!$P$70=2,#REF!,IF(Input!$P$70=3,#REF!,IF(Input!$P$70=4,#REF!,"")))) ->  | AH61: 0.8028514559
B62: 35 | D62: 71 | F62: 107 | H62: 143 | J62: 179 | L62: 215 | N62: 251 | P62: 287 | R62: 323 | T62: 359 | W62: =IF(Input!$F$35<14,"",INDEX($X$15:$AD$374,MATCH(MOD($X62-$Y$13,360),$X$15:$X$374,1),IF(OR(Input!$K$13="Full",Input!$K$13="Partial"),2,6))) ->  | X62: 47 | AC62: 0.9992518554 | AD62: 0.9992518554 | AE62: 0 | AF62: =IF(Input!$P$70=1,'AZ Hpol (3)'!$W62,IF(Input!$P$70=2,#REF!,IF(Input!$P$70=3,#REF!,IF(Input!$P$70=4,#REF!,"")))) ->  | AH62: 0.8203047484
W63: =IF(Input!$F$35<14,"",INDEX($X$15:$AD$374,MATCH(MOD($X63-$Y$13,360),$X$15:$X$374,1),IF(OR(Input!$K$13="Full",Input!$K$13="Partial"),2,6))) ->  | X63: 48 | AC63: 0.9997292647 | AD63: 0.9997292647 | AE63: 0 | AF63: =IF(Input!$P$70=1,'AZ Hpol (3)'!$W63,IF(Input!$P$70=2,#REF!,IF(Input!$P$70=3,#REF!,IF(Input!$P$70=4,#REF!,"")))) ->  | AH63: 0.837758041
A64: This document contains proprietary and confidential information of Dielectric. It is to be used solely for the purpose for which it is provided. | W64: =IF(Input!$F$35<14,"",INDEX($X$15:$AD$374,MATCH(MOD($X64-$Y$13,360),$X$15:$X$374,1),IF(OR(Input!$K$13="Full",Input!$K$13="Partial"),2,6))) ->  | X64: 49 | AC64: 0.9999781469 | AD64: 0.9999781469 | AE64: 0 | AF64: =IF(Input!$P$70=1,'AZ Hpol (3)'!$W64,IF(Input!$P$70=2,#REF!,IF(Input!$P$70=3,#REF!,IF(Input!$P$70=4,#REF!,"")))) ->  | AH64: 0.8552113335
A65: No disclosure, reproduction, or use of this document or any part of it may be made without the written permission of Dielectric. | W65: =IF(Input!$F$35<14,"",INDEX($X$15:$AD$374,MATCH(MOD($X65-$Y$13,360),$X$15:$X$374,1),IF(OR(Input!$K$13="Full",Input!$K$13="Partial"),2,6))) ->  | X65: 50 | AC65: 1 | AD65: 1 | AE65: 0 | AF65: =IF(Input!$P$70=1,'AZ Hpol (3)'!$W65,IF(Input!$P$70=2,#REF!,IF(Input!$P$70=3,#REF!,IF(Input!$P$70=4,#REF!,"")))) ->  | AH65: 0.872664626
W66: =IF(Input!$F$35<14,"",INDEX($X$15:$AD$374,MATCH(MOD($X66-$Y$13,360),$X$15:$X$374,1),IF(OR(Input!$K$13="Full",Input!$K$13="Partial"),2,6))) ->  | X66: 51 | AC66: 0.9997973207 | AD66: 0.9997973207 | AE66: 0 | AF66: =IF(Input!$P$70=1,'AZ Hpol (3)'!$W66,IF(Input!$P$70=2,#REF!,IF(Input!$P$70=3,#REF!,IF(Input!$P$70=4,#REF!,"")))) ->  | AH66: 0.8901179185
W67: =IF(Input!$F$35<14,"",INDEX($X$15:$AD$374,MATCH(MOD($X67-$Y$13,360),$X$15:$X$374,1),IF(OR(Input!$K$13="Full",Input!$K$13="Partial"),2,6))) ->  | X67: 52 | AC67: 0.9993735769 | AD67: 0.9993735769 | AE67: 0 | AF67: =IF(Input!$P$70=1,'AZ Hpol (3)'!$W67,IF(Input!$P$70=2,#REF!,IF(Input!$P$70=3,#REF!,IF(Input!$P$70=4,#REF!,"")))) ->  | AH67: 0.907571211
W68: =IF(Input!$F$35<14,"",INDEX($X$15:$AD$374,MATCH(MOD($X68-$Y$13,360),$X$15:$X$374,1),IF(OR(Input!$K$13="Full",Input!$K$13="Partial"),2,6))) ->  | X68: 53 | AC68: 0.9987331735 | AD68: 0.9987331735 | AE68: 0 | AF68: =IF(Input!$P$70=1,'AZ Hpol (3)'!$W68,IF(Input!$P$70=2,#REF!,IF(Input!$P$70=3,#REF!,IF(Input!$P$70=4,#REF!,"")))) ->  | AH68: 0.9250245036
W69: =IF(Input!$F$35<14,"",INDEX($X$15:$AD$374,MATCH(MOD($X69-$Y$13,360),$X$15:$X$374,1),IF(OR(Input!$K$13="Full",Input!$K$13="Partial"),2,6))) ->  | X69: 54 | AC69: 0.9978814117 | AD69: 0.9978814117 | AE69: 0 | AF69: =IF(Input!$P$70=1,'AZ Hpol (3)'!$W69,IF(Input!$P$70=2,#REF!,IF(Input!$P$70=3,#REF!,IF(Input!$P$70=4,#REF!,"")))) ->  | AH69: 0.9424777961
W70: =IF(Input!$F$35<14,"",INDEX($X$15:$AD$374,MATCH(MOD($X70-$Y$13,360),$X$15:$X$374,1),IF(OR(Input!$K$13="Full",Input!$K$13="Partial"),2,6))) ->  | X70: 55 | AC70: 0.9968244421 | AD70: 0.9968244421 | AE70: 0 | AF70: =IF(Input!$P$70=1,'AZ Hpol (3)'!$W70,IF(Input!$P$70=2,#REF!,IF(Input!$P$70=3,#REF!,IF(Input!$P$70=4,#REF!,"")))) ->  | AH70: 0.9599310886
W71: =IF(Input!$F$35<14,"",INDEX($X$15:$AD$374,MATCH(MOD($X71-$Y$13,360),$X$15:$X$374,1),IF(OR(Input!$K$13="Full",Input!$K$13="Partial"),2,6))) ->  | X71: 56 | AC71: 0.9955692116 | AD71: 0.9955692116 | AE71: 0 | AF71: =IF(Input!$P$70=1,'AZ Hpol (3)'!$W71,IF(Input!$P$70=2,#REF!,IF(Input!$P$70=3,#REF!,IF(Input!$P$70=4,#REF!,"")))) ->  | AH71: 0.9773843811
W72: =IF(Input!$F$35<14,"",INDEX($X$15:$AD$374,MATCH(MOD($X72-$Y$13,360),$X$15:$X$374,1),IF(OR(Input!$K$13="Full",Input!$K$13="Partial"),2,6))) ->  | X72: 57 | AC72: 0.994123404 | AD72: 0.994123404 | AE72: 0 | AF72: =IF(Input!$P$70=1,'AZ Hpol (3)'!$W72,IF(Input!$P$70=2,#REF!,IF(Input!$P$70=3,#REF!,IF(Input!$P$70=4,#REF!,"")))) ->  | AH72: 0.9948376736
W73: =IF(Input!$F$35<14,"",INDEX($X$15:$AD$374,MATCH(MOD($X73-$Y$13,360),$X$15:$X$374,1),IF(OR(Input!$K$13="Full",Input!$K$13="Partial"),2,6))) ->  | X73: 58 | AC73: 0.9924953749 | AD73: 0.9924953749 | AE73: 0 | AF73: =IF(Input!$P$70=1,'AZ Hpol (3)'!$W73,IF(Input!$P$70=2,#REF!,IF(Input!$P$70=3,#REF!,IF(Input!$P$70=4,#REF!,"")))) ->  | AH73: 1.012290966
W74: =IF(Input!$F$35<14,"",INDEX($X$15:$AD$374,MATCH(MOD($X74-$Y$13,360),$X$15:$X$374,1),IF(OR(Input!$K$13="Full",Input!$K$13="Partial"),2,6))) ->  | X74: 59 | AC74: 0.9906940802 | AD74: 0.9906940802 | AE74: 0 | AF74: =IF(Input!$P$70=1,'AZ Hpol (3)'!$W74,IF(Input!$P$70=2,#REF!,IF(Input!$P$70=3,#REF!,IF(Input!$P$70=4,#REF!,"")))) ->  | AH74: 1.029744259
W75: =IF(Input!$F$35<14,"",INDEX($X$15:$AD$374,MATCH(MOD($X75-$Y$13,360),$X$15:$X$374,1),IF(OR(Input!$K$13="Full",Input!$K$13="Partial"),2,6))) ->  | X75: 60 | AC75: 0.9887289996 | AD75: 0.9887289996 | AE75: 1 | AF75: =IF(Input!$P$70=1,'AZ Hpol (3)'!$W75,IF(Input!$P$70=2,#REF!,IF(Input!$P$70=3,#REF!,IF(Input!$P$70=4,#REF!,"")))) ->  | AH75: 1.047197551
W76: =IF(Input!$F$35<14,"",INDEX($X$15:$AD$374,MATCH(MOD($X76-$Y$13,360),$X$15:$X$374,1),IF(OR(Input!$K$13="Full",Input!$K$13="Partial"),2,6))) ->  | X76: 61 | AC76: 0.9866100545 | AD76: 0.9866100545 | AE76: 0 | AF76: =IF(Input!$P$70=1,'AZ Hpol (3)'!$W76,IF(Input!$P$70=2,#REF!,IF(Input!$P$70=3,#REF!,IF(Input!$P$70=4,#REF!,"")))) ->  | AH76: 1.064650844
W77: =IF(Input!$F$35<14,"",INDEX($X$15:$AD$374,MATCH(MOD($X77-$Y$13,360),$X$15:$X$374,1),IF(OR(Input!$K$13="Full",Input!$K$13="Partial"),2,6))) ->  | X77: 62 | AC77: 0.9843475214 | AD77: 0.9843475214 | AE77: 0 | AF77: =IF(Input!$P$70=1,'AZ Hpol (3)'!$W77,IF(Input!$P$70=2,#REF!,IF(Input!$P$70=3,#REF!,IF(Input!$P$70=4,#REF!,"")))) ->  | AH77: 1.082104136
W78: =IF(Input!$F$35<14,"",INDEX($X$15:$AD$374,MATCH(MOD($X78-$Y$13,360),$X$15:$X$374,1),IF(OR(Input!$K$13="Full",Input!$K$13="Partial"),2,6))) ->  | X78: 63 | AC78: 0.9819519404 | AD78: 0.9819519404 | AE78: 0 | AF78: =IF(Input!$P$70=1,'AZ Hpol (3)'!$W78,IF(Input!$P$70=2,#REF!,IF(Input!$P$70=3,#REF!,IF(Input!$P$70=4,#REF!,"")))) ->  | AH78: 1.099557429
W79: =IF(Input!$F$35<14,"",INDEX($X$15:$AD$374,MATCH(MOD($X79-$Y$13,360),$X$15:$X$374,1),IF(OR(Input!$K$13="Full",Input!$K$13="Partial"),2,6))) ->  | X79: 64 | AC79: 0.9794340197 | AD79: 0.9794340197 | AE79: 0 | AF79: =IF(Input!$P$70=1,'AZ Hpol (3)'!$W79,IF(Input!$P$70=2,#REF!,IF(Input!$P$70=3,#REF!,IF(Input!$P$70=4,#REF!,"")))) ->  | AG79: =ROUND(20*LOG(W79),4) ->  | AH79: 1.117010721 | AI79: =IF(W79<=0.031622776602,-30,20*LOG(W79)) -> 
W80: =IF(Input!$F$35<14,"",INDEX($X$15:$AD$374,MATCH(MOD($X80-$Y$13,360),$X$15:$X$374,1),IF(OR(Input!$K$13="Full",Input!$K$13="Partial"),2,6))) ->  | X80: 65 | Y80: =(1/$Z$11)*$Z80 ->  | Z80: =AD80*AA80 ->  | AA80: =SQRT(((1+COS(AB80))^2)+(SIN(AB80)^2)) ->  | AB80: =($AB$12*$AE$10*COS($AH80))+RADIANS($AE$9) ->  | AC80: =(1/$AC$11)*$AD80 -> 0.9768045371 | AD80: 0.9768045371 | AE80: 0 | AF80: =IF(Input!$P$70=1,'AZ Hpol (3)'!$W80,IF(Input!$P$70=2,#REF!,IF(Input!$P$70=3,#REF!,IF(Input!$P$70=4,#REF!,"")))) ->  | AH80: =RADIANS(X80) -> 1.134464014
W81: =IF(Input!$F$35<14,"",INDEX($X$15:$AD$374,MATCH(MOD($X81-$Y$13,360),$X$15:$X$374,1),IF(OR(Input!$K$13="Full",Input!$K$13="Partial"),2,6))) ->  | X81: 66 | AC81: 0.9740742378 | AD81: 0.9740742378 | AE81: 0 | AF81: =IF(Input!$P$70=1,'AZ Hpol (3)'!$W81,IF(Input!$P$70=2,#REF!,IF(Input!$P$70=3,#REF!,IF(Input!$P$70=4,#REF!,"")))) ->  | AH81: 1.151917306
W82: =IF(Input!$F$35<14,"",INDEX($X$15:$AD$374,MATCH(MOD($X82-$Y$13,360),$X$15:$X$374,1),IF(OR(Input!$K$13="Full",Input!$K$13="Partial"),2,6))) ->  | X82: 67 | AC82: 0.9712537313 | AD82: 0.9712537313 | AE82: 0 | AF82: =IF(Input!$P$70=1,'AZ Hpol (3)'!$W82,IF(Input!$P$70=2,#REF!,IF(Input!$P$70=3,#REF!,IF(Input!$P$70=4,#REF!,"")))) ->  | AH82: 1.169370599
W83: =IF(Input!$F$35<14,"",INDEX($X$15:$AD$374,MATCH(MOD($X83-$Y$13,360),$X$15:$X$374,1),IF(OR(Input!$K$13="Full",Input!$K$13="Partial"),2,6))) ->  | X83: 68 | AC83: 0.9683533855 | AD83: 0.9683533855 | AE83: 0 | AF83: =IF(Input!$P$70=1,'AZ Hpol (3)'!$W83,IF(Input!$P$70=2,#REF!,IF(Input!$P$70=3,#REF!,IF(Input!$P$70=4,#REF!,"")))) ->  | AH83: 1.186823891
W84: =IF(Input!$F$35<14,"",INDEX($X$15:$AD$374,MATCH(MOD($X84-$Y$13,360),$X$15:$X$374,1),IF(OR(Input!$K$13="Full",Input!$K$13="Partial"),2,6))) ->  | X84: 69 | AC84: 0.9653832211 | AD84: 0.9653832211 | AE84: 0 | AF84: =IF(Input!$P$70=1,'AZ Hpol (3)'!$W84,IF(Input!$P$70=2,#REF!,IF(Input!$P$70=3,#REF!,IF(Input!$P$70=4,#REF!,"")))) ->  | AH84: 1.204277184
W85: =IF(Input!$F$35<14,"",INDEX($X$15:$AD$374,MATCH(MOD($X85-$Y$13,360),$X$15:$X$374,1),IF(OR(Input!$K$13="Full",Input!$K$13="Partial"),2,6))) ->  | X85: 70 | AC85: 0.9623528057 | AD85: 0.9623528057 | AE85: 0 | AF85: =IF(Input!$P$70=1,'AZ Hpol (3)'!$W85,IF(Input!$P$70=2,#REF!,IF(Input!$P$70=3,#REF!,IF(Input!$P$70=4,#REF!,"")))) ->  | AH85: 1.221730476
W86: =IF(Input!$F$35<14,"",INDEX($X$15:$AD$374,MATCH(MOD($X86-$Y$13,360),$X$15:$X$374,1),IF(OR(Input!$K$13="Full",Input!$K$13="Partial"),2,6))) ->  | X86: 71 | AC86: 0.9592711499 | AD86: 0.9592711499 | AE86: 0 | AF86: =IF(Input!$P$70=1,'AZ Hpol (3)'!$W86,IF(Input!$P$70=2,#REF!,IF(Input!$P$70=3,#REF!,IF(Input!$P$70=4,#REF!,"")))) ->  | AH86: 1.239183769
W87: =IF(Input!$F$35<14,"",INDEX($X$15:$AD$374,MATCH(MOD($X87-$Y$13,360),$X$15:$X$374,1),IF(OR(Input!$K$13="Full",Input!$K$13="Partial"),2,6))) ->  | X87: 72 | AC87: 0.9561466048 | AD87: 0.9561466048 | AE87: 0 | AF87: =IF(Input!$P$70=1,'AZ Hpol (3)'!$W87,IF(Input!$P$70=2,#REF!,IF(Input!$P$70=3,#REF!,IF(Input!$P$70=4,#REF!,"")))) ->  | AH87: 1.256637061
W88: =IF(Input!$F$35<14,"",INDEX($X$15:$AD$374,MATCH(MOD($X88-$Y$13,360),$X$15:$X$374,1),IF(OR(Input!$K$13="Full",Input!$K$13="Partial"),2,6))) ->  | X88: 73 | AC88: 0.9529867628 | AD88: 0.9529867628 | AE88: 0 | AF88: =IF(Input!$P$70=1,'AZ Hpol (3)'!$W88,IF(Input!$P$70=2,#REF!,IF(Input!$P$70=3,#REF!,IF(Input!$P$70=4,#REF!,"")))) ->  | AH88: 1.274090354
W89: =IF(Input!$F$35<14,"",INDEX($X$15:$AD$374,MATCH(MOD($X89-$Y$13,360),$X$15:$X$374,1),IF(OR(Input!$K$13="Full",Input!$K$13="Partial"),2,6))) ->  | X89: 74 | AC89: 0.9497983633 | AD89: 0.9497983633 | AE89: 0 | AF89: =IF(Input!$P$70=1,'AZ Hpol (3)'!$W89,IF(Input!$P$70=2,#REF!,IF(Input!$P$70=3,#REF!,IF(Input!$P$70=4,#REF!,"")))) ->  | AH89: 1.291543646
W90: =IF(Input!$F$35<14,"",INDEX($X$15:$AD$374,MATCH(MOD($X90-$Y$13,360),$X$15:$X$374,1),IF(OR(Input!$K$13="Full",Input!$K$13="Partial"),2,6))) ->  | X90: 75 | AC90: 0.9465872028 | AD90: 0.9465872028 | AE90: 0 | AF90: =IF(Input!$P$70=1,'AZ Hpol (3)'!$W90,IF(Input!$P$70=2,#REF!,IF(Input!$P$70=3,#REF!,IF(Input!$P$70=4,#REF!,"")))) ->  | AH90: 1.308996939
W91: =IF(Input!$F$35<14,"",INDEX($X$15:$AD$374,MATCH(MOD($X91-$Y$13,360),$X$15:$X$374,1),IF(OR(Input!$K$13="Full",Input!$K$13="Partial"),2,6))) ->  | X91: 76 | AC91: 0.9433580523 | AD91: 0.9433580523 | AE91: 0 | AF91: =IF(Input!$P$70=1,'AZ Hpol (3)'!$W91,IF(Input!$P$70=2,#REF!,IF(Input!$P$70=3,#REF!,IF(Input!$P$70=4,#REF!,"")))) ->  | AH91: 1.326450232
W92: =IF(Input!$F$35<14,"",INDEX($X$15:$AD$374,MATCH(MOD($X92-$Y$13,360),$X$15:$X$374,1),IF(OR(Input!$K$13="Full",Input!$K$13="Partial"),2,6))) ->  | X92: 77 | AC92: 0.9401145814 | AD92: 0.9401145814 | AE92: 0 | AF92: =IF(Input!$P$70=1,'AZ Hpol (3)'!$W92,IF(Input!$P$70=2,#REF!,IF(Input!$P$70=3,#REF!,IF(Input!$P$70=4,#REF!,"")))) ->  | AH92: 1.343903524
W93: =IF(Input!$F$35<14,"",INDEX($X$15:$AD$374,MATCH(MOD($X93-$Y$13,360),$X$15:$X$374,1),IF(OR(Input!$K$13="Full",Input!$K$13="Partial"),2,6))) ->  | X93: 78 | AC93: 0.9368592912 | AD93: 0.9368592912 | AE93: 0 | AF93: =IF(Input!$P$70=1,'AZ Hpol (3)'!$W93,IF(Input!$P$70=2,#REF!,IF(Input!$P$70=3,#REF!,IF(Input!$P$70=4,#REF!,"")))) ->  | AH93: 1.361356817
W94: =IF(Input!$F$35<14,"",INDEX($X$15:$AD$374,MATCH(MOD($X94-$Y$13,360),$X$15:$X$374,1),IF(OR(Input!$K$13="Full",Input!$K$13="Partial"),2,6))) ->  | X94: 79 | AC94: 0.9335934566 | AD94: 0.9335934566 | AE94: 0 | AF94: =IF(Input!$P$70=1,'AZ Hpol (3)'!$W94,IF(Input!$P$70=2,#REF!,IF(Input!$P$70=3,#REF!,IF(Input!$P$70=4,#REF!,"")))) ->  | AH94: 1.378810109
W95: =IF(Input!$F$35<14,"",INDEX($X$15:$AD$374,MATCH(MOD($X95-$Y$13,360),$X$15:$X$374,1),IF(OR(Input!$K$13="Full",Input!$K$13="Partial"),2,6))) ->  | X95: 80 | AC95: 0.9303170782 | AD95: 0.9303170782 | AE95: 0 | AF95: =IF(Input!$P$70=1,'AZ Hpol (3)'!$W95,IF(Input!$P$70=2,#REF!,IF(Input!$P$70=3,#REF!,IF(Input!$P$70=4,#REF!,"")))) ->  | AH95: 1.396263402
W96: =IF(Input!$F$35<14,"",INDEX($X$15:$AD$374,MATCH(MOD($X96-$Y$13,360),$X$15:$X$374,1),IF(OR(Input!$K$13="Full",Input!$K$13="Partial"),2,6))) ->  | X96: 81 | AC96: 0.9270288466 | AD96: 0.9270288466 | AE96: 0 | AF96: =IF(Input!$P$70=1,'AZ Hpol (3)'!$W96,IF(Input!$P$70=2,#REF!,IF(Input!$P$70=3,#REF!,IF(Input!$P$70=4,#REF!,"")))) ->  | AH96: 1.413716694
W97: =IF(Input!$F$35<14,"",INDEX($X$15:$AD$374,MATCH(MOD($X97-$Y$13,360),$X$15:$X$374,1),IF(OR(Input!$K$13="Full",Input!$K$13="Partial"),2,6))) ->  | X97: 82 | AC97: 0.9237261165 | AD97: 0.9237261165 | AE97: 0 | AF97: =IF(Input!$P$70=1,'AZ Hpol (3)'!$W97,IF(Input!$P$70=2,#REF!,IF(Input!$P$70=3,#REF!,IF(Input!$P$70=4,#REF!,"")))) ->  | AH97: 1.431169987
W98: =IF(Input!$F$35<14,"",INDEX($X$15:$AD$374,MATCH(MOD($X98-$Y$13,360),$X$15:$X$374,1),IF(OR(Input!$K$13="Full",Input!$K$13="Partial"),2,6))) ->  | X98: 83 | AC98: 0.9204048946 | AD98: 0.9204048946 | AE98: 0 | AF98: =IF(Input!$P$70=1,'AZ Hpol (3)'!$W98,IF(Input!$P$70=2,#REF!,IF(Input!$P$70=3,#REF!,IF(Input!$P$70=4,#REF!,"")))) ->  | AH98: 1.448623279
W99: =IF(Input!$F$35<14,"",INDEX($X$15:$AD$374,MATCH(MOD($X99-$Y$13,360),$X$15:$X$374,1),IF(OR(Input!$K$13="Full",Input!$K$13="Partial"),2,6))) ->  | X99: 84 | AC99: 0.9170598397 | AD99: 0.9170598397 | AE99: 0 | AF99: =IF(Input!$P$70=1,'AZ Hpol (3)'!$W99,IF(Input!$P$70=2,#REF!,IF(Input!$P$70=3,#REF!,IF(Input!$P$70=4,#REF!,"")))) ->  | AH99: 1.466076572
W100: =IF(Input!$F$35<14,"",INDEX($X$15:$AD$374,MATCH(MOD($X100-$Y$13,360),$X$15:$X$374,1),IF(OR(Input!$K$13="Full",Input!$K$13="Partial"),2,6))) ->  | X100: 85 | AC100: 0.9136842749 | AD100: 0.9136842749 | AE100: 0 | AF100: =IF(Input!$P$70=1,'AZ Hpol (3)'!$W100,IF(Input!$P$70=2,#REF!,IF(Input!$P$70=3,#REF!,IF(Input!$P$70=4,#REF!,"")))) ->  | AH100: 1.483529864
W101: =IF(Input!$F$35<14,"",INDEX($X$15:$AD$374,MATCH(MOD($X101-$Y$13,360),$X$15:$X$374,1),IF(OR(Input!$K$13="Full",Input!$K$13="Partial"),2,6))) ->  | X101: 86 | AC101: 0.9102702138 | AD101: 0.9102702138 | AE101: 0 | AF101: =IF(Input!$P$70=1,'AZ Hpol (3)'!$W101,IF(Input!$P$70=2,#REF!,IF(Input!$P$70=3,#REF!,IF(Input!$P$70=4,#REF!,"")))) ->  | AH101: 1.500983157
W102: =IF(Input!$F$35<14,"",INDEX($X$15:$AD$374,MATCH(MOD($X102-$Y$13,360),$X$15:$X$374,1),IF(OR(Input!$K$13="Full",Input!$K$13="Partial"),2,6))) ->  | X102: 87 | AC102: 0.9068083993 | AD102: 0.9068083993 | AE102: 0 | AF102: =IF(Input!$P$70=1,'AZ Hpol (3)'!$W102,IF(Input!$P$70=2,#REF!,IF(Input!$P$70=3,#REF!,IF(Input!$P$70=4,#REF!,"")))) ->  | AH102: 1.518436449
W103: =IF(Input!$F$35<14,"",INDEX($X$15:$AD$374,MATCH(MOD($X103-$Y$13,360),$X$15:$X$374,1),IF(OR(Input!$K$13="Full",Input!$K$13="Partial"),2,6))) ->  | X103: 88 | AC103: 0.9032883553 | AD103: 0.9032883553 | AE103: 0 | AF103: =IF(Input!$P$70=1,'AZ Hpol (3)'!$W103,IF(Input!$P$70=2,#REF!,IF(Input!$P$70=3,#REF!,IF(Input!$P$70=4,#REF!,"")))) ->  | AH103: 1.535889742
W104: =IF(Input!$F$35<14,"",INDEX($X$15:$AD$374,MATCH(MOD($X104-$Y$13,360),$X$15:$X$374,1),IF(OR(Input!$K$13="Full",Input!$K$13="Partial"),2,6))) ->  | X104: 89 | AC104: 0.8996984504 | AD104: 0.8996984504 | AE104: 0 | AF104: =IF(Input!$P$70=1,'AZ Hpol (3)'!$W104,IF(Input!$P$70=2,#REF!,IF(Input!$P$70=3,#REF!,IF(Input!$P$70=4,#REF!,"")))) ->  | AH104: 1.553343034
W105: =IF(Input!$F$35<14,"",INDEX($X$15:$AD$374,MATCH(MOD($X105-$Y$13,360),$X$15:$X$374,1),IF(OR(Input!$K$13="Full",Input!$K$13="Partial"),2,6))) ->  | X105: 90 | AC105: 0.8960259745 | AD105: 0.8960259745 | AE105: 1 | AF105: =IF(Input!$P$70=1,'AZ Hpol (3)'!$W105,IF(Input!$P$70=2,#REF!,IF(Input!$P$70=3,#REF!,IF(Input!$P$70=4,#REF!,"")))) ->  | AH105: 1.570796327
W106: =IF(Input!$F$35<14,"",INDEX($X$15:$AD$374,MATCH(MOD($X106-$Y$13,360),$X$15:$X$374,1),IF(OR(Input!$K$13="Full",Input!$K$13="Partial"),2,6))) ->  | X106: 91 | AC106: 0.8922572257 | AD106: 0.8922572257 | AE106: 0 | AF106: =IF(Input!$P$70=1,'AZ Hpol (3)'!$W106,IF(Input!$P$70=2,#REF!,IF(Input!$P$70=3,#REF!,IF(Input!$P$70=4,#REF!,"")))) ->  | AH106: 1.588249619
W107: =IF(Input!$F$35<14,"",INDEX($X$15:$AD$374,MATCH(MOD($X107-$Y$13,360),$X$15:$X$374,1),IF(OR(Input!$K$13="Full",Input!$K$13="Partial"),2,6))) ->  | X107: 92 | AC107: 0.8883776094 | AD107: 0.8883776094 | AE107: 0 | AF107: =IF(Input!$P$70=1,'AZ Hpol (3)'!$W107,IF(Input!$P$70=2,#REF!,IF(Input!$P$70=3,#REF!,IF(Input!$P$70=4,#REF!,"")))) ->  | AH107: 1.605702912
W108: =IF(Input!$F$35<14,"",INDEX($X$15:$AD$374,MATCH(MOD($X108-$Y$13,360),$X$15:$X$374,1),IF(OR(Input!$K$13="Full",Input!$K$13="Partial"),2,6))) ->  | X108: 93 | AC108: 0.8843717463 | AD108: 0.8843717463 | AE108: 0 | AF108: =IF(Input!$P$70=1,'AZ Hpol (3)'!$W108,IF(Input!$P$70=2,#REF!,IF(Input!$P$70=3,#REF!,IF(Input!$P$70=4,#REF!,"")))) ->  | AH108: 1.623156204
W109: =IF(Input!$F$35<14,"",INDEX($X$15:$AD$374,MATCH(MOD($X109-$Y$13,360),$X$15:$X$374,1),IF(OR(Input!$K$13="Full",Input!$K$13="Partial"),2,6))) ->  | X109: 94 | AC109: 0.88022359 | AD109: 0.88022359 | AE109: 0 | AF109: =IF(Input!$P$70=1,'AZ Hpol (3)'!$W109,IF(Input!$P$70=2,#REF!,IF(Input!$P$70=3,#REF!,IF(Input!$P$70=4,#REF!,"")))) ->  | AH109: 1.640609497
W110: =IF(Input!$F$35<14,"",INDEX($X$15:$AD$374,MATCH(MOD($X110-$Y$13,360),$X$15:$X$374,1),IF(OR(Input!$K$13="Full",Input!$K$13="Partial"),2,6))) ->  | X110: 95 | AC110: 0.8759165532 | AD110: 0.8759165532 | AE110: 0 | AF110: =IF(Input!$P$70=1,'AZ Hpol (3)'!$W110,IF(Input!$P$70=2,#REF!,IF(Input!$P$70=3,#REF!,IF(Input!$P$70=4,#REF!,"")))) ->  | AH110: 1.658062789
W111: =IF(Input!$F$35<14,"",INDEX($X$15:$AD$374,MATCH(MOD($X111-$Y$13,360),$X$15:$X$374,1),IF(OR(Input!$K$13="Full",Input!$K$13="Partial"),2,6))) ->  | X111: 96 | AC111: 0.8714336409 | AD111: 0.8714336409 | AE111: 0 | AF111: =IF(Input!$P$70=1,'AZ Hpol (3)'!$W111,IF(Input!$P$70=2,#REF!,IF(Input!$P$70=3,#REF!,IF(Input!$P$70=4,#REF!,"")))) ->  | AH111: 1.675516082
W112: =IF(Input!$F$35<14,"",INDEX($X$15:$AD$374,MATCH(MOD($X112-$Y$13,360),$X$15:$X$374,1),IF(OR(Input!$K$13="Full",Input!$K$13="Partial"),2,6))) ->  | X112: 97 | AC112: 0.866757591 | AD112: 0.866757591 | AE112: 0 | AF112: =IF(Input!$P$70=1,'AZ Hpol (3)'!$W112,IF(Input!$P$70=2,#REF!,IF(Input!$P$70=3,#REF!,IF(Input!$P$70=4,#REF!,"")))) ->  | AH112: 1.692969374
W113: =IF(Input!$F$35<14,"",INDEX($X$15:$AD$374,MATCH(MOD($X113-$Y$13,360),$X$15:$X$374,1),IF(OR(Input!$K$13="Full",Input!$K$13="Partial"),2,6))) ->  | X113: 98 | AC113: 0.8618710197 | AD113: 0.8618710197 | AE113: 0 | AF113: =IF(Input!$P$70=1,'AZ Hpol (3)'!$W113,IF(Input!$P$70=2,#REF!,IF(Input!$P$70=3,#REF!,IF(Input!$P$70=4,#REF!,"")))) ->  | AH113: 1.710422667
W114: =IF(Input!$F$35<14,"",INDEX($X$15:$AD$374,MATCH(MOD($X114-$Y$13,360),$X$15:$X$374,1),IF(OR(Input!$K$13="Full",Input!$K$13="Partial"),2,6))) ->  | X114: 99 | AC114: 0.8567565723 | AD114: 0.8567565723 | AE114: 0 | AF114: =IF(Input!$P$70=1,'AZ Hpol (3)'!$W114,IF(Input!$P$70=2,#REF!,IF(Input!$P$70=3,#REF!,IF(Input!$P$70=4,#REF!,"")))) ->  | AH114: 1.727875959
W115: =IF(Input!$F$35<14,"",INDEX($X$15:$AD$374,MATCH(MOD($X115-$Y$13,360),$X$15:$X$374,1),IF(OR(Input!$K$13="Full",Input!$K$13="Partial"),2,6))) ->  | X115: 100 | AC115: 0.8513970785 | AD115: 0.8513970785 | AE115: 0 | AF115: =IF(Input!$P$70=1,'AZ Hpol (3)'!$W115,IF(Input!$P$70=2,#REF!,IF(Input!$P$70=3,#REF!,IF(Input!$P$70=4,#REF!,"")))) ->  | AH115: 1.745329252
W116: =IF(Input!$F$35<14,"",INDEX($X$15:$AD$374,MATCH(MOD($X116-$Y$13,360),$X$15:$X$374,1),IF(OR(Input!$K$13="Full",Input!$K$13="Partial"),2,6))) ->  | X116: 101 | AC116: 0.84577571 | AD116: 0.84577571 | AE116: 0 | AF116: =IF(Input!$P$70=1,'AZ Hpol (3)'!$W116,IF(Input!$P$70=2,#REF!,IF(Input!$P$70=3,#REF!,IF(Input!$P$70=4,#REF!,"")))) ->  | AH116: 1.762782545
W117: =IF(Input!$F$35<14,"",INDEX($X$15:$AD$374,MATCH(MOD($X117-$Y$13,360),$X$15:$X$374,1),IF(OR(Input!$K$13="Full",Input!$K$13="Partial"),2,6))) ->  | X117: 102 | AC117: 0.8398761421 | AD117: 0.8398761421 | AE117: 0 | AF117: =IF(Input!$P$70=1,'AZ Hpol (3)'!$W117,IF(Input!$P$70=2,#REF!,IF(Input!$P$70=3,#REF!,IF(Input!$P$70=4,#REF!,"")))) ->  | AH117: 1.780235837
W118: =IF(Input!$F$35<14,"",INDEX($X$15:$AD$374,MATCH(MOD($X118-$Y$13,360),$X$15:$X$374,1),IF(OR(Input!$K$13="Full",Input!$K$13="Partial"),2,6))) ->  | X118: 103 | AC118: 0.8336827166 | AD118: 0.8336827166 | AE118: 0 | AF118: =IF(Input!$P$70=1,'AZ Hpol (3)'!$W118,IF(Input!$P$70=2,#REF!,IF(Input!$P$70=3,#REF!,IF(Input!$P$70=4,#REF!,"")))) ->  | AH118: 1.79768913
W119: =IF(Input!$F$35<14,"",INDEX($X$15:$AD$374,MATCH(MOD($X119-$Y$13,360),$X$15:$X$374,1),IF(OR(Input!$K$13="Full",Input!$K$13="Partial"),2,6))) ->  | X119: 104 | AC119: 0.8271806066 | AD119: 0.8271806066 | AE119: 0 | AF119: =IF(Input!$P$70=1,'AZ Hpol (3)'!$W119,IF(Input!$P$70=2,#REF!,IF(Input!$P$70=3,#REF!,IF(Input!$P$70=4,#REF!,"")))) ->  | AH119: 1.815142422
W120: =IF(Input!$F$35<14,"",INDEX($X$15:$AD$374,MATCH(MOD($X120-$Y$13,360),$X$15:$X$374,1),IF(OR(Input!$K$13="Full",Input!$K$13="Partial"),2,6))) ->  | X120: 105 | AC120: 0.8203559834 | AD120: 0.8203559834 | AE120: 0 | AF120: =IF(Input!$P$70=1,'AZ Hpol (3)'!$W120,IF(Input!$P$70=2,#REF!,IF(Input!$P$70=3,#REF!,IF(Input!$P$70=4,#REF!,"")))) ->  | AH120: 1.832595715
W121: =IF(Input!$F$35<14,"",INDEX($X$15:$AD$374,MATCH(MOD($X121-$Y$13,360),$X$15:$X$374,1),IF(OR(Input!$K$13="Full",Input!$K$13="Partial"),2,6))) ->  | X121: 106 | AC121: 0.8131961833 | AD121: 0.8131961833 | AE121: 0 | AF121: =IF(Input!$P$70=1,'AZ Hpol (3)'!$W121,IF(Input!$P$70=2,#REF!,IF(Input!$P$70=3,#REF!,IF(Input!$P$70=4,#REF!,"")))) ->  | AH121: 1.850049007
W122: =IF(Input!$F$35<14,"",INDEX($X$15:$AD$374,MATCH(MOD($X122-$Y$13,360),$X$15:$X$374,1),IF(OR(Input!$K$13="Full",Input!$K$13="Partial"),2,6))) ->  | X122: 107 | AC122: 0.8056898769 | AD122: 0.8056898769 | AE122: 0 | AF122: =IF(Input!$P$70=1,'AZ Hpol (3)'!$W122,IF(Input!$P$70=2,#REF!,IF(Input!$P$70=3,#REF!,IF(Input!$P$70=4,#REF!,"")))) ->  | AH122: 1.8675023
W123: =IF(Input!$F$35<14,"",INDEX($X$15:$AD$374,MATCH(MOD($X123-$Y$13,360),$X$15:$X$374,1),IF(OR(Input!$K$13="Full",Input!$K$13="Partial"),2,6))) ->  | X123: 108 | AC123: 0.7978272379 | AD123: 0.7978272379 | AE123: 0 | AF123: =IF(Input!$P$70=1,'AZ Hpol (3)'!$W123,IF(Input!$P$70=2,#REF!,IF(Input!$P$70=3,#REF!,IF(Input!$P$70=4,#REF!,"")))) ->  | AH123: 1.884955592
W124: =IF(Input!$F$35<14,"",INDEX($X$15:$AD$374,MATCH(MOD($X124-$Y$13,360),$X$15:$X$374,1),IF(OR(Input!$K$13="Full",Input!$K$13="Partial"),2,6))) ->  | X124: 109 | AC124: 0.7896001148 | AD124: 0.7896001148 | AE124: 0 | AF124: =IF(Input!$P$70=1,'AZ Hpol (3)'!$W124,IF(Input!$P$70=2,#REF!,IF(Input!$P$70=3,#REF!,IF(Input!$P$70=4,#REF!,"")))) ->  | AH124: 1.902408885
W125: =IF(Input!$F$35<14,"",INDEX($X$15:$AD$374,MATCH(MOD($X125-$Y$13,360),$X$15:$X$374,1),IF(OR(Input!$K$13="Full",Input!$K$13="Partial"),2,6))) ->  | X125: 110 | AC125: 0.7810022024 | AD125: 0.7810022024 | AE125: 0 | AF125: =IF(Input!$P$70=1,'AZ Hpol (3)'!$W125,IF(Input!$P$70=2,#REF!,IF(Input!$P$70=3,#REF!,IF(Input!$P$70=4,#REF!,"")))) ->  | AH125: 1.919862177
W126: =IF(Input!$F$35<14,"",INDEX($X$15:$AD$374,MATCH(MOD($X126-$Y$13,360),$X$15:$X$374,1),IF(OR(Input!$K$13="Full",Input!$K$13="Partial"),2,6))) ->  | X126: 111 | AC126: 0.7720292166 | AD126: 0.7720292166 | AE126: 0 | AF126: =IF(Input!$P$70=1,'AZ Hpol (3)'!$W126,IF(Input!$P$70=2,#REF!,IF(Input!$P$70=3,#REF!,IF(Input!$P$70=4,#REF!,"")))) ->  | AH126: 1.93731547
W127: =IF(Input!$F$35<14,"",INDEX($X$15:$AD$374,MATCH(MOD($X127-$Y$13,360),$X$15:$X$374,1),IF(OR(Input!$K$13="Full",Input!$K$13="Partial"),2,6))) ->  | X127: 112 | AC127: 0.7626790709 | AD127: 0.7626790709 | AE127: 0 | AF127: =IF(Input!$P$70=1,'AZ Hpol (3)'!$W127,IF(Input!$P$70=2,#REF!,IF(Input!$P$70=3,#REF!,IF(Input!$P$70=4,#REF!,"")))) ->  | AH127: 1.954768762
W128: =IF(Input!$F$35<14,"",INDEX($X$15:$AD$374,MATCH(MOD($X128-$Y$13,360),$X$15:$X$374,1),IF(OR(Input!$K$13="Full",Input!$K$13="Partial"),2,6))) ->  | X128: 113 | AC128: 0.752952056 | AD128: 0.752952056 | AE128: 0 | AF128: =IF(Input!$P$70=1,'AZ Hpol (3)'!$W128,IF(Input!$P$70=2,#REF!,IF(Input!$P$70=3,#REF!,IF(Input!$P$70=4,#REF!,"")))) ->  | AH128: 1.972222055
W129: =IF(Input!$F$35<14,"",INDEX($X$15:$AD$374,MATCH(MOD($X129-$Y$13,360),$X$15:$X$374,1),IF(OR(Input!$K$13="Full",Input!$K$13="Partial"),2,6))) ->  | X129: 114 | AC129: 0.7428510237 | AD129: 0.7428510237 | AE129: 0 | AF129: =IF(Input!$P$70=1,'AZ Hpol (3)'!$W129,IF(Input!$P$70=2,#REF!,IF(Input!$P$70=3,#REF!,IF(Input!$P$70=4,#REF!,"")))) ->  | AH129: 1.989675347
W130: =IF(Input!$F$35<14,"",INDEX($X$15:$AD$374,MATCH(MOD($X130-$Y$13,360),$X$15:$X$374,1),IF(OR(Input!$K$13="Full",Input!$K$13="Partial"),2,6))) ->  | X130: 115 | AC130: 0.7323815754 | AD130: 0.7323815754 | AE130: 0 | AF130: =IF(Input!$P$70=1,'AZ Hpol (3)'!$W130,IF(Input!$P$70=2,#REF!,IF(Input!$P$70=3,#REF!,IF(Input!$P$70=4,#REF!,"")))) ->  | AH130: 2.00712864
W131: =IF(Input!$F$35<14,"",INDEX($X$15:$AD$374,MATCH(MOD($X131-$Y$13,360),$X$15:$X$374,1),IF(OR(Input!$K$13="Full",Input!$K$13="Partial"),2,6))) ->  | X131: 116 | AC131: 0.7215522561 | AD131: 0.7215522561 | AE131: 0 | AF131: =IF(Input!$P$70=1,'AZ Hpol (3)'!$W131,IF(Input!$P$70=2,#REF!,IF(Input!$P$70=3,#REF!,IF(Input!$P$70=4,#REF!,"")))) ->  | AH131: 2.024581932
W132: =IF(Input!$F$35<14,"",INDEX($X$15:$AD$374,MATCH(MOD($X132-$Y$13,360),$X$15:$X$374,1),IF(OR(Input!$K$13="Full",Input!$K$13="Partial"),2,6))) ->  | X132: 117 | AC132: 0.7103747558 | AD132: 0.7103747558 | AE132: 0 | AF132: =IF(Input!$P$70=1,'AZ Hpol (3)'!$W132,IF(Input!$P$70=2,#REF!,IF(Input!$P$70=3,#REF!,IF(Input!$P$70=4,#REF!,"")))) ->  | AH132: 2.042035225
W133: =IF(Input!$F$35<14,"",INDEX($X$15:$AD$374,MATCH(MOD($X133-$Y$13,360),$X$15:$X$374,1),IF(OR(Input!$K$13="Full",Input!$K$13="Partial"),2,6))) ->  | X133: 118 | AC133: 0.6988641181 | AD133: 0.6988641181 | AE133: 0 | AF133: =IF(Input!$P$70=1,'AZ Hpol (3)'!$W133,IF(Input!$P$70=2,#REF!,IF(Input!$P$70=3,#REF!,IF(Input!$P$70=4,#REF!,"")))) ->  | AH133: 2.059488517
W134: =IF(Input!$F$35<14,"",INDEX($X$15:$AD$374,MATCH(MOD($X134-$Y$13,360),$X$15:$X$374,1),IF(OR(Input!$K$13="Full",Input!$K$13="Partial"),2,6))) ->  | X134: 119 | AC134: 0.687038958 | AD134: 0.687038958 | AE134: 0 | AF134: =IF(Input!$P$70=1,'AZ Hpol (3)'!$W134,IF(Input!$P$70=2,#REF!,IF(Input!$P$70=3,#REF!,IF(Input!$P$70=4,#REF!,"")))) ->  | AH134: 2.07694181
W135: =IF(Input!$F$35<14,"",INDEX($X$15:$AD$374,MATCH(MOD($X135-$Y$13,360),$X$15:$X$374,1),IF(OR(Input!$K$13="Full",Input!$K$13="Partial"),2,6))) ->  | X135: 120 | AC135: 0.6749216889 | AD135: 0.6749216889 | AE135: 1 | AF135: =IF(Input!$P$70=1,'AZ Hpol (3)'!$W135,IF(Input!$P$70=2,#REF!,IF(Input!$P$70=3,#REF!,IF(Input!$P$70=4,#REF!,"")))) ->  | AH135: 2.094395102
W136: =IF(Input!$F$35<14,"",INDEX($X$15:$AD$374,MATCH(MOD($X136-$Y$13,360),$X$15:$X$374,1),IF(OR(Input!$K$13="Full",Input!$K$13="Partial"),2,6))) ->  | X136: 121 | AC136: 0.662538759 | AD136: 0.662538759 | AE136: 0 | AF136: =IF(Input!$P$70=1,'AZ Hpol (3)'!$W136,IF(Input!$P$70=2,#REF!,IF(Input!$P$70=3,#REF!,IF(Input!$P$70=4,#REF!,"")))) ->  | AH136: 2.111848395
W137: =IF(Input!$F$35<14,"",INDEX($X$15:$AD$374,MATCH(MOD($X137-$Y$13,360),$X$15:$X$374,1),IF(OR(Input!$K$13="Full",Input!$K$13="Partial"),2,6))) ->  | X137: 122 | AC137: 0.6499208974 | AD137: 0.6499208974 | AE137: 0 | AF137: =IF(Input!$P$70=1,'AZ Hpol (3)'!$W137,IF(Input!$P$70=2,#REF!,IF(Input!$P$70=3,#REF!,IF(Input!$P$70=4,#REF!,"")))) ->  | AH137: 2.129301687
W138: =IF(Input!$F$35<14,"",INDEX($X$15:$AD$374,MATCH(MOD($X138-$Y$13,360),$X$15:$X$374,1),IF(OR(Input!$K$13="Full",Input!$K$13="Partial"),2,6))) ->  | X138: 123 | AC138: 0.6371033679 | AD138: 0.6371033679 | AE138: 0 | AF138: =IF(Input!$P$70=1,'AZ Hpol (3)'!$W138,IF(Input!$P$70=2,#REF!,IF(Input!$P$70=3,#REF!,IF(Input!$P$70=4,#REF!,"")))) ->  | AH138: 2.14675498
W139: =IF(Input!$F$35<14,"",INDEX($X$15:$AD$374,MATCH(MOD($X139-$Y$13,360),$X$15:$X$374,1),IF(OR(Input!$K$13="Full",Input!$K$13="Partial"),2,6))) ->  | X139: 124 | AC139: 0.6241262287 | AD139: 0.6241262287 | AE139: 0 | AF139: =IF(Input!$P$70=1,'AZ Hpol (3)'!$W139,IF(Input!$P$70=2,#REF!,IF(Input!$P$70=3,#REF!,IF(Input!$P$70=4,#REF!,"")))) ->  | AH139: 2.164208272
W140: =IF(Input!$F$35<14,"",INDEX($X$15:$AD$374,MATCH(MOD($X140-$Y$13,360),$X$15:$X$374,1),IF(OR(Input!$K$13="Full",Input!$K$13="Partial"),2,6))) ->  | X140: 125 | AC140: 0.611034592 | AD140: 0.611034592 | AE140: 0 | AF140: =IF(Input!$P$70=1,'AZ Hpol (3)'!$W140,IF(Input!$P$70=2,#REF!,IF(Input!$P$70=3,#REF!,IF(Input!$P$70=4,#REF!,"")))) ->  | AH140: 2.181661565
W141: =IF(Input!$F$35<14,"",INDEX($X$15:$AD$374,MATCH(MOD($X141-$Y$13,360),$X$15:$X$374,1),IF(OR(Input!$K$13="Full",Input!$K$13="Partial"),2,6))) ->  | X141: 126 | AC141: 0.5978788776 | AD141: 0.5978788776 | AE141: 0 | AF141: =IF(Input!$P$70=1,'AZ Hpol (3)'!$W141,IF(Input!$P$70=2,#REF!,IF(Input!$P$70=3,#REF!,IF(Input!$P$70=4,#REF!,"")))) ->  | AH141: 2.199114858
W142: =IF(Input!$F$35<14,"",INDEX($X$15:$AD$374,MATCH(MOD($X142-$Y$13,360),$X$15:$X$374,1),IF(OR(Input!$K$13="Full",Input!$K$13="Partial"),2,6))) ->  | X142: 127 | AC142: 0.5847150494 | AD142: 0.5847150494 | AE142: 0 | AF142: =IF(Input!$P$70=1,'AZ Hpol (3)'!$W142,IF(Input!$P$70=2,#REF!,IF(Input!$P$70=3,#REF!,IF(Input!$P$70=4,#REF!,"")))) ->  | AH142: 2.21656815
W143: =IF(Input!$F$35<14,"",INDEX($X$15:$AD$374,MATCH(MOD($X143-$Y$13,360),$X$15:$X$374,1),IF(OR(Input!$K$13="Full",Input!$K$13="Partial"),2,6))) ->  | X143: 128 | AC143: 0.5716048192 | AD143: 0.5716048192 | AE143: 0 | AF143: =IF(Input!$P$70=1,'AZ Hpol (3)'!$W143,IF(Input!$P$70=2,#REF!,IF(Input!$P$70=3,#REF!,IF(Input!$P$70=4,#REF!,"")))) ->  | AG143: =ROUND(20*LOG(W143),4) ->  | AH143: 2.234021443 | AI143: =IF(W143<=0.031622776602,-30,20*LOG(W143)) -> 
W144: =IF(Input!$F$35<14,"",INDEX($X$15:$AD$374,MATCH(MOD($X144-$Y$13,360),$X$15:$X$374,1),IF(OR(Input!$K$13="Full",Input!$K$13="Partial"),2,6))) ->  | X144: 129 | Y144: =(1/$Z$11)*$Z144 ->  | Z144: =AD144*AA144 ->  | AA144: =SQRT(((1+COS(AB144))^2)+(SIN(AB144)^2)) ->  | AB144: =($AB$12*$AE$10*COS($AH144))+RADIANS($AE$9) ->  | AC144: =(1/$AC$11)*$AD144 -> 0.5586157969 | AD144: 0.5586157969 | AE144: 0 | AF144: =IF(Input!$P$70=1,'AZ Hpol (3)'!$W144,IF(Input!$P$70=2,#REF!,IF(Input!$P$70=3,#REF!,IF(Input!$P$70=4,#REF!,"")))) ->  | AH144: =RADIANS(X144) -> 2.251474735
W145: =IF(Input!$F$35<14,"",INDEX($X$15:$AD$374,MATCH(MOD($X145-$Y$13,360),$X$15:$X$374,1),IF(OR(Input!$K$13="Full",Input!$K$13="Partial"),2,6))) ->  | X145: 130 | AC145: 0.5458215595 | AD145: 0.5458215595 | AE145: 0 | AF145: =IF(Input!$P$70=1,'AZ Hpol (3)'!$W145,IF(Input!$P$70=2,#REF!,IF(Input!$P$70=3,#REF!,IF(Input!$P$70=4,#REF!,"")))) ->  | AH145: 2.268928028
W146: =IF(Input!$F$35<14,"",INDEX($X$15:$AD$374,MATCH(MOD($X146-$Y$13,360),$X$15:$X$374,1),IF(OR(Input!$K$13="Full",Input!$K$13="Partial"),2,6))) ->  | X146: 131 | AC146: 0.5333016037 | AD146: 0.5333016037 | AE146: 0 | AF146: =IF(Input!$P$70=1,'AZ Hpol (3)'!$W146,IF(Input!$P$70=2,#REF!,IF(Input!$P$70=3,#REF!,IF(Input!$P$70=4,#REF!,"")))) ->  | AH146: 2.28638132
W147: =IF(Input!$F$35<14,"",INDEX($X$15:$AD$374,MATCH(MOD($X147-$Y$13,360),$X$15:$X$374,1),IF(OR(Input!$K$13="Full",Input!$K$13="Partial"),2,6))) ->  | X147: 132 | AC147: 0.5211411372 | AD147: 0.5211411372 | AE147: 0 | AF147: =IF(Input!$P$70=1,'AZ Hpol (3)'!$W147,IF(Input!$P$70=2,#REF!,IF(Input!$P$70=3,#REF!,IF(Input!$P$70=4,#REF!,"")))) ->  | AH147: 2.303834613
W148: =IF(Input!$F$35<14,"",INDEX($X$15:$AD$374,MATCH(MOD($X148-$Y$13,360),$X$15:$X$374,1),IF(OR(Input!$K$13="Full",Input!$K$13="Partial"),2,6))) ->  | X148: 133 | AC148: 0.5094306566 | AD148: 0.5094306566 | AE148: 0 | AF148: =IF(Input!$P$70=1,'AZ Hpol (3)'!$W148,IF(Input!$P$70=2,#REF!,IF(Input!$P$70=3,#REF!,IF(Input!$P$70=4,#REF!,"")))) ->  | AH148: 2.321287905
W149: =IF(Input!$F$35<14,"",INDEX($X$15:$AD$374,MATCH(MOD($X149-$Y$13,360),$X$15:$X$374,1),IF(OR(Input!$K$13="Full",Input!$K$13="Partial"),2,6))) ->  | X149: 134 | AC149: 0.4982652545 | AD149: 0.4982652545 | AE149: 0 | AF149: =IF(Input!$P$70=1,'AZ Hpol (3)'!$W149,IF(Input!$P$70=2,#REF!,IF(Input!$P$70=3,#REF!,IF(Input!$P$70=4,#REF!,"")))) ->  | AH149: 2.338741198
W150: =IF(Input!$F$35<14,"",INDEX($X$15:$AD$374,MATCH(MOD($X150-$Y$13,360),$X$15:$X$374,1),IF(OR(Input!$K$13="Full",Input!$K$13="Partial"),2,6))) ->  | X150: 135 | AC150: 0.4877435938 | AD150: 0.4877435938 | AE150: 0 | AF150: =IF(Input!$P$70=1,'AZ Hpol (3)'!$W150,IF(Input!$P$70=2,#REF!,IF(Input!$P$70=3,#REF!,IF(Input!$P$70=4,#REF!,"")))) ->  | AH150: 2.35619449
W151: =IF(Input!$F$35<14,"",INDEX($X$15:$AD$374,MATCH(MOD($X151-$Y$13,360),$X$15:$X$374,1),IF(OR(Input!$K$13="Full",Input!$K$13="Partial"),2,6))) ->  | X151: 136 | AC151: 0.4779664949 | AD151: 0.4779664949 | AE151: 0 | AF151: =IF(Input!$P$70=1,'AZ Hpol (3)'!$W151,IF(Input!$P$70=2,#REF!,IF(Input!$P$70=3,#REF!,IF(Input!$P$70=4,#REF!,"")))) ->  | AH151: 2.373647783
W152: =IF(Input!$F$35<14,"",INDEX($X$15:$AD$374,MATCH(MOD($X152-$Y$13,360),$X$15:$X$374,1),IF(OR(Input!$K$13="Full",Input!$K$13="Partial"),2,6))) ->  | X152: 137 | AC152: 0.4690350939 | AD152: 0.4690350939 | AE152: 0 | AF152: =IF(Input!$P$70=1,'AZ Hpol (3)'!$W152,IF(Input!$P$70=2,#REF!,IF(Input!$P$70=3,#REF!,IF(Input!$P$70=4,#REF!,"")))) ->  | AH152: 2.391101075
W153: =IF(Input!$F$35<14,"",INDEX($X$15:$AD$374,MATCH(MOD($X153-$Y$13,360),$X$15:$X$374,1),IF(OR(Input!$K$13="Full",Input!$K$13="Partial"),2,6))) ->  | X153: 138 | AC153: 0.461048561 | AD153: 0.461048561 | AE153: 0 | AF153: =IF(Input!$P$70=1,'AZ Hpol (3)'!$W153,IF(Input!$P$70=2,#REF!,IF(Input!$P$70=3,#REF!,IF(Input!$P$70=4,#REF!,"")))) ->  | AH153: 2.408554368
W154: =IF(Input!$F$35<14,"",INDEX($X$15:$AD$374,MATCH(MOD($X154-$Y$13,360),$X$15:$X$374,1),IF(OR(Input!$K$13="Full",Input!$K$13="Partial"),2,6))) ->  | X154: 139 | AC154: 0.4541014092 | AD154: 0.4541014092 | AE154: 0 | AF154: =IF(Input!$P$70=1,'AZ Hpol (3)'!$W154,IF(Input!$P$70=2,#REF!,IF(Input!$P$70=3,#REF!,IF(Input!$P$70=4,#REF!,"")))) ->  | AH154: 2.42600766
W155: =IF(Input!$F$35<14,"",INDEX($X$15:$AD$374,MATCH(MOD($X155-$Y$13,360),$X$15:$X$374,1),IF(OR(Input!$K$13="Full",Input!$K$13="Partial"),2,6))) ->  | X155: 140 | AC155: 0.4482804826 | AD155: 0.4482804826 | AE155: 0 | AF155: =IF(Input!$P$70=1,'AZ Hpol (3)'!$W155,IF(Input!$P$70=2,#REF!,IF(Input!$P$70=3,#REF!,IF(Input!$P$70=4,#REF!,"")))) ->  | AH155: 2.443460953
W156: =IF(Input!$F$35<14,"",INDEX($X$15:$AD$374,MATCH(MOD($X156-$Y$13,360),$X$15:$X$374,1),IF(OR(Input!$K$13="Full",Input!$K$13="Partial"),2,6))) ->  | X156: 141 | AC156: 0.4436617758 | AD156: 0.4436617758 | AE156: 0 | AF156: =IF(Input!$P$70=1,'AZ Hpol (3)'!$W156,IF(Input!$P$70=2,#REF!,IF(Input!$P$70=3,#REF!,IF(Input!$P$70=4,#REF!,"")))) ->  | AH156: 2.460914245
W157: =IF(Input!$F$35<14,"",INDEX($X$15:$AD$374,MATCH(MOD($X157-$Y$13,360),$X$15:$X$374,1),IF(OR(Input!$K$13="Full",Input!$K$13="Partial"),2,6))) ->  | X157: 142 | AC157: 0.4403072979 | AD157: 0.4403072979 | AE157: 0 | AF157: =IF(Input!$P$70=1,'AZ Hpol (3)'!$W157,IF(Input!$P$70=2,#REF!,IF(Input!$P$70=3,#REF!,IF(Input!$P$70=4,#REF!,"")))) ->  | AH157: 2.478367538
W158: =IF(Input!$F$35<14,"",INDEX($X$15:$AD$374,MATCH(MOD($X158-$Y$13,360),$X$15:$X$374,1),IF(OR(Input!$K$13="Full",Input!$K$13="Partial"),2,6))) ->  | X158: 143 | AC158: 0.4382622383 | AD158: 0.4382622383 | AE158: 0 | AF158: =IF(Input!$P$70=1,'AZ Hpol (3)'!$W158,IF(Input!$P$70=2,#REF!,IF(Input!$P$70=3,#REF!,IF(Input!$P$70=4,#REF!,"")))) ->  | AH158: 2.49582083
W159: =IF(Input!$F$35<14,"",INDEX($X$15:$AD$374,MATCH(MOD($X159-$Y$13,360),$X$15:$X$374,1),IF(OR(Input!$K$13="Full",Input!$K$13="Partial"),2,6))) ->  | X159: 144 | AC159: 0.4375527016 | AD159: 0.4375527016 | AE159: 0 | AF159: =IF(Input!$P$70=1,'AZ Hpol (3)'!$W159,IF(Input!$P$70=2,#REF!,IF(Input!$P$70=3,#REF!,IF(Input!$P$70=4,#REF!,"")))) ->  | AH159: 2.513274123
W160: =IF(Input!$F$35<14,"",INDEX($X$15:$AD$374,MATCH(MOD($X160-$Y$13,360),$X$15:$X$374,1),IF(OR(Input!$K$13="Full",Input!$K$13="Partial"),2,6))) ->  | X160: 145 | AC160: 0.438184247 | AD160: 0.438184247 | AE160: 0 | AF160: =IF(Input!$P$70=1,'AZ Hpol (3)'!$W160,IF(Input!$P$70=2,#REF!,IF(Input!$P$70=3,#REF!,IF(Input!$P$70=4,#REF!,"")))) ->  | AH160: 2.530727415
W161: =IF(Input!$F$35<14,"",INDEX($X$15:$AD$374,MATCH(MOD($X161-$Y$13,360),$X$15:$X$374,1),IF(OR(Input!$K$13="Full",Input!$K$13="Partial"),2,6))) ->  | X161: 146 | AC161: 0.4401413921 | AD161: 0.4401413921 | AE161: 0 | AF161: =IF(Input!$P$70=1,'AZ Hpol (3)'!$W161,IF(Input!$P$70=2,#REF!,IF(Input!$P$70=3,#REF!,IF(Input!$P$70=4,#REF!,"")))) ->  | AH161: 2.548180708
W162: =IF(Input!$F$35<14,"",INDEX($X$15:$AD$374,MATCH(MOD($X162-$Y$13,360),$X$15:$X$374,1),IF(OR(Input!$K$13="Full",Input!$K$13="Partial"),2,6))) ->  | X162: 147 | AC162: 0.4433881345 | AD162: 0.4433881345 | AE162: 0 | AF162: =IF(Input!$P$70=1,'AZ Hpol (3)'!$W162,IF(Input!$P$70=2,#REF!,IF(Input!$P$70=3,#REF!,IF(Input!$P$70=4,#REF!,"")))) ->  | AH162: 2.565634
W163: =IF(Input!$F$35<14,"",INDEX($X$15:$AD$374,MATCH(MOD($X163-$Y$13,360),$X$15:$X$374,1),IF(OR(Input!$K$13="Full",Input!$K$13="Partial"),2,6))) ->  | X163: 148 | AC163: 0.4478694271 | AD163: 0.4478694271 | AE163: 0 | AF163: =IF(Input!$P$70=1,'AZ Hpol (3)'!$W163,IF(Input!$P$70=2,#REF!,IF(Input!$P$70=3,#REF!,IF(Input!$P$70=4,#REF!,"")))) ->  | AH163: 2.583087293
W164: =IF(Input!$F$35<14,"",INDEX($X$15:$AD$374,MATCH(MOD($X164-$Y$13,360),$X$15:$X$374,1),IF(OR(Input!$K$13="Full",Input!$K$13="Partial"),2,6))) ->  | X164: 149 | AC164: 0.4535134364 | AD164: 0.4535134364 | AE164: 0 | AF164: =IF(Input!$P$70=1,'AZ Hpol (3)'!$W164,IF(Input!$P$70=2,#REF!,IF(Input!$P$70=3,#REF!,IF(Input!$P$70=4,#REF!,"")))) ->  | AH164: 2.600540585
W165: =IF(Input!$F$35<14,"",INDEX($X$15:$AD$374,MATCH(MOD($X165-$Y$13,360),$X$15:$X$374,1),IF(OR(Input!$K$13="Full",Input!$K$13="Partial"),2,6))) ->  | X165: 150 | AC165: 0.4602343463 | AD165: 0.4602343463 | AE165: 1 | AF165: =IF(Input!$P$70=1,'AZ Hpol (3)'!$W165,IF(Input!$P$70=2,#REF!,IF(Input!$P$70=3,#REF!,IF(Input!$P$70=4,#REF!,"")))) ->  | AH165: 2.617993878
W166: =IF(Input!$F$35<14,"",INDEX($X$15:$AD$374,MATCH(MOD($X166-$Y$13,360),$X$15:$X$374,1),IF(OR(Input!$K$13="Full",Input!$K$13="Partial"),2,6))) ->  | X166: 151 | AC166: 0.4679354387 | AD166: 0.4679354387 | AE166: 0 | AF166: =IF(Input!$P$70=1,'AZ Hpol (3)'!$W166,IF(Input!$P$70=2,#REF!,IF(Input!$P$70=3,#REF!,IF(Input!$P$70=4,#REF!,"")))) ->  | AH166: 2.635447171
W167: =IF(Input!$F$35<14,"",INDEX($X$15:$AD$374,MATCH(MOD($X167-$Y$13,360),$X$15:$X$374,1),IF(OR(Input!$K$13="Full",Input!$K$13="Partial"),2,6))) ->  | X167: 152 | AC167: 0.476512202 | AD167: 0.476512202 | AE167: 0 | AF167: =IF(Input!$P$70=1,'AZ Hpol (3)'!$W167,IF(Input!$P$70=2,#REF!,IF(Input!$P$70=3,#REF!,IF(Input!$P$70=4,#REF!,"")))) ->  | AH167: 2.652900463
W168: =IF(Input!$F$35<14,"",INDEX($X$15:$AD$374,MATCH(MOD($X168-$Y$13,360),$X$15:$X$374,1),IF(OR(Input!$K$13="Full",Input!$K$13="Partial"),2,6))) ->  | X168: 153 | AC168: 0.4858552594 | AD168: 0.4858552594 | AE168: 0 | AF168: =IF(Input!$P$70=1,'AZ Hpol (3)'!$W168,IF(Input!$P$70=2,#REF!,IF(Input!$P$70=3,#REF!,IF(Input!$P$70=4,#REF!,"")))) ->  | AH168: 2.670353756
W169: =IF(Input!$F$35<14,"",INDEX($X$15:$AD$374,MATCH(MOD($X169-$Y$13,360),$X$15:$X$374,1),IF(OR(Input!$K$13="Full",Input!$K$13="Partial"),2,6))) ->  | X169: 154 | AC169: 0.4958529751 | AD169: 0.4958529751 | AE169: 0 | AF169: =IF(Input!$P$70=1,'AZ Hpol (3)'!$W169,IF(Input!$P$70=2,#REF!,IF(Input!$P$70=3,#REF!,IF(Input!$P$70=4,#REF!,"")))) ->  | AH169: 2.687807048
W170: =IF(Input!$F$35<14,"",INDEX($X$15:$AD$374,MATCH(MOD($X170-$Y$13,360),$X$15:$X$374,1),IF(OR(Input!$K$13="Full",Input!$K$13="Partial"),2,6))) ->  | X170: 155 | AC170: 0.5063936564 | AD170: 0.5063936564 | AE170: 0 | AF170: =IF(Input!$P$70=1,'AZ Hpol (3)'!$W170,IF(Input!$P$70=2,#REF!,IF(Input!$P$70=3,#REF!,IF(Input!$P$70=4,#REF!,"")))) ->  | AH170: 2.705260341
W171: =IF(Input!$F$35<14,"",INDEX($X$15:$AD$374,MATCH(MOD($X171-$Y$13,360),$X$15:$X$374,1),IF(OR(Input!$K$13="Full",Input!$K$13="Partial"),2,6))) ->  | X171: 156 | AC171: 0.5173673274 | AD171: 0.5173673274 | AE171: 0 | AF171: =IF(Input!$P$70=1,'AZ Hpol (3)'!$W171,IF(Input!$P$70=2,#REF!,IF(Input!$P$70=3,#REF!,IF(Input!$P$70=4,#REF!,"")))) ->  | AH171: 2.722713633
W172: =IF(Input!$F$35<14,"",INDEX($X$15:$AD$374,MATCH(MOD($X172-$Y$13,360),$X$15:$X$374,1),IF(OR(Input!$K$13="Full",Input!$K$13="Partial"),2,6))) ->  | X172: 157 | AC172: 0.5286670894 | AD172: 0.5286670894 | AE172: 0 | AF172: =IF(Input!$P$70=1,'AZ Hpol (3)'!$W172,IF(Input!$P$70=2,#REF!,IF(Input!$P$70=3,#REF!,IF(Input!$P$70=4,#REF!,"")))) ->  | AH172: 2.740166926
W173: =IF(Input!$F$35<14,"",INDEX($X$15:$AD$374,MATCH(MOD($X173-$Y$13,360),$X$15:$X$374,1),IF(OR(Input!$K$13="Full",Input!$K$13="Partial"),2,6))) ->  | X173: 158 | AC173: 0.5401901105 | AD173: 0.5401901105 | AE173: 0 | AF173: =IF(Input!$P$70=1,'AZ Hpol (3)'!$W173,IF(Input!$P$70=2,#REF!,IF(Input!$P$70=3,#REF!,IF(Input!$P$70=4,#REF!,"")))) ->  | AH173: 2.757620218
W174: =IF(Input!$F$35<14,"",INDEX($X$15:$AD$374,MATCH(MOD($X174-$Y$13,360),$X$15:$X$374,1),IF(OR(Input!$K$13="Full",Input!$K$13="Partial"),2,6))) ->  | X174: 159 | AC174: 0.5518383005 | AD174: 0.5518383005 | AE174: 0 | AF174: =IF(Input!$P$70=1,'AZ Hpol (3)'!$W174,IF(Input!$P$70=2,#REF!,IF(Input!$P$70=3,#REF!,IF(Input!$P$70=4,#REF!,"")))) ->  | AH174: 2.775073511
W175: =IF(Input!$F$35<14,"",INDEX($X$15:$AD$374,MATCH(MOD($X175-$Y$13,360),$X$15:$X$374,1),IF(OR(Input!$K$13="Full",Input!$K$13="Partial"),2,6))) ->  | X175: 160 | AC175: 0.5635187312 | AD175: 0.5635187312 | AE175: 0 | AF175: =IF(Input!$P$70=1,'AZ Hpol (3)'!$W175,IF(Input!$P$70=2,#REF!,IF(Input!$P$70=3,#REF!,IF(Input!$P$70=4,#REF!,"")))) ->  | AH175: 2.792526803
W176: =IF(Input!$F$35<14,"",INDEX($X$15:$AD$374,MATCH(MOD($X176-$Y$13,360),$X$15:$X$374,1),IF(OR(Input!$K$13="Full",Input!$K$13="Partial"),2,6))) ->  | X176: 161 | AC176: 0.5751438582 | AD176: 0.5751438582 | AE176: 0 | AF176: =IF(Input!$P$70=1,'AZ Hpol (3)'!$W176,IF(Input!$P$70=2,#REF!,IF(Input!$P$70=3,#REF!,IF(Input!$P$70=4,#REF!,"")))) ->  | AH176: 2.809980096
W177: =IF(Input!$F$35<14,"",INDEX($X$15:$AD$374,MATCH(MOD($X177-$Y$13,360),$X$15:$X$374,1),IF(OR(Input!$K$13="Full",Input!$K$13="Partial"),2,6))) ->  | X177: 162 | AC177: 0.5866315962 | AD177: 0.5866315962 | AE177: 0 | AF177: =IF(Input!$P$70=1,'AZ Hpol (3)'!$W177,IF(Input!$P$70=2,#REF!,IF(Input!$P$70=3,#REF!,IF(Input!$P$70=4,#REF!,"")))) ->  | AH177: 2.827433388
W178: =IF(Input!$F$35<14,"",INDEX($X$15:$AD$374,MATCH(MOD($X178-$Y$13,360),$X$15:$X$374,1),IF(OR(Input!$K$13="Full",Input!$K$13="Partial"),2,6))) ->  | X178: 163 | AC178: 0.5979052888 | AD178: 0.5979052888 | AE178: 0 | AF178: =IF(Input!$P$70=1,'AZ Hpol (3)'!$W178,IF(Input!$P$70=2,#REF!,IF(Input!$P$70=3,#REF!,IF(Input!$P$70=4,#REF!,"")))) ->  | AH178: 2.844886681
W179: =IF(Input!$F$35<14,"",INDEX($X$15:$AD$374,MATCH(MOD($X179-$Y$13,360),$X$15:$X$374,1),IF(OR(Input!$K$13="Full",Input!$K$13="Partial"),2,6))) ->  | X179: 164 | AC179: 0.6088936083 | AD179: 0.6088936083 | AE179: 0 | AF179: =IF(Input!$P$70=1,'AZ Hpol (3)'!$W179,IF(Input!$P$70=2,#REF!,IF(Input!$P$70=3,#REF!,IF(Input!$P$70=4,#REF!,"")))) ->  | AH179: 2.862339973
W180: =IF(Input!$F$35<14,"",INDEX($X$15:$AD$374,MATCH(MOD($X180-$Y$13,360),$X$15:$X$374,1),IF(OR(Input!$K$13="Full",Input!$K$13="Partial"),2,6))) ->  | X180: 165 | AC180: 0.6195304108 | AD180: 0.6195304108 | AE180: 0 | AF180: =IF(Input!$P$70=1,'AZ Hpol (3)'!$W180,IF(Input!$P$70=2,#REF!,IF(Input!$P$70=3,#REF!,IF(Input!$P$70=4,#REF!,"")))) ->  | AH180: 2.879793266
W181: =IF(Input!$F$35<14,"",INDEX($X$15:$AD$374,MATCH(MOD($X181-$Y$13,360),$X$15:$X$374,1),IF(OR(Input!$K$13="Full",Input!$K$13="Partial"),2,6))) ->  | X181: 166 | AC181: 0.6297545674 | AD181: 0.6297545674 | AE181: 0 | AF181: =IF(Input!$P$70=1,'AZ Hpol (3)'!$W181,IF(Input!$P$70=2,#REF!,IF(Input!$P$70=3,#REF!,IF(Input!$P$70=4,#REF!,"")))) ->  | AH181: 2.897246558
W182: =IF(Input!$F$35<14,"",INDEX($X$15:$AD$374,MATCH(MOD($X182-$Y$13,360),$X$15:$X$374,1),IF(OR(Input!$K$13="Full",Input!$K$13="Partial"),2,6))) ->  | X182: 167 | AC182: 0.6395097854 | AD182: 0.6395097854 | AE182: 0 | AF182: =IF(Input!$P$70=1,'AZ Hpol (3)'!$W182,IF(Input!$P$70=2,#REF!,IF(Input!$P$70=3,#REF!,IF(Input!$P$70=4,#REF!,"")))) ->  | AH182: 2.914699851
W183: =IF(Input!$F$35<14,"",INDEX($X$15:$AD$374,MATCH(MOD($X183-$Y$13,360),$X$15:$X$374,1),IF(OR(Input!$K$13="Full",Input!$K$13="Partial"),2,6))) ->  | X183: 168 | AC183: 0.6487444299 | AD183: 0.6487444299 | AE183: 0 | AF183: =IF(Input!$P$70=1,'AZ Hpol (3)'!$W183,IF(Input!$P$70=2,#REF!,IF(Input!$P$70=3,#REF!,IF(Input!$P$70=4,#REF!,"")))) ->  | AH183: 2.932153143
W184: =IF(Input!$F$35<14,"",INDEX($X$15:$AD$374,MATCH(MOD($X184-$Y$13,360),$X$15:$X$374,1),IF(OR(Input!$K$13="Full",Input!$K$13="Partial"),2,6))) ->  | X184: 169 | AC184: 0.6574113518 | AD184: 0.6574113518 | AE184: 0 | AF184: =IF(Input!$P$70=1,'AZ Hpol (3)'!$W184,IF(Input!$P$70=2,#REF!,IF(Input!$P$70=3,#REF!,IF(Input!$P$70=4,#REF!,"")))) ->  | AH184: 2.949606436
W185: =IF(Input!$F$35<14,"",INDEX($X$15:$AD$374,MATCH(MOD($X185-$Y$13,360),$X$15:$X$374,1),IF(OR(Input!$K$13="Full",Input!$K$13="Partial"),2,6))) ->  | X185: 170 | AC185: 0.6654677283 | AD185: 0.6654677283 | AE185: 0 | AF185: =IF(Input!$P$70=1,'AZ Hpol (3)'!$W185,IF(Input!$P$70=2,#REF!,IF(Input!$P$70=3,#REF!,IF(Input!$P$70=4,#REF!,"")))) ->  | AH185: 2.967059728
W186: =IF(Input!$F$35<14,"",INDEX($X$15:$AD$374,MATCH(MOD($X186-$Y$13,360),$X$15:$X$374,1),IF(OR(Input!$K$13="Full",Input!$K$13="Partial"),2,6))) ->  | X186: 171 | AC186: 0.672874916 | AD186: 0.672874916 | AE186: 0 | AF186: =IF(Input!$P$70=1,'AZ Hpol (3)'!$W186,IF(Input!$P$70=2,#REF!,IF(Input!$P$70=3,#REF!,IF(Input!$P$70=4,#REF!,"")))) ->  | AH186: 2.984513021
W187: =IF(Input!$F$35<14,"",INDEX($X$15:$AD$374,MATCH(MOD($X187-$Y$13,360),$X$15:$X$374,1),IF(OR(Input!$K$13="Full",Input!$K$13="Partial"),2,6))) ->  | X187: 172 | AC187: 0.6795983196 | AD187: 0.6795983196 | AE187: 0 | AF187: =IF(Input!$P$70=1,'AZ Hpol (3)'!$W187,IF(Input!$P$70=2,#REF!,IF(Input!$P$70=3,#REF!,IF(Input!$P$70=4,#REF!,"")))) ->  | AH187: 3.001966313
W188: =IF(Input!$F$35<14,"",INDEX($X$15:$AD$374,MATCH(MOD($X188-$Y$13,360),$X$15:$X$374,1),IF(OR(Input!$K$13="Full",Input!$K$13="Partial"),2,6))) ->  | X188: 173 | AC188: 0.6856072757 | AD188: 0.6856072757 | AE188: 0 | AF188: =IF(Input!$P$70=1,'AZ Hpol (3)'!$W188,IF(Input!$P$70=2,#REF!,IF(Input!$P$70=3,#REF!,IF(Input!$P$70=4,#REF!,"")))) ->  | AH188: 3.019419606
W189: =IF(Input!$F$35<14,"",INDEX($X$15:$AD$374,MATCH(MOD($X189-$Y$13,360),$X$15:$X$374,1),IF(OR(Input!$K$13="Full",Input!$K$13="Partial"),2,6))) ->  | X189: 174 | AC189: 0.6908749519 | AD189: 0.6908749519 | AE189: 0 | AF189: =IF(Input!$P$70=1,'AZ Hpol (3)'!$W189,IF(Input!$P$70=2,#REF!,IF(Input!$P$70=3,#REF!,IF(Input!$P$70=4,#REF!,"")))) ->  | AH189: 3.036872898
W190: =IF(Input!$F$35<14,"",INDEX($X$15:$AD$374,MATCH(MOD($X190-$Y$13,360),$X$15:$X$374,1),IF(OR(Input!$K$13="Full",Input!$K$13="Partial"),2,6))) ->  | X190: 175 | AC190: 0.69537826 | AD190: 0.69537826 | AE190: 0 | AF190: =IF(Input!$P$70=1,'AZ Hpol (3)'!$W190,IF(Input!$P$70=2,#REF!,IF(Input!$P$70=3,#REF!,IF(Input!$P$70=4,#REF!,"")))) ->  | AH190: 3.054326191
W191: =IF(Input!$F$35<14,"",INDEX($X$15:$AD$374,MATCH(MOD($X191-$Y$13,360),$X$15:$X$374,1),IF(OR(Input!$K$13="Full",Input!$K$13="Partial"),2,6))) ->  | X191: 176 | AC191: 0.6990977833 | AD191: 0.6990977833 | AE191: 0 | AF191: =IF(Input!$P$70=1,'AZ Hpol (3)'!$W191,IF(Input!$P$70=2,#REF!,IF(Input!$P$70=3,#REF!,IF(Input!$P$70=4,#REF!,"")))) ->  | AH191: 3.071779484
W192: =IF(Input!$F$35<14,"",INDEX($X$15:$AD$374,MATCH(MOD($X192-$Y$13,360),$X$15:$X$374,1),IF(OR(Input!$K$13="Full",Input!$K$13="Partial"),2,6))) ->  | X192: 177 | AC192: 0.702017717 | AD192: 0.702017717 | AE192: 0 | AF192: =IF(Input!$P$70=1,'AZ Hpol (3)'!$W192,IF(Input!$P$70=2,#REF!,IF(Input!$P$70=3,#REF!,IF(Input!$P$70=4,#REF!,"")))) ->  | AH192: 3.089232776
W193: =IF(Input!$F$35<14,"",INDEX($X$15:$AD$374,MATCH(MOD($X193-$Y$13,360),$X$15:$X$374,1),IF(OR(Input!$K$13="Full",Input!$K$13="Partial"),2,6))) ->  | X193: 178 | AC193: 0.7041258203 | AD193: 0.7041258203 | AE193: 0 | AF193: =IF(Input!$P$70=1,'AZ Hpol (3)'!$W193,IF(Input!$P$70=2,#REF!,IF(Input!$P$70=3,#REF!,IF(Input!$P$70=4,#REF!,"")))) ->  | AH193: 3.106686069
W194: =IF(Input!$F$35<14,"",INDEX($X$15:$AD$374,MATCH(MOD($X194-$Y$13,360),$X$15:$X$374,1),IF(OR(Input!$K$13="Full",Input!$K$13="Partial"),2,6))) ->  | X194: 179 | AC194: 0.7054133804 | AD194: 0.7054133804 | AE194: 0 | AF194: =IF(Input!$P$70=1,'AZ Hpol (3)'!$W194,IF(Input!$P$70=2,#REF!,IF(Input!$P$70=3,#REF!,IF(Input!$P$70=4,#REF!,"")))) ->  | AH194: 3.124139361
W195: =IF(Input!$F$35<14,"",INDEX($X$15:$AD$374,MATCH(MOD($X195-$Y$13,360),$X$15:$X$374,1),IF(OR(Input!$K$13="Full",Input!$K$13="Partial"),2,6))) ->  | X195: 180 | AC195: 0.7058751874 | AD195: 0.7058751874 | AE195: 1 | AF195: =IF(Input!$P$70=1,'AZ Hpol (3)'!$W195,IF(Input!$P$70=2,#REF!,IF(Input!$P$70=3,#REF!,IF(Input!$P$70=4,#REF!,"")))) ->  | AH195: 3.141592654
W196: =IF(Input!$F$35<14,"",INDEX($X$15:$AD$374,MATCH(MOD($X196-$Y$13,360),$X$15:$X$374,1),IF(OR(Input!$K$13="Full",Input!$K$13="Partial"),2,6))) ->  | X196: 181 | AC196: 0.7055095194 | AD196: 0.7055095194 | AE196: 0 | AF196: =IF(Input!$P$70=1,'AZ Hpol (3)'!$W196,IF(Input!$P$70=2,#REF!,IF(Input!$P$70=3,#REF!,IF(Input!$P$70=4,#REF!,"")))) ->  | AH196: 3.159045946
W197: =IF(Input!$F$35<14,"",INDEX($X$15:$AD$374,MATCH(MOD($X197-$Y$13,360),$X$15:$X$374,1),IF(OR(Input!$K$13="Full",Input!$K$13="Partial"),2,6))) ->  | X197: 182 | AC197: 0.7043181385 | AD197: 0.7043181385 | AE197: 0 | AF197: =IF(Input!$P$70=1,'AZ Hpol (3)'!$W197,IF(Input!$P$70=2,#REF!,IF(Input!$P$70=3,#REF!,IF(Input!$P$70=4,#REF!,"")))) ->  | AH197: 3.176499239
W198: =IF(Input!$F$35<14,"",INDEX($X$15:$AD$374,MATCH(MOD($X198-$Y$13,360),$X$15:$X$374,1),IF(OR(Input!$K$13="Full",Input!$K$13="Partial"),2,6))) ->  | X198: 183 | AC198: 0.702306296 | AD198: 0.702306296 | AE198: 0 | AF198: =IF(Input!$P$70=1,'AZ Hpol (3)'!$W198,IF(Input!$P$70=2,#REF!,IF(Input!$P$70=3,#REF!,IF(Input!$P$70=4,#REF!,"")))) ->  | AH198: 3.193952531
W199: =IF(Input!$F$35<14,"",INDEX($X$15:$AD$374,MATCH(MOD($X199-$Y$13,360),$X$15:$X$374,1),IF(OR(Input!$K$13="Full",Input!$K$13="Partial"),2,6))) ->  | X199: 184 | AC199: 0.6994827487 | AD199: 0.6994827487 | AE199: 0 | AF199: =IF(Input!$P$70=1,'AZ Hpol (3)'!$W199,IF(Input!$P$70=2,#REF!,IF(Input!$P$70=3,#REF!,IF(Input!$P$70=4,#REF!,"")))) ->  | AH199: 3.211405824
W200: =IF(Input!$F$35<14,"",INDEX($X$15:$AD$374,MATCH(MOD($X200-$Y$13,360),$X$15:$X$374,1),IF(OR(Input!$K$13="Full",Input!$K$13="Partial"),2,6))) ->  | X200: 185 | AC200: 0.6958597854 | AD200: 0.6958597854 | AE200: 0 | AF200: =IF(Input!$P$70=1,'AZ Hpol (3)'!$W200,IF(Input!$P$70=2,#REF!,IF(Input!$P$70=3,#REF!,IF(Input!$P$70=4,#REF!,"")))) ->  | AH200: 3.228859116
W201: =IF(Input!$F$35<14,"",INDEX($X$15:$AD$374,MATCH(MOD($X201-$Y$13,360),$X$15:$X$374,1),IF(OR(Input!$K$13="Full",Input!$K$13="Partial"),2,6))) ->  | X201: 186 | AC201: 0.6914532637 | AD201: 0.6914532637 | AE201: 0 | AF201: =IF(Input!$P$70=1,'AZ Hpol (3)'!$W201,IF(Input!$P$70=2,#REF!,IF(Input!$P$70=3,#REF!,IF(Input!$P$70=4,#REF!,"")))) ->  | AH201: 3.246312409
W202: =IF(Input!$F$35<14,"",INDEX($X$15:$AD$374,MATCH(MOD($X202-$Y$13,360),$X$15:$X$374,1),IF(OR(Input!$K$13="Full",Input!$K$13="Partial"),2,6))) ->  | X202: 187 | AC202: 0.6862826591 | AD202: 0.6862826591 | AE202: 0 | AF202: =IF(Input!$P$70=1,'AZ Hpol (3)'!$W202,IF(Input!$P$70=2,#REF!,IF(Input!$P$70=3,#REF!,IF(Input!$P$70=4,#REF!,"")))) ->  | AH202: 3.263765701
W203: =IF(Input!$F$35<14,"",INDEX($X$15:$AD$374,MATCH(MOD($X203-$Y$13,360),$X$15:$X$374,1),IF(OR(Input!$K$13="Full",Input!$K$13="Partial"),2,6))) ->  | X203: 188 | AC203: 0.6803711256 | AD203: 0.6803711256 | AE203: 0 | AF203: =IF(Input!$P$70=1,'AZ Hpol (3)'!$W203,IF(Input!$P$70=2,#REF!,IF(Input!$P$70=3,#REF!,IF(Input!$P$70=4,#REF!,"")))) ->  | AH203: 3.281218994
W204: =IF(Input!$F$35<14,"",INDEX($X$15:$AD$374,MATCH(MOD($X204-$Y$13,360),$X$15:$X$374,1),IF(OR(Input!$K$13="Full",Input!$K$13="Partial"),2,6))) ->  | X204: 189 | AC204: 0.6737455687 | AD204: 0.6737455687 | AE204: 0 | AF204: =IF(Input!$P$70=1,'AZ Hpol (3)'!$W204,IF(Input!$P$70=2,#REF!,IF(Input!$P$70=3,#REF!,IF(Input!$P$70=4,#REF!,"")))) ->  | AH204: 3.298672286
W205: =IF(Input!$F$35<14,"",INDEX($X$15:$AD$374,MATCH(MOD($X205-$Y$13,360),$X$15:$X$374,1),IF(OR(Input!$K$13="Full",Input!$K$13="Partial"),2,6))) ->  | X205: 190 | AC205: 0.666436733 | AD205: 0.666436733 | AE205: 0 | AF205: =IF(Input!$P$70=1,'AZ Hpol (3)'!$W205,IF(Input!$P$70=2,#REF!,IF(Input!$P$70=3,#REF!,IF(Input!$P$70=4,#REF!,"")))) ->  | AH205: 3.316125579
... 169 more rows

Sheet AZ Hpol (4)
AB2: =(ROUND(((($R$13-389)/6)-13),0)*2)+1 -> 
O6: AZIMUTH PATTERN
O7: Horizontal Polarization
O9: Proposal No. | R9: =Cover!$E$13 ->  | Y9: Normalized Directivity | Z9: =IF(AC15=0,0,360/SUMSQ($W$15:$W$374)) ->  | AA9: Offset Ch | AB9: =Input!L16 -> 17 | AC9: =IF($AB9<37,473+6*($AB9-14),"") -> 491 | AD9: Offset Phase | AE9: =-IF(Input!K13="Partial",(11802.854*Input!L18/AC9/360)*(AC10*360/11802.824),(11802.854*90/AC9/360)*(AC10*360/11802.824)) ->  | AF9: degrees | AG9: =RADIANS(AE9) ->  | AH9: radians
O10: Date | R10: =Cover!$E$14 ->  | Y10: Input Peak Value | Z10: =MAX($AC$15:$AC$374) -> 1 | AA10: Display Ch | AB10: =Input!F37 -> 0 | AC10: =R13 ->  | AD10: Distence | AE10: =-11802.854*IF(Input!K13="Full",-90,Input!L18)/AC9/360 -> -0.06677333107 | AF10: inches
O11: Call Letters | R11: =IF(Input!$D$37>1,Input!$D$37,"") ->  | Y11: Normalize Value | Z11: =MAX($Z$15:$Z$374) ->  | AA11: Wave Length | AB11: =11802.76/AC10 ->  | AC11: =MAX($AD$15:$AD$374) -> 1
O12: Channel | R12: =IF(Input!$F$37>1,Input!$F$37,"") ->  | X12: Dwg No | Y12: C160 | AA12: K | AB12: =2*(PI()/AB11) -> 
O13: Frequency | R13: =IF(Input!$G$37>1,Input!$G$37,"") ->  | X13: Rotation | Y13: =Input!G13 -> 0
O14: Antenna Type | R14: =Cover!$E$11 -> TFU-4WB-LP/VP-R C160 | W14: Pattern | X14: Degs | Y14: Normalized | Z14: F | AA14: AF | AB14: KdCOS… | AC14: Normalized P | AD14: Input P | AG14: dB | AH14: Radians | AI14: dB -30
O15: Gain | R15: =IF(Input!$F$37<14,"",IF(ISNUMBER($Z$9),ROUND($Z$9,2)&" ("&ROUND(10*LOG($Z$9),2)&"dB)","")) ->  | W15: =IF(Input!$F$37<14,"",INDEX($X$15:$AD$374,MATCH(MOD($X15-$Y$13,360),$X$15:$X$374,1),IF(OR(Input!$K$13="Full",Input!$K$13="Partial"),2,6))) ->  | X15: 0 | Y15: =(1/$Z$11)*$Z15 ->  | Z15: =AD15*AA15 ->  | AA15: =SQRT(((1+COS(AB15))^2)+(SIN(AB15)^2)) ->  | AB15: =($AB$12*$AE$10*COS($AH15))+RADIANS($AE$9) ->  | AC15: =(1/$AC$11)*$AD15 -> 0.7709480324 | AD15: 0.7709480324 | AE15: 1 | AF15: =IF(Input!$P$70=1,'AZ Hpol (4)'!$W15,IF(Input!$P$70=2,#REF!,IF(Input!$P$70=3,#REF!,IF(Input!$P$70=4,#REF!,"")))) ->  | AG15: =ROUND(20*LOG(W15),4) ->  | AH15: =RADIANS(X15) -> 0 | AI15: =IF(W15<=0.031622776602,-30,20*LOG(W15)) -> 
R16: Calculated | W16: =IF(Input!$F$37<14,"",INDEX($X$15:$AD$374,MATCH(MOD($X16-$Y$13,360),$X$15:$X$374,1),IF(OR(Input!$K$13="Full",Input!$K$13="Partial"),2,6))) ->  | X16: 1 | Y16: =(1/$Z$11)*$Z16 ->  | AA16: =SQRT(((1+COS(AB16))^2)+(SIN(AB16)^2)) ->  | AB16: =($AB$12*$AE$10*COS($AH16))+RADIANS($AE$9) ->  | AC16: =(1/$AC$11)*$AD16 -> 0.7710913332 | AD16: 0.7710913332 | AE16: 0 | AF16: =IF(Input!$P$70=1,'AZ Hpol (4)'!$W16,IF(Input!$P$70=2,#REF!,IF(Input!$P$70=3,#REF!,IF(Input!$P$70=4,#REF!,"")))) ->  | AH16: =RADIANS(X16) -> 0.01745329252
